Workbook

Sheet simplified
J1: 1 - Holt Park - Beeston | P1: 1 - Beeston - Holt Park | V1: 6a - Holt Park - Leeds | AB1: 6b - Leeds - Holt Park
C2: =asjsarray(C3:C80) -> var codeslist = ["codes1a","codes1b","codes6a","codes6b","codes7a","codes7b","codes97a","codes97b","codes95a","codes95b","codes19a","codes19b","codes56a","codes56b","codes8a","codes8b"]; | D2: =asjsarray(D3:D80) -> var labelslist = ["labels1a","labels1b","labels6a","labels6b","labels7a","labels7b","labels97a","labels97b","labels95a","labels95b","labels19a","labels19b","labels56a","labels56b","labels8a","labels8b"]; | E2: =asjsarray(E3:E80) -> var arealist = ["areas1a","areas1b","areas6a","areas6b","areas7a","areas7b","areas97a","areas97b","areas95a","areas95b","areas19a","areas19b","areas56a","areas56b","areas8a","areas8b"]; | F2: =asjsarray(F3:F80) -> var xcoordslist = ["xcoords1a","xcoords1b","xcoords6a","xcoords6b","xcoords7a","xcoords7b","xcoords97a","xcoords97b","xcoords95a","xcoords95b","xcoords19a","xcoords19b","xcoords56a","xcoords56b","xcoords8a","xcoords8b"]; | G2: =asjsarray(G3:G80) -> var ycoordslist = ["ycoords1a","ycoords1b","ycoords6a","ycoords6b","ycoords7a","ycoords7b","ycoords97a","ycoords97b","ycoords95a","ycoords95b","ycoords19a","ycoords19b","ycoords56a","ycoords56b","ycoords8a","ycoords8b"]; | H2: =asjsarray(H3:H80) -> var colourlist = ["brown","brown","skyblue","skyblue","red","red","green","green","gray","gray","orange","orange","teal","teal","blue","blue"]; | I2: var routes = [1, 1, 6, 6, 7, 7, 97, 97, 95, 95, 19, 19, 56, 56, 8, 8]; | J2: =asjsarray(J3:J80) -> var 1a = ["Holt Park, Shopping Centre, (45010754) TP PO","Holt Park, Holt Road Holt Rise, (45011771)","Holt Park, Holt Lane Chestnut Dr, (45011752)","Holt Park, Holt Lane Whinfield, (45011750)","Lawnswood, Otley Rd Holt Lane, (45010497)","Lawnswood, Otley Road The Crescent, (45010498)","Lawnswood, Leeds St Helens Lane, (45010499)","Lawnswood, Otley Road Crematorium, (45010500)","Lawnswood, Lawnswood Sports Club, (45011747)","Weetwood, Otley Old Road Lawnswood, (45010501)","West Park, Otley Road Ring Road West Park, (45011161) TP","West Park, Otley Rd Kepston Road, (45011142)","West Park, Otley Rd Ancaster Road, (45011143)","Headingley, Headingley Lane Glen Rd, (45011145)","Headingley, Otley Rd St Chads Road, (45011147)","Headingley, Otley Rd St Chads Drive, (45011149)","Headingley, Arndale Centre, (45011363) TP","Headingley, Headingley Ln Bainbrigge Road, (45011365)","Headingley, Headingley Lane Oakfield, (45011367)","Headingley, Headingley Lane North Grange Rd, (45011369)","Hyde Park Corner, Headingley Ln Cumberland Road, (45011373)","Hyde Park Corner, (45011375)","Woodhouse, Woodhouse Lane Clarendon Rd, (45011382)","Woodhouse, Woodhouse La St Marks Street, (45011384)","Woodhouse, Leeds University, (45011388)","Woodhouse, Blackman Ln Woodhouse Lane, (45011390)","Leeds City Centre, L5 Woodhouse Lane, (45010914)","Leeds City Centre, J4 Albion Street, (45010918)","Leeds City Centre, Z3 Neville Street, (45013261)","Crown Point, Z5 Great Wilson Street, (45013260)","Crown Point, Dewsbury Road Meadow Rd, (45013259)","Crown Point, Parkfield Street Apex Wy, (45010062)","Beeston Hill, Northcote Crescent, (45010089)","Beeston Hill, Lady Pit Lane Northcote Green, (45010088)","Beeston Hill, Lady Pit Ln Brett Gardens, (45013205)","Beeston Hill, Malvern Rd Lady Pit Lane, (45013255)","Beeston Hill, (45010084)","Beeston Hill, Beeston Road Parkfield View, (45010081)","Beeston, Beeston Road Cross Flatts Grove, (45012172)","Beeston, Town Street Wesley St, (45012122)","Beeston, Town Street Terminus, (45012173) AO","Beeston, Town Street Terminus, (45010078) TP AO"]; | K2: =asjsarray(K3:K80) -> var codes1a = [45010754, 45011771, 45011752, 45011750, 45010497, 45010498, 45010499, 45010500, 45011747, 45010501, 45011161, 45011142, 45011143, 45011145, 45011147, 45011149, 45011363, 45011365, 45011367, 45011369, 45011373, 45011375, 45011382, 45011384, 45011388, 45011390, 45010914, 45010918, 45013261, 45013260, 45013259, 45010062, 45010089, 45010088, 45013205, 45013255, 45010084, 45010081, 45012172, 45012122, 45012173, 45010078]; | L2: =asjsarray(L3:L80) -> var labels1a = ["Holt Park Shopping Centre","Holt Road Holt Rise","Holt Lane Chestnut Drive","Holt Lane Whinfield","Otley Road Holt Lane","Otley Road The Crescent","Leeds St Helens Lane","Otley Road Lawnswood","Otley Road Lawnswood Sports Club","Otley Old Road Lawnswood","Otley Road Ring Road West Park","Otley Road Kepston Road","Otley Road Ancaster Road","Headingley Lane Glen Road","Otley Road St Chads Road","Otley Road St Chads Drive","Headingley Arndale Centre","Headingley Lane Bainbrigge Road","Headingley Lane Oakfield","Headingley Lane North Grange Road","Headingley Lane Cumberland Road","Hyde Park Corner","Woodhouse Lane Clarendon Road","Woodhouse Lane St Marks Street","Leeds University","Blackman Lane Woodhouse Lane","L5 Woodhouse Lane","J4 Albion Street","Z3 Neville Street","Z5 Great Wilson Street","Dewsbury Road Meadow Road","Parkfield Street Apex Way","Hunslet Hall Road Northcote Crescent","Lady Pit Lane Northcote Green","Lady Pit Lane Brett Gardens","Malvern Road Lady Pit Lane","Beeston Hill","Beeston Road Parkfield View","Beeston Road Cross Flatts Grove","Town Street Wesley Street","Town Street Beeston Terminus","Town Street Beeston Terminus"]; | M2: =asjsarray(M3:M80) -> var areas1a = ["Holt Park","Holt Park","Holt Park","Holt Park","Lawnswood","Lawnswood","Lawnswood","Lawnswood","Lawnswood","Weetwood","West Park","West Park","West Park","Headingley","Headingley","Headingley","Headingley","Headingley","Headingley","Headingley","Hyde Park Corner","Hyde Park Corner","Woodhouse","Woodhouse","Woodhouse","Woodhouse","Leeds City Centre","Leeds City Centre","Leeds City Centre","Crown Point","Crown Point","Crown Point","Beeston Hill","Beeston Hill","Beeston Hill","Beeston Hill","Beeston Hill","Beeston Hill","Beeston","Beeston","Beeston","Beeston"]; | N2: =asjsarray(N3:N80) -> var xcoords1a = [1138.1, 1182.1, 1233.2, 1271.8, 1290.5, 1281, 1275.8, 1274.6, 1262.6, 1257.1, 1265.9, 1277.6, 1304.1, 1343.7, 1369.4, 1389.2, 1415.3, 1446.2, 1478.5, 1515.4, 1550.2, 1594.2, 1639, 1660.6, 1685.7, 1706.4, 1747.5, 1753, 1734, 1736.8, 1745.9, 1764.8, 1734.5, 1698.3, 1687.2, 1679.2, 1634.5, 1596.1, 1568.5, 1539.8, 1490.1, 1482.9]; | O2: =asjsarray(O3:O80) -> var ycoords1a = [412.47360000005, 401.710400000088, 400.495200000072, 410.911200000048, 424.104800000042, 476.53200000003, 529.306400000006, 589.024800000089, 643.535199999999, 689.018400000004, 747.695200000003, 815.39920000003, 832.412000000003, 868.868000000103, 903.761600000077, 950.286400000043, 1003.75519999999, 1053.57840000002, 1084.13200000009, 1098.19359999999, 1111.7344000001, 1144.89200000001, 1203.74240000007, 1222.31760000004, 1264.32880000006, 1279.08480000005, 1359.80880000002, 1380.29359999998, 1494.69600000003, 1534.27680000001, 1594.16880000003, 1648.85279999999, 1708.57120000008, 1698.50240000009, 1727.49360000004, 1745.37440000004, 1780.09440000008, 1795.3712, 1829.91759999998, 1861.68640000008, 1873.66480000006, 1871.75520000007]; | P2: =asjsarray(P3:P80) -> var 1b = ["Beeston, Town Street Terminus, (45010078) TP PO","Beeston, Town Street Kirk Beeston Close, (45024264)","Beeston, Beeston Rd Crossflats Terrace, (45010079)","Beeston, Beeston Road Woodlea St, (45010080)","Beeston Hill, Beeston Rd Noster Terrace, (45010082)","Beeston Hill, (45012121)","Beeston Hill, Malvern Rd Beeston Road, (45010085)","Beeston Hill, Lady Pit Lane Coupland Rd, (45010086)","Beeston Hill, Lady Pit Lane Hunslet Hall Rd, (45010087)","Beeston Hill, Dewsbury Road Hunslet Hall Rd, (45010059)","Holbeck, Parkfield St Dewsbury Road, (45013257)","Crown Point, Meadow Rd Sweet Street, (45013258)","Crown Point, Z4 Victoria Road, (45013210)","Leeds City Centre, Z1 Bishopgate Street, (45011026)","Leeds City Centre, B Infirmary Street, (45025317) TP","Leeds City Centre, J3 Albion Street, (45010921) TP","Leeds City Centre, L2 Woodhouse Lane, (45010915)","Woodhouse, Woodhouse La Fenton Street, (45011391)","Woodhouse, Leeds University, (45011386)","Woodhouse, Woodhouse La St Marks Street, (45011381)","Woodhouse, Woodhouse La Clarendon Road, (45011379)","Hyde Park Corner, (45011380)","Hyde Park Corner, Headingley Lane Cumberland Rd, (45011376)","Headingley, Headingley Ln North Grange Road, (45011372)","Headingley, Headingley Lane Richmond Ave, (45011370)","Headingley, Headingley Lane Bainbrigge Rd, (45011368)","Headingley, Arndale Centre, (45011366) TP","Headingley, Otley Rd St Annes Road, (45011166)","Headingley, Otley Rd St Chads Drive, (45011164)","Headingley, Otley Rd St Chads Road, (45011148)","Headingley, Otley Rd Churchwood Avenue, (45011146)","West Park, Otley Rd Ancaster Road, (45011144)","West Park, Otley Road Welburn Grove, (45011141)","West Park, Lawnswood School, (45011163)","Weetwood, Otley Rd Otley Old Road, (45011739)","Lawnswood, Lawnswood Sports Club, (45011742)","Lawnswood, Otley Road Crematorium, (45011741)","Lawnswood, Otley Rd Lawns Hall Close, (45011743)","Lawnswood, Otley Rd New Adel Lane, (45011744)","Lawnswood, Otley Road The Crescent, (45011745)","Lawnswood, Otley Road Greenfield Court, (45011746)","Holt Park, Holt Lane Gainsborough Dr, (45011749)","Holt Park, Chestnut Drive, (45011751)","Holt Park, Kenworthy Vale, (45011772)","Holt Park, Shopping Centre, (45010754) TP AO"]; | Q2: =asjsarray(Q3:Q80) -> var codes1b = [45010078, 45024264, 45010079, 45010080, 45010082, 45012121, 45010085, 45010086, 45010087, 45010059, 45013257, 45013258, 45013210, 45011026, 45025317, 45010921, 45010915, 45011391, 45011386, 45011381, 45011379, 45011380, 45011376, 45011372, 45011370, 45011368, 45011366, 45011166, 45011164, 45011148, 45011146, 45011144, 45011141, 45011163, 45011739, 45011742, 45011741, 45011743, 45011744, 45011745, 45011746, 45011749, 45011751, 45011772, 45010754]; | R2: =asjsarray(R3:R80) -> var labels1b = ["Town Street Beeston Terminus","Town Street Kirk Beeston Close","Beeston Road St Marys Church Yard","Beeston Road Woodlea Street","Beeston Road Grave Yard","Beeston Hill","Malvern Road Beeston Road","Lady Pit Lane Coupland Road","Lady Pit Lane Hunslet Hall Road","Dewsbury Road Hunslet Hall Road","Parkfield Street Dewsbury Road","Meadow Road Sweet Street","Z4 Victoria Road","Z1 Bishopgate Street","B Infirmary Street","J3 Albion Street","L2 Woodhouse Lane","Woodhouse Lane Fenton Street","Leeds University","Woodhouse Lane St Marks Street","Woodhouse Lane Clarendon Road","Hyde Park Corner","Headingley Lane Cumberland Road","Headingley Lane North Grange Road","Headingley Lane Richmond Avenue","Headingley Lane Bainbrigge Road","Headingley Arndale Centre","Otley Road St Annes Road","Otley Road St Chads Drive","Otley Road St Chads Road","Otley Road Churchwood Avenue","Otley Road Ancaster Road","Otley Road Welburn Grove","Lawnswood School","Otley Road Otley Old Road","Otley Road Lawnswood Sports Club","Otley Road Lawnswood Crematorium","Otley Road Lawns Hall Close","Otley Road New Adel Lane","Otley Road The Crescent","Otley Road Greenfield Court","Holt Lane Gainsborough Drive","Holt Park Chestnut Drive","Holt Park Kenworthy Vale","Holt Park Shopping Centre"]; | S2: =asjsarray(S3:S80) -> var areas1b = ["Beeston","Beeston","Beeston","Beeston","Beeston Hill","Beeston Hill","Beeston Hill","Beeston Hill","Beeston Hill","Beeston Hill","Holbeck","Crown Point","Crown Point","Leeds City Centre","Leeds City Centre","Leeds City Centre","Leeds City Centre","Woodhouse","Woodhouse","Woodhouse","Woodhouse","Hyde Park Corner","Hyde Park Corner","Headingley","Headingley","Headingley","Headingley","Headingley","Headingley","Headingley","Headingley","West Park","West Park","West Park","Weetwood","Lawnswood","Lawnswood","Lawnswood","Lawnswood","Lawnswood","Lawnswood","Holt Park","Holt Park","Holt Park","Holt Park"]; | T2: =asjsarray(T3:T80) -> var xcoords1b = [1482.9, 1519.2, 1550.7, 1575.6, 1601.1, 1636.1, 1677, 1688.7, 1698.9, 1757.4, 1765.9, 1738.2, 1726, 1730.3, 1712.1, 1750.4, 1742.1, 1707.4, 1677, 1647.5, 1625.5, 1588.3, 1548.7, 1509, 1469.3, 1443.9, 1411.6, 1392.9, 1383.2, 1364.7, 1332.6, 1299, 1274.1, 1261.3, 1252.3, 1262.7, 1269.5, 1271.9, 1273.7, 1276.5, 1285.4, 1265.2, 1225.3, 1188, 1138.1]; | U2: =asjsarray(U3:U80) -> var ycoords1b = [1871.75520000007, 1866.54720000002, 1847.4512, 1815.33520000004, 1790.3368, 1777.4904, 1743.46480000005, 1717.07760000006, 1696.24559999999, 1694.85680000004, 1665.5184000001, 1577.32959999999, 1540.35280000009, 1466.57279999999, 1428.90159999999, 1379.42560000008, 1349.39280000004, 1292.10479999999, 1247.66320000007, 1217.10959999999, 1190.72240000001, 1142.98240000003, 1112.94959999999, 1098.02000000006, 1083.95840000004, 1054.44640000005, 1002.88720000009, 965.563200000081, 941.606400000001, 901.331200000046, 858.972800000046, 831.717600000029, 815.572800000085, 762.451199999999, 678.255200000041, 624.439200000105, 590.06640000005, 552.221600000002, 518.716800000099, 489.725600000024, 441.464800000001, 411.605600000021, 397.717600000054, 403.793600000009, 412.47360000005]; | V2: =asjsarray(V3:V80) -> var 6a = ["Holt Park, Shopping Ctr, (45010755) TP PO","Holt Park, Holtdale Approach Ralph Thorsby School, (45011720)","Holt Park, Holtdale Approach Ralph Thorsby School, (45011725)","Tinshill, Otley Old Road Holtdale Approach, (45011728)","Cookridge, Otley Old Road Holtdale Approach, (45011502)","Cookridge, Green Lane Cookridge Ln, (45011740)","Cookridge, Green Lane Moseley Wood Ln, (45011737)","Cookridge, Kirkwood Drive, (45011735)","Cookridge, Green Lane Moseley Wood Approach, (45011734)","Tinshill, Wood Hill Rd Wood Hill Gardens, (45011711)","Tinshill, Tinshill Rd Wood Hill Road, (45011713)","Tinshill, Haigh Wood Rd Tinshill Lane, (45011509)","Tinshill, Silk Mill Drive Woodnook Drive, (45011511) TP","Tinshill, Silk Mill Drive Silk Mill Road, (45011513)","Tinshill, Silk Mill Drive Silk Mill Ave, (45011526)","Tinshill, Silk Mill Drive Woodnook Drive, (45011529)","Tinshill, Tinshill Lane Tinshill Avenue, (45011528)","Tinshill, Tinshill Lane Tinshill Grove, (45011532)","Ireland Wood, Otley Old Rd Hospital Lane, (45010761)","Ireland Wood, Otley Old Rd Iveson Drive, (45011540)","Ireland Wood, Otley Old Rd New Adel Lane, (45010746)","Lawnswood, Otley Old Rd Spennithorpe Drive, (45011569)","Weetwood, Otley Old Road Lawnswood, (45010501)","West Park, Otley Road Ring Road West Park, (45011161) TP","West Park, Otley Rd Kepston Road, (45011142)","West Park, Otley Rd Ancaster Road, (45011143)","Headingley, Headingley Lane Glen Rd, (45011145)","Headingley, Otley Rd St Chads Road, (45011147)","Headingley, Otley Rd St Chads Drive, (45011149)","Headingley, Arndale Centre, (45011363) TP","Headingley, Headingley Ln Bainbrigge Road, (45011365)","Headingley, Headingley Lane Oakfield, (45011367)","Headingley, Headingley Lane North Grange Rd, (45011369)","Hyde Park Corner, Headingley Ln Cumberland Road, (45011373)","Hyde Park Corner, (45011375)","Woodhouse, Woodhouse Lane Clarendon Rd, (45011382)","Woodhouse, Woodhouse La St Marks Street, (45011384)","Woodhouse, Leeds University, (45011388)","Woodhouse, Blackman Ln Woodhouse Lane, (45011390)","Leeds City Centre, L5 Woodhouse Lane, (45010914)","Leeds City Centre, J6 Albion Street, (45010920)","Leeds City Centre, M4 Vicar Lane, (45010680)","Leeds City Bus Station, Leeds Bus Station 20, (45030239) TP AO"]; | W2: =asjsarray(W3:W80) -> var codes6a = [45010755, 45011720, 45011725, 45011728, 45011502, 45011740, 45011737, 45011735, 45011734, 45011711, 45011713, 45011509, 45011511, 45011513, 45011526, 45011529, 45011528, 45011532, 45010761, 45011540, 45010746, 45011569, 45010501, 45011161, 45011142, 45011143, 45011145, 45011147, 45011149, 45011363, 45011365, 45011367, 45011369, 45011373, 45011375, 45011382, 45011384, 45011388, 45011390, 45010914, 45010920, 45010680, 45030239]; | X2: =asjsarray(X3:X80) -> var labels6a = ["Holt Park Shopping Centre","Holtdale Approach Ralph Thorsby School","Holtdale Approach Ralph Thorsby School","Otley Old Road Holtdale Approach","Otley Old Road Holtdale Approach","Green Lane Cookridge Lane","Green Lane Moseley Wood Lane","Kirkwood Drive","Green Lane Moseley Wood Approach","Wood Hill Road Wood Hill Gardens","Tinshill Road Wood Hill Road","Haigh Wood Road Tinshill Lane","Silk Mill Drive Woodnook Drive","Silk Mill Drive Silk Mill Road","Silk Mill Drive Silk Mill Avenue","Silk Mill Drive Woodnook Drive","Tinshill Lane Tinshill Avenue","Tinshill Lane Tinshill Grove","Otley Old Road Hospital Lane","Otley Old Road Iveson Drive","Leeds Spen Lane","Otley Old Road Spennithorpe Drive","Otley Old Road Lawnswood","Otley Road Ring Road West Park","Otley Road Kepston Road","Otley Road Ancaster Road","Headingley Lane Glen Road","Otley Road St Chads Road","Otley Road St Chads Drive","Headingley Arndale Centre","Headingley Lane Bainbrigge Road","Headingley Lane Oakfield","Headingley Lane North Grange Road","Headingley Lane Cumberland Road","Hyde Park Corner","Woodhouse Lane Clarendon Road","Woodhouse Lane St Marks Street","Leeds University","Blackman Lane Woodhouse Lane","L5 Woodhouse Lane","J6 Albion Street","M4 Vicar Lane","Stand 20 Leeds City Bus Station"]; | Y2: =asjsarray(Y3:Y80) -> var areas6a = ["Holt Park","Holt Park","Holt Park","Tinshill","Cookridge","Cookridge","Cookridge","Cookridge","Cookridge","Tinshill","Tinshill","Tinshill","Tinshill","Tinshill","Tinshill","Tinshill","Tinshill","Tinshill","Ireland Wood","Ireland Wood","Ireland Wood","Lawnswood","Weetwood","West Park","West Park","West Park","Headingley","Headingley","Headingley","Headingley","Headingley","Headingley","Headingley","Hyde Park Corner","Hyde Park Corner","Woodhouse","Woodhouse","Woodhouse","Woodhouse","Leeds City Centre","Leeds City Centre","Leeds City Centre","Leeds City Bus Station"]; | Z2: =asjsarray(Z3:Z80) -> var xcoords6a = [1129.4, 1114.3, 1088.9, 1061.2, 1049.5, 1029.3, 994.8, 972.1, 940.099999999999, 920.5, 916.999999999999, 907.899999999999, 947.199999999999, 983.3, 1006.5, 997.399999999999, 1024.2, 1065.5, 1126.3, 1159.1, 1192.9, 1229.4, 1257.1, 1265.9, 1277.6, 1304.1, 1343.7, 1369.4, 1389.2, 1415.3, 1446.2, 1478.5, 1515.4, 1550.2, 1594.2, 1639, 1660.6, 1685.7, 1706.4, 1747.5, 1753.1, 1799.4, 1843]; | AA2: =asjsarray(AA3:AA80) -> var ycoords6a = [413.688800000066, 425.840800000099, 428.444800000062, 411.43200000009, 374.108000000084, 294.252000000023, 342.686400000102, 382.61440000007, 431.048800000025, 485.385600000004, 533.646400000027, 570.796800000101, 605.690400000075, 604.822400000046, 572.880000000022, 540.764000000066, 502.224800000045, 463.338400000036, 514.029600000091, 552.916000000099, 594.40640000007, 642.319999999983, 689.018400000004, 747.695200000003, 815.39920000003, 832.412000000003, 868.868000000103, 903.761600000077, 950.286400000043, 1003.75519999999, 1053.57840000002, 1084.13200000009, 1098.19359999999, 1111.7344000001, 1144.89200000001, 1203.74240000007, 1222.31760000004, 1264.32880000006, 1279.08480000005, 1359.80880000002, 1384.80720000006, 1426.1240000001, 1433.5888]; | AB2: =asjsarray(AB3:AB80) -> var 6b = ["Leeds City Bus Station, Leeds Bus Station 20, (45030239) TP PO","Leeds City Centre, G9 Eastgate, (45012363)","Leeds City Centre, J3 Albion Street, (45010921) TP","Leeds City Centre, L2 Woodhouse Lane, (45010915)","Woodhouse, Woodhouse La Fenton Street, (45011391)","Woodhouse, Woodhouse Lane Back Blenheim Ter, (45011385)","Woodhouse, Woodhouse La St Marks Street, (45011381)","Woodhouse, Woodhouse La Clarendon Road, (45011379)","Hyde Park Corner, (45011380)","Hyde Park Corner, Headingley Lane Cumberland Rd, (45011376)","Headingley, Headingley Ln North Grange Road, (45011372)","Headingley, Headingley Lane Richmond Ave, (45011370)","Headingley, Headingley Lane Bainbrigge Rd, (45011368)","Headingley, Arndale Centre, (45011366) TP","Headingley, Otley Rd St Annes Road, (45011166)","Headingley, Otley Rd St Chads Drive, (45011164)","Headingley, Otley Rd St Chads Road, (45011148)","Headingley, Otley Rd Churchwood Avenue, (45011146)","West Park, Otley Rd Ancaster Road, (45011144)","West Park, Otley Road Welburn Grove, (45011141)","West Park, Lawnswood School, (45011163)","Weetwood, Otley Old Rd The Grange Road, (45011568)","Lawnswood, Otley Old Rd Spennithorpe Drive, (45011570)","Ireland Wood, Otley Old Rd New Adel Road, (45011549)","Ireland Wood, Otley Old Rd Iveson Drive, (45011550)","Ireland Wood, Otley Old Rd Hospital Lane, (45010753)","Tinshill, Tinshill Lane Tinshill Grove, (45011533)","Tinshill, Tinshill Lane Tinshill Avenue, (45011531)","Tinshill, Woodnook Drive Silk Mill Dri, (45011524)","Tinshill, Silk Mill Drive Silk Mill Ave, (45011523)","Tinshill, Silk Mill Drive Silk Mill Bank, (45011515)","Tinshill, Silk Mill Drive, (45011516) TP","Tinshill, Haigh Wood Rd Tinshill Lane, (45011510)","Tinshill, Tinshill Rd Wood Hill Road, (45011715)","Tinshill, Wood Hill Rd Wood Hill Gardens, (45011709)","Cookridge, Green Lane Kirkwood Grove, (45011733)","Cookridge, Green Lane Kirkwood Dr, (45011736)","Cookridge, Green Lane Moseley Wood Ln, (45011738)","Cookridge, Green Lane Cookridge Ln, (45010757)","Cookridge, Otley Old Rd Tinshill Road, (45010758)","Tinshill, Otley Old Road Tinshill Tower, (45011730)","Holt Park, Holtdale Approach Holtdale Place, (45011723)","Holt Park, Holtdale Approach Holtdale Road, (45011722)","Holt Park, Shopping Ctr, (45010755) TP AO"]; | AC2: =asjsarray(AC3:AC80) -> var codes6b = [45030239, 45012363, 45010921, 45010915, 45011391, 45011385, 45011381, 45011379, 45011380, 45011376, 45011372, 45011370, 45011368, 45011366, 45011166, 45011164, 45011148, 45011146, 45011144, 45011141, 45011163, 45011568, 45011570, 45011549, 45011550, 45010753, 45011533, 45011531, 45011524, 45011523, 45011515, 45011516, 45011510, 45011715, 45011709, 45011733, 45011736, 45011738, 45010757, 45010758, 45011730, 45011723, 45011722, 45010755]; | AD2: =asjsarray(AD3:AD80) -> var labels6b = ["Stand 20 Leeds City Bus Station","G9 Eastgate","J3 Albion Street","L2 Woodhouse Lane","Woodhouse Lane Fenton Street","Woodhouse Lane Back Blenheim Terrace","Woodhouse Lane St Marks Street","Woodhouse Lane Clarendon Road","Hyde Park Corner","Headingley Lane Cumberland Road","Headingley Lane North Grange Road","Headingley Lane Richmond Avenue","Headingley Lane Bainbrigge Road","Headingley Arndale Centre","Otley Road St Annes Road","Otley Road St Chads Drive","Otley Road St Chads Road","Otley Road Churchwood Avenue","Otley Road Ancaster Road","Otley Road Welburn Grove","Lawnswood School","Otley Old Road The Grange Road","Otley Old Road Spennithorpe Drive","Otley Old Road New Adel Road","Otley Old Road Iveson Drive","Otley Old Road Hospital Lane","Tinshill Lane Tinshill Grove","Tinshill Lane Tinshill Avenue","Woodnook Drive Silk Mill Drive","Silk Mill Drive Silk Mill Avenue","Silk Mill Drive Silk Mill Bank","Tinshill Silk Mill Drive","Haigh Wood Road Tinhill Lane","Tinshill Road Woodhill Road","Wood Hill Road Wood Hill Gardens","Green Lane Kirkwood Grove","Green Lane Kirkwood Drive","Green Lane Church","Green Lane Cookridge Lane","Otley Old Road Tinshill Road","Otley Old Road Tinshill Tower","Holtdale Approach Holtdale Place","Holtdale Approach Holtdale Road","Holt Park Shopping Centre"]; | AE2: =asjsarray(AE3:AE80) -> var areas6b = ["Leeds City Bus Station","Leeds City Centre","Leeds City Centre","Leeds City Centre","Woodhouse","Woodhouse","Woodhouse","Woodhouse","Hyde Park Corner","Hyde Park Corner","Headingley","Headingley","Headingley","Headingley","Headingley","Headingley","Headingley","Headingley","West Park","West Park","West Park","Weetwood","Lawnswood","Ireland Wood","Ireland Wood","Ireland Wood","Tinshill","Tinshill","Tinshill","Tinshill","Tinshill","Tinshill","Tinshill","Tinshill","Tinshill","Cookridge","Cookridge","Cookridge","Cookridge","Cookridge","Tinshill","Holt Park","Holt Park","Holt Park"]; | AF2: =asjsarray(AF3:AF80) -> var xcoords6b = [1843, 1811.4, 1750.4, 1742.1, 1707.4, 1676.2, 1647.5, 1625.5, 1588.3, 1548.7, 1509, 1469.3, 1443.9, 1411.6, 1392.9, 1383.2, 1364.7, 1332.6, 1299, 1274.1, 1261.3, 1249.5, 1227.2, 1185.8, 1162.1, 1117.2, 1061.8, 1022.5, 992.4, 1005.7, 990.199999999999, 947, 906.100000000001, 916.299999999999, 918.2, 950.500000000001, 975.200000000001, 996.4, 1031.7, 1049.6, 1064.4, 1082.2, 1116.3, 1129.4]; | AG2: =asjsarray(AG3:AG80) -> var ycoords6b = [1433.5888, 1410.67360000001, 1379.42560000008, 1349.39280000004, 1292.10479999999, 1244.712, 1217.10959999999, 1190.72240000001, 1142.98240000003, 1112.94959999999, 1098.02000000006, 1083.95840000004, 1054.44640000005, 1002.88720000009, 965.563200000081, 941.606400000001, 901.331200000046, 858.972800000046, 831.717600000029, 815.572800000085, 762.451199999999, 688.671200000017, 641.104800000091, 591.628800000052, 566.630400000012, 511.946400000047, 467.157600000015, 505.523200000105, 535.208800000029, 579.303200000087, 594.40640000007, 597.35760000002, 569.755200000017, 532.257600000079, 477.052800000072, 418.028800000087, 374.281600000016, 336.436800000092, 292.342400000034, 363.691999999985, 412.820800000037, 425.493599999989, 421.500800000078, 413.688800000066]; | AH2: =asjsarray(AH3:AH80) -> var 7a = ["Alwoodley Gates, Wigton Moor High Ash Shops, (45012649) TP PO","Alwoodley Gates, High Ash Drive, (45012697)","Alwoodley Gates, High Ash Drive High Ash Ave, (45012698)","Alwoodley Gates, Wigton Ln High Ash Drive, (45012700)","Alwoodley Gates, (45010599)","Alwoodley Gates, Harrogate Road The Moorings, (45013111)","Alwoodley Gates, Harrogate Road Sandhill Mount, (45013110)","Moortown, Primley Park Avenue Harrogate Rd, (45012662)","Moortown, Primley Park Crescent Primley Park Ave, (45010598) TP","Moortown, Nursery Lane Nursery Close, (45012664)","Moortown, Nursery Lane Fir Tree Grove, (45010595)","Moortown, Lingfield Hill Nursery Lane, (45010594)","Moortown, Lingfield Hill Lingfield Drive, (45010593)","Moortown, King Lane Park & Ride, (45010939) TP","Moortown, King Lane Moor Allerton Centre, (45010940)","Moortown, King Ln Leafield Drive, (45010941)","Moortown, King Lane Stonegate Rd, (45010587)","Meanwood, Carr Manor Road Carr Manor View, (45011115)","Meanwood, Carr Manor Road Carr Manor, (45011117)","Meanwood, Carr Manor Parade, (45011119)","Meanwood, Carr Manor Walk, (45011122)","Meanwood, Stainbeck Road Beckhill Approach, (45010861)","Meanwood, Stainbeck Rd Stonegate Crescent, (45011123)","Meanwood, Potternewton Lane Stainbeck Rd, (45010864)","Meanwood, Potternewton Lane, (45010862)","Potternewton, Potternewton Lane Miles Hill Avenue, (45011174)","Chapel Allerton, Scott Hall Rd Potternewton Lane, (45010286) TP","Potternewton, Scott Hall Rd Scott Hall Grove, (45010287)","Chapeltown, Scott Hall Rd Sholebroke Mount, (45010288)","Chapeltown, Scott Hall Road Mexborough St, (45011029)","Sheepscar, Scott Hall Rd Buslingthorpe Lane, (45011030)","Sheepscar, Sheepscar St North Barrack Street, (45010290)","Sheepscar, North Street Sheepscar Street South, (45010303)","Sheepscar, North St Winton Street, (45011505)","Mabgate, North Street, (45023950)","Leeds City Centre, U3 Vicar Lane, (45012971)","Leeds City Centre, M4 Vicar Lane, (45010680)","Leeds City Centre, T9 Boar Lane, (45010689) AO","Leeds City Centre, S10 Leeds Station Interchange, (45025481) AO","Leeds City Centre, S9 Leeds Station Interchange, (45025480) AO","Leeds City Centre, S1 Wellington Street, (45013158) "]; | AI2: =asjsarray(AI3:AI80) -> var codes7a = [45012649, 45012697, 45012698, 45012700, 45010599, 45013111, 45013110, 45012662, 45010598, 45012664, 45010595, 45010594, 45010593, 45010939, 45010940, 45010941, 45010587, 45011115, 45011117, 45011119, 45011122, 45010861, 45011123, 45010864, 45010862, 45011174, 45010286, 45010287, 45010288, 45011029, 45011030, 45010290, 45010303, 45011505, 45023950, 45012971, 45010680, 45010689, 45025481, 45025480, 45013158]; | AJ2: =asjsarray(AJ3:AJ80) -> var labels7a = ["Wigton Moor High Ash Shops","High Ash Drive","High Ash Drive High Ash Avenue","Wigton Lane High Ash Drive","Alwoodley Gates","Harrogate Road The Moorings","Harrogate Road Sandhill Mount","Primley Park Avenue Harrogate Road","Primley Park","Nursery Lane Nursery Close","Nursery Lane Fir Tree Grove","Lingfield Hill Nursery Lane","Lingfield Hill Lingfield Drive","King Lane Park And Ride","King Lane Moortown","King Lane Moortown","King Lane Stonegate Road","Carr Manor Road Carr Manor View","Carr Manor Road","Carr Manor Road Carr Manor Parade","Carr Manor Road Carr Manor Walk","Stainbeck Road Beckhill Approach","Stainbeck Road Stonegate Crescent","Potternewton Lane Stainbeck Road","Potternewton Lane","Potternewton Lane Miles Hill Avenue","Scott Hall Road Potternewton Lane","Scott Hall Road Scott Hall Grove","Scott Hall Road Sholebroke Mount","Scott Hall Road Mexborough Street","Scott Hall Road Buslingthorpe Lane","Sheepscar Street North Barrack Street","North Street Sheepscar Street South","North Street Winton Street","North Street St Thomas Row","U3 Vicar Lane","M4 Vicar Lane","T9 Boar Lane","S10 Leeds Station Interchange","S9 Leeds Station Interchange","S1 Wellington Street"]; | AK2: =asjsarray(AK3:AK80) -> var areas7a = ["Alwoodley Gates","Alwoodley Gates","Alwoodley Gates","Alwoodley Gates","Alwoodley Gates","Alwoodley Gates","Alwoodley Gates","Moortown","Moortown","Moortown","Moortown","Moortown","Moortown","Moortown","Moortown","Moortown","Moortown","Meanwood","Meanwood","Meanwood","Meanwood","Meanwood","Meanwood","Meanwood","Meanwood","Potternewton","Chapel Allerton","Potternewton","Chapeltown","Chapeltown","Sheepscar","Sheepscar","Sheepscar","Sheepscar","Mabgate","Leeds City Centre","Leeds City Centre","Leeds City Centre","Leeds City Centre","Leeds City Centre","Leeds City Centre"]; | AL2: =asjsarray(AL3:AL80) -> var xcoords7a = [1985.1, 1945, 1950.2, 1953, 1923.2, 1899.6, 1893.2, 1868.5, 1852, 1831.2, 1793.8, 1744.1, 1744.6, 1678.1, 1708.1, 1724.8, 1747.6, 1730.3, 1720.6, 1696.8, 1677.3, 1649.9, 1612.5, 1600.7, 1649.3, 1704.4, 1741.7, 1761.7, 1798.7, 1815.1, 1815.6, 1837.4, 1850.9, 1845, 1828.9, 1805.6, 1799.4, 1755.2, 1729.3, 1728, 1709.1]; | AM2: =asjsarray(AM3:AM80) -> var ycoords7a = [415.945600000042, 377.232800000089, 351.36640000002, 326.888800000021, 328.798400000011, 390.079200000096, 419.417600000034, 477.052800000072, 476.011199999988, 498.232000000011, 492.503200000043, 490.593600000053, 529.132800000074, 534.861600000042, 588.851200000034, 607.947200000051, 651.694399999998, 705.857600000045, 743.007999999995, 782.762400000032, 815.746400000017, 851.160800000033, 883.797600000031, 923.204800000081, 954.452800000008, 954.452800000008, 967.646400000002, 1003.58160000006, 1069.72320000008, 1118.67840000008, 1154.61360000002, 1205.30480000007, 1266.4120000001, 1303.04160000001, 1347.83040000004, 1388.27920000005, 1426.1240000001, 1462.40640000002, 1473.16959999998, 1469.00320000002, 1457.02480000004]; | AN2: =asjsarray(AN3:AN80) -> var 7b = ["Leeds City Centre, E Infirmary Street, (45025320) TPPO","Leeds City Centre, T2 Boar Lane, (45010687)","Leeds City Centre, V6 Vicar Lane, (45012977)","Leeds City Centre, N3 New Briggate, (45010674)","Mabgate, North St Byron Street, (45010300)","Sheepscar, North St Meanwood Road, (45010302)","Sheepscar, Sheepscar St North Sheepscar Way, (45010281)","Sheepscar, Sheepscar Street North Buslingthorpe Lane, (45023999)","Chapeltown, Scott Hall Road Mexborough St, (45023949)","Chapeltown, Scott Hall Rd Sholebroke Mount, (45011031)","Potternewton, Scott Hall Rd Scott Hall Grove, (45010282)","Chapel Allerton, Potternewton Lane Potternewton View, (45011173) TP","Potternewton, Potternewton Lane Miles Hill Rd, (45011171)","Meanwood, Potternewton Lane, (45010863)","Meanwood, Stainbeck Rd Stainbeck Avenue, (45010858)","Meanwood, Stainbeck Rd Stonegate Crescent, (45011124)","Meanwood, Stainbeck Rd Bowood Crescent, (45010860)","Meanwood, Carr Manor Place, (45011121)","Meanwood, Carr Manor Crescent, (45011120)","Meanwood, Carr Manor Road Carr Manor, (45011118)","Meanwood, Carr Manor Road Garth Rd, (45011116)","Moortown, Stonegate Road Leafield Grange, (45010588)","Moortown, King Lane Leafield Dr, (45023909)","Moortown, King Lane Moor Allerton Shopping Centre, (45010936)","Moortown, King Lane Lingfield Approach, (45010938)TP","Moortown, Lingfield Hill Lingfield Drive, (45012609)","Moortown, Lingfield Hill Nursery Lane, (45023835)","Moortown, Nursery Lane Fir Tree Grove, (45012608)","Moortown, Nursery Lane Primley Park Crescent, (45012663) TP","Moortown, Harrogate Rd Belvedere Road, (45013165)","Alwoodley Gates, Harrogate Rd Primley Park Lane, (45013164)","Alwoodley Gates, Harrogate Rd Sandmoor Drive, (45013163)","Alwoodley Gates, (45013112)","Alwoodley Gates, Wigton Lane Alwoodley Gates, (45025357)","Alwoodley Gates, Wigton Lane Wigton Park Close, (45028069)","Wigton Moor, Plantation Gardens Plantation Avenue, (45012646)","Wigton Moor, High Ash Ave Barfield Crescent, (45012647)","Alwoodley Gates, Wigton Moor High Ash Shops, (45012649) TP AO","Moortown, Primley Park Avenue Harrogate Rd, (45012662)","Moortown, Primley Park Crescent Primley Park Ave, (45010598) TP AO"]; | AO2: =asjsarray(AO3:AO80) -> var codes7b = [45025320, 45010687, 45012977, 45010674, 45010300, 45010302, 45010281, 45023999, 45023949, 45011031, 45010282, 45011173, 45011171, 45010863, 45010858, 45011124, 45010860, 45011121, 45011120, 45011118, 45011116, 45010588, 45023909, 45010936, 45010938, 45012609, 45023835, 45012608, 45012663, 45013165, 45013164, 45013163, 45013112, 45025357, 45028069, 45012646, 45012647, 45012649, 45012662, 45010598]; | AP2: =asjsarray(AP3:AP80) -> var labels7b = ["E Infirmary Street","T4 Boar Lane","V6 Vicar Lane","N3 New Briggate","North Street Byron Street","North Street Meanwood Road","Sheepscar Street North Sheepscar Way","Sheepscar Street North Buslingthorpe Lane","Scott Hall Road Mexborough Street","Scott Hall Road Sholebroke Mount","Scott Hall Road Scott Hall Grove","Potternewton Lane Potternewton View","Potternewton Lane Miles Hill Road","Potternewton Lane","Stainbeck Road Stainbeck Avenue","Stainbeck Road Stonegate Crescent","Stainbeck Road Bowood Crescent","Carr Manor Road Carr Manor Place","Carr Manor Road Carr Manor Crescent","Carr Manor Road","Carr Manor Road Garth Road","Stonegate Road Leafield Grange","King Lane Leafield Drive","King Lane Moor Allerton Shopping Centre","King Lane Lingfield Approach","Lingfield Hill Lingfield Drive","Lingfield Hill Nursery Lane","Nursery Lane Fir Tree Grove","Nursery Lane Primley Park Crescent","Harrogate Road Belvedere Road","Harrogate Road Primley Park Lane","Harrogate Road Sandmoor Drive","Alwoodley Gates","Wigton Lane Alwoodley Gates","Wigton Lane Wigton Park Close","Plantation Gardens Plantation Avenue","High Ash Avenue Barfield Crescent","Wigton Moor High Ash Shops","Primley Park Avenue Harrogate Road","Primley Park"]; | AQ2: =asjsarray(AQ3:AQ80) -> var areas7b = ["Leeds City Centre","Leeds City Centre","Leeds City Centre","Leeds City Centre","Mabgate","Sheepscar","Sheepscar","Sheepscar","Chapeltown","Chapeltown","Potternewton","Chapel Allerton","Potternewton","Meanwood","Meanwood","Meanwood","Meanwood","Meanwood","Meanwood","Meanwood","Meanwood","Moortown","Moortown","Moortown","Moortown","Moortown","Moortown","Moortown","Moortown","Moortown","Alwoodley Gates","Alwoodley Gates","Alwoodley Gates","Alwoodley Gates","Alwoodley Gates","Wigton Moor","Wigton Moor","Alwoodley Gates","Moortown","Moortown"]; | AR2: =asjsarray(AR3:AR80) -> var xcoords7b = [1710.6, 1765.5, 1801.1, 1784.8, 1828.2, 1846.1, 1817.1, 1812.4, 1810.4, 1786.9, 1760.3, 1722, 1685.3, 1644.7, 1594.7, 1617.3, 1645.2, 1681, 1705, 1720.8, 1736.4, 1743, 1726, 1695.1, 1677.1, 1743.2, 1742.9, 1797, 1846.7, 1873.4, 1884.5, 1899, 1920.3, 1953.6, 2003.1, 2100.5, 2047.3, 1985.1, 1868.5, 1852]; | AS2: =asjsarray(AS3:AS80) -> var ycoords7b = [1429.2488000001, 1458.0664, 1411.88880000002, 1388.97360000003, 1344.01120000006, 1275.26560000007, 1176.66079999998, 1155.30799999999, 1108.43600000004, 1056.1824000001, 1009.83120000007, 956.88320000004, 956.362399999998, 955.494400000092, 910.358400000074, 874.076000000029, 850.987200000101, 806.892800000044, 768.006400000036, 737.973600000001, 694.57360000004, 642.840800000025, 612.981600000045, 571.317600000019, 533.125599999985, 528.264800000046, 490.767199999985, 491.635200000014, 498.926399999984, 470.456000000075, 433.305600000002, 378.968800000023, 326.020799999993, 325.673600000006, 351.192800000088, 386.259999999994, 402.752000000048, 415.945600000042, 477.052800000072, 476.011199999988]; | AT2: =asjsarray(AT3:AT80) -> var 97a = ["Leeds City Bus Station, Leeds Bus Station 21, (45030240) TP PO","Leeds City Centre, G9 Eastgate, (45012363)","Leeds City Centre, J3 Albion Street, (45010921) TP","Leeds City Centre, L2 Woodhouse Lane, (45010915)","Woodhouse, Woodhouse La Fenton Street, (45011391)","Woodhouse, Woodhouse Lane Back Blenheim Ter, (45011385)","Woodhouse, Woodhouse La St Marks Street, (45011381)","Woodhouse, Woodhouse La Clarendon Road, (45011379)","Hyde Park Corner, Woodhouse La Cliff Road, (45011378)","Hyde Park Corner, Headingley Lane Cumberland Rd, (45011376)","Headingley, Headingley Ln North Grange Road, (45011372)","Headingley, Headingley Lane Richmond Ave, (45011370)","Headingley, Headingley Lane Bainbrigge Rd, (45011368)","Headingley, Arndale Centre, (45011366) TP","Headingley, Otley Rd St Annes Road, (45011166)","Headingley, Otley Rd St Chads Drive, (45011164)","Headingley, Otley Rd St Chads Road, (45011148)","Headingley, Otley Rd Churchwood Avenue, (45011146)","West Park, Otley Rd Ancaster Road, (45011144)","West Park, Otley Road Welburn Grove, (45011141)","West Park, Spen Road West Parade, (45011305)","West Park, Spen Lane West Parade, (45011272)","West Park, Spen Lane Butcher Hill, (45011267)","West Park, Butcher Hill Old Oak Drive, (45011288)","Moor Grange, Butcher Hill Fillingfir Walk, (45011277)","Hawksworth, Butcher Hill Lea Farm Road, (45011287)","Horsforth, Low Lane Outwood Ln, (45011310)","Horsforth, Woodside Tavern, (45013101) TP","Horsforth, Broadway Wood Lane, (45013175)","Horsforth, Alexandra Road Ring Rd, (45013183)","Horsforth, Broadgate Lane Stanhope Dr, (45013178)","Horsforth, Broadgate Lane North Broadgate Ln, (45013177)","Horsforth, North Broadgate Town Street, (45013185)","Horsforth, Long Row Stanhope Avenue, (45013553)","Horsforth, Old Ball, (45013139) TP","Horsforth, Brownberrie Lane Brownberrie Dr, (45013197)","Horsforth, Brownberrie Lane North Rd, (45013196)","Horsforth, Brownberrie Lane Southway, (45013195)","Horsforth, Brownberrie Lane Southway, (45013194)","Horsforth, Layton Rd Bayton Lane, (45013149)","Horsforth, Layton Road Layton Rise, (45013558)","Rawdon, Layton Lane Layton Ave, (45013506)","Rawdon, Layton Rd Layton Lane, (45013507)","Rawdon, Town Street Carr Lane, (45013144)","Rawdon, Over Lane Well Ln, (45013146)","Rawdon, Larkfield Rd Mount Vernon Road, (45019774)","Rawdon, Canada Road Markham Ave, (45019772)","Rawdon, Harrogate Rd Canada Road, (45019779)","Yeadon, Harrogate Road Ackworth Crescent, (45019757)","Yeadon, High Street, (45019744)","Yeadon, High Street Windmill Ln, (45019742)","Yeadon, High Street Harper Ln, (45019745)","Yeadon, Town Hall South View Road, (45019746) TP","Yeadon, Silver Lane Suffolk Court, (45019737)","Yeadon, Queensway Manor Close, (45016888)","Yeadon, Queensway Coppice Wood Avenue, (45016886)","Yeadon, Queensway Tennyson Street, (45016884)","Guiseley, Queensway Spenser Rise, (45016882)","Guiseley, Queensway Ruskin Crescent, (45016881)","Guiseley, Queensway Town Gate Close, (45016878)","Guiseley, Town Gate Church Street, (45016876)","Guiseley, The Green, (45016875)","Guiseley, Guiseley Morrisons, (45018831) TP AO"]; | AU2: =asjsarray(AU3:AU80) -> var codes97a = [45030240, 45012363, 45010921, 45010915, 45011391, 45011385, 45011381, 45011379, 45011378, 45011376, 45011372, 45011370, 45011368, 45011366, 45011166, 45011164, 45011148, 45011146, 45011144, 45011141, 45011305, 45011272, 45011267, 45011288, 45011277, 45011287, 45011310, 45013101, 45013175, 45013183, 45013178, 45013177, 45013185, 45013553, 45013139, 45013197, 45013196, 45013195, 45013194, 45013149, 45013558, 45013506, 45013507, 45013144, 45013146, 45019774, 45019772, 45019779, 45019757, 45019744, 45019742, 45019745, 45019746, 45019737, 45016888, 45016886, 45016884, 45016882, 45016881, 45016878, 45016876, 45016875, 45018831]; | AV2: =asjsarray(AV3:AV80) -> var labels97a = ["Stand 21 Leeds City Bus Station","G9 Eastgate","J3 Albion Street","L2 Woodhouse Lane","Woodhouse Lane Fenton Street","Woodhouse Lane Back Blenheim Terrace","Woodhouse Lane St Marks Street","Woodhouse Lane Clarendon Road","Woodhouse Lane Cliff Road","Headingley Lane Cumberland Road","Headingley Lane North Grange Road","Headingley Lane Richmond Avenue","Headingley Lane Bainbrigge Road","Headingley Arndale Centre","Otley Road St Annes Road","Otley Road St Chads Drive","Otley Road St Chads Road","Otley Road Churchwood Avenue","Otley Road Ancaster Road","Otley Road Welburn Grove","Spen Road West Parade","Spen Lane West Parade","Spen Lane Butcher Hill","Butcher Hill Old Oak Drive","Butcher Hill Fillingfir Walk","Butcher Hill Lea Farm Road","Low Lane Outwood Lane","Woodside Tavern Horsforth","Broadway Wood Lane","Alexandra Road Ring Road","Broadgate Lane Stanhope Drive","Broadgate Lane North Broadgate Lane","North Broadgate Town Street","Long Row Stanhope Avenue","Horsforth Old Ball","Brownberrie Lane Brownberrie Drive","Brownberrie Lane North Road","Brownberrie Lane Tasca College","Brownberrie Lane Southway","Brownberrie Lane West End Lane","Layton Road Layton Rise","Layton Lane Layton Avenue","Layton Road Layton Lane","Town Street Carr Lane","Over Lane Well Lane","Larkfield Road Mount Vernon Road","Canada Road Markham Avenue","Harrogate Road Canada Road","Harrogate Road Ackworth Crescent","High Street","High Street Windmill Lane","High Street Harper Lane","Yeadon Town Hall","Silver Lane Suffolk Court","Queensway Manor Close","Queensway Coppice Wood Avenue","Queensway Tennyson Street","Queensway Spenser Rise","Queensway Ruskin Crescent","Queensway Town Gate Close","Town Gate Church Street","The Green","Morrisons"]; | AW2: =asjsarray(AW3:AW80) -> var areas97a = ["Leeds City Bus Station","Leeds City Centre","Leeds City Centre","Leeds City Centre","Woodhouse","Woodhouse","Woodhouse","Woodhouse","Hyde Park Corner","Hyde Park Corner","Headingley","Headingley","Headingley","Headingley","Headingley","Headingley","Headingley","Headingley","West Park","West Park","West Park","West Park","West Park","West Park","Moor Grange","Hawksworth","Horsforth","Horsforth","Horsforth","Horsforth","Horsforth","Horsforth","Horsforth","Horsforth","Horsforth","Horsforth","Horsforth","Horsforth","Horsforth","Horsforth","Horsforth","Rawdon","Rawdon","Rawdon","Rawdon","Rawdon","Rawdon","Rawdon","Yeadon","Yeadon","Yeadon","Yeadon","Yeadon","Yeadon","Yeadon","Yeadon","Yeadon","Guiseley","Guiseley","Guiseley","Guiseley","Guiseley","Guiseley"]; | AX2: =asjsarray(AX3:AX80) -> var xcoords97a = [1843, 1811.4, 1750.4, 1742.1, 1707.4, 1676.2, 1647.5, 1625.5, 1590.6, 1548.7, 1509, 1469.3, 1443.9, 1411.6, 1392.9, 1383.2, 1364.7, 1332.6, 1299, 1274.1, 1217.5, 1190.9, 1168.7, 1140.6, 1090.9, 1054.2, 1011.2, 998.9, 920.6, 902.799999999999, 889.199999999999, 863.099999999999, 845.7, 860.399999999999, 851.1, 823, 773.599999999999, 735.399999999999, 692.5, 665.3, 619.399999999999, 584.3, 560.6, 511.999999999999, 456.2, 424.599999999999, 426.599999999999, 403.7, 443.4, 466.199999999999, 430.299999999999, 381.7, 352.399999999999, 342.4, 320.9, 297.6, 257.000000000001, 219.3, 187.5, 141.499999999999, 132.399999999999, 127.4, 86.2000000000007]; | AY2: =asjsarray(AY3:AY80) -> var ycoords97a = [1432.89440000003, 1410.67360000001, 1379.42560000008, 1349.39280000004, 1292.10479999999, 1244.712, 1217.10959999999, 1190.72240000001, 1145.76000000004, 1112.94959999999, 1098.02000000006, 1083.95840000004, 1054.44640000005, 1002.88720000009, 965.563200000081, 941.606400000001, 901.331200000046, 858.972800000046, 831.717600000029, 815.572800000085, 772.172800000001, 766.096800000046, 805.156799999986, 815.572800000085, 798.733600000044, 808.976000000088, 777.728000000038, 757.937600000047, 767.659200000049, 764.708000000099, 712.801600000029, 691.796000000022, 672.700000000005, 624.26560000005, 580.865600000089, 556.90880000001, 529.653599999993, 524.619199999999, 530.34800000009, 529.306400000006, 534.340800000001, 537.812799999992, 556.735200000078, 528.438400000101, 515.071200000052, 474.969600000028, 422.195200000052, 391.468000000044, 334.527200000102, 285.745600000037, 258.49040000002, 240.262400000032, 242.345600000077, 234.360000000009, 217.868000000078, 173.773600000021, 146.865599999991, 112.66639999999, 95.132800000099, 73.0856000000085, 81.244800000008, 139.748000000075, 116.485600000092]; | AZ2: =asjsarray(AZ3:AZ80) -> var 97b = ["Guiseley, Guiseley Morrisons, (45018831) TP PO","Guiseley, Railway Station, (45016892)","Guiseley, Queensway Town Gate Close, (45016879)","Guiseley, Queensway Ruskin Crescent, (45016880)","Guiseley, Queensway Spenser Rise, (45016883)","Yeadon, Queensway Shaw Royd, (45016885)","Yeadon, Coppice Wood Avenue, (45016887)","Yeadon, Queensway Manor Close, (45016889)","Yeadon, Kirk Lane Old Haworth Ln, (45019752)","Yeadon, Harper Lane Brooklands Crescent, (45019739)","Yeadon, Harper Lane, (45019740) TP","Yeadon, High Street, (45019743)","Yeadon, Harrogate Rd Bayton Lane, (45019758)","Yeadon, Harrogate Rd Green Lane, (45019770)","Rawdon, Canada Road Harrogate Rd, (45023836)","Rawdon, Canada Road Larkfield Crescent, (45019773)","Rawdon, Larkfield Road Larkfield Mount, (45019775)","Rawdon, Larkfield Road, (45019776)","Rawdon, Town Street Carr Lane, (45019777)","Rawdon, Layton Rd Layton Lane, (45013508)","Rawdon, Layton Rd Layton Avenue, (45013505)","Horsforth, Layton Road Layton Rise, (45013557)","Horsforth, Layton Rd Bayton Lane, (45013148)","Horsforth, Brownberrie Lane Southway, (45013150)","Horsforth, Brownberrie Lane North Rd, (45013556)","Horsforth, Brownberrie Lane Scotland Ln, (45013555)","Horsforth, Brownberrie Lane Brownberrie Dr, (45013554)","Horsforth, Old Ball Lister Hill, (45013138) TP","Horsforth, Long Row Hopwood Road, (45013552)","Horsforth, North Broadgate Lane Chaddelwood Close, (45013186)","Horsforth, Broadgate Lane North Broadgate Ln, (45013187)","Horsforth, Alexandra Road Broadgate Ln, (45013136)","Horsforth, Alexandra Road Broadway, (45013137)","Horsforth, Broadway Wood Lane, (45013189)","Horsforth, Woodside Tavern, (45013176)","Horsforth, Low Lane Outwood Ln, (45011308) TP","Hawksworth, Butcher Hill Lea Farm Road, (45010413)","Moor Grange, Butcher Hill, (45010412)","West Park, Butcher Hill Old Oak Drive, (45010407)","West Park, Spen Lane Butcher Hill, (45011264)","West Park, Spen Ln West Park Drive, (45011263)","West Park, Spen Road West Parade, (45011303)","West Park, Otley Rd Kepston Road, (45011142)","West Park, Otley Rd Ancaster Road, (45011143)","Headingley, Headingley Lane Glen Rd, (45011145)","Headingley, Otley Rd St Chads Road, (45011147)","Headingley, Otley Rd St Chads Drive, (45011149)","Headingley, Arndale Centre, (45011363) TP","Headingley, Headingley Ln Bainbrigge Road, (45011365)","Headingley, Headingley Lane Oakfield, (45011367)","Headingley, Headingley Lane North Grange Rd, (45011369)","Hyde Park Corner, Headingley Ln Cumberland Road, (45011373)","Hyde Park Corner, (45011375)","Woodhouse, Woodhouse Lane Clarendon Rd, (45011382)","Woodhouse, Woodhouse La St Marks Street, (45011384)","Woodhouse, Leeds University, (45011388)","Woodhouse, Blackman Ln Woodhouse Lane, (45011390)","Leeds City Centre, L5 Woodhouse Lane, (45010914)","Leeds City Centre, J6 Albion Street, (45010920)","Leeds City Centre, M4 Vicar Lane, (45010680) AO","Leeds City Bus Station, F5 York Street, (45014781) AO","Leeds City Bus Station, Leeds Bus Station 21, (45030240) TP AO"]; | BA2: =asjsarray(BA3:BA80) -> var codes97b = [45018831, 45016892, 45016879, 45016880, 45016883, 45016885, 45016887, 45016889, 45019752, 45019739, 45019740, 45019743, 45019758, 45019770, 45023836, 45019773, 45019775, 45019776, 45019777, 45013508, 45013505, 45013557, 45013148, 45013150, 45013556, 45013555, 45013554, 45013138, 45013552, 45013186, 45013187, 45013136, 45013137, 45013189, 45013176, 45011308, 45010413, 45010412, 45010407, 45011264, 45011263, 45011303, 45011142, 45011143, 45011145, 45011147, 45011149, 45011363, 45011365, 45011367, 45011369, 45011373, 45011375, 45011382, 45011384, 45011388, 45011390, 45010914, 45010920, 45010680, 45014781, 45030240]; | BB2: =asjsarray(BB3:BB80) -> var labels97b = ["Morrisons","Railway Station","Queensway Town Gate Close","Queensway Ruskin Crescent","Queensway Spenser Rise","Queensway Shaw Road","Coppice Wood Avenue","Queensway Manor Close","Kirk Lane Old Haworth Lane","Harper Lane Brooklands Crescent","Harper Lane Yeadon","High Street","Harrogate Road Bayton Lane","Harrogate Road Green Lane","Canada Road Harrogate Road","Canada Road Larkfield Crescent","Larkfield Road Larkfield Mount","Larkfield Road","Town Street Carr Lane","Layton Road Layton Lane","Layton Road Layton Avenue","Layton Road Layton Rise","Layton Road Bayton Lane","Brownberrie Lane Southway","Brownberrie Lane North Road","Brownberrie Lane Scotland Lane","Brownberrie Lane Brownberrie Drive","Horsforth Old Ball","Long Row Hopwood Road","North Broadgate Lane Chaddelwood Close","Broadgate Lane North Broadgate Lane","Alexandra Road Broadgate Lane","Alexandra Road Broadway","Broadway Wood Lane","Woodside Tavern","Low Lane Outwood Lane","Butcher Hill Lea Farm Road","Butcher Hill","Butcher Hill Old Oak Drive","Spen Lane Butcher Hill","Spen Lane West Park Drive","Spen Road West Parade","Otley Road Kepston Road","Otley Road Ancaster Road","Headingley Lane Glen Road","Otley Road St Chads Road","Otley Road St Chads Drive","Headingley Arndale Centre","Headingley Lane Bainbrigge Road","Headingley Lane Oakfield","Headingley Lane North Grange Road","Headingley Lane Cumberland Road","Hyde Park Corner","Woodhouse Lane Clarendon Road","Woodhouse Lane St Marks Street","Leeds University","Blackman Lane Woodhouse Lane","L5 Woodhouse Lane","J6 Albion Street","M4 Vicar Lane","F5 York Street","Stand 21 Leeds City Bus Station"]; | BC2: =asjsarray(BC3:BC80) -> var areas97b = ["Guiseley","Guiseley","Guiseley","Guiseley","Guiseley","Yeadon","Yeadon","Yeadon","Yeadon","Yeadon","Yeadon","Yeadon","Yeadon","Yeadon","Rawdon","Rawdon","Rawdon","Rawdon","Rawdon","Rawdon","Rawdon","Horsforth","Horsforth","Horsforth","Horsforth","Horsforth","Horsforth","Horsforth","Horsforth","Horsforth","Horsforth","Horsforth","Horsforth","Horsforth","Horsforth","Horsforth","Hawksworth","Moor Grange","West Park","West Park","West Park","West Park","West Park","West Park","Headingley","Headingley","Headingley","Headingley","Headingley","Headingley","Headingley","Hyde Park Corner","Hyde Park Corner","Woodhouse","Woodhouse","Woodhouse","Woodhouse","Leeds City Centre","Leeds City Centre","Leeds City Centre","Leeds City Bus Station","Leeds City Bus Station"]; | BD2: =asjsarray(BD3:BD80) -> var xcoords97b = [86.2000000000007, 77.0000000000004, 144.1, 187.7, 220.6, 260.499999999999, 302.3, 322.199999999999, 324.4, 350.900000000001, 380.199999999999, 436.2, 472.999999999999, 433.600000000001, 407.1, 430.299999999999, 428.599999999999, 450.5, 510.8, 563.400000000001, 581.099999999999, 625.499999999999, 659.099999999999, 687.800000000001, 759.6, 800.699999999999, 827.7, 861.6, 857.600000000001, 854.299999999999, 869.599999999999, 898.6, 904.3, 950.500000000001, 1000.4, 1014.4, 1055, 1092.4, 1142, 1170.8, 1188.2, 1222.1, 1277.6, 1304.1, 1343.7, 1369.4, 1389.2, 1415.3, 1446.2, 1478.5, 1515.4, 1550.2, 1594.2, 1639, 1660.6, 1685.7, 1706.4, 1747.5, 1753.1, 1799.4, 1844.9, 1843]; | BE2: =asjsarray(BE3:BE80) -> var ycoords97b = [116.485600000092, 85.2376000000419, 71.6968000000611, 92.8759999999994, 111.972000000017, 152.941600000069, 174.467999999994, 219.777600000068, 242.692800000063, 267.343999999994, 251.720000000092, 262.136000000068, 293.904800000037, 349.630400000086, 395.634400000009, 424.452000000028, 483.128800000027, 509.342400000083, 526.702400000043, 553.95760000006, 536.424000000045, 531.389600000051, 528.09119999999, 528.785600000087, 525.14000000004, 536.944800000087, 557.603199999983, 592.844000000068, 636.591200000015, 679.296800000002, 695.268000000014, 725.995200000023, 765.749600000059, 759.847200000036, 756.028000000057, 780.852800000043, 807.413600000086, 796.476800000068, 813.489600000041, 798.386400000057, 767.485599999994, 778.769599999998, 815.39920000003, 832.412000000003, 868.868000000103, 903.761600000077, 950.286400000043, 1003.75519999999, 1053.57840000002, 1084.13200000009, 1098.19359999999, 1111.7344000001, 1144.89200000001, 1203.74240000007, 1222.31760000004, 1264.32880000006, 1279.08480000005, 1359.80880000002, 1384.80720000006, 1426.1240000001, 1448.69199999999, 1432.89440000003]; | BF2: =asjsarray(BF3:BF80) -> var 95a = ["Leeds City Centre, S10 Leeds Station Interchange, (45025481) TP PO","Leeds City Centre, B Infirmary Street, (45025317)","Leeds City Centre, J3 Albion Street, (45010921)","Leeds City Centre, L2 Woodhouse Lane, (45010915)","Woodhouse, Woodhouse La Fenton Street, (45011391)","Woodhouse, Leeds University, (45011386) TP","Woodhouse, Woodhouse La St Marks Street, (45011381)","Woodhouse, Woodhouse La Clarendon Road, (45011379)","Hyde Park Corner, (45011380)","Hyde Park Corner, Headingley Lane Cumberland Rd, (45011376)","Headingley, Headingley Ln North Grange Road, (45011372)","Headingley, Headingley Lane Richmond Ave, (45011370)","Headingley, Headingley Lane Bainbrigge Rd, (45011368)","Headingley, Arndale Centre, (45011366) TP","Headingley, Otley Rd St Annes Road, (45011166)","Headingley, Otley Rd St Chads Drive, (45011164)","Headingley, Otley Rd St Chads Road, (45011148)","Headingley, Otley Rd Churchwood Avenue, (45011146)","West Park, Otley Rd Ancaster Road, (45011144)","West Park, Otley Road Welburn Grove, (45011141)","West Park, Lawnswood School, (45011163)","Weetwood, Otley Rd Otley Old Road, (45011739)","Lawnswood, Lawnswood Sports Club, (45011742)","Lawnswood, Bodington Hall, (45024118) TP AO"]; | BG2: =asjsarray(BG3:BG80) -> var codes95a = [45025481, 45025317, 45010921, 45010915, 45011391, 45011386, 45011381, 45011379, 45011380, 45011376, 45011372, 45011370, 45011368, 45011366, 45011166, 45011164, 45011148, 45011146, 45011144, 45011141, 45011163, 45011739, 45011742, 45024118]; | BH2: =asjsarray(BH3:BH80) -> var labels95a = ["S10 Leeds Station Interchange","B Infirmary Street","J3 Albion Street","L2 Woodhouse Lane","Woodhouse Lane Fenton Street","Leeds University","Woodhouse Lane St Marks Street","Woodhouse Lane Clarendon Road","Hyde Park Corner","Headingley Lane Cumberland Road","Headingley Lane North Grange Road","Headingley Lane Richmond Avenue","Headingley Lane Bainbrigge Road","Headingley Arndale Centre","Otley Road St Annes Road","Otley Road St Chads Drive","Otley Road St Chads Road","Otley Road Churchwood Avenue","Otley Road Ancaster Road","Otley Road Welburn Grove","Lawnswood School","Otley Road Otley Old Road","Otley Road Lawnswood Sports Club","Bodington Hall Lawnswood"]; | BI2: =asjsarray(BI3:BI80) -> var areas95a = ["Leeds City Centre","Leeds City Centre","Leeds City Centre","Leeds City Centre","Woodhouse","Woodhouse","Woodhouse","Woodhouse","Hyde Park Corner","Hyde Park Corner","Headingley","Headingley","Headingley","Headingley","Headingley","Headingley","Headingley","Headingley","West Park","West Park","West Park","Weetwood","Lawnswood","Lawnswood"]; | BJ2: =asjsarray(BJ3:BJ80) -> var xcoords95a = [1729.3, 1712.1, 1750.4, 1742.1, 1707.4, 1677, 1647.5, 1625.5, 1588.3, 1548.7, 1509, 1469.3, 1443.9, 1411.6, 1392.9, 1383.2, 1364.7, 1332.6, 1299, 1274.1, 1261.3, 1252.3, 1262.7, 1319.5]; | BK2: =asjsarray(BK3:BK80) -> var ycoords95a = [1473.16959999998, 1428.90159999999, 1379.42560000008, 1349.39280000004, 1292.10479999999, 1247.66320000007, 1217.10959999999, 1190.72240000001, 1142.98240000003, 1112.94959999999, 1098.02000000006, 1083.95840000004, 1054.44640000005, 1002.88720000009, 965.563200000081, 941.606400000001, 901.331200000046, 858.972800000046, 831.717600000029, 815.572800000085, 762.451199999999, 678.255200000041, 624.439200000105, 618.01600000004]; | BL2: =asjsarray(BL3:BL80) -> var 95b = ["Lawnswood, Bodington Hall, (45024118) TP PO","Lawnswood, Lawnswood Sports Club, (45011747)","Weetwood, Otley Old Road Lawnswood, (45010501)","West Park, Otley Road Ring Road West Park, (45011161) TP","West Park, Otley Rd Kepston Road, (45011142)","West Park, Otley Rd Ancaster Road, (45011143)","Headingley, Headingley Lane Glen Rd, (45011145)","Headingley, Otley Rd St Chads Road, (45011147)","Headingley, Otley Rd St Chads Drive, (45011149)","Headingley, Arndale Centre, (45011363) TP","Headingley, Headingley Ln Bainbrigge Road, (45011365)","Headingley, Headingley Lane Oakfield, (45011367)","Headingley, Headingley Lane North Grange Rd, (45011369)","Hyde Park Corner, Headingley Ln Cumberland Road, (45011373)","Hyde Park Corner, (45011375)","Woodhouse, Woodhouse Lane Clarendon Rd, (45011382)","Woodhouse, Woodhouse La St Marks Street, (45011384)","Woodhouse, Leeds University, (45011388)","Woodhouse, Blackman Ln Woodhouse Lane, (45011390)","Leeds City Centre, L5 Woodhouse Lane, (45010914)","Leeds City Centre, J4 Albion Street, (45010918) TP","Leeds City Centre, P4 Park Row, (45010704) TP AO","Leeds City Centre, S9 Leeds Station Interchange, (45025480) TP AO","Leeds City Centre, S10 Leeds Station Interchange, (45025481) TP AO"]; | BM2: =asjsarray(BM3:BM80) -> var codes95b = [45024118, 45011747, 45010501, 45011161, 45011142, 45011143, 45011145, 45011147, 45011149, 45011363, 45011365, 45011367, 45011369, 45011373, 45011375, 45011382, 45011384, 45011388, 45011390, 45010914, 45010918, 45010704, 45025480, 45025481]; | BN2: =asjsarray(BN3:BN80) -> var labels95b = ["Bodington Hall Lawnswood","Otley Road Lawnswood Sports Club","Otley Old Road Lawnswood","Otley Road Ring Road West Park","Otley Road Kepston Road","Otley Road Ancaster Road","Headingley Lane Glen Road","Otley Road St Chads Road","Otley Road St Chads Drive","Headingley Arndale Centre","Headingley Lane Bainbrigge Road","Headingley Lane Oakfield","Headingley Lane North Grange Road","Headingley Lane Cumberland Road","Hyde Park Corner","Woodhouse Lane Clarendon Road","Woodhouse Lane St Marks Street","Leeds University","Blackman Lane Woodhouse Lane","L5 Woodhouse Lane","J4 Albion Street","P4 Park Row","S9 Leeds Station Interchange","S10 Leeds Station Interchange"]; | BO2: =asjsarray(BO3:BO80) -> var areas95b = ["Lawnswood","Lawnswood","Weetwood","West Park","West Park","West Park","Headingley","Headingley","Headingley","Headingley","Headingley","Headingley","Headingley","Hyde Park Corner","Hyde Park Corner","Woodhouse","Woodhouse","Woodhouse","Woodhouse","Leeds City Centre","Leeds City Centre","Leeds City Centre","Leeds City Centre","Leeds City Centre"]; | BP2: =asjsarray(BP3:BP80) -> var xcoords95b = [1319.5, 1262.6, 1257.1, 1265.9, 1277.6, 1304.1, 1343.7, 1369.4, 1389.2, 1415.3, 1446.2, 1478.5, 1515.4, 1550.2, 1594.2, 1639, 1660.6, 1685.7, 1706.4, 1747.5, 1753, 1730, 1728, 1729.3]; | BQ2: =asjsarray(BQ3:BQ80) -> var ycoords95b = [618.01600000004, 643.535199999999, 689.018400000004, 747.695200000003, 815.39920000003, 832.412000000003, 868.868000000103, 903.761600000077, 950.286400000043, 1003.75519999999, 1053.57840000002, 1084.13200000009, 1098.19359999999, 1111.7344000001, 1144.89200000001, 1203.74240000007, 1222.31760000004, 1264.32880000006, 1279.08480000005, 1359.80880000002, 1380.29359999998, 1440.70640000004, 1469.00320000002, 1473.16959999998]; | BR2: =asjsarray(BR3:BR90) -> var 19a = ["East Garforth, New Sturton Lane Inverness Rd, (45023829) TP PO","East Garforth, New Sturton Lane The Chase, (45023966)","East Garforth, New Sturton Lane Arundel Street, (45023914)","East Garforth, Aberford Road Ash Ln, (45010199)","Garforth, Aberford Rd Saxton Court, (45024145)","Garforth, Main Street Salem Pl, (45011681)","Garforth, Main Street Fidler Lane, (45010197)","Garforth, Lidgett Lane Beech Grove Ter, (45011679)","Garforth, Lidgett Lane Ringway, (45011678)","Garforth, Lidgett Lane, (45011676)","Garforth, Selby Rd Rockley Grange Gardens, (45011653)","Garforth, Selby Road Nelson Croft, (45011655)","Garforth, Garforth Bridge, (45011656)","Garforth, Selby Road Waterloo Manor, (45011311)","Swillington Common, Selby Rd Swillington Lane, (45010245)","Colton, Selby Road Thorpe Park Business Park, (45028894)","Colton, Stile Hill Way, (45011214)","Colton, Colton Road East, (45024719)","Colton, Colton Road East School Ln, (45024718) TP","Colton, Colton Lane Laurel Hill Wy, (45010252)","Colton, Colton Lane Laurel Hill Ave, (45010251)","Colton, Colton Lane Darnley Ln, (45010250)","Colton, Colton Lane Chantry Garth, (45010249)","Colton, Colton Lane High Bank Approach, (45011222)","Whitkirk, Selby Rd Garland Drive, (45010772)","Whitkirk, Whitkirk Church, (45010773)","Whitkirk, Temple Gate, (45050013)","Halton, Templegate Green, (45011240)","Halton, New Temple Gate Templegate Avenue, (45024768)","Halton, New Temple Gate Temple Avenue, (45011242)TP","Halton, New Temple Gate Temple Newsam Road, (45011244)","Halton, Temple Newsam Road Temple Newsam View, (45011247)","Halton, Temple Newsam Road Irwin Court, (45011245)","Halton, Selby Rd Portage Avenue, (45012812)","Halton, Selby Rd Carden Avenue, (45012811)","Halton, Selby Road Dunhill Rse, (45024434)","Osmondthorpe, York Rd Selby Road, (45010823)","Osmondthorpe, York Rd Gipton Approach, (45010824)","Osmondthorpe, A York Road, (45010826) TP","East End Park, York Rd Skelton Terrace, (45010828)","East End Park, York Rd Dawlish Avenue, (45010830)","East End Park, York Rd Raincliffe Road, (45010832)","Richmond Hill, York Rd Berking Avenue, (45010834)","Richmond Hill, York Rd Pontefract Lane, (45010835)","Richmond Hill, York Rd Marsh Lane, (45011988)","Quarry Hill, York Street Brick St, (45014787)","Leeds City Bus Station, F7 York Street, (45010908)","Leeds City Centre, K13 Kirkgate, (45013160) TP","Leeds City Centre, K17 Duncan Street, (45012652)","Leeds City Centre, S10 Leeds Station Interchange, (45025481)","Leeds City Centre, D Infirmary Street, (45025319) TP","Leeds City Centre, Y10 The Headrow, (45010660)","Leeds City Centre, Y13 Westgate, (45010661)","Woodhouse, Park Lane Leeds City College, (45010947)","Woodhouse, Burley Street St Andrews St, (45011452)","Hyde Park, Burley Road Hollis Place, (45011442)","Hyde Park, Burley Road Woodsley Rd, (45010950) TP","Hyde Park, Cardigan Road Carberry Rd, (45011448)","Hyde Park, Cardigan Road Harold Grove, (45011449)","Hyde Park, Cardigan Road Ashville Grove, (45014789)","Hyde Park, Cardigan Road Victoria Rd, (45011435)","Headingley, Cardigan Road St Michaels Ln, (45011423)","Headingley, Kirkstall Lane Headingley Stadium, (45011290)","Headingley, Kirkstall Lane Langdale Ave, (45011298)","Headingley, Queenswood Drive Kirkstall Ln, (45011293) TP","Beckett Park, Queenswood Drive Queenswood Road, (45010401)","Beckett Park, Queenswood Drive Woodbridge Close, (45011284)","Beckett Park, Queenswood Drive Woodbridge Cres, (45011273)","West Park, Queenswood Drive Ghyll Road, (45011268)","West Park, Queenswood Drive Queenswood Green, (45011269)","West Park, Spen Lane Butcher Hill, (45011264)","West Park, Spen Ln West Park Drive, (45011263)","West Park, Spen Lane Wynford Mount, (45011539)","Ireland Wood, Iveson Drive Spen Ln, (45010748)","Ireland Wood, Iveson Drive Parkstone Grove, (45011542)","Ireland Wood, Iveson Approach Iveson Crescent, (45011544)","Ireland Wood, Iveson Approach Iveson Grove, (45011543)","Ireland Wood, Iveson Approach Otley Old Road, (45011545)","Ireland Wood, Otley Old Rd Iveson Drive, (45011547)","Ireland Wood, Raynel Approach Otley Old Road, (45011534)","Ireland Wood, Raynel Drive Raynel Mount, (45011536)","Ireland Wood, Raynel Drive Raynel Gardens, (45011537)","Ireland Wood, Ireland Wood Terminus, (45010752) TPAO"]; | BS2: =asjsarray(BS3:BS90) -> var codes19a = [45023829, 45023966, 45023914, 45010199, 45024145, 45011681, 45010197, 45011679, 45011678, 45011676, 45011653, 45011655, 45011656, 45011311, 45010245, 45028894, 45011214, 45024719, 45024718, 45010252, 45010251, 45010250, 45010249, 45011222, 45010772, 45010773, 45050013, 45011240, 45024768, 45011242, 45011244, 45011247, 45011245, 45012812, 45012811, 45024434, 45010823, 45010824, 45010826, 45010828, 45010830, 45010832, 45010834, 45010835, 45011988, 45014787, 45010908, 45013160, 45012652, 45025481, 45025319, 45010660, 45010661, 45010947, 45011452, 45011442, 45010950, 45011448, 45011449, 45014789, 45011435, 45011423, 45011290, 45011298, 45011293, 45010401, 45011284, 45011273, 45011268, 45011269, 45011264, 45011263, 45011539, 45010748, 45011542, 45011544, 45011543, 45011545, 45011547, 45011534, 45011536, 45011537, 45010752]; | BT2: var labels19a = ["New Sturton Lane Inverness Road","New Sturton Lane The Chase","New Sturton Lane Arundel Street","Aberford Road Ash Lane","Aberford Road Saxton Court","Main Street Salem Place","Main Street Fidler Lane","Lidgett Lane Beech Grove Terrace","Lidgett Lane","Lidgett Lane","Selby Road Rockley Grange Gardens","Selby Road Nelson Croft","Garforth Bridge Garforth","Selby Road","Swillington Common","Selby Road Thorpe Park Business Park","Stile Hill Way Colton","Colton Road East","Colton Road East School Lane","Colton Lane Laurel Hill Way","Colton Lane Laurel Hill Avenue","Colton Lane Darnley Lane","Colton Lane Chantry Garth","Colton Lane High Bank Approach","Selby Road Garland Drive","Whitkirk Whitkirk Church","Temple Gate","Templegate Green","New Temple Gate Templegate Avenue","New Temple Gate Temple Avenue","New Temple Gate Temple Newsam Road","Temple Newsam Road Temple Newsam View","Temple Newsam Road Irwin Court","Selby Road Portage Avenue","Selby Road Carden Avenue","Selby Road Dunhill Rise","York Road Selby Road","York Road Gipton Approach","A York Road","York Road Skelton Terrace","York Road Dawlish Avenue","York Road Raincliffe Road","York Road Berking Avenue","York Road Pontefract Lane","York Road Marsh Lane","York Street Brick Street","F7 York Street","K13 Kirkgate","K17 Duncan Street","S10 Leeds Station Interchange","D Infirmary Street","Y10 The Headrow","Y13 Westgate","Park Lane Park Lane College","Burley Street St Andrews Street","Burley Road Hollis Place","Burley Road Woodsley Road","Cardigan Road Carberry Road","Cardigan Road Harold Grove","Cardigan Road Ashville Grove","Cardigan Road Victoria Road","Cardigan Road St Michaels Lane","Kirkstall Lane Headingley Statium","Kirkstall Lane Langdale Avenue","Queenswood Drive Kirkstall Lane","Queenswood Drive Queenswood Road","Queenswood Drive Woodbridge Close","Queenswood Drive Woodbridge Crescent","Queenswood Drive Ghyll Road","Queenswood Drive Queenswood Green","Spen Lane Butcher Hill","Spen Lane West Park Drive","Spen Lane Wynford Mount","Iveson Drive Spen Lane","Iveson Drive Parkstone Grove","Iveson Approach Iveson Crescent","Iveson Approach Iveson Grove","Iveson Approach Otley Old Road","Otley Old Road Iveson Drive","Raynel Approach Otley Old Road","Raynel Drive Raynel Mount","Raynel Drive Raynel Gardens","Ireland Wood Terminus"]; | BU2: var areas19a = ["East Garforth","East Garforth","East Garforth","East Garforth","Garforth","Garforth","Garforth","Garforth","Garforth","Garforth","Garforth","Garforth","Garforth","Garforth","Swillington Common","Colton","Colton","Colton","Colton","Colton","Colton","Colton","Colton","Colton","Whitkirk","Whitkirk","Whitkirk","Halton","Halton","Halton","Halton","Halton","Halton","Halton","Halton","Halton","Osmondthorpe","Osmondthorpe","Osmondthorpe","East End Park","East End Park","East End Park","Richmond Hill","Richmond Hill","Richmond Hill","Quarry Hill","Leeds City Bus Station","Leeds City Centre","Leeds City Centre","Leeds City Centre","Leeds City Centre","Leeds City Centre","Leeds City Centre","Woodhouse","Woodhouse","Hyde Park","Hyde Park","Hyde Park","Hyde Park","Hyde Park","Hyde Park","Headingley","Headingley","Headingley","Headingley","Beckett Park","Beckett Park","Beckett Park","West Park","West Park","West Park","West Park","West Park","Ireland Wood","Ireland Wood","Ireland Wood","Ireland Wood","Ireland Wood","Ireland Wood","Ireland Wood","Ireland Wood","Ireland Wood","Ireland Wood"]; | BV2: var xcoords19a = [3510.5, 3511.5, 3508.6, 3451, 3407.2, 3317.3, 3317.8, 3314, 3277.4, 3263.3, 3237.4, 3200.6, 3174.2, 3097.3, 3012.7, 2904.2, 2877, 2846.1, 2817.8, 2796, 2766.5, 2758.2, 2769.6, 2784, 2767.2, 2695.5, 2639.4, 2611.2, 2580.1, 2537.2, 2502.3, 2487, 2480, 2456.2, 2413.8, 2352, 2306.7, 2262.8, 2205.4, 2157.7, 2126.6, 2067.2, 2012.2, 1978.1, 1929.9, 1874.9, 1841, 1809.1, 1784.2, 1729.3, 1719.8, 1717.3, 1686.1, 1614.5, 1569.3, 1529.8, 1486.7, 1450.4, 1450.7, 1441.2, 1435.9, 1419.3, 1369.9, 1330.7, 1301.4, 1261.5, 1215.1, 1180.7, 1180.1, 1163.3, 1170.8, 1188.2, 1186.5, 1183.1, 1140.8, 1112.5, 1139.3, 1160, 1156.9, 1136.3, 1169.4, 1172.9, 1151.3]; | BW2: var ycoords19a = [1530.11040000005, 1489.1408, 1456.15680000001, 1443.48400000006, 1446.95600000005, 1457.54560000008, 1504.2440000001, 1538.61680000003, 1578.89199999999, 1618.29920000004, 1625.24320000002, 1617.60480000007, 1618.64640000003, 1606.49439999999, 1574.72560000002, 1511.7088, 1532.19360000009, 1545.90800000001, 1548.68560000002, 1543.82480000008, 1530.63120000009, 1501.81360000007, 1470.0448000001, 1445.21999999999, 1428.55440000001, 1432.7208000001, 1439.83840000001, 1491.3976000001, 1508.75760000005, 1526.63840000006, 1540.70000000008, 1515.35440000005, 1477.16240000002, 1445.91440000009, 1414.1456, 1375.08560000006, 1364.49600000003, 1363.628, 1369.70400000008, 1386.71680000005, 1403.55600000009, 1431.85280000007, 1425.4296, 1425.95040000004, 1419.35360000005, 1446.95600000005, 1451.12240000002, 1453.20560000006, 1460.14960000004, 1473.16959999998, 1437.58160000004, 1397.48000000001, 1396.43840000005, 1388.45279999998, 1375.78000000003, 1333.59520000009, 1296.09760000003, 1264.50239999999, 1224.40080000009, 1188.2920000001, 1145.76000000004, 1086.21520000002, 1066.59840000008, 1086.21520000002, 1088.47199999999, 1043.3360000001, 1003.58160000006, 959.660800000058, 900.11600000003, 868.000000000074, 798.386400000057, 767.485599999994, 711.760000000068, 660.37440000004, 650.652800000038, 622.008800000074, 590.06640000005, 576.004800000027, 559.686400000028, 514.897599999996, 496.14880000009, 465.768800000068, 442.853600000072]; | BX2: var 19b = ["Ireland Wood, Ireland Wood Terminus, (45010752) TPPO","Ireland Wood, Raynel Drive Raynel Gardens, (45011538)","Ireland Wood, Raynel Mount Raynel Drive, (45011535)","Ireland Wood, Raynel Drive Otley Old Road, (45010751)","Ireland Wood, Otley Old Rd Iveson Drive, (45011540)","Ireland Wood, Otley Old Rd Iveson Drive, (45011550)","Ireland Wood, Iveson Approach Iveson Grove, (45011546)","Ireland Wood, Iveson Approach Iveson Drive, (45011541)","Ireland Wood, Iveson Drive Parkstone Grove, (45010747)","Ireland Wood, Iveson Drive Spen Ln, (45010749)","West Park, Spen Lane Wynford Mount, (45010750)","West Park, Spen Lane West Parade, (45011272)","West Park, Spen Lane Butcher Hill, (45011267)","West Park, Queenswood Drive Spen Ln, (45010406)","West Park, Queenswood Drive Premier Roofing Ltd, (45010405)","Beckett Park, Queenswood Dri Woodbridge Crescent, (45011274)","Beckett Park, Queenswood Drive Woodbridge Road, (45010403)","Beckett Park, Queenswood Drive Queenswood Road, (45010402)","Headingley, Queenswood Drive Kirkstall Ln, (45010419) TP","Headingley, Kirkstall Lane Estcourt Ter, (45010958)","Headingley, Cardigan Road St Michaels Grove, (45011439)","Headingley, Cardigan Road Spring Rd, (45011421)","Hyde Park, Cardigan Road Victoria Rd, (45011437)","Hyde Park, Cardigan Road Mayville Ave, (45011447)","Hyde Park, Cardigan Road Back Harold Grove, (45011445)","Hyde Park, Burley Road Cardigan Rd, (45010968) TP","Hyde Park, Burley Rd Westfield Terrace, (45010969)","Hyde Park, Burley Road Hollis Place, (45011440)","Woodhouse, Burley Street St Andrews St, (45024093)","Woodhouse, Park Lane Leeds City College, (45010970)","Leeds City Centre, Y1 Westgate, (45010663)","Leeds City Centre, Y5 The Headrow, (45012505)","Leeds City Centre, P6 Boar Lane, (45024834) TP","Leeds City Centre, K6 Corn Exchange, (45025324) TP","Leeds City Bus Station, F3 York Street, (45010905)","Quarry Hill, York Street St Peters Pl, (45014783)","Richmond Hill, York Rd Burmantofts Street, (45010796)","Richmond Hill, York Road Pontefract La, (45010800)","Richmond Hill, York Rd Berking Avenue, (45010802)","East End Park, York Rd Glenthorpe Terrace, (45011980)","East End Park, York Rd Torre Road, (45024738)","East End Park, York Rd Dawlish Row, (45010810) TP","Osmondthorpe, C York Road, (45024739)","Osmondthorpe, York Rd Gipton Approach, (45024740)","Osmondthorpe, York Road, (45024741)","Halton, Selby Road Dunhill Rise, (45012807)","Halton, Selby Road, (45012808)","Halton, Selby Rd Portage Avenue, (45012810)","Halton, Temple Newsam Road Irwin Court, (45011246)","Halton, Temple Newsam Road Temple Newsam View, (45011248)","Halton, New Temple Gate, (45011243)","Halton, New Temple Gate Temple Gate Drive, (45011241) TP","Halton, New Temple Gate Templegate Avenue, (45051471)","Halton, Templegate Green Templegate Close, (45011239)","Whitkirk, Temple Gate, (45011238)","Whitkirk, Selby Road Queensway, (45011234)","Whitkirk, Selby Road Kingsway, (45011235)","Whitkirk, Whitkirk Whitkirk Church, (45011236)","Whitkirk, Selby Rd Garland Drive, (45011237)","Colton, Colton Lane High Bank Approach, (45011221)","Colton, Colton Lane Chantry Garth, (45011220)","Colton, Colton Lane Darnley Ln, (45011219)","Colton, Colton Lane Laurel Hill Ave, (45011218)","Colton, Colton Lane Laurel Hill Wy, (45011217)","Colton, Colton Road East School Ln, (45011216)","Colton, Colton Road East, (45011215)","Colton, Stile Hill Way Colton Road East, (45011213) TP","Colton, Selby Road Thorpe Park Business Park, (45028644)","Swillington Common, Selby Road Providence Place, (45010244)","Garforth, Selby Road Waterloo Manor, (45011312)","Garforth, Garforth Bridge, (45011657)","Garforth, Selby Road Goosefield Rise, (45011654)","Garforth, Lidgett Lane, (45011675)","Garforth, Lidgett Lane Ringway, (45011677)","Garforth, Lidgett Lane Beech Grove Ter, (45010195)","Garforth, Main Street Fidler Lane, (45010196)","Garforth, Main Street, (45011680)","Garforth, Main Street Salem Pl, (45011682)","Garforth, Aberford Road Beaconsfield Court, (45011674)","Garforth, Aberford Rd Saxton Court, (45011665)","East Garforth, Aberford Road The Crescent, (45011666)","East Garforth, New Sturton Lane Arundel Street, (45023964)","East Garforth, New Sturton Lane Edinburgh Place, (45023965)","East Garforth, New Sturton Lane Inverness Rd, (45023829) TP AO"]; | BY2: var codes19b = [45010752, 45011538, 45011535, 45010751, 45011540, 45011550, 45011546, 45011541, 45010747, 45010749, 45010750, 45011272, 45011267, 45010406, 45010405, 45011274, 45010403, 45010402, 45010419, 45010958, 45011439, 45011421, 45011437, 45011447, 45011445, 45010968, 45010969, 45011440, 45024093, 45010970, 45010663, 45012505, 45024834, 45025324, 45010905, 45014783, 45010796, 45010800, 45010802, 45011980, 45024738, 45010810, 45024739, 45024740, 45024741, 45012807, 45012808, 45012810, 45011246, 45011248, 45011243, 45011241, 45051471, 45011239, 45011238, 45011234, 45011235, 45011236, 45011237, 45011221, 45011220, 45011219, 45011218, 45011217, 45011216, 45011215, 45011213, 45028644, 45010244, 45011312, 45011657, 45011654, 45011675, 45011677, 45010195, 45010196, 45011680, 45011682, 45011674, 45011665, 45011666, 45023964, 45023965, 45023829]; | BZ2: var labels19b = ["Ireland Wood Terminus","Raynel Drive Raynel Gardens","Raynel Mount Raynel Drive","Raynel Drive Otley Old Road","Otley Old Road Iveson Drive","Otley Old Road Iveson Drive","Iveson Approach Iveson Grove","Iveson Approach Iveson Drive","Iveson Drive Parkstone Grove","Iveson Drive Spen Lane","Spen Lane Wynford Mount","Spen Lane West Parade","Spen Lane Butcher Hill","Queenswood Drive Spen Lane","Queenswood Drive Premier Roofing Ltd","Queenswood Drive Woodbridge Crescent","Queenswood Drive Queenswood Road","Queenswood Drive Queenswood Road","Queenswood Drive Kirkstall Lane","Kirkstall Lane Estcourt Terrace","Cardigan Road St Michaels Grove","Cardigan Road Spring Road","Cardigan Road Victoria Road","Cardigan Road Mayville Avenue","Cardigan Road Back Harold Grove","Burley Road Cardigan Road","Burley Road Westfield Terrace","Burley Road Hollis Place","Burley Street St Andrews Street","Park Lane Park Lane College","Y1 Westgate","Y5 The Headrow","P6A Boar Lane","K6 Corn Exchange","F3 York Street","York Street St Peters Place","York Road Burmantofts Street","York Road Pontefract Lane","York Road Berking Avenue","York Road Glenthorpe Terrace","York Road Torre Road","York Road Dawlish Row","C York Road","York Road Gipton Approach","York Road","Selby Road Dunhill Rise","Selby Road","Selby Road Portage Avenue","Temple Newsam Road Irwin Court","Temple Newsam Road Temple Newsam View","New Temple Gate","New Temple Gate Temple Gate Drive","New Temple Gate Templegate Avenue","Templegate Green Templegate Close","Temple Gate","Selby Road Queensway","Selby Road Kingsway","Whitkirk Whitkirk Church","Selby Road Garland Drive","Colton Lane High Bank Approach","Colton Lane Chantry Garth","Colton Lane Darnley Lane","Colton Lane Laurel Hill Avenue","Colton Lane Laurel Hill Way","Colton Road East School Lane","Colton Road East","Stile Hill Way Colton Road East","Selby Road Thorpe Park Business Park","Selby Road Providence Place","Selby Road Waterloo Manor","Garforth Bridge Garforth","Selby Road Goosefield Rise","Lidgett Lane","Lidgett Lane","Lidgett Lane Beech Grove Terrace","Main Street","Garforth Main Street","Main Street Salem Place","Aberford Road Beaconsfield Court","Aberford Road Station Court","Aberford Road The Crescent","New Sturton Lane Arundel Street","New Sturton Lane Edinburgh Place","New Sturton Lane Inverness Road"]; | CA2: var areas19b = ["Ireland Wood","Ireland Wood","Ireland Wood","Ireland Wood","Ireland Wood","Ireland Wood","Ireland Wood","Ireland Wood","Ireland Wood","Ireland Wood","West Park","West Park","West Park","West Park","West Park","Beckett Park","Beckett Park","Beckett Park","Headingley","Headingley","Headingley","Headingley","Hyde Park","Hyde Park","Hyde Park","Hyde Park","Hyde Park","Hyde Park","Woodhouse","Woodhouse","Leeds City Centre","Leeds City Centre","Leeds City Centre","Leeds City Centre","Leeds City Bus Station","Quarry Hill","Richmond Hill","Richmond Hill","Richmond Hill","East End Park","East End Park","East End Park","Osmondthorpe","Osmondthorpe","Osmondthorpe","Halton","Halton","Halton","Halton","Halton","Halton","Halton","Halton","Halton","Whitkirk","Whitkirk","Whitkirk","Whitkirk","Whitkirk","Colton","Colton","Colton","Colton","Colton","Colton","Colton","Colton","Colton","Swillington Common","Garforth","Garforth","Garforth","Garforth","Garforth","Garforth","Garforth","Garforth","Garforth","Garforth","Garforth","East Garforth","East Garforth","East Garforth","East Garforth"]; | CB2: =asjsarray(CB3:CB90) -> var xcoords19b = [1151.3, 1175.2, 1159.1, 1136.5, 1159.1, 1162.1, 1137, 1110.3, 1145.6, 1183.3, 1187.3, 1190.9, 1168.7, 1162, 1181.8, 1183.6, 1210.9, 1260, 1305.7, 1337.6, 1397.1, 1432.6, 1436.4, 1445.8, 1452.6, 1461, 1505.5, 1526.6, 1567.2, 1618.9, 1680.5, 1716.1, 1734.9, 1797.6, 1829.1, 1886, 1942.4, 1973.5, 2014.6, 2070.8, 2119.5, 2146.8, 2230, 2274.3, 2297, 2377.1, 2427.3, 2463.1, 2483, 2489, 2504.9, 2550.6, 2579.1, 2611.6, 2638.3, 2654.3, 2671.1, 2715, 2772.6, 2780.1, 2770.8, 2760.7, 2769.6, 2793.5, 2820.6, 2849.8, 2874.9, 2911.2, 3001.4, 3100.2, 3173.3, 3229.7, 3261.3, 3273.1, 3311.2, 3315.6, 3315.8, 3316.4, 3350, 3382.4, 3450.6, 3504.8, 3514.5, 3510.5]; | CC2: =asjsarray(CC3:CC90) -> var ycoords19b = [442.853600000072, 467.157600000015, 501.009600000029, 517.328000000028, 552.916000000099, 566.630400000012, 593.712000000097, 629.647200000031, 651.000000000025, 658.46480000005, 709.850400000079, 766.096800000046, 805.156799999986, 864.180800000095, 899.942400000098, 960.528800000087, 997.33200000005, 1040.03760000004, 1087.95120000007, 1081.70160000006, 1066.94560000007, 1101.14480000007, 1149.23200000004, 1197.49280000006, 1231.69200000006, 1284.11920000005, 1306.16640000002, 1327.51920000001, 1367.96800000002, 1386.19600000001, 1393.31360000005, 1394.70239999999, 1456.85119999998, 1452.51120000009, 1448.69199999999, 1440.53279999999, 1415.36080000001, 1421.61040000002, 1421.78400000008, 1424.73520000003, 1401.29919999999, 1385.84880000002, 1361.54480000008, 1362.0656, 1362.41280000011, 1387.75840000001, 1417.61759999999, 1447.65040000002, 1484.97440000003, 1520.21519999999, 1537.05440000003, 1522.99280000001, 1507.54240000004, 1480.28720000002, 1439.49120000002, 1435.32480000006, 1436.71360000001, 1423.8672, 1427.16560000006, 1457.02480000004, 1471.25999999999, 1500.59840000006, 1529.41600000007, 1538.4432000001, 1546.94960000009, 1543.82480000008, 1527.33280000003, 1508.41040000007, 1565.17760000008, 1603.89040000003, 1616.91040000009, 1620.72960000007, 1620.55600000002, 1580.8016000001, 1543.99840000002, 1510.1464, 1484.45359999999, 1454.59440000001, 1445.39360000005, 1442.09519999999, 1440.8800000001, 1453.20560000006, 1486.88400000002, 1530.11040000005]; | CD2: =asjsarray(CD3:CD90) -> var 56a = ["Moor Grange, (45010409) TP PO","Moor Grange, Latchmere Drive Latchmere Rd, (45010408)","Moor Grange, Old Farm Approach Latchmere Drive, (45010410)","West Park, Old Oak Drive Old Oak Lawn, (45010411)","West Park, Queenswood Drive Spen Ln, (45010406)","West Park, Queenswood Drive Premier Roofing Ltd, (45010405)","Beckett Park, Queenswood Dri Woodbridge Crescent, (45011274)","Beckett Park, Queenswood Drive Woodbridge Road, (45010403)","Beckett Park, Queenswood Drive Queenswood Road, (45010402)","Headingley, Queenswood Drive Kirkstall Ln, (45010419)","Headingley, Kirkstall Lane Estcourt Ter, (45010958)","Headingley, Cardigan Road St Michaels Grove, (45011439)","Headingley, Cardigan Road Spring Rd, (45011421)","Hyde Park, Victoria Rd Norwood Terrace, (45011427)","Hyde Park, Victoria Rd Buckingham Road, (45011431)TP","Hyde Park, Queens Rd Brudenell Road, (45010421)","Hyde Park, Royal Park Road Brundenell Mount, (45011433)","Hyde Park, Moorland Rd Hyde Park Road, (45010427)","Woodhouse, Clarendon Road Moorland Rd, (45011402)","Woodhouse, Clarendon Rd Woodhouse Lane, (45024196)","Woodhouse, Woodhouse La St Marks Street, (45011384)","Woodhouse, Blenheim Walk leeds College of Art, (45011396)","Woodhouse, Blenheim Walk Woodhouse Lane, (45011393)","Leeds City Centre, L5 Woodhouse Lane, (45010914)","Leeds City Centre, J6 Albion Street, (45010920) TP","Leeds City Centre, H2 The Headrow, (45010666)","Leeds City Centre, G2 Eastgate, (45010669) TP","Leeds City Bus Station, F1 St Peters Street, (45010904)","Quarry Hill, York Street St Peters Pl, (45014783)","Richmond Hill, York Rd Burmantofts Street, (45010796)","Richmond Hill, York Road Pontefract La, (45010800)","Richmond Hill, York Rd Berking Avenue, (45010802)","East End Park, York Rd Glenthorpe Terrace, (45011980)","East End Park, York Rd Torre Road, (45024738)","East End Park, York Rd Dawlish Row, (45010810) TP","Osmondthorpe, C York Road, (45024739)","Osmondthorpe, York Rd Gipton Approach, (45024740)","Osmondthorpe, York Road, (45024741)","Killingbeck, York Rd Highways Flats, (45024742)","Killingbeck, York Rd Killingbeck Retail Park, (45010817)","Killingbeck, York Road Killingbeck Cemetery, (45010818)","Killingbeck, York Road Seacroft Hospital, (45010819)","Killingbeck, York Rd Foundry Lane, (45010820)","Cross Gates, Cross Gates Road Maryfield Crescent, (45012065)","Cross Gates, Cross Gates Road, (45012066)","Cross Gates, Cross Gates Road Cross Gates Ln, (45010507) TP","Cross Gates, Austhorpe Road Church Ln, (45010515)","Cross Gates, Manston Approach Manston Drive, (45012849)","Cross Gates, Church Lane Manston Ave, (45012847)","Swarcliffe, Eastwood Lane Eastwood Nook, (45012846)","Swarcliffe, Swarcliffe Drive Southwood Gate, (45012845)","Swarcliffe, Swarcliffe Drive Swarcliffe Approach, (45012844)","Swarcliffe, Swarcliffe Drive Mill Green Rd, (45012843)","Swarcliffe, Swarcliffe Dr Mill Green Gardens, (45012842)","Swarcliffe, Swarcliffe Ave Stanks Lane North, (45012837)","Swarcliffe, Swarcliffe Ave Brayton Grove, (45012835)","Swarcliffe, Stanks Drive Langbar Gardens, (45010524)TP","Swarcliffe, Stanks Drive Grimes Dyke Primary School, (45010525)","Swarcliffe, Sherburn Road Sledmere Place, (45010581)","Whinmoor, Sherburn Road North Baildon Path, (45012833)","Whinmoor, Sherburn Rd North Naburn Close, (45013713)","Whinmoor, Sherburn Road North Naburn Place, (45013714)","Whinmoor, Naburn Approach White Laithe Close, (45013718)","Whinmoor, Naburn Approach White Laithe Green, (45013719)","Whinmoor, Whinmoor Terminus Stand B, (45028029)TP AO"]; | CE2: =asjsarray(CE3:CE90) -> var codes56a = [45010409, 45010408, 45010410, 45010411, 45010406, 45010405, 45011274, 45010403, 45010402, 45010419, 45010958, 45011439, 45011421, 45011427, 45011431, 45010421, 45011433, 45010427, 45011402, 45024196, 45011384, 45011396, 45011393, 45010914, 45010920, 45010666, 45010669, 45010904, 45014783, 45010796, 45010800, 45010802, 45011980, 45024738, 45010810, 45024739, 45024740, 45024741, 45024742, 45010817, 45010818, 45010819, 45010820, 45012065, 45012066, 45010507, 45010515, 45012849, 45012847, 45012846, 45012845, 45012844, 45012843, 45012842, 45012837, 45012835, 45010524, 45010525, 45010581, 45012833, 45013713, 45013714, 45013718, 45013719, 45028029]; | CF2: =asjsarray(CF3:CF90) -> var labels56a = ["Moor Grange","Latchmere Drive Latchmere Road","Old Farm Approach Latchmere Drive","Old Oak Drive Old Oak Lawn","Queenswood Drive Spen Lane","Queenswood Drive Premier Roofing Ltd","Queenswood Drive Woodbridge Crescent","Queenswood Drive Queenswood Road","Queenswood Drive Queenswood Road","Queenswood Drive Kirkstall Lane","Kirkstall Lane Estcourt Terrace","Cardigan Road St Michaels Grove","Cardigan Road Spring Road","Victoria Road Norwood Terrace","Victoria Road Buckingham Road","Queens Road Brudenell Road","Royal Park Road Brundenell Mount","Moorland Road Hyde Park Road","Clarendon Road Moorland Road","Clarendon Road Woodhouse Lane","Woodhouse Lane St Marks Street","Leeds University","Blenheim Walk Woodhouse Lane","L5 Woodhouse Lane","J6 Albion Street","H2 The Headrow","G2 Eastgate","F1 St Peters Street","York Street St Peters Place","York Road Burmantofts Street","York Road Pontefract Lane","York Road Berking Avenue","York Road Glenthorpe Terrace","York Road Torre Road","York Road Dawlish Row","C York Road","York Road Gipton Approach","York Road","York Road Highways Flats","York Road Killingbeck Drive","York Road Asda Shopping Centre","York Road Lyme Chase","York Road Foundry Lane","Cross Gates Road Maryfield Crescent","Cross Gates Road","Cross Gates Road Cross Gates Lane","Austhorpe Road Church Lane","Manston Approach Manston Drive","Church Lane Manston Avenue","Eastwood Lane Eastwood Nook","Swarcliffe Drive Southwood Gate","Swarcliffe Drive Swarcliffe Approach","Swarcliffe Drive Mill Green Road","Swarcliffe Drive Mill Green Gardens","Swarcliffe Avenue Stanks Lane North","Swarcliffe Avenue Brayton Grove","Stanks Drive Langbar Gardens","Grimes Dyke School","Sherburn Road Sledmere Place","Sherburn Road North Baildon Path","Sherburn Road North Naburn Close","Sherburn Road North Naburn Place","Naburn Approach White Laithe Close","Naburn Approach White Laithe Green","Whinmoor Terminus Stand B"]; | CG2: =asjsarray(CG3:CG90) -> var areas56a = ["Moor Grange","Moor Grange","Moor Grange","West Park","West Park","West Park","Beckett Park","Beckett Park","Beckett Park","Headingley","Headingley","Headingley","Headingley","Hyde Park","Hyde Park","Hyde Park","Hyde Park","Hyde Park","Woodhouse","Woodhouse","Woodhouse","Woodhouse","Woodhouse","Leeds City Centre","Leeds City Centre","Leeds City Centre","Leeds City Centre","Leeds City Bus Station","Quarry Hill","Richmond Hill","Richmond Hill","Richmond Hill","East End Park","East End Park","East End Park","Osmondthorpe","Osmondthorpe","Osmondthorpe","Killingbeck","Killingbeck","Killingbeck","Killingbeck","Killingbeck","Cross Gates","Cross Gates","Cross Gates","Cross Gates","Cross Gates","Cross Gates","Swarcliffe","Swarcliffe","Swarcliffe","Swarcliffe","Swarcliffe","Swarcliffe","Swarcliffe","Swarcliffe","Swarcliffe","Swarcliffe","Whinmoor","Whinmoor","Whinmoor","Whinmoor","Whinmoor","Whinmoor"]; | CH2: =asjsarray(CH3:CH90) -> var xcoords56a = [1119.6, 1113.4, 1127.9, 1137.2, 1162, 1181.8, 1183.6, 1210.9, 1260, 1305.7, 1337.6, 1397.1, 1432.6, 1451.3, 1504.8, 1509.1, 1509.5, 1549.9, 1607.6, 1627.4, 1660.6, 1685.5, 1728.9, 1747.5, 1753.1, 1771.4, 1814.9, 1851.5, 1886, 1942.4, 1973.5, 2014.6, 2070.8, 2119.5, 2146.8, 2230, 2274.3, 2297, 2369.3, 2422.4, 2459.9, 2482.6, 2527.2, 2579.4, 2622.9, 2658.8, 2712.7, 2720.6, 2728.3, 2738.5, 2704.8, 2678.2, 2679.2, 2692.4, 2734.3, 2763.1, 2782.4, 2742.3, 2698.4, 2659.1, 2645.2, 2632.7, 2660.4, 2664.5, 2645.7]; | CI2: =asjsarray(CI3:CI90) -> var ycoords56a = [744.917599999985, 772.346400000056, 804.115200000026, 827.377600000008, 864.180800000095, 899.942400000098, 960.528800000087, 997.33200000005, 1040.03760000004, 1087.95120000007, 1081.70160000006, 1066.94560000007, 1101.14480000007, 1139.3368000001, 1133.43440000008, 1178.74400000003, 1206.69360000002, 1219.71360000008, 1244.53840000007, 1207.56160000005, 1222.31760000004, 1241.9344000001, 1300.95840000009, 1359.80880000002, 1384.80720000006, 1401.29919999999, 1408.59040000008, 1429.42240000004, 1440.53279999999, 1415.36080000001, 1421.61040000002, 1421.78400000008, 1424.73520000003, 1401.29919999999, 1385.84880000002, 1361.54480000008, 1362.0656, 1362.41280000011, 1331.16480000006, 1301.82639999999, 1276.30720000004, 1266.4120000001, 1248.18399999999, 1241.9344000001, 1242.45520000002, 1242.80240000001, 1261.0304, 1205.99920000004, 1166.76560000005, 1117.6368, 1101.14480000007, 1061.04320000004, 1029.27440000007, 1009.1368000001, 1037.78080000006, 1010.6992000001, 989.172800000051, 960.528800000087, 957.404000000082, 912.268000000063, 868.520799999993, 814.010400000083, 798.907200000099, 760.368000000078, 740.751200000019]; | CJ2: =asjsarray(CJ3:CJ90) -> var 56b = ["Whinmoor, Whinmoor Terminus Stand B, (45028029)TP PO","Whinmoor, Naburn Approach Oakdale Meadow, (45025282)","Whinmoor, Coal Road Naburn Approach, (45010577)","Whinmoor, White Laithe Rd Marsett Way, (45013711)","Whinmoor, Sherburn Road North, (45013712)","Whinmoor, Sherburn Rd North Naburn Road, (45010784)","Whinmoor, Sherburn Rd North Naburn Close, (45010785)","Whinmoor, Sherburn Road North Baildon Chase, (45010786)","Swarcliffe, Sherburn Road Sledmere Square, (45010579)","Swarcliffe, Stanks Drive Sherburn Road, (45010527)","Swarcliffe, Stanks Drive Grimes Dyke Primary School, (45010526)","Swarcliffe, Terminus, (45010529) TP","Swarcliffe, Swarcliffe Avenue Ash Tree Bank, (45012836)","Swarcliffe, Swarcliffe Ave at Stanks Lane North, (45010528)","Swarcliffe, Stanks Lane North, (45010534)","Swarcliffe, Swarcliffe Dr Mill Green Place, (45010533)","Swarcliffe, Swarcliffe Drive Swarcliffe Approach, (45010532)","Swarcliffe, Swarcliffe Drive Southwood Gate, (45010530)","Swarcliffe, Eastwood Lane Barwick Rd, (45010531)","Cross Gates, Church Lane Manston Avenue, (45012848)","Cross Gates, Church Lane Manston Gdns, (45012854)","Cross Gates, Austhorpe Road Marshall St, (45010514)","Cross Gates, Cross Gates Road The Orchards, (45010509) TP","Cross Gates, Cross Gates Road Poole Rd, (45010510)","Cross Gates, Cross Gates Road Maryfield Crescent, (45012089)","Killingbeck, York Rd Bridle Path Walk, (45010791)","Killingbeck, York Road Seacroft Hospital, (45010792)","Killingbeck, York Rd Watson Road, (45010793)","Killingbeck, York Rd Sutton Approach, (45010794)","Killingbeck, York Road Highways Flats, (45024743)","Osmondthorpe, York Rd Selby Road, (45010823)","Osmondthorpe, York Rd Gipton Approach, (45010824)","Osmondthorpe, A York Road, (45010826) TP","East End Park, York Rd Skelton Terrace, (45010828)","East End Park, York Rd Dawlish Avenue, (45010830)","East End Park, York Rd Raincliffe Road, (45010832)","Richmond Hill, York Rd Berking Avenue, (45010834)","Richmond Hill, York Rd Pontefract Lane, (45010835)","Richmond Hill, York Rd Marsh Lane, (45011988)","Quarry Hill, York Street Brick St, (45014787)","Leeds City Centre, G9 Eastgate, (45012363) TP","Leeds City Centre, J1 Albion Street, (45010922) TP","Leeds City Centre, L2 Woodhouse Lane, (45010915)","Woodhouse, Woodhouse La Lodge Street, (45011394)","Woodhouse, Leeds University, (45011383)","Woodhouse, Woodhouse La St Marks Street, (45011381)","Woodhouse, Clarendon Rd Woodhouse Lane, (45011403)","Woodhouse, Moorland Rd Clarendon Road, (45011401)","Hyde Park, Moorland Rd Hyde Park Road, (45011400)","Hyde Park, Queens Rd Royal Park Road, (45011434)","Hyde Park, Chestnut Road Brudenell Rd, (45011432)","Hyde Park, Victoria Rd Buckingham Road, (45011429)","Hyde Park, Victoria Rd Cardigan Road, (45011425)","Headingley, Cardigan Road St Michaels Ln, (45011423)","Headingley, Kirkstall Lane Headingley Stadium, (45011290)","Headingley, Kirkstall Lane Langdale Ave, (45011298)","Headingley, Queenswood Drive Kirkstall Ln, (45011293) TP","Beckett Park, Queenswood Drive Queenswood Road, (45010401)","Beckett Park, Queenswood Drive Woodbridge Close, (45011284)","Beckett Park, Queenswood Drive Woodbridge Cres, (45011273)","West Park, Queenswood Drive Ghyll Road, (45011268)","West Park, Queenswood Drive Queenswood Green, (45011269)","West Park, Old Oak Drive Butcher Hill, (45011276)","Moor Grange, Latchmere Drive Fillingfir Walk, (45011295)","Moor Grange, Latchmere Rd Latchmere Drive, (45011294)","Moor Grange, Old Farm Cross Latchmere Avenue, (45011300)","Moor Grange, Latchmere Drive Latchmere Crest, (45011302) TP AO"]; | CK2: =asjsarray(CK3:CK90) -> var codes56b = [45028029, 45025282, 45010577, 45013711, 45013712, 45010784, 45010785, 45010786, 45010579, 45010527, 45010526, 45010529, 45012836, 45010528, 45010534, 45010533, 45010532, 45010530, 45010531, 45012848, 45012854, 45010514, 45010509, 45010510, 45012089, 45010791, 45010792, 45010793, 45010794, 45024743, 45010823, 45010824, 45010826, 45010828, 45010830, 45010832, 45010834, 45010835, 45011988, 45014787, 45012363, 45010922, 45010915, 45011394, 45011383, 45011381, 45011403, 45011401, 45011400, 45011434, 45011432, 45011429, 45011425, 45011423, 45011290, 45011298, 45011293, 45010401, 45011284, 45011273, 45011268, 45011269, 45011276, 45011295, 45011294, 45011300, 45011302]; | CL2: =asjsarray(CL3:CL90) -> var labels56b = ["Whinmoor Terminus Stand B","Naburn Approach Oakdale Meadow","Coal Road Naburn Approach","White Laithe Road Marsett Way","Sherburn Road North","Sherburn Road North Naburn Road","Sherburn Road North Naburn Close","Sherburn Road North Baildon Chase","Sherburn Road Sledmere Square","Stanks Drive Sherburn Road","Stanks Drive Grimes Dyke Primary School","Swarcliffe","Swarcliffe Avenue Ash Tree Bank","Swarcliffe Avenue Stanks Gardens","Stanks Lane North","Swarcliffe Drive Mill Green Place","Swarcliffe Drive Swarcliffe Approach","Swarcliffe Drive Southwood Gate","Eastwood Lane Barwick Road","Church Lane Manston Avenue","Church Lane Manston Gardens","Austhorpe Road Back Marshall Street","Cross Gates Road The Orchards","Cross Gates Road Poole Road","Cross Gates Road Maryfield Crescent","York Road Bridle Path Walk","York Road Lyme Chase","York Road Watson Road","York Road Sutton Approach","York Road Highways Flats","York Road Selby Road","York Road Gipton Approach","A York Road","York Road Skelton Terrace","York Road Dawlish Avenue","York Road Raincliffe Road","York Road Berking Avenue","York Road Pontefract Lane","York Road Marsh Lane","York Street Brick Street","G9 Eastgate","J1 Albion Street","L2 Woodhouse Lane","Woodhouse Lane Lodge Street","Leeds University Woodhouse","Woodhouse Lane St Marks Street","Clarendon Road Woodhouse Lane","Moorland Road Clarendon Road","Moorland Road Hyde Park Road","Queens Road Royal Park Road","Chestnut Road Brudenell Road","Victoria Road Buckingham Road","Victoria Road Cardigan Road","Cardigan Road St Michaels Lane","Kirkstall Lane Headingley Statium","Kirkstall Lane Langdale Avenue","Queenswood Drive Kirkstall Lane","Queenswood Drive Queenswood Road","Queenswood Drive Woodbridge Close","Queenswood Drive Woodbridge Crescent","Queenswood Drive Ghyll Road","Queenswood Drive Queenswood Green","Old Oak Drive Butcher Hill","Latchmere Drive Fillingfir Walk","Latchmere Road Latchmere Drive","Old Farm Cross Latchmere Avenue","Latchmere Drive Latchmere Crest"]; | CM2: =asjsarray(CM3:CM90) -> var areas56b = ["Whinmoor","Whinmoor","Whinmoor","Whinmoor","Whinmoor","Whinmoor","Whinmoor","Whinmoor","Swarcliffe","Swarcliffe","Swarcliffe","Swarcliffe","Swarcliffe","Swarcliffe","Swarcliffe","Swarcliffe","Swarcliffe","Swarcliffe","Swarcliffe","Cross Gates","Cross Gates","Cross Gates","Cross Gates","Cross Gates","Cross Gates","Killingbeck","Killingbeck","Killingbeck","Killingbeck","Killingbeck","Osmondthorpe","Osmondthorpe","Osmondthorpe","East End Park","East End Park","East End Park","Richmond Hill","Richmond Hill","Richmond Hill","Quarry Hill","Leeds City Centre","Leeds City Centre","Leeds City Centre","Woodhouse","Woodhouse","Woodhouse","Woodhouse","Woodhouse","Hyde Park","Hyde Park","Hyde Park","Hyde Park","Hyde Park","Headingley","Headingley","Headingley","Headingley","Beckett Park","Beckett Park","Beckett Park","West Park","West Park","West Park","Moor Grange","Moor Grange","Moor Grange","Moor Grange"]; | CN2: =asjsarray(CN3:CN90) -> var xcoords56b = [2645.7, 2618.4, 2587.2, 2591.6, 2627.6, 2637.6, 2647.9, 2659.8, 2693.5, 2709.8, 2747.8, 2782.6, 2759.5, 2738.1, 2696.2, 2679.9, 2680.6, 2694.7, 2739.6, 2727.2, 2725.7, 2709.3, 2657.4, 2618.3, 2587.5, 2521.1, 2482.1, 2447.1, 2422.5, 2370.8, 2306.7, 2262.8, 2205.4, 2157.7, 2126.6, 2067.2, 2012.2, 1978.1, 1929.9, 1874.9, 1811.4, 1750.4, 1742.1, 1700.9, 1675.2, 1647.5, 1628.8, 1597.2, 1544.1, 1503.4, 1507.5, 1486, 1441, 1419.3, 1369.9, 1330.7, 1301.4, 1261.5, 1215.1, 1180.7, 1180.1, 1163.3, 1136.7, 1116.2, 1116.9, 1140.5, 1131.6]; | CO2: =asjsarray(CO3:CO90) -> var ycoords56b = [740.751200000019, 713.843199999989, 729.467200000014, 762.624800000054, 777.033600000064, 826.683200000035, 873.902400000097, 909.143200000058, 950.286400000043, 961.049600000005, 959.660800000058, 995.075200000074, 1015.38639999998, 1035.35040000003, 1007.05360000005, 1037.95439999999, 1064.16800000005, 1090.20800000005, 1119.02560000007, 1171.2792, 1214.50560000003, 1262.41920000007, 1246.9688000001, 1246.79520000004, 1246.62159999999, 1257.5584, 1271.4464000001, 1288.45920000007, 1307.03440000004, 1331.6856000001, 1364.49600000003, 1363.628, 1369.70400000008, 1386.71680000005, 1403.55600000009, 1431.85280000007, 1425.4296, 1425.95040000004, 1419.35360000005, 1446.95600000005, 1410.67360000001, 1382.02960000004, 1349.39280000004, 1284.2928000001, 1243.49680000011, 1217.10959999999, 1208.95039999999, 1248.5312000001, 1218.32480000001, 1201.48560000009, 1172.49440000002, 1138.12160000009, 1142.46159999998, 1086.21520000002, 1066.59840000008, 1086.21520000002, 1088.47199999999, 1043.3360000001, 1003.58160000006, 959.660800000058, 900.11600000003, 868.000000000074, 821.475199999985, 789.012000000042, 765.576000000004, 755.160000000029, 742.313600000022]; | CP2: =asjsarray(CP3:CP90) -> var 8a = ["Seacroft, Stand E Seacroft Bus Station, (45025304) TPPO","Seacroft, North Parkway Eastdean Gate, (45010846)","Seacroft, Ramshead Approach Limewood Road, (45013746)","Seacroft, Ramshead Approach Limewood Road, (45013747)","Seacroft, Ring Rd Coal Road, (45013738)","Whinmoor, Ring Rd Coal Road, (45013740)","Whinmoor, Ring Road Seacroft, (45013741)","Whinmoor, Ring Rd Monkswood Gate, (45013742)","Wellington Hill, Ring Rd Grange View Gardens, (45014830) TP","Wellington Hill, Ring Road Shadwell, (45014832)","Shadwell, Ring Rd Elmete Lane, (45014833)","Roundhay, Ring Road Shadwell, (45014835)","Roundhay, Ring Rd Roundhay Park Ln, (45012634)","Moortown, Ring Road Birchwood Hill, (45012628)","Moortown, Ring Road Birchwood Hill, (45013115)","Moortown, Ring Rd Shadwell Lane, (45013114)","Moortown, Ring Rd Harrogate Road, (45013162)","Moortown, Ring Rd Lingfield Road, (45013153)","Moortown, King Lane, (45012619) TP","Moortown, Ring Rd Tongue Lane, (45012618)","Meanwood, Ring Rd Tongue Lane, (45012677)","Weetwood, Ring Rd Parkside Road, (45012627)","Weetwood, Ring Rd Weetwood Lane, (45013152)","West Park, Ring Rd Otley Road, (45013151) TP","West Park, Ring Rd Spen Gardens, (45013104)","Moor Grange, Ring Rd Redvers Close, (45013103)","Moor Grange, Ring Rd Fillingfir Drive, (45013102)","Horsforth, Woodside Tavern, (45013101)","Horsforth, Broadway Wood Lane, (45013175)","Horsforth, Alexandra Road Ring Rd, (45013183)","Horsforth, Broadgate Lane Stanhope Dr, (45013178)","Horsforth, Broadgate Lane North Broadgate Ln, (45013177)","Horsforth, North Broadgate Town Street, (45013185)","Horsforth, Church Avenue North Broadgate Ln, (45023958)","Horsforth, Town Street Feast Field, (45013192)","Horsforth, The Green Town Street, (45013191) TP","Horsforth, Fink Hill Broadway, (45013134)","Horsforth, Broadway Parkside, (45013518)","Horsforth, New Road Side Horsforth, (45013519)","Rodley, Horsforth New Rd Calverley Lane, (45023486)","Rodley, Rodley Lane Horsforth New Rd, (45012537)","Rodley, Rodley Lane, (45012535)","Rodley, Town Street Lastingham Green, (45012599)","Rodley, Town Street Airedale Wharf, (45012596)","Rodley, Coal Hill Lane Town St, (45012341)","Rodley, Coal Hill Lane Calverley Ln, (45012342)","Rodley, Coal Hill Lane Intake Ln, (45025180)","Rodley, Coal Hill Lane Farsley, (45012392)","Farsley, Bagley Lane Springbank Rd, (45012337)","Farsley, Cenotaph, (45012387) TP","Farsley, Town Street Wesley St, (45012388)","Farsley, Farfield Day Centre Farfield Avenue, (45012380)","Farsley, Dawsons Corner Pudsey, (45010881)","Stanningley, Bradford Road New St, (45010882)","Stanningley, Bradford Road Stanhall Ave, (45012324)","Stanningley, Bradford Road Richardshaw Ln, (45012372)","Pudsey, Richardshaw Lane Ashfield Rd, (45012402)","Pudsey, Richardshaw Lane, (45012300)","Pudsey, Richardshaw Lane Brunswick Rd, (45012298)","Pudsey, Lidget Hill Wesley View, (45013016)"]; | CQ2: =asjsarray(CQ3:CQ90) -> var codes8a = [45025304, 45010846, 45013746, 45013747, 45013738, 45013740, 45013741, 45013742, 45014830, 45014832, 45014833, 45014835, 45012634, 45012628, 45013115, 45013114, 45013162, 45013153, 45012619, 45012618, 45012677, 45012627, 45013152, 45013151, 45013104, 45013103, 45013102, 45013101, 45013175, 45013183, 45013178, 45013177, 45013185, 45023958, 45013192, 45013191, 45013134, 45013518, 45013519, 45023486, 45012537, 45012535, 45012599, 45012596, 45012341, 45012342, 45025180, 45012392, 45012337, 45012387, 45012388, 45012380, 45010881, 45010882, 45012324, 45012372, 45012402, 45012300, 45012298, 45013016]; | CR2: =asjsarray(CR3:CR90) -> var labels8a = ["Stand E Seacroft Bus Station","North Parkway Eastdean Gate","Ramshead Approach Limewood Road","Ramshead Approach Limewood Road","Ring Road Seacroft Coal Road","Ring Road Seacroft Coal Road","Ring Road Seacroft","Ring Road Seacroft Monkswood Gate","Ring Road Shadwell Grange View Gardens","Ring Road Shadwell","Ring Road Shadwell","Ring Road Shadwell","Ring Road Shadwell Roundhay Park Lane","Ring Road Moortown Birchwood Hill","Ring Road Moortown Birchwood Hill","Ring Road Moortown Shadwell Lane","Ring Road Moortown Harrogate Road","Ring Road Moortown Lingfield Road","King Lane Moortown","Ring Road Moortown Tongue Lane","Ring Road Meanwood Tongue Lane","Ring Road Adel Parkside Road","Ring Road Weetwood Weetwood Lane","Ring Road West Park Otley Road","Ring Road West Park Spen Gardens","Ring Road West Park Redvers Close","Ring Road","Woodside Tavern Horsforth","Broadway Wood Lane","Alexandra Road Ring Road","Broadgate Lane Stanhope Drive","Broadgate Lane North Broadgate Lane","North Broadgate Town Street","Church Avenue North Broadgate Lane","Horsforth Town Street","The Green Town Street","Fink Hill Broadway","Broadway Parkside","New Road Side Horsforth","Horsforth New Road Calverley Lane","Rodley Lane Horsforth New Road","Rodley Lane","Town Street Lastingham Green","Town Street Airedale Wharf","Coal Hill Lane Town Street","Coal Hill Lane Calverley Lane","Coal Hill Lane Intake Lane","Coal Hill Lane Farsley","Bagley Lane Springbank Road","Farsley Cenotaph","Town Street Wesley Street","Farfield Day Centre Farfield Avenue","Dawsons Corner Pudsey","Bradford Road New Street","Bradford Road Stanhall Avenue","Bradford Road Richardshaw Lane","Richardshaw Lane Ashfield Road","Richardshaw Lane","Richardshaw Lane Brunswick Road","P6 Robin Lane Manor House Street"]; | CS2: =asjsarray(CS3:CS90) -> var areas8a = ["Seacroft","Seacroft","Seacroft","Seacroft","Seacroft","Whinmoor","Whinmoor","Whinmoor","Wellington Hill","Wellington Hill","Shadwell","Roundhay","Roundhay","Moortown","Moortown","Moortown","Moortown","Moortown","Moortown","Moortown","Meanwood","Weetwood","Weetwood","West Park","West Park","Moor Grange","Moor Grange","Horsforth","Horsforth","Horsforth","Horsforth","Horsforth","Horsforth","Horsforth","Horsforth","Horsforth","Horsforth","Horsforth","Horsforth","Rodley","Rodley","Rodley","Rodley","Rodley","Rodley","Rodley","Rodley","Rodley","Farsley","Farsley","Farsley","Farsley","Farsley","Stanningley","Stanningley","Stanningley","Pudsey","Pudsey","Pudsey","Pudsey"]; | CT2: =asjsarray(CT3:CT90) -> var xcoords8a = [2601.5, 2607.1, 2535.4, 2591, 2612.6, 2601.4, 2564, 2520.8, 2462.6, 2430.6, 2368.5, 2294.5, 2187.3, 2061.9, 2032.7, 1917.2, 1844.5, 1760, 1704.6, 1643.6, 1558.1, 1425.1, 1356.3, 1249.7, 1210.7, 1140.6, 1077.1, 998.9, 920.6, 902.799999999999, 889.199999999999, 863.099999999999, 845.7, 830.7, 808.499999999999, 771.7, 751.8, 727.199999999999, 675.5, 590.1, 532.599999999999, 571.599999999999, 636.999999999999, 664.7, 682.700000000001, 665.499999999999, 642.199999999999, 585.4, 545.4, 495.6, 489.599999999999, 412.1, 403, 461.6, 481.099999999999, 523, 542.199999999999, 560, 560.700000000001, 574.699999999999]; | CU2: =asjsarray(CU3:CU90) -> var ycoords8a = [1014.34480000002, 988.652000000009, 933.27360000007, 936.572000000007, 917.8232000001, 896.817600000093, 846.300000000094, 794.914400000065, 737.452800000082, 709.850400000079, 628.432000000016, 588.504000000047, 547.534399999994, 528.09119999999, 528.438400000101, 541.111200000053, 552.916000000099, 570.796800000101, 611.072000000056, 644.403200000028, 653.430400000056, 658.985600000092, 648.396000000062, 738.320799999988, 736.584800000053, 719.224800000094, 735.716800000025, 757.937600000047, 767.659200000049, 764.708000000099, 712.801600000029, 691.796000000022, 672.700000000005, 666.103200000008, 715.058400000005, 753.771200000081, 779.984800000014, 787.275999999985, 798.212800000002, 896.470399999983, 968.514400000031, 988.478400000077, 1016.77520000005, 1043.68320000008, 1067.64000000004, 1102.36000000008, 1116.94240000002, 1122.49760000006, 1104.4432, 1132.91360000004, 1165.3768000001, 1190.72240000001, 1282.38319999999, 1292.97280000002, 1296.61840000007, 1300.09040000006, 1336.3728000001, 1385.84880000002, 1402.86159999999, 1448.69199999999]; | CV2: =asjsarray(CV3:CV90) -> var 8b = ["Pudsey, Lidgett Hill Wesley View, (45012295)","Pudsey, Richardshaw Lane Somerset Rd, (45012297)","Pudsey, Richardshaw Lane, (45012299)","Pudsey, Richardshaw Lane Chapel Street, (45012401)","Stanningley, Stanningley Bottom, (45010880)","Stanningley, Bradford Road Stanhall Ave, (45012374)","Stanningley, Bradford Road Old Rd, (45012376)","Farsley, Bradford Road Ruskin St, (45012375)","Farsley, Town Street Water Lane, (45012389)","Farsley, Bagley Lane Town St, (45012338) TP","Farsley, Bagley Lane Springbank Rd, (45012393)","Rodley, Coal Hill Lane Bagley Ln, (45012391)","Rodley, Coal Hill Lane Intake Ln, (45012390)","Rodley, Coal Hill Lane Calverley Ln, (45012343)","Rodley, Coal Hill Lane Town St, (45012340)","Rodley, Town Street Airedale Wharf, (45012597)","Rodley, Town St Cowley Road, (45012598)","Rodley, Town Street, (45012600)","Rodley, Rodley Lane Chapel Street, (45012536)","Rodley, Horsforth New Rd Rodley Lane, (45013123)","Rodley, Horsforth New Rd Calverley Lane, (45013122)","Horsforth, New Road Side Horsforth, (45013121)","Horsforth, Broadway Parkside, (45013174)","Horsforth, Fink Hill Broadway, (45013135)","Horsforth, Church Road Hall Ln, (45013133)","Horsforth, Church Road Church Crecsent, (45013193)TP","Horsforth, Church Avenue St Margarets Ave, (45013140)","Horsforth, North Broadgate Lane Chaddelwood Close, (45013186)","Horsforth, Broadgate Lane North Broadgate Ln, (45013187)","Horsforth, Alexandra Road Broadgate Ln, (45013136)","Horsforth, Alexandra Road Broadway, (45013137)","Horsforth, Broadway Alexandra Road, (45013172)","Horsforth, Broadway Wood Lane, (45013189)","Horsforth, Woodside Tavern Low Lane, (45013171)","Moor Grange, Ring Rd Clayton Wood Road, (45013170)","Moor Grange, Ring Rd Redvers Close, (45013571)","West Park, Ring Rd Wynford Avenue, (45013570)","West Park, Ring Rd Otley Road, (45013569) TP","Weetwood, Ring Rd Weetwood Lane, (45012303)","Weetwood, Ring Rd Parkside Road, (45012304)","Meanwood, Ring Rd Scotland Mill Road, (45012352)","Moortown, Ring Rd Church Lane, (45012302)","Moortown, King Lane Alwoodley, (45012620) TP","Moortown, Ring Rd Lingfield Road, (45012632)","Moortown, Ring Rd Harrogate Road, (45012631)","Moortown, Ring Rd Shadwell Lane, (45012680)","Moortown, Ring Road Moortown, (45012679)","Moortown, Ring Rd Hodson Crescent, (45012633)","Roundhay, Ring Rd Roundhay Park Ln, (45014837)","Roundhay, Ring Road Shadwell, (45014836)","Shadwell, Ring Rd Elmete Lane, (45014834)","Wellington Hill, Ring Road Shadwell, (45014831)","Wellington Hill, Ring Rd Wetherby Road, (45013732) TP","Whinmoor, Ring Rd Ringwood Drive, (45013733)","Whinmoor, Ring Rd Limewood Approach, (45013734)","Whinmoor, Ring Rd Coal Road, (45013739)","Seacroft, Ring Rd Coal Road, (45013735)","Seacroft, Ramshead Approach Limewood Road, (45013745)","Seacroft, Ramshead Drive Ramshead Approach, (45013763)","Seacroft, North Parkway Eastdean Gate, (45013780) AO","Seacroft, Stand E Seacroft Bus Station, (45025304) TPAO"]; | CW2: =asjsarray(CW3:CW90) -> var codes8b = [45012295, 45012297, 45012299, 45012401, 45010880, 45012374, 45012376, 45012375, 45012389, 45012338, 45012393, 45012391, 45012390, 45012343, 45012340, 45012597, 45012598, 45012600, 45012536, 45013123, 45013122, 45013121, 45013174, 45013135, 45013133, 45013193, 45013140, 45013186, 45013187, 45013136, 45013137, 45013172, 45013189, 45013171, 45013170, 45013571, 45013570, 45013569, 45012303, 45012304, 45012352, 45012302, 45012620, 45012632, 45012631, 45012680, 45012679, 45012633, 45014837, 45014836, 45014834, 45014831, 45013732, 45013733, 45013734, 45013739, 45013735, 45013745, 45013763, 45013780, 45025304]; | CX2: =asjsarray(CX3:CX90) -> var labels8b = ["P8 Pudsey Town Hall","Richardshaw Lane Somerset Road","Richardshaw Lane","Richardshaw Lane Chapel Street","Stanningley Bottom","Bradford Road Stanhall Avenue","Bradford Road Old Road","Bradford Road Ruskin Street","Town Street Water Lane","Bagley Lane Town Street","Bagley Lane Springbank Road","Coal Hill Lane Bagley Lane","Coal Hill Lane Intake Lane","Coal Hill Lane Calverley Lane","Coal Hill Lane Town Street","Town Street Airedale Wharf","Town Street Cowley Road","Town Street","Rodley Lane Chapel Street","Horsforth New Road Rodley Lane","Horsforth New Road Calverley Lane","New Road Side Horsforth","Broadway Parkside","Fink Hill Broadway","Church Road Hall Lane","Church Road Church Crecsent","Church Avenue St Margarets Avenue","North Broadgate Lane Chaddelwood Close","Broadgate Lane North Broadgate Lane","Alexandra Road Broadgate Lane","Alexandra Road Broadway","Broadway Alexandra Road","Broadway Wood Lane","Woodside Tavern Low Lane","Ring Road West Park Clayton Wood","Ring Road West Park Redvers Close","Ring Road West Park Wynford Avenue","Ring Road Weetwood Otley Road","Ring Road Adel Weetwood Lane","Ring Road Adel Parkside Road","Ring Road Meanwood Scotland Mill Road","Ring Road Moortown Church Lane","King Lane Alwoodley","Ring Road King Lane","Ring Road Moortown Harrogate Road","Ring Road Moortown Shadwell Lane","Ring Road Moortown","Ring Road Moortown Hodson Crescent","Ring Road Moortown Roundhay Park Lane","Ring Road Shadwell","Ring Road Shadwell","Ring Road Shadwell","Ring Road Seacroft Wetherby Road","Ring Road Seacroft Ringwood Drive","Ring Road Seacroft Limewood Approach","Ring Road Seacroft Coal Road","Ring Road Seacroft Coal Road","Ramshead Approach Limewood Road","Ramshead Drive Ramshead Approach","North Parkway Eastdean Gate","Stand E Seacroft Bus Station"]; | CY2: =asjsarray(CY3:CY90) -> var areas8b = ["Pudsey","Pudsey","Pudsey","Pudsey","Stanningley","Stanningley","Stanningley","Farsley","Farsley","Farsley","Farsley","Rodley","Rodley","Rodley","Rodley","Rodley","Rodley","Rodley","Rodley","Rodley","Rodley","Horsforth","Horsforth","Horsforth","Horsforth","Horsforth","Horsforth","Horsforth","Horsforth","Horsforth","Horsforth","Horsforth","Horsforth","Horsforth","Moor Grange","Moor Grange","West Park","West Park","Weetwood","Weetwood","Meanwood","Moortown","Moortown","Moortown","Moortown","Moortown","Moortown","Moortown","Roundhay","Roundhay","Shadwell","Wellington Hill","Wellington Hill","Whinmoor","Whinmoor","Whinmoor","Seacroft","Seacroft","Seacroft","Seacroft","Seacroft"]; | CZ2: =asjsarray(CZ3:CZ90) -> var xcoords8b = [565.100000000001, 558.9, 558.2, 546.7, 515.999999999999, 478.6, 455.2, 400, 483.799999999999, 500.2, 546.7, 586.4, 640.799999999999, 663.499999999999, 681.6, 665, 632.699999999999, 586.899999999999, 559.9, 536.5, 593.299999999999, 700.2, 733.1, 750, 770.199999999999, 781.499999999999, 827.3, 854.299999999999, 869.599999999999, 898.6, 904.3, 914.900000000001, 950.500000000001, 1015.6, 1086.3, 1140.9, 1213.9, 1280.8, 1379.6, 1440.3, 1560.6, 1641.9, 1699.6, 1765.5, 1867.4, 1917.4, 2021.1, 2118, 2203.1, 2295.1, 2369, 2434.3, 2488.3, 2540.1, 2581.1, 2604.8, 2617, 2590.6, 2529.9, 2611.5, 2601.5]; | DA2: =asjsarray(DA3:DA90) -> var ycoords8b = [1441.748, 1419.70080000003, 1381.68240000005, 1350.60800000006, 1304.25680000003, 1298.52800000006, 1294.01440000011, 1283.94559999999, 1175.79280000008, 1121.62960000003, 1102.36000000008, 1120.58800000007, 1116.0744, 1102.53360000001, 1065.38320000006, 1045.94000000006, 1015.0392, 989.346400000106, 986.221600000101, 952.369600000087, 889.873599999986, 778.596000000067, 786.755200000066, 778.24880000008, 743.355200000105, 713.148800000016, 665.929600000076, 679.296800000002, 695.268000000014, 725.995200000023, 765.749600000059, 766.964800000075, 759.847200000036, 754.986400000097, 728.078400000067, 715.926400000034, 733.807200000035, 716.273600000021, 642.840800000025, 654.12480000003, 649.437600000022, 639.195200000102, 608.988800000012, 561.596000000017, 551.180000000041, 537.292000000074, 525.313600000096, 528.09119999999, 551.006399999986, 587.1152000001, 627.2168, 711.412800000081, 758.111200000102, 813.489600000041, 865.743200000098, 899.248000000001, 919.559200000034, 938.134400000009, 940.738400000096, 987.263200000061, 1014.34480000002]; | DB2: =asjsarray(DB3:DB90) -> var 50a = ["Horsforth, The Green Town Street, (45013191) TP PO","Horsforth, Church Road Church Crecsent, (45013193)","Horsforth, Church Avenue St Margarets Ave, (45013140)","Horsforth, North Broadgate Lane Chaddelwood Close, (45013186)","Horsforth, Broadgate Lane North Broadgate Ln, (45013187)","Horsforth, Broadgate Lane Alexandra Rd, (45013179)","Horsforth, Broadgate Lane Broadgate Ave, (45013181)","Horsforth, Broadgate Lane Broadgate Rise, (45050092)","Horsforth, Low Lane Ring Road Horsforth, (45013169)","Horsforth, Low Lane Outwood Ln, (45011308)","Hawksworth, Lea Farm Road Butcher Hill, (45010414)","Hawksworth, Lea Farm Road Hawkswood Crescent, (45024988)","Hawksworth, Hawkswood Avenue, (45010415) TP","Hawksworth, Vesper Road Broadway, (45011279)","Hawksworth, Vesper Rd Lea Farm Road, (45010417)","Hawksworth, Vesper Rd Lea Farm Drive, (45010418)","Kirkstall, Morris Lane Morris Avenue, (45011454)","Kirkstall, Morris Lane Norman Mount, (45010956)","Kirkstall, Morris Lane Kirkstall Ln, (45011458) TP","Kirkstall, Kirkstall Hill Eden Road, (45011450)","Burley, Kirkstall Hill Burley Hill Drive, (45010965)","Burley, Burley Road St Annes Gdns, (45010966)","Burley, Burley Road St Michaels Ln, (45010967)","Burley, Burley Road Cardigan Ln, (45011436)","Hyde Park, Burley Road Cardigan Rd, (45010968) TP","Hyde Park, Burley Rd Westfield Terrace, (45010969)","Hyde Park, Burley Road Hollis Place, (45011440)","Woodhouse, Burley Street St Andrews St, (45024093)","Woodhouse, Park Lane Leeds City College, (45010970)","Leeds City Centre, Y2 Westgate, (45010664)","Leeds City Centre, Y7 The Headrow, (45010665)","Leeds City Centre, R3 The Headrow, (45012385)","Leeds City Centre, H3 The Headrow, (45010667)","Leeds City Centre, G3 Eastgate, (45010670) TP","Leeds City Bus Station, F1 St Peters Street, (45010904)","Quarry Hill, York Street St Peters Pl, (45014783)","Burmantofts, Burmantofts Street Rigton Approach, (45013985)","Burmantofts, Burmantofts Street Nippet Ln, (45013986)","Burmantofts, Beckett Street Granville Rd, (45013987)","Burmantofts, St James Hospital Bexley Wing, (45013988)","Burmantofts, St James Hospital, (45010299) TP","Harehills, Harehills Road Bexley View, (45010725)","Harehills, Harehills Road Elford Place East, (45013998)","Harehills, Harehills Rd Banstead Street East, (45013997)","Harehills, Harehills Road Lambton View, (45013996)","Harehills, Easterly Road, (45013934) TP","Harehills, Easterley Road, (45013935)","Oakwood, Easterly Road Arlington Rd, (45013936)","Oakwood, Easterly Road Gipton Wood Rd, (45011021)","Oakwood, McDonalds, (45013937)","Oakwood, Easterly Road Hollin Park Mount, (45013938)","Fearnville, Dib Lane, (45013939) TP","Fearnville, Easterly Road Boggart Hill Dr, (45013940)","Seacroft, Boggart Hill Drive Barnscroft Ave, (45010849)","Seacroft, Boggart Hill Drive Boggart Hill Cres, (45013748)","Seacroft, Kentmere Avenue Ramshead Hill, (45010856)","Seacroft, Kentmere Avenue Pigeon Cote Rd, (45013764)","Seacroft, North Parkway Kentmere Avenue, (45013776)","Seacroft, North Parkway Pigeon Cote Road, (45013777)","Seacroft, North Parkway Eastdean Gate, (45013780)","Seacroft, Stand E Seacroft Bus Station, (45025304) TPAO"]; | DC2: =asjsarray(DC3:DC90) -> var codes50a = [45013191, 45013193, 45013140, 45013186, 45013187, 45013179, 45013181, 45050092, 45013169, 45011308, 45010414, 45024988, 45010415, 45011279, 45010417, 45010418, 45011454, 45010956, 45011458, 45011450, 45010965, 45010966, 45010967, 45011436, 45010968, 45010969, 45011440, 45024093, 45010970, 45010664, 45010665, 45012385, 45010667, 45010670, 45010904, 45014783, 45013985, 45013986, 45013987, 45013988, 45010299, 45010725, 45013998, 45013997, 45013996, 45013934, 45013935, 45013936, 45011021, 45013937, 45013938, 45013939, 45013940, 45010849, 45013748, 45010856, 45013764, 45013776, 45013777, 45013780, 45025304]; | DD2: =asjsarray(DD3:DD90) -> var labels50a = ["The Green Town Street","Church Road Church Crecsent","Church Avenue St Margarets Avenue","North Broadgate Lane Chaddelwood Close","Broadgate Lane North Broadgate Lane","Broadgate Lane Alexandra Road","Broadgate Lane Broadgate Avenue","Broadgate Lane Broadgate Rise","Low Lane Ring Road Horsforth","Low Lane Outwood Lane","Lea Farm Road Butcher Hill","Lea Farm Road Hawkswood Crescent","Hawkswood Avenue","Vesper Road Broadway","Vesper Road Lea Farm Road","Vesper Road Lea Farm Drive","Morris Lane Morris Avenue","Morris Lane Norman Mount","Morris Lane Kirkstall Lane","Kirkstall Hill Eden Road","Kirkstall Hill Burley Hill Drive","Burley Road St Annes Gardens","Burley Road St Michaels Lane","Burley Road Cardigan Lane","Burley Road Cardigan Road","Burley Road Westfield Terrace","Burley Road Hollis Place","Burley Street St Andrews Street","Park Lane Park Lane College","Y2 Westgate","Y7 The Headrow","R3 The Headrow","H3 The Headrow","G3 Eastgate","F1 St Peters Street","York Street St Peters Place","Burmantofts Street Rigton Approach","Burmantofts Street Nippet Lane","Beckett Street Granville Road","St James Hospital Bexley Wing","St James Hospital","Harehills Road Bexley View","Harehills Road Elford Grove","Harehills Road Banstead Street","Harehills Road Lambton View","Harehills Easterly Road","Easterley Road","Easterly Road Arlington Road","Easterly Road Gipton Wood Road","McDonalds","Easterly Road Hollin Park Mount","Fearnville Dib Lane","Easterly Road Boggart Hill Drive","Boggart Hill Drive Barnscroft Avenue","Boggart Hill Drive Boggart Hill Crescent","Kentmere Avenue Ramshead Hill","Kentmere Avenue Pigeon Cote Road","North Parkway Kentmere Avenue","North Parkway Pigeon Cote Road","North Parkway Eastdean Gate","Stand E Seacroft Bus Station"]; | DE2: =asjsarray(DE3:DE90) -> var areas50a = ["Horsforth","Horsforth","Horsforth","Horsforth","Horsforth","Horsforth","Horsforth","Horsforth","Horsforth","Horsforth","Hawksworth","Hawksworth","Hawksworth","Hawksworth","Hawksworth","Hawksworth","Kirkstall","Kirkstall","Kirkstall","Kirkstall","Burley","Burley","Burley","Burley","Hyde Park","Hyde Park","Hyde Park","Woodhouse","Woodhouse","Leeds City Centre","Leeds City Centre","Leeds City Centre","Leeds City Centre","Leeds City Centre","Leeds City Bus Station","Quarry Hill","Burmantofts","Burmantofts","Burmantofts","Burmantofts","Burmantofts","Harehills","Harehills","Harehills","Harehills","Harehills","Harehills","Oakwood","Oakwood","Oakwood","Oakwood","Fearnville","Fearnville","Seacroft","Seacroft","Seacroft","Seacroft","Seacroft","Seacroft","Seacroft","Seacroft"]; | DF2: =asjsarray(DF3:DF90) -> var xcoords50a = [771.7, 781.499999999999, 827.3, 854.299999999999, 869.599999999999, 902.6, 949.899999999999, 972.500000000001, 1005.9, 1014.4, 1053.7, 1051, 1038.4, 1044.4, 1081.6, 1129, 1152.1, 1182.4, 1210.8, 1255.2, 1291.4, 1323.1, 1347.5, 1397.5, 1461, 1505.5, 1526.6, 1567.2, 1618.9, 1681.8, 1722.7, 1746.2, 1774.9, 1824.6, 1851.5, 1886, 1928.1, 1941.4, 1964.2, 1988, 2012.8, 2029.3, 2026, 2026.1, 2026.9, 2067.6, 2098.9, 2145, 2179.4, 2253.5, 2285.6, 2326.7, 2370.6, 2408.7, 2451.8, 2503.5, 2500.6, 2503.8, 2529.4, 2611.5, 2601.5]; | DG2: =asjsarray(DG3:DG90) -> var ycoords50a = [753.771200000081, 713.148800000016, 665.929600000076, 679.296800000002, 695.268000000014, 719.051200000039, 739.362400000072, 740.577600000087, 749.43120000006, 780.852800000043, 818.871200000022, 848.904000000057, 878.763200000037, 908.969600000003, 922.857600000094, 941.953599999988, 1002.01920000006, 1050.62720000007, 1094.89520000006, 1127.01120000001, 1145.58639999999, 1174.75119999999, 1204.95760000008, 1251.82960000004, 1284.11920000005, 1306.16640000002, 1327.51920000001, 1367.96800000002, 1386.19600000001, 1393.31360000005, 1394.87600000005, 1396.2648, 1401.6464000001, 1409.63200000005, 1429.42240000004, 1440.53279999999, 1396.09120000006, 1374.21760000003, 1330.12320000009, 1294.01440000011, 1263.11360000004, 1236.72640000005, 1189.16, 1149.23200000004, 1117.46320000007, 1077.18799999999, 1085.6944000001, 1071.98000000006, 1053.40480000009, 1012.43520000003, 995.769600000048, 973.72240000008, 912.441599999995, 916.781600000016, 922.336800000052, 923.204800000081, 963.653600000092, 996.637600000076, 985.006400000085, 987.263200000061, 1014.34480000002]; | DH2: =asjsarray(DH3:DH90) -> var 50b = ["Seacroft, Stand E Seacroft Bus Station, (45025304) TPPO","Seacroft, North Parkway Eastdean Gate, (45010846)","Seacroft, North Parkway Baileys Lane, (45010847)","Seacroft, North Parkway Pigeon Cote Road, (45013772)","Seacroft, Kentmere Ave Kentmere Close, (45013765)","Seacroft, Kentmere Avenue Pigeon Cote Rd, (45013766)","Seacroft, Boggart Hill Drive Kentmere Ave, (45010851)","Seacroft, Boggart Hill Drive Boggart Hill Cres, (45010850)","Seacroft, Boggart Hill Drive Boggart Hill Rd, (45010848)","Fearnville, Easterly Road Boggart Hill Dr, (45013931)","Fearnville, Dib Lane, (45013932) TP","Oakwood, Easterly Road Hollin Park Mount, (45011022)","Oakwood, McDonalds, (45011023)","Oakwood, Easterley Road Hetton Rd, (45011024)","Oakwood, Easterley Road Amberton Rd, (45011025)","Harehills, Easterley Road, (45013933)","Harehills, Harehills Road Nice View, (45010726) TP","Harehills, Harehills Road Harehills Place, (45010727)","Harehills, Harehills Road Conway View, (45010728)","Harehills, Harehills Road Ashton Grove, (45010729)","Burmantofts, St James Hospital, (45010297) TP","Burmantofts, St James Hospital Bexley Wing, (45010296)","Burmantofts, Beckett Street Accommodation Rd, (45010294)","Burmantofts, Burmantofts Street Nippet Ln, (45013989)","Quarry Hill, York Street Brick St, (45014787)","Leeds City Centre, G7 Eastgate, (45010651) TP","Leeds City Centre, H7 The Headrow, (45010657)","Leeds City Centre, Y10 The Headrow, (45010660)","Woodhouse, Park Lane Leeds City College, (45010947)","Woodhouse, Burley Street St Andrews St, (45011452)","Hyde Park, Burley Road Hollis Place, (45011442)","Hyde Park, Burley Road Woodsley Rd, (45010950)","Hyde Park, Burley Road Willow Rd, (45011438)","Burley, Burley Road St Mathias St, (45010951) TP","Burley, Burley Road St Michaels Ln, (45010952)","Burley, Burley Road Talbot View, (45011443)","Burley, Kirkstall Hill Burley Hill Drive, (45011446)","Kirkstall, Kirkstall Hill Eden Road, (45010953)","Kirkstall, Kirkstall Lane Glebe Ave, (45010955) TP","Kirkstall, Morris Lane Norman Mount, (45011456)","Kirkstall, Morris Lane Morris Avenue, (45011457)","Hawksworth, Spen Lane Kepstorn Rise, (45011455)","Hawksworth, Vesper Rd Lea Farm Drive, (45011275)","Hawksworth, Vesper Rd Lea Farm Road, (45011280)","Hawksworth, Vesper Road Broadway, (45011283)","Hawksworth, Hawkswood Avenue, (45010416) TP","Hawksworth, Lea Farm Road Hawksworth Crescent, (45011285)","Hawksworth, Lea Farm Road Butcher Hill, (45011286)","Horsforth, Low Lane Outwood Ln, (45011310)","Horsforth, Broadgate Lane Melrose Grove, (45013128)","Horsforth, Broadgate Lane Broadgate Rise, (45013127)","Horsforth, Broadgate Lane Broadgate Ave, (45013182)","Horsforth, Broadgate Lane Stanhope Dr, (45013178)","Horsforth, Broadgate Lane North Broadgate Ln, (45013177)","Horsforth, North Broadgate Town Street, (45013185)","Horsforth, Church Avenue North Broadgate Ln, (45023958)","Horsforth, Town Street Feast Field, (45013192)","Horsforth, The Green Town Street, (45013191) TP AO"]; | DI2: =asjsarray(DI3:DI90) -> var codes50b = [45025304, 45010846, 45010847, 45013772, 45013765, 45013766, 45010851, 45010850, 45010848, 45013931, 45013932, 45011022, 45011023, 45011024, 45011025, 45013933, 45010726, 45010727, 45010728, 45010729, 45010297, 45010296, 45010294, 45013989, 45014787, 45010651, 45010657, 45010660, 45010947, 45011452, 45011442, 45010950, 45011438, 45010951, 45010952, 45011443, 45011446, 45010953, 45010955, 45011456, 45011457, 45011455, 45011275, 45011280, 45011283, 45010416, 45011285, 45011286, 45011310, 45013128, 45013127, 45013182, 45013178, 45013177, 45013185, 45023958, 45013192, 45013191]; | DJ2: =asjsarray(DJ3:DJ90) -> var labels50b = ["Stand E Seacroft Bus Station","North Parkway Eastdean Gate","North Parkway Baileys Lane","North Parkway Pigeon Cote Road","Kentmere Avenue Kentmere Close","Kentmere Avenue Pigeon Cote Road","Boggart Hill Drive Kentmere Avenue","Boggart Hill Drive Boggart Hill Crescent","Boggart Hill Drive Boggart Hill Road","Easterly Road Boggart Hill Drive","Fearnville Dib Lane","Easterly Road Hollin Park Mount","McDonalds Oakwood","Easterley Road Hetton Road","Easterley Road Amberton Road","Easterley Road","Harehills Road Nice View","Harehills Road Harehills Place","Harehills Road Conway View","Harehills Road Ashton Grove","St James Hospital","St James Hospital Bexley Wing","Beckett Street Accommodation Road","Burmantofts Street Nippet Lane","York Street Brick Street","G7 Eastgate","H7 The Headrow","Y10 The Headrow","Park Lane Park Lane College","Burley Street St Andrews Street","Burley Road Hollis Place","Burley Road Woodsley Road","Burley Road Willow Road","Burley Road St Mathias Street","Burley Road St Michaels Lane","Burley Road Talbot View","Kirkstall Hill Burley Hill Drive","Kirkstall Hill Kirkstall","Kirkstall Lane Glebe Avenue","Morris Lane Norman Mount","Morris Lane Morris Avenue","Spen Lane Kepstorn Rise","Vesper Road Lea Farm Drive","Vesper Road Lea Farm Road","Vesper Road Broadway","Hawkswood Avenue","Lea Farm Road Hawksworth Crescent","Lea Farm Road Butcher Hill","Low Lane Outwood Lane","Broadgate Lane Melrose Grove","Broadgate Lane Broadgate Rise","Broadgate Lane Broadgate Avenue","Broadgate Lane Stanhope Drive","Broadgate Lane North Broadgate Lane","North Broadgate Town Street","Church Avenue North Broadgate Lane","Horsforth Town Street","The Green Town Street"]; | DK2: =asjsarray(DK3:DK90) -> var areas50b = ["Seacroft","Seacroft","Seacroft","Seacroft","Seacroft","Seacroft","Seacroft","Seacroft","Seacroft","Fearnville","Fearnville","Oakwood","Oakwood","Oakwood","Oakwood","Harehills","Harehills","Harehills","Harehills","Harehills","Burmantofts","Burmantofts","Burmantofts","Burmantofts","Quarry Hill","Leeds City Centre","Leeds City Centre","Leeds City Centre","Woodhouse","Woodhouse","Hyde Park","Hyde Park","Hyde Park","Burley","Burley","Burley","Burley","Kirkstall","Kirkstall","Kirkstall","Kirkstall","Hawksworth","Hawksworth","Hawksworth","Hawksworth","Hawksworth","Hawksworth","Hawksworth","Horsforth","Horsforth","Horsforth","Horsforth","Horsforth","Horsforth","Horsforth","Horsforth","Horsforth","Horsforth"]; | DL2: =asjsarray(DL3:DL90) -> var xcoords50b = [2601.5, 2607.1, 2556.7, 2524.7, 2496, 2500, 2496.5, 2445.4, 2400.2, 2372.9, 2331.4, 2281.2, 2239.5, 2183.1, 2146.9, 2093.5, 2029.6, 2028.3, 2028.5, 2031.3, 1995, 1978.8, 1960.8, 1939.9, 1874.9, 1816.7, 1774.8, 1717.3, 1614.5, 1569.3, 1529.8, 1486.7, 1445.6, 1399.3, 1344.8, 1328.9, 1283, 1258.6, 1207.8, 1179.9, 1150.4, 1138.9, 1111.3, 1080, 1039.6, 1033.2, 1048.6, 1053.7, 1011.2, 995.5, 972.7, 946.7, 889.199999999999, 863.099999999999, 845.7, 830.7, 808.499999999999, 771.7]; | DM2: =asjsarray(DM3:DM90) -> var ycoords50b = [1014.34480000002, 988.652000000009, 975.979200000057, 992.471199999987, 993.860000000058, 960.1816000001, 921.642400000079, 922.857600000094, 916.955200000071, 914.003999999998, 976.326400000044, 1002.88720000009, 1025.80240000008, 1056.35600000004, 1076.14640000003, 1090.3816000001, 1109.4776, 1145.58639999999, 1188.11840000004, 1234.81680000006, 1288.80640000006, 1309.46480000008, 1342.62239999999, 1383.41839999999, 1446.95600000005, 1411.3680000001, 1404.25040000006, 1397.48000000001, 1388.45279999998, 1375.78000000003, 1333.59520000009, 1296.09760000003, 1279.25839999999, 1254.60720000005, 1204.95760000008, 1186.20880000005, 1142.98240000003, 1130.65680000006, 1090.03439999999, 1049.75920000004, 1001.49840000002, 974.937600000096, 938.481599999996, 924.420000000097, 907.233600000069, 871.298400000011, 841.439200000031, 813.663200000096, 777.728000000038, 743.18160000005, 742.660800000008, 740.056800000045, 712.801600000029, 691.796000000022, 672.700000000005, 666.103200000008, 715.058400000005, 753.771200000081];
C3: codeslist | D3: labelslist | E3: arealist | F3: xcoordslist | G3: ycoordslist | H3: colourlist | I3: routes | J3: 1a | K3: ="codes" & J3 -> codes1a | L3: ="labels" & J3 -> labels1a | M3: ="areas" & J3 -> areas1a | N3: ="xcoords" & J3 -> xcoords1a | O3: ="ycoords" & J3 -> ycoords1a | P3: 1b | Q3: ="codes" & P3 -> codes1b | R3: ="labels" & P3 -> labels1b | S3: ="areas" & P3 -> areas1b | T3: ="xcoords" & P3 -> xcoords1b | U3: ="ycoords" & P3 -> ycoords1b | V3: 6a | W3: ="codes" & V3 -> codes6a | X3: ="labels" & V3 -> labels6a | Y3: ="areas" & V3 -> areas6a | Z3: ="xcoords" & V3 -> xcoords6a | AA3: ="ycoords" & V3 -> ycoords6a | AB3: 6b | AC3: ="codes" & AB3 -> codes6b | AD3: ="labels" & AB3 -> labels6b | AE3: ="areas" & AB3 -> areas6b | AF3: ="xcoords" & AB3 -> xcoords6b | AG3: ="ycoords" & AB3 -> ycoords6b | AH3: 7a | AI3: ="codes" & AH3 -> codes7a | AJ3: ="labels" & AH3 -> labels7a | AK3: ="areas" & AH3 -> areas7a | AL3: ="xcoords" & AH3 -> xcoords7a | AM3: ="ycoords" & AH3 -> ycoords7a | AN3: 7b | AO3: ="codes" & AN3 -> codes7b | AP3: ="labels" & AN3 -> labels7b | AQ3: ="areas" & AN3 -> areas7b | AR3: ="xcoords" & AN3 -> xcoords7b | AS3: ="ycoords" & AN3 -> ycoords7b | AT3: 97a | AU3: ="codes" & AT3 -> codes97a | AV3: ="labels" & AT3 -> labels97a | AW3: ="areas" & AT3 -> areas97a | AX3: ="xcoords" & AT3 -> xcoords97a | AY3: ="ycoords" & AT3 -> ycoords97a | AZ3: 97b | BA3: ="codes" & AZ3 -> codes97b | BB3: ="labels" & AZ3 -> labels97b | BC3: ="areas" & AZ3 -> areas97b | BD3: ="xcoords" & AZ3 -> xcoords97b | BE3: ="ycoords" & AZ3 -> ycoords97b | BF3: 95a | BG3: ="codes" & BF3 -> codes95a | BH3: ="labels" & BF3 -> labels95a | BI3: ="areas" & BF3 -> areas95a | BJ3: ="xcoords" & BF3 -> xcoords95a | BK3: ="ycoords" & BF3 -> ycoords95a | BL3: 95b | BM3: ="codes" & BL3 -> codes95b | BN3: ="labels" & BL3 -> labels95b | BO3: ="areas" & BL3 -> areas95b | BP3: ="xcoords" & BL3 -> xcoords95b | BQ3: ="ycoords" & BL3 -> ycoords95b | BR3: 19a | BS3: ="codes" & BR3 -> codes19a | BT3: ="labels" & BR3 -> labels19a | BU3: ="areas" & BR3 -> areas19a | BV3: ="xcoords" & BR3 -> xcoords19a | BW3: ="ycoords" & BR3 -> ycoords19a | BX3: 19b | BY3: ="codes" & BX3 -> codes19b | BZ3: ="labels" & BX3 -> labels19b | CA3: ="areas" & BX3 -> areas19b | CB3: ="xcoords" & BX3 -> xcoords19b | CC3: ="ycoords" & BX3 -> ycoords19b | CD3: 56a | CE3: ="codes" & CD3 -> codes56a | CF3: ="labels" & CD3 -> labels56a | CG3: ="areas" & CD3 -> areas56a | CH3: ="xcoords" & CD3 -> xcoords56a | CI3: ="ycoords" & CD3 -> ycoords56a | CJ3: 56b | CK3: ="codes" & CJ3 -> codes56b | CL3: ="labels" & CJ3 -> labels56b | CM3: ="areas" & CJ3 -> areas56b | CN3: ="xcoords" & CJ3 -> xcoords56b | CO3: ="ycoords" & CJ3 -> ycoords56b | CP3: 8a | CQ3: ="codes" & CP3 -> codes8a | CR3: ="labels" & CP3 -> labels8a | CS3: ="areas" & CP3 -> areas8a | CT3: ="xcoords" & CP3 -> xcoords8a | CU3: ="ycoords" & CP3 -> ycoords8a | CV3: 8b | CW3: ="codes" & CV3 -> codes8b | CX3: ="labels" & CV3 -> labels8b | CY3: ="areas" & CV3 -> areas8b | CZ3: ="xcoords" & CV3 -> xcoords8b | DA3: ="ycoords" & CV3 -> ycoords8b | DB3: 50a | DC3: ="codes" & DB3 -> codes50a | DD3: ="labels" & DB3 -> labels50a | DE3: ="areas" & DB3 -> areas50a | DF3: ="xcoords" & DB3 -> xcoords50a | DG3: ="ycoords" & DB3 -> ycoords50a | DH3: 50b | DI3: ="codes" & DH3 -> codes50b | DJ3: ="labels" & DH3 -> labels50b | DK3: ="areas" & DH3 -> areas50b | DL3: ="xcoords" & DH3 -> xcoords50b | DM3: ="ycoords" & DH3 -> ycoords50b
B4: 1a | C4: ="codes" &B4 -> codes1a | D4: ="labels" &B4 -> labels1a | E4: ="areas" &B4 -> areas1a | F4: ="xcoords" &B4 -> xcoords1a | G4: ="ycoords" &B4 -> ycoords1a | H4: brown | I4: 1 | J4: Holt Park, Shopping Centre, (45010754) TP PO | K4: =buscode(J4) -> 45010754 | L4: =VLOOKUP(K4,'WY Stops by Code'!A:B, 2, FALSE) -> Holt Park Shopping Centre | M4: =area(J4) -> Holt Park | N4: =(VLOOKUP(K4,'WY Stops by Code'!$A:$F,5,FALSE)+1.72)*10000 -> 1138.1 | O4: =(53.88-VLOOKUP(K4,'WY Stops by Code'!$A:$F,6,FALSE))*17360 -> 412.4736 | P4: Beeston, Town Street Terminus, (45010078) TP PO | Q4: =buscode(P4) -> 45010078 | R4: =VLOOKUP(Q4,'WY Stops by Code'!A:B, 2, FALSE) -> Town Street Beeston Terminus | S4: =area(P4) -> Beeston | T4: =(VLOOKUP(Q4,'WY Stops by Code'!$A:$F,5,FALSE)+1.72)*10000 -> 1482.9 | U4: =(53.88-VLOOKUP(Q4,'WY Stops by Code'!$A:$F,6,FALSE))*17360 -> 1871.7552 | V4: Holt Park, Shopping Ctr, (45010755) TP PO | W4: =buscode(V4) -> 45010755 | X4: =VLOOKUP(W4,'WY Stops by Code'!A:B, 2, FALSE) -> Holt Park Shopping Centre | Y4: =area(V4) -> Holt Park | Z4: =(VLOOKUP(W4,'WY Stops by Code'!$A:$F,5,FALSE)+1.72)*10000 -> 1129.4 | AA4: =(53.88-VLOOKUP(W4,'WY Stops by Code'!$A:$F,6,FALSE))*17360 -> 413.6888 | AB4: Leeds City Bus Station, Leeds Bus Station 20, (45030239) TP PO | AC4: =buscode(AB4) -> 45030239 | AD4: =VLOOKUP(AC4,'WY Stops by Code'!A:B, 2, FALSE) -> Stand 20 Leeds City Bus Station | AE4: =area(AB4) -> Leeds City Bus Station | AF4: =(VLOOKUP(AC4,'WY Stops by Code'!$A:$F,5,FALSE)+1.72)*10000 -> 1843 | AG4: =(53.88-VLOOKUP(AC4,'WY Stops by Code'!$A:$F,6,FALSE))*17360 -> 1433.5888 | AH4: Alwoodley Gates, Wigton Moor High Ash Shops, (45012649) TP PO | AI4: =buscode(AH4) -> 45012649 | AJ4: =VLOOKUP(AI4,'WY Stops by Code'!A:B, 2, FALSE) -> Wigton Moor High Ash Shops | AK4: =area(AH4) -> Alwoodley Gates | AL4: =(VLOOKUP(AI4,'WY Stops by Code'!$A:$F,5,FALSE)+1.72)*10000 -> 1985.1 | AM4: =(53.88-VLOOKUP(AI4,'WY Stops by Code'!$A:$F,6,FALSE))*17360 -> 415.9456 | AN4: Leeds City Centre, E Infirmary Street, (45025320) TPPO | AO4: =buscode(AN4) -> 45025320 | AP4: =VLOOKUP(AO4,'WY Stops by Code'!$A:$B, 2, FALSE) -> E Infirmary Street | AQ4: =area(AN4) -> Leeds City Centre | AR4: =(VLOOKUP(AO4,'WY Stops by Code'!$A:$F,5,FALSE)+1.72)*10000 -> 1710.6 | AS4: =(53.88-VLOOKUP(AO4,'WY Stops by Code'!$A:$F,6,FALSE))*17360 -> 1429.2488 | AT4: Leeds City Bus Station, Leeds Bus Station 21, (45030240) TP PO | AU4: =buscode(AT4) -> 45030240 | AV4: =VLOOKUP(AU4,'WY Stops by Code'!$A:$B, 2, FALSE) -> Stand 21 Leeds City Bus Station | AW4: =area(AT4) -> Leeds City Bus Station | AX4: =(VLOOKUP(AU4,'WY Stops by Code'!$A:$F,5,FALSE)+1.72)*10000 -> 1843 | AY4: =(53.88-VLOOKUP(AU4,'WY Stops by Code'!$A:$F,6,FALSE))*17360 -> 1432.8944 | AZ4: Guiseley, Guiseley Morrisons, (45018831) TP PO | BA4: =buscode(AZ4) -> 45018831 | BB4: =VLOOKUP(BA4,'WY Stops by Code'!$A:$B, 2, FALSE) -> Morrisons | BC4: =area(AZ4) -> Guiseley | BD4: =(VLOOKUP(BA4,'WY Stops by Code'!$A:$F,5,FALSE)+1.72)*10000 -> 86.2 | BE4: =(53.88-VLOOKUP(BA4,'WY Stops by Code'!$A:$F,6,FALSE))*17360 -> 116.4856 | BF4: Leeds City Centre, S10 Leeds Station Interchange, (45025481) TP PO | BG4: =buscode(BF4) -> 45025481 | BH4: =VLOOKUP(BG4,'WY Stops by Code'!$A:$B, 2, FALSE) -> S10 Leeds Station Interchange | BI4: =area(BF4) -> Leeds City Centre | BJ4: =(VLOOKUP(BG4,'WY Stops by Code'!$A:$F,5,FALSE)+1.72)*10000 -> 1729.3 | BK4: =(53.88-VLOOKUP(BG4,'WY Stops by Code'!$A:$F,6,FALSE))*17360 -> 1473.1696 | BL4: Lawnswood, Bodington Hall, (45024118) TP PO | BM4: =buscode(BL4) -> 45024118 | BN4: =VLOOKUP(BM4,'WY Stops by Code'!$A:$B, 2, FALSE) -> Bodington Hall Lawnswood | BO4: =area(BL4) -> Lawnswood | BP4: =(VLOOKUP(BM4,'WY Stops by Code'!$A:$F,5,FALSE)+1.72)*10000 -> 1319.5 | BQ4: =(53.88-VLOOKUP(BM4,'WY Stops by Code'!$A:$F,6,FALSE))*17360 -> 618.016 | BR4: East Garforth, New Sturton Lane Inverness Rd, (45023829) TP PO | BS4: =buscode(BR4) -> 45023829 | BT4: =VLOOKUP(BS4,'WY Stops by Code'!$A:$B, 2, FALSE) -> New Sturton Lane Inverness Road | BU4: =area(BR4) -> East Garforth | BV4: =(VLOOKUP(BS4,'WY Stops by Code'!$A:$F,5,FALSE)+1.72)*10000 -> 3510.5 | BW4: =(53.88-VLOOKUP(BS4,'WY Stops by Code'!$A:$F,6,FALSE))*17360 -> 1530.1104 | BX4: Ireland Wood, Ireland Wood Terminus, (45010752) TPPO | BY4: =buscode(BX4) -> 45010752 | BZ4: =VLOOKUP(BY4,'WY Stops by Code'!$A:$B, 2, FALSE) -> Ireland Wood Terminus | CA4: =area(BX4) -> Ireland Wood | CB4: =(VLOOKUP(BY4,'WY Stops by Code'!$A:$F,5,FALSE)+1.72)*10000 -> 1151.3 | CC4: =(53.88-VLOOKUP(BY4,'WY Stops by Code'!$A:$F,6,FALSE))*17360 -> 442.8536 | CD4: Moor Grange, (45010409) TP PO | CE4: =buscode(CD4) -> 45010409 | CF4: =VLOOKUP(CE4,'WY Stops by Code'!$A:$B, 2, FALSE) -> Moor Grange | CG4: =area(CD4) -> Moor Grange | CH4: =(VLOOKUP(CE4,'WY Stops by Code'!$A:$F,5,FALSE)+1.72)*10000 -> 1119.6 | CI4: =(53.88-VLOOKUP(CE4,'WY Stops by Code'!$A:$F,6,FALSE))*17360 -> 744.9176 | CJ4: Whinmoor, Whinmoor Terminus Stand B, (45028029)TP PO | CK4: =buscode(CJ4) -> 45028029 | CL4: =VLOOKUP(CK4,'WY Stops by Code'!$A:$B, 2, FALSE) -> Whinmoor Terminus Stand B | CM4: =area(CJ4) -> Whinmoor | CN4: =(VLOOKUP(CK4,'WY Stops by Code'!$A:$F,5,FALSE)+1.72)*10000 -> 2645.7 | CO4: =(53.88-VLOOKUP(CK4,'WY Stops by Code'!$A:$F,6,FALSE))*17360 -> 740.7512 | CP4: Seacroft, Stand E Seacroft Bus Station, (45025304) TPPO | CQ4: =buscode(CP4) -> 45025304 | CR4: =VLOOKUP(CQ4,'WY Stops by Code'!$A:$B, 2, FALSE) -> Stand E Seacroft Bus Station | CS4: =area(CP4) -> Seacroft | CT4: =(VLOOKUP(CQ4,'WY Stops by Code'!$A:$F,5,FALSE)+1.72)*10000 -> 2601.5 | CU4: =(53.88-VLOOKUP(CQ4,'WY Stops by Code'!$A:$F,6,FALSE))*17360 -> 1014.3448 | CV4: Pudsey, Lidgett Hill Wesley View, (45012295) | CW4: =buscode(CV4) -> 45012295 | CX4: =VLOOKUP(CW4,'WY Stops by Code'!$A:$B, 2, FALSE) -> P8 Pudsey Town Hall | CY4: =area(CV4) -> Pudsey | CZ4: =(VLOOKUP(CW4,'WY Stops by Code'!$A:$F,5,FALSE)+1.72)*10000 -> 565.1 | DA4: =(53.88-VLOOKUP(CW4,'WY Stops by Code'!$A:$F,6,FALSE))*17360 -> 1441.748 | DB4: Horsforth, The Green Town Street, (45013191) TP PO | DC4: =buscode(DB4) -> 45013191 | DD4: =VLOOKUP(DC4,'WY Stops by Code'!$A:$B, 2, FALSE) -> The Green Town Street | DE4: =area(DB4) -> Horsforth | DF4: =(VLOOKUP(DC4,'WY Stops by Code'!$A:$F,5,FALSE)+1.72)*10000 -> 771.7 | DG4: =(53.88-VLOOKUP(DC4,'WY Stops by Code'!$A:$F,6,FALSE))*17360 -> 753.7712 | DH4: Seacroft, Stand E Seacroft Bus Station, (45025304) TPPO | DI4: =buscode(DH4) -> 45025304 | DJ4: =VLOOKUP(DI4,'WY Stops by Code'!$A:$B, 2, FALSE) -> Stand E Seacroft Bus Station | DK4: =area(DH4) -> Seacroft | DL4: =(VLOOKUP(DI4,'WY Stops by Code'!$A:$F,5,FALSE)+1.72)*10000 -> 2601.5 | DM4: =(53.88-VLOOKUP(DI4,'WY Stops by Code'!$A:$F,6,FALSE))*17360 -> 1014.3448
B5: 1b | C5: codes1b | D5: labels1b | E5: areas1b | F5: xcoords1b | G5: ycoords1b | H5: brown | I5: 1 | J5: Holt Park, Holt Road Holt Rise, (45011771) | K5: 45011771 | L5: =VLOOKUP(K5,'WY Stops by Code'!A:B, 2, FALSE) -> Holt Road Holt Rise | M5: Holt Park | N5: =(VLOOKUP(K5,'WY Stops by Code'!$A:$F,5,FALSE)+1.72)*10000 -> 1182.1 | O5: =(53.88-VLOOKUP(K5,'WY Stops by Code'!$A:$F,6,FALSE))*17360 -> 401.7104 | P5: Beeston, Town Street Kirk Beeston Close, (45024264) | Q5: 45024264 | R5: =VLOOKUP(Q5,'WY Stops by Code'!A:B, 2, FALSE) -> Town Street Kirk Beeston Close | S5: Beeston | T5: =(VLOOKUP(Q5,'WY Stops by Code'!$A:$F,5,FALSE)+1.72)*10000 -> 1519.2 | U5: =(53.88-VLOOKUP(Q5,'WY Stops by Code'!$A:$F,6,FALSE))*17360 -> 1866.5472 | V5: Holt Park, Holtdale Approach Ralph Thorsby School, (45011720) | W5: 45011720 | X5: =VLOOKUP(W5,'WY Stops by Code'!A:B, 2, FALSE) -> Holtdale Approach Ralph Thorsby School | Y5: =area(V5) -> Holt Park | Z5: =(VLOOKUP(W5,'WY Stops by Code'!$A:$F,5,FALSE)+1.72)*10000 -> 1114.3 | AA5: =(53.88-VLOOKUP(W5,'WY Stops by Code'!$A:$F,6,FALSE))*17360 -> 425.8408 | AB5: Leeds City Centre, G9 Eastgate, (45012363) | AC5: 45012363 | AD5: =VLOOKUP(AC5,'WY Stops by Code'!A:B, 2, FALSE) -> G9 Eastgate | AE5: =area(AB5) -> Leeds City Centre | AF5: =(VLOOKUP(AC5,'WY Stops by Code'!$A:$F,5,FALSE)+1.72)*10000 -> 1811.4 | AG5: =(53.88-VLOOKUP(AC5,'WY Stops by Code'!$A:$F,6,FALSE))*17360 -> 1410.6736 | AH5: Alwoodley Gates, High Ash Drive, (45012697) | AI5: 45012697 | AJ5: =VLOOKUP(AI5,'WY Stops by Code'!A:B, 2, FALSE) -> High Ash Drive | AK5: =area(AH5) -> Alwoodley Gates | AL5: =(VLOOKUP(AI5,'WY Stops by Code'!$A:$F,5,FALSE)+1.72)*10000 -> 1945 | AM5: =(53.88-VLOOKUP(AI5,'WY Stops by Code'!$A:$F,6,FALSE))*17360 -> 377.2328 | AN5: Leeds City Centre, T2 Boar Lane, (45010687) | AO5: 45010687 | AP5: =VLOOKUP(AO5,'WY Stops by Code'!A:B, 2, FALSE) -> T4 Boar Lane | AQ5: =area(AN5) -> Leeds City Centre | AR5: =(VLOOKUP(AO5,'WY Stops by Code'!$A:$F,5,FALSE)+1.72)*10000 -> 1765.5 | AS5: =(53.88-VLOOKUP(AO5,'WY Stops by Code'!$A:$F,6,FALSE))*17360 -> 1458.0664 | AT5: Leeds City Centre, G9 Eastgate, (45012363) | AU5: =buscode(AT5) -> 45012363 | AV5: =VLOOKUP(AU5,'WY Stops by Code'!$A:$B, 2, FALSE) -> G9 Eastgate | AW5: =area(AT5) -> Leeds City Centre | AX5: =(VLOOKUP(AU5,'WY Stops by Code'!$A:$F,5,FALSE)+1.72)*10000 -> 1811.4 | AY5: =(53.88-VLOOKUP(AU5,'WY Stops by Code'!$A:$F,6,FALSE))*17360 -> 1410.6736 | AZ5: Guiseley, Railway Station, (45016892) | BA5: =buscode(AZ5) -> 45016892 | BB5: =VLOOKUP(BA5,'WY Stops by Code'!$A:$B, 2, FALSE) -> Railway Station | BC5: =area(AZ5) -> Guiseley | BD5: =(VLOOKUP(BA5,'WY Stops by Code'!$A:$F,5,FALSE)+1.72)*10000 -> 77 | BE5: =(53.88-VLOOKUP(BA5,'WY Stops by Code'!$A:$F,6,FALSE))*17360 -> 85.2376 | BF5: Leeds City Centre, B Infirmary Street, (45025317) | BG5: =buscode(BF5) -> 45025317 | BH5: =VLOOKUP(BG5,'WY Stops by Code'!$A:$B, 2, FALSE) -> B Infirmary Street | BI5: =area(BF5) -> Leeds City Centre | BJ5: =(VLOOKUP(BG5,'WY Stops by Code'!$A:$F,5,FALSE)+1.72)*10000 -> 1712.1 | BK5: =(53.88-VLOOKUP(BG5,'WY Stops by Code'!$A:$F,6,FALSE))*17360 -> 1428.9016 | BL5: Lawnswood, Lawnswood Sports Club, (45011747) | BM5: =buscode(BL5) -> 45011747 | BN5: =VLOOKUP(BM5,'WY Stops by Code'!$A:$B, 2, FALSE) -> Otley Road Lawnswood Sports Club | BO5: =area(BL5) -> Lawnswood | BP5: =(VLOOKUP(BM5,'WY Stops by Code'!$A:$F,5,FALSE)+1.72)*10000 -> 1262.6 | BQ5: =(53.88-VLOOKUP(BM5,'WY Stops by Code'!$A:$F,6,FALSE))*17360 -> 643.5352 | BR5: East Garforth, New Sturton Lane The Chase, (45023966) | BS5: =buscode(BR5) -> 45023966 | BT5: =VLOOKUP(BS5,'WY Stops by Code'!$A:$B, 2, FALSE) -> New Sturton Lane The Chase | BU5: =area(BR5) -> East Garforth | BV5: =(VLOOKUP(BS5,'WY Stops by Code'!$A:$F,5,FALSE)+1.72)*10000 -> 3511.5 | BW5: =(53.88-VLOOKUP(BS5,'WY Stops by Code'!$A:$F,6,FALSE))*17360 -> 1489.1408 | BX5: Ireland Wood, Raynel Drive Raynel Gardens, (45011538) | BY5: =buscode(BX5) -> 45011538 | BZ5: =VLOOKUP(BY5,'WY Stops by Code'!$A:$B, 2, FALSE) -> Raynel Drive Raynel Gardens | CA5: =area(BX5) -> Ireland Wood | CB5: =(VLOOKUP(BY5,'WY Stops by Code'!$A:$F,5,FALSE)+1.72)*10000 -> 1175.2 | CC5: =(53.88-VLOOKUP(BY5,'WY Stops by Code'!$A:$F,6,FALSE))*17360 -> 467.1576 | CD5: Moor Grange, Latchmere Drive Latchmere Rd, (45010408) | CE5: =buscode(CD5) -> 45010408 | CF5: =VLOOKUP(CE5,'WY Stops by Code'!$A:$B, 2, FALSE) -> Latchmere Drive Latchmere Road | CG5: =area(CD5) -> Moor Grange | CH5: =(VLOOKUP(CE5,'WY Stops by Code'!$A:$F,5,FALSE)+1.72)*10000 -> 1113.4 | CI5: =(53.88-VLOOKUP(CE5,'WY Stops by Code'!$A:$F,6,FALSE))*17360 -> 772.3464 | CJ5: Whinmoor, Naburn Approach Oakdale Meadow, (45025282) | CK5: =buscode(CJ5) -> 45025282 | CL5: =VLOOKUP(CK5,'WY Stops by Code'!$A:$B, 2, FALSE) -> Naburn Approach Oakdale Meadow | CM5: =area(CJ5) -> Whinmoor | CN5: =(VLOOKUP(CK5,'WY Stops by Code'!$A:$F,5,FALSE)+1.72)*10000 -> 2618.4 | CO5: =(53.88-VLOOKUP(CK5,'WY Stops by Code'!$A:$F,6,FALSE))*17360 -> 713.8432 | CP5: Seacroft, North Parkway Eastdean Gate, (45010846) | CQ5: =buscode(CP5) -> 45010846 | CR5: =VLOOKUP(CQ5,'WY Stops by Code'!$A:$B, 2, FALSE) -> North Parkway Eastdean Gate | CS5: =area(CP5) -> Seacroft | CT5: =(VLOOKUP(CQ5,'WY Stops by Code'!$A:$F,5,FALSE)+1.72)*10000 -> 2607.1 | CU5: =(53.88-VLOOKUP(CQ5,'WY Stops by Code'!$A:$F,6,FALSE))*17360 -> 988.652 | CV5: Pudsey, Richardshaw Lane Somerset Rd, (45012297) | CW5: 45012297 | CX5: =VLOOKUP(CW5,'WY Stops by Code'!$A:$B, 2, FALSE) -> Richardshaw Lane Somerset Road | CY5: Pudsey | CZ5: =(VLOOKUP(CW5,'WY Stops by Code'!$A:$F,5,FALSE)+1.72)*10000 -> 558.9 | DA5: =(53.88-VLOOKUP(CW5,'WY Stops by Code'!$A:$F,6,FALSE))*17360 -> 1419.7008 | DB5: Horsforth, Church Road Church Crecsent, (45013193) | DC5: =buscode(DB5) -> 45013193 | DD5: =VLOOKUP(DC5,'WY Stops by Code'!$A:$B, 2, FALSE) -> Church Road Church Crecsent | DE5: =area(DB5) -> Horsforth | DF5: =(VLOOKUP(DC5,'WY Stops by Code'!$A:$F,5,FALSE)+1.72)*10000 -> 781.5 | DG5: =(53.88-VLOOKUP(DC5,'WY Stops by Code'!$A:$F,6,FALSE))*17360 -> 713.1488 | DH5: Seacroft, North Parkway Eastdean Gate, (45010846) | DI5: =buscode(DH5) -> 45010846 | DJ5: =VLOOKUP(DI5,'WY Stops by Code'!$A:$B, 2, FALSE) -> North Parkway Eastdean Gate | DK5: =area(DH5) -> Seacroft | DL5: =(VLOOKUP(DI5,'WY Stops by Code'!$A:$F,5,FALSE)+1.72)*10000 -> 2607.1 | DM5: =(53.88-VLOOKUP(DI5,'WY Stops by Code'!$A:$F,6,FALSE))*17360 -> 988.652
B6: 6a | C6: codes6a | D6: labels6a | E6: areas6a | F6: xcoords6a | G6: ycoords6a | H6: skyblue | I6: 6 | J6: Holt Park, Holt Lane Chestnut Dr, (45011752) | K6: 45011752 | L6: =VLOOKUP(K6,'WY Stops by Code'!A:B, 2, FALSE) -> Holt Lane Chestnut Drive | M6: Holt Park | N6: =(VLOOKUP(K6,'WY Stops by Code'!$A:$F,5,FALSE)+1.72)*10000 -> 1233.2 | O6: =(53.88-VLOOKUP(K6,'WY Stops by Code'!$A:$F,6,FALSE))*17360 -> 400.4952 | P6: Beeston, Beeston Rd Crossflats Terrace, (45010079) | Q6: 45010079 | R6: =VLOOKUP(Q6,'WY Stops by Code'!A:B, 2, FALSE) -> Beeston Road St Marys Church Yard | S6: Beeston | T6: =(VLOOKUP(Q6,'WY Stops by Code'!$A:$F,5,FALSE)+1.72)*10000 -> 1550.7 | U6: =(53.88-VLOOKUP(Q6,'WY Stops by Code'!$A:$F,6,FALSE))*17360 -> 1847.4512 | V6: Holt Park, Holtdale Approach Ralph Thorsby School, (45011725) | W6: 45011725 | X6: =VLOOKUP(W6,'WY Stops by Code'!A:B, 2, FALSE) -> Holtdale Approach Ralph Thorsby School | Y6: Holt Park | Z6: =(VLOOKUP(W6,'WY Stops by Code'!$A:$F,5,FALSE)+1.72)*10000 -> 1088.9 | AA6: =(53.88-VLOOKUP(W6,'WY Stops by Code'!$A:$F,6,FALSE))*17360 -> 428.4448 | AB6: Leeds City Centre, J3 Albion Street, (45010921) TP | AC6: 45010921 | AD6: =VLOOKUP(AC6,'WY Stops by Code'!A:B, 2, FALSE) -> J3 Albion Street | AE6: Leeds City Centre | AF6: =(VLOOKUP(AC6,'WY Stops by Code'!$A:$F,5,FALSE)+1.72)*10000 -> 1750.4 | AG6: =(53.88-VLOOKUP(AC6,'WY Stops by Code'!$A:$F,6,FALSE))*17360 -> 1379.4256 | AH6: Alwoodley Gates, High Ash Drive High Ash Ave, (45012698) | AI6: 45012698 | AJ6: =VLOOKUP(AI6,'WY Stops by Code'!A:B, 2, FALSE) -> High Ash Drive High Ash Avenue | AK6: Alwoodley Gates | AL6: =(VLOOKUP(AI6,'WY Stops by Code'!$A:$F,5,FALSE)+1.72)*10000 -> 1950.2 | AM6: =(53.88-VLOOKUP(AI6,'WY Stops by Code'!$A:$F,6,FALSE))*17360 -> 351.3664 | AN6: Leeds City Centre, V6 Vicar Lane, (45012977) | AO6: 45012977 | AP6: =VLOOKUP(AO6,'WY Stops by Code'!A:B, 2, FALSE) -> V6 Vicar Lane | AQ6: Leeds City Centre | AR6: =(VLOOKUP(AO6,'WY Stops by Code'!$A:$F,5,FALSE)+1.72)*10000 -> 1801.1 | AS6: =(53.88-VLOOKUP(AO6,'WY Stops by Code'!$A:$F,6,FALSE))*17360 -> 1411.8888 | AT6: Leeds City Centre, J3 Albion Street, (45010921) TP | AU6: 45010921 | AV6: =VLOOKUP(AU6,'WY Stops by Code'!$A:$B, 2, FALSE) -> J3 Albion Street | AW6: Leeds City Centre | AX6: =(VLOOKUP(AU6,'WY Stops by Code'!$A:$F,5,FALSE)+1.72)*10000 -> 1750.4 | AY6: =(53.88-VLOOKUP(AU6,'WY Stops by Code'!$A:$F,6,FALSE))*17360 -> 1379.4256 | AZ6: Guiseley, Queensway Town Gate Close, (45016879) | BA6: 45016879 | BB6: =VLOOKUP(BA6,'WY Stops by Code'!$A:$B, 2, FALSE) -> Queensway Town Gate Close | BC6: Guiseley | BD6: =(VLOOKUP(BA6,'WY Stops by Code'!$A:$F,5,FALSE)+1.72)*10000 -> 144.1 | BE6: =(53.88-VLOOKUP(BA6,'WY Stops by Code'!$A:$F,6,FALSE))*17360 -> 71.6968 | BF6: Leeds City Centre, J3 Albion Street, (45010921) | BG6: 45010921 | BH6: =VLOOKUP(BG6,'WY Stops by Code'!$A:$B, 2, FALSE) -> J3 Albion Street | BI6: Leeds City Centre | BJ6: =(VLOOKUP(BG6,'WY Stops by Code'!$A:$F,5,FALSE)+1.72)*10000 -> 1750.4 | BK6: =(53.88-VLOOKUP(BG6,'WY Stops by Code'!$A:$F,6,FALSE))*17360 -> 1379.4256 | BL6: Weetwood, Otley Old Road Lawnswood, (45010501) | BM6: 45010501 | BN6: =VLOOKUP(BM6,'WY Stops by Code'!$A:$B, 2, FALSE) -> Otley Old Road Lawnswood | BO6: Weetwood | BP6: =(VLOOKUP(BM6,'WY Stops by Code'!$A:$F,5,FALSE)+1.72)*10000 -> 1257.1 | BQ6: =(53.88-VLOOKUP(BM6,'WY Stops by Code'!$A:$F,6,FALSE))*17360 -> 689.0184 | BR6: East Garforth, New Sturton Lane Arundel Street, (45023914) | BS6: 45023914 | BT6: =VLOOKUP(BS6,'WY Stops by Code'!$A:$B, 2, FALSE) -> New Sturton Lane Arundel Street | BU6: East Garforth | BV6: =(VLOOKUP(BS6,'WY Stops by Code'!$A:$F,5,FALSE)+1.72)*10000 -> 3508.6 | BW6: =(53.88-VLOOKUP(BS6,'WY Stops by Code'!$A:$F,6,FALSE))*17360 -> 1456.1568 | BX6: Ireland Wood, Raynel Mount Raynel Drive, (45011535) | BY6: 45011535 | BZ6: =VLOOKUP(BY6,'WY Stops by Code'!$A:$B, 2, FALSE) -> Raynel Mount Raynel Drive | CA6: Ireland Wood | CB6: =(VLOOKUP(BY6,'WY Stops by Code'!$A:$F,5,FALSE)+1.72)*10000 -> 1159.1 | CC6: =(53.88-VLOOKUP(BY6,'WY Stops by Code'!$A:$F,6,FALSE))*17360 -> 501.0096 | CD6: Moor Grange, Old Farm Approach Latchmere Drive, (45010410) | CE6: 45010410 | CF6: =VLOOKUP(CE6,'WY Stops by Code'!$A:$B, 2, FALSE) -> Old Farm Approach Latchmere Drive | CG6: Moor Grange | CH6: =(VLOOKUP(CE6,'WY Stops by Code'!$A:$F,5,FALSE)+1.72)*10000 -> 1127.9 | CI6: =(53.88-VLOOKUP(CE6,'WY Stops by Code'!$A:$F,6,FALSE))*17360 -> 804.1152 | CJ6: Whinmoor, Coal Road Naburn Approach, (45010577) | CK6: 45010577 | CL6: =VLOOKUP(CK6,'WY Stops by Code'!$A:$B, 2, FALSE) -> Coal Road Naburn Approach | CM6: Whinmoor | CN6: =(VLOOKUP(CK6,'WY Stops by Code'!$A:$F,5,FALSE)+1.72)*10000 -> 2587.2 | CO6: =(53.88-VLOOKUP(CK6,'WY Stops by Code'!$A:$F,6,FALSE))*17360 -> 729.4672 | CP6: Seacroft, Ramshead Approach Limewood Road, (45013746) | CQ6: 45013746 | CR6: =VLOOKUP(CQ6,'WY Stops by Code'!$A:$B, 2, FALSE) -> Ramshead Approach Limewood Road | CS6: Seacroft | CT6: =(VLOOKUP(CQ6,'WY Stops by Code'!$A:$F,5,FALSE)+1.72)*10000 -> 2535.4 | CU6: =(53.88-VLOOKUP(CQ6,'WY Stops by Code'!$A:$F,6,FALSE))*17360 -> 933.2736 | CV6: Pudsey, Richardshaw Lane, (45012299) | CW6: 45012299 | CX6: =VLOOKUP(CW6,'WY Stops by Code'!$A:$B, 2, FALSE) -> Richardshaw Lane | CY6: Pudsey | CZ6: =(VLOOKUP(CW6,'WY Stops by Code'!$A:$F,5,FALSE)+1.72)*10000 -> 558.2 | DA6: =(53.88-VLOOKUP(CW6,'WY Stops by Code'!$A:$F,6,FALSE))*17360 -> 1381.6824 | DB6: Horsforth, Church Avenue St Margarets Ave, (45013140) | DC6: 45013140 | DD6: =VLOOKUP(DC6,'WY Stops by Code'!$A:$B, 2, FALSE) -> Church Avenue St Margarets Avenue | DE6: Horsforth | DF6: =(VLOOKUP(DC6,'WY Stops by Code'!$A:$F,5,FALSE)+1.72)*10000 -> 827.3 | DG6: =(53.88-VLOOKUP(DC6,'WY Stops by Code'!$A:$F,6,FALSE))*17360 -> 665.9296 | DH6: Seacroft, North Parkway Baileys Lane, (45010847) | DI6: 45010847 | DJ6: =VLOOKUP(DI6,'WY Stops by Code'!$A:$B, 2, FALSE) -> North Parkway Baileys Lane | DK6: Seacroft | DL6: =(VLOOKUP(DI6,'WY Stops by Code'!$A:$F,5,FALSE)+1.72)*10000 -> 2556.7 | DM6: =(53.88-VLOOKUP(DI6,'WY Stops by Code'!$A:$F,6,FALSE))*17360 -> 975.9792
B7: 6b | C7: codes6b | D7: labels6b | E7: areas6b | F7: xcoords6b | G7: ycoords6b | H7: skyblue | I7: 6 | J7: Holt Park, Holt Lane Whinfield, (45011750) | K7: 45011750 | L7: =VLOOKUP(K7,'WY Stops by Code'!A:B, 2, FALSE) -> Holt Lane Whinfield | M7: Holt Park | N7: =(VLOOKUP(K7,'WY Stops by Code'!$A:$F,5,FALSE)+1.72)*10000 -> 1271.8 | O7: =(53.88-VLOOKUP(K7,'WY Stops by Code'!$A:$F,6,FALSE))*17360 -> 410.9112 | P7: Beeston, Beeston Road Woodlea St, (45010080) | Q7: 45010080 | R7: =VLOOKUP(Q7,'WY Stops by Code'!A:B, 2, FALSE) -> Beeston Road Woodlea Street | S7: Beeston | T7: =(VLOOKUP(Q7,'WY Stops by Code'!$A:$F,5,FALSE)+1.72)*10000 -> 1575.6 | U7: =(53.88-VLOOKUP(Q7,'WY Stops by Code'!$A:$F,6,FALSE))*17360 -> 1815.3352 | V7: Tinshill, Otley Old Road Holtdale Approach, (45011728) | W7: 45011728 | X7: =VLOOKUP(W7,'WY Stops by Code'!A:B, 2, FALSE) -> Otley Old Road Holtdale Approach | Y7: Tinshill | Z7: =(VLOOKUP(W7,'WY Stops by Code'!$A:$F,5,FALSE)+1.72)*10000 -> 1061.2 | AA7: =(53.88-VLOOKUP(W7,'WY Stops by Code'!$A:$F,6,FALSE))*17360 -> 411.432 | AB7: Leeds City Centre, L2 Woodhouse Lane, (45010915) | AC7: 45010915 | AD7: =VLOOKUP(AC7,'WY Stops by Code'!A:B, 2, FALSE) -> L2 Woodhouse Lane | AE7: Leeds City Centre | AF7: =(VLOOKUP(AC7,'WY Stops by Code'!$A:$F,5,FALSE)+1.72)*10000 -> 1742.1 | AG7: =(53.88-VLOOKUP(AC7,'WY Stops by Code'!$A:$F,6,FALSE))*17360 -> 1349.3928 | AH7: Alwoodley Gates, Wigton Ln High Ash Drive, (45012700) | AI7: 45012700 | AJ7: =VLOOKUP(AI7,'WY Stops by Code'!A:B, 2, FALSE) -> Wigton Lane High Ash Drive | AK7: Alwoodley Gates | AL7: =(VLOOKUP(AI7,'WY Stops by Code'!$A:$F,5,FALSE)+1.72)*10000 -> 1953 | AM7: =(53.88-VLOOKUP(AI7,'WY Stops by Code'!$A:$F,6,FALSE))*17360 -> 326.8888 | AN7: Leeds City Centre, N3 New Briggate, (45010674) | AO7: 45010674 | AP7: =VLOOKUP(AO7,'WY Stops by Code'!A:B, 2, FALSE) -> N3 New Briggate | AQ7: Leeds City Centre | AR7: =(VLOOKUP(AO7,'WY Stops by Code'!$A:$F,5,FALSE)+1.72)*10000 -> 1784.8 | AS7: =(53.88-VLOOKUP(AO7,'WY Stops by Code'!$A:$F,6,FALSE))*17360 -> 1388.9736 | AT7: Leeds City Centre, L2 Woodhouse Lane, (45010915) | AU7: 45010915 | AV7: =VLOOKUP(AU7,'WY Stops by Code'!$A:$B, 2, FALSE) -> L2 Woodhouse Lane | AW7: Leeds City Centre | AX7: =(VLOOKUP(AU7,'WY Stops by Code'!$A:$F,5,FALSE)+1.72)*10000 -> 1742.1 | AY7: =(53.88-VLOOKUP(AU7,'WY Stops by Code'!$A:$F,6,FALSE))*17360 -> 1349.3928 | AZ7: Guiseley, Queensway Ruskin Crescent, (45016880) | BA7: 45016880 | BB7: =VLOOKUP(BA7,'WY Stops by Code'!$A:$B, 2, FALSE) -> Queensway Ruskin Crescent | BC7: Guiseley | BD7: =(VLOOKUP(BA7,'WY Stops by Code'!$A:$F,5,FALSE)+1.72)*10000 -> 187.7 | BE7: =(53.88-VLOOKUP(BA7,'WY Stops by Code'!$A:$F,6,FALSE))*17360 -> 92.876 | BF7: Leeds City Centre, L2 Woodhouse Lane, (45010915) | BG7: 45010915 | BH7: =VLOOKUP(BG7,'WY Stops by Code'!$A:$B, 2, FALSE) -> L2 Woodhouse Lane | BI7: Leeds City Centre | BJ7: =(VLOOKUP(BG7,'WY Stops by Code'!$A:$F,5,FALSE)+1.72)*10000 -> 1742.1 | BK7: =(53.88-VLOOKUP(BG7,'WY Stops by Code'!$A:$F,6,FALSE))*17360 -> 1349.3928 | BL7: West Park, Otley Road Ring Road West Park, (45011161) TP | BM7: 45011161 | BN7: =VLOOKUP(BM7,'WY Stops by Code'!$A:$B, 2, FALSE) -> Otley Road Ring Road West Park | BO7: West Park | BP7: =(VLOOKUP(BM7,'WY Stops by Code'!$A:$F,5,FALSE)+1.72)*10000 -> 1265.9 | BQ7: =(53.88-VLOOKUP(BM7,'WY Stops by Code'!$A:$F,6,FALSE))*17360 -> 747.6952 | BR7: East Garforth, Aberford Road Ash Ln, (45010199) | BS7: 45010199 | BT7: =VLOOKUP(BS7,'WY Stops by Code'!$A:$B, 2, FALSE) -> Aberford Road Ash Lane | BU7: East Garforth | BV7: =(VLOOKUP(BS7,'WY Stops by Code'!$A:$F,5,FALSE)+1.72)*10000 -> 3451 | BW7: =(53.88-VLOOKUP(BS7,'WY Stops by Code'!$A:$F,6,FALSE))*17360 -> 1443.484 | BX7: Ireland Wood, Raynel Drive Otley Old Road, (45010751) | BY7: 45010751 | BZ7: =VLOOKUP(BY7,'WY Stops by Code'!$A:$B, 2, FALSE) -> Raynel Drive Otley Old Road | CA7: Ireland Wood | CB7: =(VLOOKUP(BY7,'WY Stops by Code'!$A:$F,5,FALSE)+1.72)*10000 -> 1136.5 | CC7: =(53.88-VLOOKUP(BY7,'WY Stops by Code'!$A:$F,6,FALSE))*17360 -> 517.328 | CD7: West Park, Old Oak Drive Old Oak Lawn, (45010411) | CE7: 45010411 | CF7: =VLOOKUP(CE7,'WY Stops by Code'!$A:$B, 2, FALSE) -> Old Oak Drive Old Oak Lawn | CG7: West Park | CH7: =(VLOOKUP(CE7,'WY Stops by Code'!$A:$F,5,FALSE)+1.72)*10000 -> 1137.2 | CI7: =(53.88-VLOOKUP(CE7,'WY Stops by Code'!$A:$F,6,FALSE))*17360 -> 827.3776 | CJ7: Whinmoor, White Laithe Rd Marsett Way, (45013711) | CK7: 45013711 | CL7: =VLOOKUP(CK7,'WY Stops by Code'!$A:$B, 2, FALSE) -> White Laithe Road Marsett Way | CM7: Whinmoor | CN7: =(VLOOKUP(CK7,'WY Stops by Code'!$A:$F,5,FALSE)+1.72)*10000 -> 2591.6 | CO7: =(53.88-VLOOKUP(CK7,'WY Stops by Code'!$A:$F,6,FALSE))*17360 -> 762.6248 | CP7: Seacroft, Ramshead Approach Limewood Road, (45013747) | CQ7: 45013747 | CR7: =VLOOKUP(CQ7,'WY Stops by Code'!$A:$B, 2, FALSE) -> Ramshead Approach Limewood Road | CS7: Seacroft | CT7: =(VLOOKUP(CQ7,'WY Stops by Code'!$A:$F,5,FALSE)+1.72)*10000 -> 2591 | CU7: =(53.88-VLOOKUP(CQ7,'WY Stops by Code'!$A:$F,6,FALSE))*17360 -> 936.572 | CV7: Pudsey, Richardshaw Lane Chapel Street, (45012401) | CW7: 45012401 | CX7: =VLOOKUP(CW7,'WY Stops by Code'!$A:$B, 2, FALSE) -> Richardshaw Lane Chapel Street | CY7: Pudsey | CZ7: =(VLOOKUP(CW7,'WY Stops by Code'!$A:$F,5,FALSE)+1.72)*10000 -> 546.7 | DA7: =(53.88-VLOOKUP(CW7,'WY Stops by Code'!$A:$F,6,FALSE))*17360 -> 1350.608 | DB7: Horsforth, North Broadgate Lane Chaddelwood Close, (45013186) | DC7: 45013186 | DD7: =VLOOKUP(DC7,'WY Stops by Code'!$A:$B, 2, FALSE) -> North Broadgate Lane Chaddelwood Close | DE7: Horsforth | DF7: =(VLOOKUP(DC7,'WY Stops by Code'!$A:$F,5,FALSE)+1.72)*10000 -> 854.3 | DG7: =(53.88-VLOOKUP(DC7,'WY Stops by Code'!$A:$F,6,FALSE))*17360 -> 679.2968 | DH7: Seacroft, North Parkway Pigeon Cote Road, (45013772) | DI7: 45013772 | DJ7: =VLOOKUP(DI7,'WY Stops by Code'!$A:$B, 2, FALSE) -> North Parkway Pigeon Cote Road | DK7: Seacroft | DL7: =(VLOOKUP(DI7,'WY Stops by Code'!$A:$F,5,FALSE)+1.72)*10000 -> 2524.7 | DM7: =(53.88-VLOOKUP(DI7,'WY Stops by Code'!$A:$F,6,FALSE))*17360 -> 992.4712
B8: 7a | C8: codes7a | D8: labels7a | E8: areas7a | F8: xcoords7a | G8: ycoords7a | H8: red | I8: 7 | J8: Lawnswood, Otley Rd Holt Lane, (45010497) | K8: 45010497 | L8: =VLOOKUP(K8,'WY Stops by Code'!A:B, 2, FALSE) -> Otley Road Holt Lane | M8: Lawnswood | N8: =(VLOOKUP(K8,'WY Stops by Code'!$A:$F,5,FALSE)+1.72)*10000 -> 1290.5 | O8: =(53.88-VLOOKUP(K8,'WY Stops by Code'!$A:$F,6,FALSE))*17360 -> 424.1048 | P8: Beeston Hill, Beeston Rd Noster Terrace, (45010082) | Q8: 45010082 | R8: =VLOOKUP(Q8,'WY Stops by Code'!A:B, 2, FALSE) -> Beeston Road Grave Yard | S8: Beeston Hill | T8: =(VLOOKUP(Q8,'WY Stops by Code'!$A:$F,5,FALSE)+1.72)*10000 -> 1601.1 | U8: =(53.88-VLOOKUP(Q8,'WY Stops by Code'!$A:$F,6,FALSE))*17360 -> 1790.3368 | V8: Cookridge, Otley Old Road Holtdale Approach, (45011502) | W8: 45011502 | X8: =VLOOKUP(W8,'WY Stops by Code'!A:B, 2, FALSE) -> Otley Old Road Holtdale Approach | Y8: Cookridge | Z8: =(VLOOKUP(W8,'WY Stops by Code'!$A:$F,5,FALSE)+1.72)*10000 -> 1049.5 | AA8: =(53.88-VLOOKUP(W8,'WY Stops by Code'!$A:$F,6,FALSE))*17360 -> 374.108 | AB8: Woodhouse, Woodhouse La Fenton Street, (45011391) | AC8: 45011391 | AD8: =VLOOKUP(AC8,'WY Stops by Code'!A:B, 2, FALSE) -> Woodhouse Lane Fenton Street | AE8: Woodhouse | AF8: =(VLOOKUP(AC8,'WY Stops by Code'!$A:$F,5,FALSE)+1.72)*10000 -> 1707.4 | AG8: =(53.88-VLOOKUP(AC8,'WY Stops by Code'!$A:$F,6,FALSE))*17360 -> 1292.1048 | AH8: Alwoodley Gates, (45010599) | AI8: 45010599 | AJ8: =VLOOKUP(AI8,'WY Stops by Code'!A:B, 2, FALSE) -> Alwoodley Gates | AK8: Alwoodley Gates | AL8: =(VLOOKUP(AI8,'WY Stops by Code'!$A:$F,5,FALSE)+1.72)*10000 -> 1923.2 | AM8: =(53.88-VLOOKUP(AI8,'WY Stops by Code'!$A:$F,6,FALSE))*17360 -> 328.7984 | AN8: Mabgate, North St Byron Street, (45010300) | AO8: 45010300 | AP8: =VLOOKUP(AO8,'WY Stops by Code'!A:B, 2, FALSE) -> North Street Byron Street | AQ8: Mabgate | AR8: =(VLOOKUP(AO8,'WY Stops by Code'!$A:$F,5,FALSE)+1.72)*10000 -> 1828.2 | AS8: =(53.88-VLOOKUP(AO8,'WY Stops by Code'!$A:$F,6,FALSE))*17360 -> 1344.0112 | AT8: Woodhouse, Woodhouse La Fenton Street, (45011391) | AU8: 45011391 | AV8: =VLOOKUP(AU8,'WY Stops by Code'!$A:$B, 2, FALSE) -> Woodhouse Lane Fenton Street | AW8: Woodhouse | AX8: =(VLOOKUP(AU8,'WY Stops by Code'!$A:$F,5,FALSE)+1.72)*10000 -> 1707.4 | AY8: =(53.88-VLOOKUP(AU8,'WY Stops by Code'!$A:$F,6,FALSE))*17360 -> 1292.1048 | AZ8: Guiseley, Queensway Spenser Rise, (45016883) | BA8: 45016883 | BB8: =VLOOKUP(BA8,'WY Stops by Code'!$A:$B, 2, FALSE) -> Queensway Spenser Rise | BC8: Guiseley | BD8: =(VLOOKUP(BA8,'WY Stops by Code'!$A:$F,5,FALSE)+1.72)*10000 -> 220.6 | BE8: =(53.88-VLOOKUP(BA8,'WY Stops by Code'!$A:$F,6,FALSE))*17360 -> 111.972 | BF8: Woodhouse, Woodhouse La Fenton Street, (45011391) | BG8: 45011391 | BH8: =VLOOKUP(BG8,'WY Stops by Code'!$A:$B, 2, FALSE) -> Woodhouse Lane Fenton Street | BI8: Woodhouse | BJ8: =(VLOOKUP(BG8,'WY Stops by Code'!$A:$F,5,FALSE)+1.72)*10000 -> 1707.4 | BK8: =(53.88-VLOOKUP(BG8,'WY Stops by Code'!$A:$F,6,FALSE))*17360 -> 1292.1048 | BL8: West Park, Otley Rd Kepston Road, (45011142) | BM8: 45011142 | BN8: =VLOOKUP(BM8,'WY Stops by Code'!$A:$B, 2, FALSE) -> Otley Road Kepston Road | BO8: West Park | BP8: =(VLOOKUP(BM8,'WY Stops by Code'!$A:$F,5,FALSE)+1.72)*10000 -> 1277.6 | BQ8: =(53.88-VLOOKUP(BM8,'WY Stops by Code'!$A:$F,6,FALSE))*17360 -> 815.3992 | BR8: Garforth, Aberford Rd Saxton Court, (45024145) | BS8: 45024145 | BT8: =VLOOKUP(BS8,'WY Stops by Code'!$A:$B, 2, FALSE) -> Aberford Road Saxton Court | BU8: Garforth | BV8: =(VLOOKUP(BS8,'WY Stops by Code'!$A:$F,5,FALSE)+1.72)*10000 -> 3407.2 | BW8: =(53.88-VLOOKUP(BS8,'WY Stops by Code'!$A:$F,6,FALSE))*17360 -> 1446.956 | BX8: Ireland Wood, Otley Old Rd Iveson Drive, (45011540) | BY8: 45011540 | BZ8: =VLOOKUP(BY8,'WY Stops by Code'!$A:$B, 2, FALSE) -> Otley Old Road Iveson Drive | CA8: Ireland Wood | CB8: =(VLOOKUP(BY8,'WY Stops by Code'!$A:$F,5,FALSE)+1.72)*10000 -> 1159.1 | CC8: =(53.88-VLOOKUP(BY8,'WY Stops by Code'!$A:$F,6,FALSE))*17360 -> 552.916 | CD8: West Park, Queenswood Drive Spen Ln, (45010406) | CE8: 45010406 | CF8: =VLOOKUP(CE8,'WY Stops by Code'!$A:$B, 2, FALSE) -> Queenswood Drive Spen Lane | CG8: West Park | CH8: =(VLOOKUP(CE8,'WY Stops by Code'!$A:$F,5,FALSE)+1.72)*10000 -> 1162 | CI8: =(53.88-VLOOKUP(CE8,'WY Stops by Code'!$A:$F,6,FALSE))*17360 -> 864.1808 | CJ8: Whinmoor, Sherburn Road North, (45013712) | CK8: 45013712 | CL8: =VLOOKUP(CK8,'WY Stops by Code'!$A:$B, 2, FALSE) -> Sherburn Road North | CM8: Whinmoor | CN8: =(VLOOKUP(CK8,'WY Stops by Code'!$A:$F,5,FALSE)+1.72)*10000 -> 2627.6 | CO8: =(53.88-VLOOKUP(CK8,'WY Stops by Code'!$A:$F,6,FALSE))*17360 -> 777.0336 | CP8: Seacroft, Ring Rd Coal Road, (45013738) | CQ8: 45013738 | CR8: =VLOOKUP(CQ8,'WY Stops by Code'!$A:$B, 2, FALSE) -> Ring Road Seacroft Coal Road | CS8: Seacroft | CT8: =(VLOOKUP(CQ8,'WY Stops by Code'!$A:$F,5,FALSE)+1.72)*10000 -> 2612.6 | CU8: =(53.88-VLOOKUP(CQ8,'WY Stops by Code'!$A:$F,6,FALSE))*17360 -> 917.8232 | CV8: Stanningley, Stanningley Bottom, (45010880) | CW8: 45010880 | CX8: =VLOOKUP(CW8,'WY Stops by Code'!$A:$B, 2, FALSE) -> Stanningley Bottom | CY8: Stanningley | CZ8: =(VLOOKUP(CW8,'WY Stops by Code'!$A:$F,5,FALSE)+1.72)*10000 -> 516 | DA8: =(53.88-VLOOKUP(CW8,'WY Stops by Code'!$A:$F,6,FALSE))*17360 -> 1304.2568 | DB8: Horsforth, Broadgate Lane North Broadgate Ln, (45013187) | DC8: 45013187 | DD8: =VLOOKUP(DC8,'WY Stops by Code'!$A:$B, 2, FALSE) -> Broadgate Lane North Broadgate Lane | DE8: Horsforth | DF8: =(VLOOKUP(DC8,'WY Stops by Code'!$A:$F,5,FALSE)+1.72)*10000 -> 869.6 | DG8: =(53.88-VLOOKUP(DC8,'WY Stops by Code'!$A:$F,6,FALSE))*17360 -> 695.268 | DH8: Seacroft, Kentmere Ave Kentmere Close, (45013765) | DI8: 45013765 | DJ8: =VLOOKUP(DI8,'WY Stops by Code'!$A:$B, 2, FALSE) -> Kentmere Avenue Kentmere Close | DK8: Seacroft | DL8: =(VLOOKUP(DI8,'WY Stops by Code'!$A:$F,5,FALSE)+1.72)*10000 -> 2496 | DM8: =(53.88-VLOOKUP(DI8,'WY Stops by Code'!$A:$F,6,FALSE))*17360 -> 993.86
B9: 7b | C9: codes7b | D9: labels7b | E9: areas7b | F9: xcoords7b | G9: ycoords7b | H9: red | I9: 7 | J9: Lawnswood, Otley Road The Crescent, (45010498) | K9: 45010498 | L9: =VLOOKUP(K9,'WY Stops by Code'!A:B, 2, FALSE) -> Otley Road The Crescent | M9: Lawnswood | N9: =(VLOOKUP(K9,'WY Stops by Code'!$A:$F,5,FALSE)+1.72)*10000 -> 1281 | O9: =(53.88-VLOOKUP(K9,'WY Stops by Code'!$A:$F,6,FALSE))*17360 -> 476.532 | P9: Beeston Hill, (45012121) | Q9: 45012121 | R9: =VLOOKUP(Q9,'WY Stops by Code'!A:B, 2, FALSE) -> Beeston Hill | S9: Beeston Hill | T9: =(VLOOKUP(Q9,'WY Stops by Code'!$A:$F,5,FALSE)+1.72)*10000 -> 1636.1 | U9: =(53.88-VLOOKUP(Q9,'WY Stops by Code'!$A:$F,6,FALSE))*17360 -> 1777.4904 | V9: Cookridge, Green Lane Cookridge Ln, (45011740) | W9: 45011740 | X9: =VLOOKUP(W9,'WY Stops by Code'!A:B, 2, FALSE) -> Green Lane Cookridge Lane | Y9: Cookridge | Z9: =(VLOOKUP(W9,'WY Stops by Code'!$A:$F,5,FALSE)+1.72)*10000 -> 1029.3 | AA9: =(53.88-VLOOKUP(W9,'WY Stops by Code'!$A:$F,6,FALSE))*17360 -> 294.252 | AB9: Woodhouse, Woodhouse Lane Back Blenheim Ter, (45011385) | AC9: 45011385 | AD9: =VLOOKUP(AC9,'WY Stops by Code'!A:B, 2, FALSE) -> Woodhouse Lane Back Blenheim Terrace | AE9: Woodhouse | AF9: =(VLOOKUP(AC9,'WY Stops by Code'!$A:$F,5,FALSE)+1.72)*10000 -> 1676.2 | AG9: =(53.88-VLOOKUP(AC9,'WY Stops by Code'!$A:$F,6,FALSE))*17360 -> 1244.712 | AH9: Alwoodley Gates, Harrogate Road The Moorings, (45013111) | AI9: 45013111 | AJ9: =VLOOKUP(AI9,'WY Stops by Code'!A:B, 2, FALSE) -> Harrogate Road The Moorings | AK9: Alwoodley Gates | AL9: =(VLOOKUP(AI9,'WY Stops by Code'!$A:$F,5,FALSE)+1.72)*10000 -> 1899.6 | AM9: =(53.88-VLOOKUP(AI9,'WY Stops by Code'!$A:$F,6,FALSE))*17360 -> 390.0792 | AN9: Sheepscar, North St Meanwood Road, (45010302) | AO9: 45010302 | AP9: =VLOOKUP(AO9,'WY Stops by Code'!A:B, 2, FALSE) -> North Street Meanwood Road | AQ9: Sheepscar | AR9: =(VLOOKUP(AO9,'WY Stops by Code'!$A:$F,5,FALSE)+1.72)*10000 -> 1846.1 | AS9: =(53.88-VLOOKUP(AO9,'WY Stops by Code'!$A:$F,6,FALSE))*17360 -> 1275.2656 | AT9: Woodhouse, Woodhouse Lane Back Blenheim Ter, (45011385) | AU9: 45011385 | AV9: =VLOOKUP(AU9,'WY Stops by Code'!$A:$B, 2, FALSE) -> Woodhouse Lane Back Blenheim Terrace | AW9: Woodhouse | AX9: =(VLOOKUP(AU9,'WY Stops by Code'!$A:$F,5,FALSE)+1.72)*10000 -> 1676.2 | AY9: =(53.88-VLOOKUP(AU9,'WY Stops by Code'!$A:$F,6,FALSE))*17360 -> 1244.712 | AZ9: Yeadon, Queensway Shaw Royd, (45016885) | BA9: 45016885 | BB9: =VLOOKUP(BA9,'WY Stops by Code'!$A:$B, 2, FALSE) -> Queensway Shaw Road | BC9: Yeadon | BD9: =(VLOOKUP(BA9,'WY Stops by Code'!$A:$F,5,FALSE)+1.72)*10000 -> 260.5 | BE9: =(53.88-VLOOKUP(BA9,'WY Stops by Code'!$A:$F,6,FALSE))*17360 -> 152.9416 | BF9: Woodhouse, Leeds University, (45011386) TP | BG9: 45011386 | BH9: =VLOOKUP(BG9,'WY Stops by Code'!$A:$B, 2, FALSE) -> Leeds University | BI9: Woodhouse | BJ9: =(VLOOKUP(BG9,'WY Stops by Code'!$A:$F,5,FALSE)+1.72)*10000 -> 1677 | BK9: =(53.88-VLOOKUP(BG9,'WY Stops by Code'!$A:$F,6,FALSE))*17360 -> 1247.6632 | BL9: West Park, Otley Rd Ancaster Road, (45011143) | BM9: 45011143 | BN9: =VLOOKUP(BM9,'WY Stops by Code'!$A:$B, 2, FALSE) -> Otley Road Ancaster Road | BO9: West Park | BP9: =(VLOOKUP(BM9,'WY Stops by Code'!$A:$F,5,FALSE)+1.72)*10000 -> 1304.1 | BQ9: =(53.88-VLOOKUP(BM9,'WY Stops by Code'!$A:$F,6,FALSE))*17360 -> 832.412 | BR9: Garforth, Main Street Salem Pl, (45011681) | BS9: 45011681 | BT9: =VLOOKUP(BS9,'WY Stops by Code'!$A:$B, 2, FALSE) -> Main Street Salem Place | BU9: Garforth | BV9: =(VLOOKUP(BS9,'WY Stops by Code'!$A:$F,5,FALSE)+1.72)*10000 -> 3317.3 | BW9: =(53.88-VLOOKUP(BS9,'WY Stops by Code'!$A:$F,6,FALSE))*17360 -> 1457.5456 | BX9: Ireland Wood, Otley Old Rd Iveson Drive, (45011550) | BY9: 45011550 | BZ9: =VLOOKUP(BY9,'WY Stops by Code'!$A:$B, 2, FALSE) -> Otley Old Road Iveson Drive | CA9: Ireland Wood | CB9: =(VLOOKUP(BY9,'WY Stops by Code'!$A:$F,5,FALSE)+1.72)*10000 -> 1162.1 | CC9: =(53.88-VLOOKUP(BY9,'WY Stops by Code'!$A:$F,6,FALSE))*17360 -> 566.6304 | CD9: West Park, Queenswood Drive Premier Roofing Ltd, (45010405) | CE9: 45010405 | CF9: =VLOOKUP(CE9,'WY Stops by Code'!$A:$B, 2, FALSE) -> Queenswood Drive Premier Roofing Ltd | CG9: West Park | CH9: =(VLOOKUP(CE9,'WY Stops by Code'!$A:$F,5,FALSE)+1.72)*10000 -> 1181.8 | CI9: =(53.88-VLOOKUP(CE9,'WY Stops by Code'!$A:$F,6,FALSE))*17360 -> 899.9424 | CJ9: Whinmoor, Sherburn Rd North Naburn Road, (45010784) | CK9: 45010784 | CL9: =VLOOKUP(CK9,'WY Stops by Code'!$A:$B, 2, FALSE) -> Sherburn Road North Naburn Road | CM9: Whinmoor | CN9: =(VLOOKUP(CK9,'WY Stops by Code'!$A:$F,5,FALSE)+1.72)*10000 -> 2637.6 | CO9: =(53.88-VLOOKUP(CK9,'WY Stops by Code'!$A:$F,6,FALSE))*17360 -> 826.6832 | CP9: Whinmoor, Ring Rd Coal Road, (45013740) | CQ9: 45013740 | CR9: =VLOOKUP(CQ9,'WY Stops by Code'!$A:$B, 2, FALSE) -> Ring Road Seacroft Coal Road | CS9: Whinmoor | CT9: =(VLOOKUP(CQ9,'WY Stops by Code'!$A:$F,5,FALSE)+1.72)*10000 -> 2601.4 | CU9: =(53.88-VLOOKUP(CQ9,'WY Stops by Code'!$A:$F,6,FALSE))*17360 -> 896.8176 | CV9: Stanningley, Bradford Road Stanhall Ave, (45012374) | CW9: 45012374 | CX9: =VLOOKUP(CW9,'WY Stops by Code'!$A:$B, 2, FALSE) -> Bradford Road Stanhall Avenue | CY9: Stanningley | CZ9: =(VLOOKUP(CW9,'WY Stops by Code'!$A:$F,5,FALSE)+1.72)*10000 -> 478.6 | DA9: =(53.88-VLOOKUP(CW9,'WY Stops by Code'!$A:$F,6,FALSE))*17360 -> 1298.528 | DB9: Horsforth, Broadgate Lane Alexandra Rd, (45013179) | DC9: 45013179 | DD9: =VLOOKUP(DC9,'WY Stops by Code'!$A:$B, 2, FALSE) -> Broadgate Lane Alexandra Road | DE9: Horsforth | DF9: =(VLOOKUP(DC9,'WY Stops by Code'!$A:$F,5,FALSE)+1.72)*10000 -> 902.6 | DG9: =(53.88-VLOOKUP(DC9,'WY Stops by Code'!$A:$F,6,FALSE))*17360 -> 719.0512 | DH9: Seacroft, Kentmere Avenue Pigeon Cote Rd, (45013766) | DI9: 45013766 | DJ9: =VLOOKUP(DI9,'WY Stops by Code'!$A:$B, 2, FALSE) -> Kentmere Avenue Pigeon Cote Road | DK9: Seacroft | DL9: =(VLOOKUP(DI9,'WY Stops by Code'!$A:$F,5,FALSE)+1.72)*10000 -> 2500 | DM9: =(53.88-VLOOKUP(DI9,'WY Stops by Code'!$A:$F,6,FALSE))*17360 -> 960.1816
B10: 97a | C10: ="codes" &B10 -> codes97a | D10: ="labels" &B10 -> labels97a | E10: ="areas" &B10 -> areas97a | F10: ="xcoords" &B10 -> xcoords97a | G10: ="ycoords" &B10 -> ycoords97a | H10: green | I10: 97 | J10: Lawnswood, Leeds St Helens Lane, (45010499) | K10: 45010499 | L10: =VLOOKUP(K10,'WY Stops by Code'!A:B, 2, FALSE) -> Leeds St Helens Lane | M10: Lawnswood | N10: =(VLOOKUP(K10,'WY Stops by Code'!$A:$F,5,FALSE)+1.72)*10000 -> 1275.8 | O10: =(53.88-VLOOKUP(K10,'WY Stops by Code'!$A:$F,6,FALSE))*17360 -> 529.3064 | P10: Beeston Hill, Malvern Rd Beeston Road, (45010085) | Q10: 45010085 | R10: =VLOOKUP(Q10,'WY Stops by Code'!A:B, 2, FALSE) -> Malvern Road Beeston Road | S10: =area(P10) -> Beeston Hill | T10: =(VLOOKUP(Q10,'WY Stops by Code'!$A:$F,5,FALSE)+1.72)*10000 -> 1677 | U10: =(53.88-VLOOKUP(Q10,'WY Stops by Code'!$A:$F,6,FALSE))*17360 -> 1743.4648 | V10: Cookridge, Green Lane Moseley Wood Ln, (45011737) | W10: 45011737 | X10: =VLOOKUP(W10,'WY Stops by Code'!A:B, 2, FALSE) -> Green Lane Moseley Wood Lane | Y10: Cookridge | Z10: =(VLOOKUP(W10,'WY Stops by Code'!$A:$F,5,FALSE)+1.72)*10000 -> 994.8 | AA10: =(53.88-VLOOKUP(W10,'WY Stops by Code'!$A:$F,6,FALSE))*17360 -> 342.6864 | AB10: Woodhouse, Woodhouse La St Marks Street, (45011381) | AC10: 45011381 | AD10: =VLOOKUP(AC10,'WY Stops by Code'!A:B, 2, FALSE) -> Woodhouse Lane St Marks Street | AE10: Woodhouse | AF10: =(VLOOKUP(AC10,'WY Stops by Code'!$A:$F,5,FALSE)+1.72)*10000 -> 1647.5 | AG10: =(53.88-VLOOKUP(AC10,'WY Stops by Code'!$A:$F,6,FALSE))*17360 -> 1217.1096 | AH10: Alwoodley Gates, Harrogate Road Sandhill Mount, (45013110) | AI10: 45013110 | AJ10: =VLOOKUP(AI10,'WY Stops by Code'!A:B, 2, FALSE) -> Harrogate Road Sandhill Mount | AK10: Alwoodley Gates | AL10: =(VLOOKUP(AI10,'WY Stops by Code'!$A:$F,5,FALSE)+1.72)*10000 -> 1893.2 | AM10: =(53.88-VLOOKUP(AI10,'WY Stops by Code'!$A:$F,6,FALSE))*17360 -> 419.4176 | AN10: Sheepscar, Sheepscar St North Sheepscar Way, (45010281) | AO10: 45010281 | AP10: =VLOOKUP(AO10,'WY Stops by Code'!A:B, 2, FALSE) -> Sheepscar Street North Sheepscar Way | AQ10: Sheepscar | AR10: =(VLOOKUP(AO10,'WY Stops by Code'!$A:$F,5,FALSE)+1.72)*10000 -> 1817.1 | AS10: =(53.88-VLOOKUP(AO10,'WY Stops by Code'!$A:$F,6,FALSE))*17360 -> 1176.6608 | AT10: Woodhouse, Woodhouse La St Marks Street, (45011381) | AU10: 45011381 | AV10: =VLOOKUP(AU10,'WY Stops by Code'!$A:$B, 2, FALSE) -> Woodhouse Lane St Marks Street | AW10: Woodhouse | AX10: =(VLOOKUP(AU10,'WY Stops by Code'!$A:$F,5,FALSE)+1.72)*10000 -> 1647.5 | AY10: =(53.88-VLOOKUP(AU10,'WY Stops by Code'!$A:$F,6,FALSE))*17360 -> 1217.1096 | AZ10: Yeadon, Coppice Wood Avenue, (45016887) | BA10: 45016887 | BB10: =VLOOKUP(BA10,'WY Stops by Code'!$A:$B, 2, FALSE) -> Coppice Wood Avenue | BC10: Yeadon | BD10: =(VLOOKUP(BA10,'WY Stops by Code'!$A:$F,5,FALSE)+1.72)*10000 -> 302.3 | BE10: =(53.88-VLOOKUP(BA10,'WY Stops by Code'!$A:$F,6,FALSE))*17360 -> 174.468 | BF10: Woodhouse, Woodhouse La St Marks Street, (45011381) | BG10: 45011381 | BH10: =VLOOKUP(BG10,'WY Stops by Code'!$A:$B, 2, FALSE) -> Woodhouse Lane St Marks Street | BI10: Woodhouse | BJ10: =(VLOOKUP(BG10,'WY Stops by Code'!$A:$F,5,FALSE)+1.72)*10000 -> 1647.5 | BK10: =(53.88-VLOOKUP(BG10,'WY Stops by Code'!$A:$F,6,FALSE))*17360 -> 1217.1096 | BL10: Headingley, Headingley Lane Glen Rd, (45011145) | BM10: 45011145 | BN10: =VLOOKUP(BM10,'WY Stops by Code'!$A:$B, 2, FALSE) -> Headingley Lane Glen Road | BO10: Headingley | BP10: =(VLOOKUP(BM10,'WY Stops by Code'!$A:$F,5,FALSE)+1.72)*10000 -> 1343.7 | BQ10: =(53.88-VLOOKUP(BM10,'WY Stops by Code'!$A:$F,6,FALSE))*17360 -> 868.868 | BR10: Garforth, Main Street Fidler Lane, (45010197) | BS10: 45010197 | BT10: =VLOOKUP(BS10,'WY Stops by Code'!$A:$B, 2, FALSE) -> Main Street Fidler Lane | BU10: Garforth | BV10: =(VLOOKUP(BS10,'WY Stops by Code'!$A:$F,5,FALSE)+1.72)*10000 -> 3317.8 | BW10: =(53.88-VLOOKUP(BS10,'WY Stops by Code'!$A:$F,6,FALSE))*17360 -> 1504.244 | BX10: Ireland Wood, Iveson Approach Iveson Grove, (45011546) | BY10: 45011546 | BZ10: =VLOOKUP(BY10,'WY Stops by Code'!$A:$B, 2, FALSE) -> Iveson Approach Iveson Grove | CA10: Ireland Wood | CB10: =(VLOOKUP(BY10,'WY Stops by Code'!$A:$F,5,FALSE)+1.72)*10000 -> 1137 | CC10: =(53.88-VLOOKUP(BY10,'WY Stops by Code'!$A:$F,6,FALSE))*17360 -> 593.712 | CD10: Beckett Park, Queenswood Dri Woodbridge Crescent, (45011274) | CE10: 45011274 | CF10: =VLOOKUP(CE10,'WY Stops by Code'!$A:$B, 2, FALSE) -> Queenswood Drive Woodbridge Crescent | CG10: Beckett Park | CH10: =(VLOOKUP(CE10,'WY Stops by Code'!$A:$F,5,FALSE)+1.72)*10000 -> 1183.6 | CI10: =(53.88-VLOOKUP(CE10,'WY Stops by Code'!$A:$F,6,FALSE))*17360 -> 960.5288 | CJ10: Whinmoor, Sherburn Rd North Naburn Close, (45010785) | CK10: 45010785 | CL10: =VLOOKUP(CK10,'WY Stops by Code'!$A:$B, 2, FALSE) -> Sherburn Road North Naburn Close | CM10: Whinmoor | CN10: =(VLOOKUP(CK10,'WY Stops by Code'!$A:$F,5,FALSE)+1.72)*10000 -> 2647.9 | CO10: =(53.88-VLOOKUP(CK10,'WY Stops by Code'!$A:$F,6,FALSE))*17360 -> 873.9024 | CP10: Whinmoor, Ring Road Seacroft, (45013741) | CQ10: 45013741 | CR10: =VLOOKUP(CQ10,'WY Stops by Code'!$A:$B, 2, FALSE) -> Ring Road Seacroft | CS10: Whinmoor | CT10: =(VLOOKUP(CQ10,'WY Stops by Code'!$A:$F,5,FALSE)+1.72)*10000 -> 2564 | CU10: =(53.88-VLOOKUP(CQ10,'WY Stops by Code'!$A:$F,6,FALSE))*17360 -> 846.3 | CV10: Stanningley, Bradford Road Old Rd, (45012376) | CW10: 45012376 | CX10: =VLOOKUP(CW10,'WY Stops by Code'!$A:$B, 2, FALSE) -> Bradford Road Old Road | CY10: Stanningley | CZ10: =(VLOOKUP(CW10,'WY Stops by Code'!$A:$F,5,FALSE)+1.72)*10000 -> 455.2 | DA10: =(53.88-VLOOKUP(CW10,'WY Stops by Code'!$A:$F,6,FALSE))*17360 -> 1294.0144 | DB10: Horsforth, Broadgate Lane Broadgate Ave, (45013181) | DC10: 45013181 | DD10: =VLOOKUP(DC10,'WY Stops by Code'!$A:$B, 2, FALSE) -> Broadgate Lane Broadgate Avenue | DE10: Horsforth | DF10: =(VLOOKUP(DC10,'WY Stops by Code'!$A:$F,5,FALSE)+1.72)*10000 -> 949.9 | DG10: =(53.88-VLOOKUP(DC10,'WY Stops by Code'!$A:$F,6,FALSE))*17360 -> 739.3624 | DH10: Seacroft, Boggart Hill Drive Kentmere Ave, (45010851) | DI10: 45010851 | DJ10: =VLOOKUP(DI10,'WY Stops by Code'!$A:$B, 2, FALSE) -> Boggart Hill Drive Kentmere Avenue | DK10: Seacroft | DL10: =(VLOOKUP(DI10,'WY Stops by Code'!$A:$F,5,FALSE)+1.72)*10000 -> 2496.5 | DM10: =(53.88-VLOOKUP(DI10,'WY Stops by Code'!$A:$F,6,FALSE))*17360 -> 921.6424
B11: 97b | C11: codes97b | D11: labels97b | E11: areas97b | F11: xcoords97b | G11: ycoords97b | H11: green | I11: 97 | J11: Lawnswood, Otley Road Crematorium, (45010500) | K11: 45010500 | L11: =VLOOKUP(K11,'WY Stops by Code'!A:B, 2, FALSE) -> Otley Road Lawnswood | M11: Lawnswood | N11: =(VLOOKUP(K11,'WY Stops by Code'!$A:$F,5,FALSE)+1.72)*10000 -> 1274.6 | O11: =(53.88-VLOOKUP(K11,'WY Stops by Code'!$A:$F,6,FALSE))*17360 -> 589.0248 | P11: Beeston Hill, Lady Pit Lane Coupland Rd, (45010086) | Q11: 45010086 | R11: =VLOOKUP(Q11,'WY Stops by Code'!A:B, 2, FALSE) -> Lady Pit Lane Coupland Road | S11: Beeston Hill | T11: =(VLOOKUP(Q11,'WY Stops by Code'!$A:$F,5,FALSE)+1.72)*10000 -> 1688.7 | U11: =(53.88-VLOOKUP(Q11,'WY Stops by Code'!$A:$F,6,FALSE))*17360 -> 1717.0776 | V11: Cookridge, Kirkwood Drive, (45011735) | W11: 45011735 | X11: =VLOOKUP(W11,'WY Stops by Code'!A:B, 2, FALSE) -> Kirkwood Drive | Y11: Cookridge | Z11: =(VLOOKUP(W11,'WY Stops by Code'!$A:$F,5,FALSE)+1.72)*10000 -> 972.1 | AA11: =(53.88-VLOOKUP(W11,'WY Stops by Code'!$A:$F,6,FALSE))*17360 -> 382.6144 | AB11: Woodhouse, Woodhouse La Clarendon Road, (45011379) | AC11: 45011379 | AD11: =VLOOKUP(AC11,'WY Stops by Code'!A:B, 2, FALSE) -> Woodhouse Lane Clarendon Road | AE11: Woodhouse | AF11: =(VLOOKUP(AC11,'WY Stops by Code'!$A:$F,5,FALSE)+1.72)*10000 -> 1625.5 | AG11: =(53.88-VLOOKUP(AC11,'WY Stops by Code'!$A:$F,6,FALSE))*17360 -> 1190.7224 | AH11: Moortown, Primley Park Avenue Harrogate Rd, (45012662) | AI11: 45012662 | AJ11: =VLOOKUP(AI11,'WY Stops by Code'!A:B, 2, FALSE) -> Primley Park Avenue Harrogate Road | AK11: Moortown | AL11: =(VLOOKUP(AI11,'WY Stops by Code'!$A:$F,5,FALSE)+1.72)*10000 -> 1868.5 | AM11: =(53.88-VLOOKUP(AI11,'WY Stops by Code'!$A:$F,6,FALSE))*17360 -> 477.0528 | AN11: Sheepscar, Sheepscar Street North Buslingthorpe Lane, (45023999) | AO11: 45023999 | AP11: =VLOOKUP(AO11,'WY Stops by Code'!A:B, 2, FALSE) -> Sheepscar Street North Buslingthorpe Lane | AQ11: Sheepscar | AR11: =(VLOOKUP(AO11,'WY Stops by Code'!$A:$F,5,FALSE)+1.72)*10000 -> 1812.4 | AS11: =(53.88-VLOOKUP(AO11,'WY Stops by Code'!$A:$F,6,FALSE))*17360 -> 1155.308 | AT11: Woodhouse, Woodhouse La Clarendon Road, (45011379) | AU11: 45011379 | AV11: =VLOOKUP(AU11,'WY Stops by Code'!$A:$B, 2, FALSE) -> Woodhouse Lane Clarendon Road | AW11: Woodhouse | AX11: =(VLOOKUP(AU11,'WY Stops by Code'!$A:$F,5,FALSE)+1.72)*10000 -> 1625.5 | AY11: =(53.88-VLOOKUP(AU11,'WY Stops by Code'!$A:$F,6,FALSE))*17360 -> 1190.7224 | AZ11: Yeadon, Queensway Manor Close, (45016889) | BA11: 45016889 | BB11: =VLOOKUP(BA11,'WY Stops by Code'!$A:$B, 2, FALSE) -> Queensway Manor Close | BC11: Yeadon | BD11: =(VLOOKUP(BA11,'WY Stops by Code'!$A:$F,5,FALSE)+1.72)*10000 -> 322.2 | BE11: =(53.88-VLOOKUP(BA11,'WY Stops by Code'!$A:$F,6,FALSE))*17360 -> 219.7776 | BF11: Woodhouse, Woodhouse La Clarendon Road, (45011379) | BG11: 45011379 | BH11: =VLOOKUP(BG11,'WY Stops by Code'!$A:$B, 2, FALSE) -> Woodhouse Lane Clarendon Road | BI11: Woodhouse | BJ11: =(VLOOKUP(BG11,'WY Stops by Code'!$A:$F,5,FALSE)+1.72)*10000 -> 1625.5 | BK11: =(53.88-VLOOKUP(BG11,'WY Stops by Code'!$A:$F,6,FALSE))*17360 -> 1190.7224 | BL11: Headingley, Otley Rd St Chads Road, (45011147) | BM11: 45011147 | BN11: =VLOOKUP(BM11,'WY Stops by Code'!$A:$B, 2, FALSE) -> Otley Road St Chads Road | BO11: Headingley | BP11: =(VLOOKUP(BM11,'WY Stops by Code'!$A:$F,5,FALSE)+1.72)*10000 -> 1369.4 | BQ11: =(53.88-VLOOKUP(BM11,'WY Stops by Code'!$A:$F,6,FALSE))*17360 -> 903.7616 | BR11: Garforth, Lidgett Lane Beech Grove Ter, (45011679) | BS11: 45011679 | BT11: =VLOOKUP(BS11,'WY Stops by Code'!$A:$B, 2, FALSE) -> Lidgett Lane Beech Grove Terrace | BU11: Garforth | BV11: =(VLOOKUP(BS11,'WY Stops by Code'!$A:$F,5,FALSE)+1.72)*10000 -> 3314 | BW11: =(53.88-VLOOKUP(BS11,'WY Stops by Code'!$A:$F,6,FALSE))*17360 -> 1538.6168 | BX11: Ireland Wood, Iveson Approach Iveson Drive, (45011541) | BY11: 45011541 | BZ11: =VLOOKUP(BY11,'WY Stops by Code'!$A:$B, 2, FALSE) -> Iveson Approach Iveson Drive | CA11: Ireland Wood | CB11: =(VLOOKUP(BY11,'WY Stops by Code'!$A:$F,5,FALSE)+1.72)*10000 -> 1110.3 | CC11: =(53.88-VLOOKUP(BY11,'WY Stops by Code'!$A:$F,6,FALSE))*17360 -> 629.6472 | CD11: Beckett Park, Queenswood Drive Woodbridge Road, (45010403) | CE11: 45010403 | CF11: =VLOOKUP(CE11,'WY Stops by Code'!$A:$B, 2, FALSE) -> Queenswood Drive Queenswood Road | CG11: Beckett Park | CH11: =(VLOOKUP(CE11,'WY Stops by Code'!$A:$F,5,FALSE)+1.72)*10000 -> 1210.9 | CI11: =(53.88-VLOOKUP(CE11,'WY Stops by Code'!$A:$F,6,FALSE))*17360 -> 997.332 | CJ11: Whinmoor, Sherburn Road North Baildon Chase, (45010786) | CK11: 45010786 | CL11: =VLOOKUP(CK11,'WY Stops by Code'!$A:$B, 2, FALSE) -> Sherburn Road North Baildon Chase | CM11: Whinmoor | CN11: =(VLOOKUP(CK11,'WY Stops by Code'!$A:$F,5,FALSE)+1.72)*10000 -> 2659.8 | CO11: =(53.88-VLOOKUP(CK11,'WY Stops by Code'!$A:$F,6,FALSE))*17360 -> 909.1432 | CP11: Whinmoor, Ring Rd Monkswood Gate, (45013742) | CQ11: 45013742 | CR11: =VLOOKUP(CQ11,'WY Stops by Code'!$A:$B, 2, FALSE) -> Ring Road Seacroft Monkswood Gate | CS11: Whinmoor | CT11: =(VLOOKUP(CQ11,'WY Stops by Code'!$A:$F,5,FALSE)+1.72)*10000 -> 2520.8 | CU11: =(53.88-VLOOKUP(CQ11,'WY Stops by Code'!$A:$F,6,FALSE))*17360 -> 794.9144 | CV11: Farsley, Bradford Road Ruskin St, (45012375) | CW11: 45012375 | CX11: =VLOOKUP(CW11,'WY Stops by Code'!$A:$B, 2, FALSE) -> Bradford Road Ruskin Street | CY11: Farsley | CZ11: =(VLOOKUP(CW11,'WY Stops by Code'!$A:$F,5,FALSE)+1.72)*10000 -> 400 | DA11: =(53.88-VLOOKUP(CW11,'WY Stops by Code'!$A:$F,6,FALSE))*17360 -> 1283.9456 | DB11: Horsforth, Broadgate Lane Broadgate Rise, (45050092) | DC11: 45050092 | DD11: =VLOOKUP(DC11,'WY Stops by Code'!$A:$B, 2, FALSE) -> Broadgate Lane Broadgate Rise | DE11: Horsforth | DF11: =(VLOOKUP(DC11,'WY Stops by Code'!$A:$F,5,FALSE)+1.72)*10000 -> 972.5 | DG11: =(53.88-VLOOKUP(DC11,'WY Stops by Code'!$A:$F,6,FALSE))*17360 -> 740.5776 | DH11: Seacroft, Boggart Hill Drive Boggart Hill Cres, (45010850) | DI11: 45010850 | DJ11: =VLOOKUP(DI11,'WY Stops by Code'!$A:$B, 2, FALSE) -> Boggart Hill Drive Boggart Hill Crescent | DK11: Seacroft | DL11: =(VLOOKUP(DI11,'WY Stops by Code'!$A:$F,5,FALSE)+1.72)*10000 -> 2445.4 | DM11: =(53.88-VLOOKUP(DI11,'WY Stops by Code'!$A:$F,6,FALSE))*17360 -> 922.8576
B12: 95a | C12: codes95a | D12: labels95a | E12: areas95a | F12: xcoords95a | G12: ycoords95a | H12: gray | I12: 95 | J12: Lawnswood, Lawnswood Sports Club, (45011747) | K12: 45011747 | L12: =VLOOKUP(K12,'WY Stops by Code'!A:B, 2, FALSE) -> Otley Road Lawnswood Sports Club | M12: Lawnswood | N12: =(VLOOKUP(K12,'WY Stops by Code'!$A:$F,5,FALSE)+1.72)*10000 -> 1262.6 | O12: =(53.88-VLOOKUP(K12,'WY Stops by Code'!$A:$F,6,FALSE))*17360 -> 643.5352 | P12: Beeston Hill, Lady Pit Lane Hunslet Hall Rd, (45010087) | Q12: 45010087 | R12: =VLOOKUP(Q12,'WY Stops by Code'!A:B, 2, FALSE) -> Lady Pit Lane Hunslet Hall Road | S12: Beeston Hill | T12: =(VLOOKUP(Q12,'WY Stops by Code'!$A:$F,5,FALSE)+1.72)*10000 -> 1698.9 | U12: =(53.88-VLOOKUP(Q12,'WY Stops by Code'!$A:$F,6,FALSE))*17360 -> 1696.2456 | V12: Cookridge, Green Lane Moseley Wood Approach, (45011734) | W12: 45011734 | X12: =VLOOKUP(W12,'WY Stops by Code'!A:B, 2, FALSE) -> Green Lane Moseley Wood Approach | Y12: Cookridge | Z12: =(VLOOKUP(W12,'WY Stops by Code'!$A:$F,5,FALSE)+1.72)*10000 -> 940.1 | AA12: =(53.88-VLOOKUP(W12,'WY Stops by Code'!$A:$F,6,FALSE))*17360 -> 431.0488 | AB12: Hyde Park Corner, (45011380) | AC12: 45011380 | AD12: =VLOOKUP(AC12,'WY Stops by Code'!A:B, 2, FALSE) -> Hyde Park Corner | AE12: Hyde Park Corner | AF12: =(VLOOKUP(AC12,'WY Stops by Code'!$A:$F,5,FALSE)+1.72)*10000 -> 1588.3 | AG12: =(53.88-VLOOKUP(AC12,'WY Stops by Code'!$A:$F,6,FALSE))*17360 -> 1142.9824 | AH12: Moortown, Primley Park Crescent Primley Park Ave, (45010598) TP | AI12: 45010598 | AJ12: =VLOOKUP(AI12,'WY Stops by Code'!A:B, 2, FALSE) -> Primley Park | AK12: Moortown | AL12: =(VLOOKUP(AI12,'WY Stops by Code'!$A:$F,5,FALSE)+1.72)*10000 -> 1852 | AM12: =(53.88-VLOOKUP(AI12,'WY Stops by Code'!$A:$F,6,FALSE))*17360 -> 476.0112 | AN12: Chapeltown, Scott Hall Road Mexborough St, (45023949) | AO12: 45023949 | AP12: =VLOOKUP(AO12,'WY Stops by Code'!A:B, 2, FALSE) -> Scott Hall Road Mexborough Street | AQ12: Chapeltown | AR12: =(VLOOKUP(AO12,'WY Stops by Code'!$A:$F,5,FALSE)+1.72)*10000 -> 1810.4 | AS12: =(53.88-VLOOKUP(AO12,'WY Stops by Code'!$A:$F,6,FALSE))*17360 -> 1108.436 | AT12: Hyde Park Corner, Woodhouse La Cliff Road, (45011378) | AU12: 45011378 | AV12: =VLOOKUP(AU12,'WY Stops by Code'!$A:$B, 2, FALSE) -> Woodhouse Lane Cliff Road | AW12: Hyde Park Corner | AX12: =(VLOOKUP(AU12,'WY Stops by Code'!$A:$F,5,FALSE)+1.72)*10000 -> 1590.6 | AY12: =(53.88-VLOOKUP(AU12,'WY Stops by Code'!$A:$F,6,FALSE))*17360 -> 1145.76 | AZ12: Yeadon, Kirk Lane Old Haworth Ln, (45019752) | BA12: 45019752 | BB12: =VLOOKUP(BA12,'WY Stops by Code'!$A:$B, 2, FALSE) -> Kirk Lane Old Haworth Lane | BC12: Yeadon | BD12: =(VLOOKUP(BA12,'WY Stops by Code'!$A:$F,5,FALSE)+1.72)*10000 -> 324.4 | BE12: =(53.88-VLOOKUP(BA12,'WY Stops by Code'!$A:$F,6,FALSE))*17360 -> 242.6928 | BF12: Hyde Park Corner, (45011380) | BG12: 45011380 | BH12: =VLOOKUP(BG12,'WY Stops by Code'!$A:$B, 2, FALSE) -> Hyde Park Corner | BI12: Hyde Park Corner | BJ12: =(VLOOKUP(BG12,'WY Stops by Code'!$A:$F,5,FALSE)+1.72)*10000 -> 1588.3 | BK12: =(53.88-VLOOKUP(BG12,'WY Stops by Code'!$A:$F,6,FALSE))*17360 -> 1142.9824 | BL12: Headingley, Otley Rd St Chads Drive, (45011149) | BM12: 45011149 | BN12: =VLOOKUP(BM12,'WY Stops by Code'!$A:$B, 2, FALSE) -> Otley Road St Chads Drive | BO12: Headingley | BP12: =(VLOOKUP(BM12,'WY Stops by Code'!$A:$F,5,FALSE)+1.72)*10000 -> 1389.2 | BQ12: =(53.88-VLOOKUP(BM12,'WY Stops by Code'!$A:$F,6,FALSE))*17360 -> 950.2864 | BR12: Garforth, Lidgett Lane Ringway, (45011678) | BS12: 45011678 | BT12: =VLOOKUP(BS12,'WY Stops by Code'!$A:$B, 2, FALSE) -> Lidgett Lane | BU12: Garforth | BV12: =(VLOOKUP(BS12,'WY Stops by Code'!$A:$F,5,FALSE)+1.72)*10000 -> 3277.4 | BW12: =(53.88-VLOOKUP(BS12,'WY Stops by Code'!$A:$F,6,FALSE))*17360 -> 1578.892 | BX12: Ireland Wood, Iveson Drive Parkstone Grove, (45010747) | BY12: 45010747 | BZ12: =VLOOKUP(BY12,'WY Stops by Code'!$A:$B, 2, FALSE) -> Iveson Drive Parkstone Grove | CA12: Ireland Wood | CB12: =(VLOOKUP(BY12,'WY Stops by Code'!$A:$F,5,FALSE)+1.72)*10000 -> 1145.6 | CC12: =(53.88-VLOOKUP(BY12,'WY Stops by Code'!$A:$F,6,FALSE))*17360 -> 651 | CD12: Beckett Park, Queenswood Drive Queenswood Road, (45010402) | CE12: 45010402 | CF12: =VLOOKUP(CE12,'WY Stops by Code'!$A:$B, 2, FALSE) -> Queenswood Drive Queenswood Road | CG12: Beckett Park | CH12: =(VLOOKUP(CE12,'WY Stops by Code'!$A:$F,5,FALSE)+1.72)*10000 -> 1260 | CI12: =(53.88-VLOOKUP(CE12,'WY Stops by Code'!$A:$F,6,FALSE))*17360 -> 1040.0376 | CJ12: Swarcliffe, Sherburn Road Sledmere Square, (45010579) | CK12: 45010579 | CL12: =VLOOKUP(CK12,'WY Stops by Code'!$A:$B, 2, FALSE) -> Sherburn Road Sledmere Square | CM12: Swarcliffe | CN12: =(VLOOKUP(CK12,'WY Stops by Code'!$A:$F,5,FALSE)+1.72)*10000 -> 2693.5 | CO12: =(53.88-VLOOKUP(CK12,'WY Stops by Code'!$A:$F,6,FALSE))*17360 -> 950.2864 | CP12: Wellington Hill, Ring Rd Grange View Gardens, (45014830) TP | CQ12: 45014830 | CR12: =VLOOKUP(CQ12,'WY Stops by Code'!$A:$B, 2, FALSE) -> Ring Road Shadwell Grange View Gardens | CS12: Wellington Hill | CT12: =(VLOOKUP(CQ12,'WY Stops by Code'!$A:$F,5,FALSE)+1.72)*10000 -> 2462.6 | CU12: =(53.88-VLOOKUP(CQ12,'WY Stops by Code'!$A:$F,6,FALSE))*17360 -> 737.4528 | CV12: Farsley, Town Street Water Lane, (45012389) | CW12: 45012389 | CX12: =VLOOKUP(CW12,'WY Stops by Code'!$A:$B, 2, FALSE) -> Town Street Water Lane | CY12: Farsley | CZ12: =(VLOOKUP(CW12,'WY Stops by Code'!$A:$F,5,FALSE)+1.72)*10000 -> 483.8 | DA12: =(53.88-VLOOKUP(CW12,'WY Stops by Code'!$A:$F,6,FALSE))*17360 -> 1175.7928 | DB12: Horsforth, Low Lane Ring Road Horsforth, (45013169) | DC12: 45013169 | DD12: =VLOOKUP(DC12,'WY Stops by Code'!$A:$B, 2, FALSE) -> Low Lane Ring Road Horsforth | DE12: Horsforth | DF12: =(VLOOKUP(DC12,'WY Stops by Code'!$A:$F,5,FALSE)+1.72)*10000 -> 1005.9 | DG12: =(53.88-VLOOKUP(DC12,'WY Stops by Code'!$A:$F,6,FALSE))*17360 -> 749.4312 | DH12: Seacroft, Boggart Hill Drive Boggart Hill Rd, (45010848) | DI12: 45010848 | DJ12: =VLOOKUP(DI12,'WY Stops by Code'!$A:$B, 2, FALSE) -> Boggart Hill Drive Boggart Hill Road | DK12: Seacroft | DL12: =(VLOOKUP(DI12,'WY Stops by Code'!$A:$F,5,FALSE)+1.72)*10000 -> 2400.2 | DM12: =(53.88-VLOOKUP(DI12,'WY Stops by Code'!$A:$F,6,FALSE))*17360 -> 916.9552
B13: 95b | C13: codes95b | D13: labels95b | E13: areas95b | F13: xcoords95b | G13: ycoords95b | H13: gray | I13: 95 | J13: Weetwood, Otley Old Road Lawnswood, (45010501) | K13: 45010501 | L13: =VLOOKUP(K13,'WY Stops by Code'!A:B, 2, FALSE) -> Otley Old Road Lawnswood | M13: Weetwood | N13: =(VLOOKUP(K13,'WY Stops by Code'!$A:$F,5,FALSE)+1.72)*10000 -> 1257.1 | O13: =(53.88-VLOOKUP(K13,'WY Stops by Code'!$A:$F,6,FALSE))*17360 -> 689.0184 | P13: Beeston Hill, Dewsbury Road Hunslet Hall Rd, (45010059) | Q13: 45010059 | R13: =VLOOKUP(Q13,'WY Stops by Code'!A:B, 2, FALSE) -> Dewsbury Road Hunslet Hall Road | S13: Beeston Hill | T13: =(VLOOKUP(Q13,'WY Stops by Code'!$A:$F,5,FALSE)+1.72)*10000 -> 1757.4 | U13: =(53.88-VLOOKUP(Q13,'WY Stops by Code'!$A:$F,6,FALSE))*17360 -> 1694.8568 | V13: Tinshill, Wood Hill Rd Wood Hill Gardens, (45011711) | W13: 45011711 | X13: =VLOOKUP(W13,'WY Stops by Code'!A:B, 2, FALSE) -> Wood Hill Road Wood Hill Gardens | Y13: Tinshill | Z13: =(VLOOKUP(W13,'WY Stops by Code'!$A:$F,5,FALSE)+1.72)*10000 -> 920.5 | AA13: =(53.88-VLOOKUP(W13,'WY Stops by Code'!$A:$F,6,FALSE))*17360 -> 485.3856 | AB13: Hyde Park Corner, Headingley Lane Cumberland Rd, (45011376) | AC13: 45011376 | AD13: =VLOOKUP(AC13,'WY Stops by Code'!A:B, 2, FALSE) -> Headingley Lane Cumberland Road | AE13: Hyde Park Corner | AF13: =(VLOOKUP(AC13,'WY Stops by Code'!$A:$F,5,FALSE)+1.72)*10000 -> 1548.7 | AG13: =(53.88-VLOOKUP(AC13,'WY Stops by Code'!$A:$F,6,FALSE))*17360 -> 1112.9496 | AH13: Moortown, Nursery Lane Nursery Close, (45012664) | AI13: 45012664 | AJ13: =VLOOKUP(AI13,'WY Stops by Code'!A:B, 2, FALSE) -> Nursery Lane Nursery Close | AK13: Moortown | AL13: =(VLOOKUP(AI13,'WY Stops by Code'!$A:$F,5,FALSE)+1.72)*10000 -> 1831.2 | AM13: =(53.88-VLOOKUP(AI13,'WY Stops by Code'!$A:$F,6,FALSE))*17360 -> 498.232 | AN13: Chapeltown, Scott Hall Rd Sholebroke Mount, (45011031) | AO13: 45011031 | AP13: =VLOOKUP(AO13,'WY Stops by Code'!A:B, 2, FALSE) -> Scott Hall Road Sholebroke Mount | AQ13: Chapeltown | AR13: =(VLOOKUP(AO13,'WY Stops by Code'!$A:$F,5,FALSE)+1.72)*10000 -> 1786.9 | AS13: =(53.88-VLOOKUP(AO13,'WY Stops by Code'!$A:$F,6,FALSE))*17360 -> 1056.1824 | AT13: Hyde Park Corner, Headingley Lane Cumberland Rd, (45011376) | AU13: 45011376 | AV13: =VLOOKUP(AU13,'WY Stops by Code'!$A:$B, 2, FALSE) -> Headingley Lane Cumberland Road | AW13: Hyde Park Corner | AX13: =(VLOOKUP(AU13,'WY Stops by Code'!$A:$F,5,FALSE)+1.72)*10000 -> 1548.7 | AY13: =(53.88-VLOOKUP(AU13,'WY Stops by Code'!$A:$F,6,FALSE))*17360 -> 1112.9496 | AZ13: Yeadon, Harper Lane Brooklands Crescent, (45019739) | BA13: 45019739 | BB13: =VLOOKUP(BA13,'WY Stops by Code'!$A:$B, 2, FALSE) -> Harper Lane Brooklands Crescent | BC13: Yeadon | BD13: =(VLOOKUP(BA13,'WY Stops by Code'!$A:$F,5,FALSE)+1.72)*10000 -> 350.9 | BE13: =(53.88-VLOOKUP(BA13,'WY Stops by Code'!$A:$F,6,FALSE))*17360 -> 267.344 | BF13: Hyde Park Corner, Headingley Lane Cumberland Rd, (45011376) | BG13: 45011376 | BH13: =VLOOKUP(BG13,'WY Stops by Code'!$A:$B, 2, FALSE) -> Headingley Lane Cumberland Road | BI13: Hyde Park Corner | BJ13: =(VLOOKUP(BG13,'WY Stops by Code'!$A:$F,5,FALSE)+1.72)*10000 -> 1548.7 | BK13: =(53.88-VLOOKUP(BG13,'WY Stops by Code'!$A:$F,6,FALSE))*17360 -> 1112.9496 | BL13: Headingley, Arndale Centre, (45011363) TP | BM13: 45011363 | BN13: =VLOOKUP(BM13,'WY Stops by Code'!$A:$B, 2, FALSE) -> Headingley Arndale Centre | BO13: Headingley | BP13: =(VLOOKUP(BM13,'WY Stops by Code'!$A:$F,5,FALSE)+1.72)*10000 -> 1415.3 | BQ13: =(53.88-VLOOKUP(BM13,'WY Stops by Code'!$A:$F,6,FALSE))*17360 -> 1003.7552 | BR13: Garforth, Lidgett Lane, (45011676) | BS13: 45011676 | BT13: =VLOOKUP(BS13,'WY Stops by Code'!$A:$B, 2, FALSE) -> Lidgett Lane | BU13: Garforth | BV13: =(VLOOKUP(BS13,'WY Stops by Code'!$A:$F,5,FALSE)+1.72)*10000 -> 3263.3 | BW13: =(53.88-VLOOKUP(BS13,'WY Stops by Code'!$A:$F,6,FALSE))*17360 -> 1618.2992 | BX13: Ireland Wood, Iveson Drive Spen Ln, (45010749) | BY13: 45010749 | BZ13: =VLOOKUP(BY13,'WY Stops by Code'!$A:$B, 2, FALSE) -> Iveson Drive Spen Lane | CA13: Ireland Wood | CB13: =(VLOOKUP(BY13,'WY Stops by Code'!$A:$F,5,FALSE)+1.72)*10000 -> 1183.3 | CC13: =(53.88-VLOOKUP(BY13,'WY Stops by Code'!$A:$F,6,FALSE))*17360 -> 658.4648 | CD13: Headingley, Queenswood Drive Kirkstall Ln, (45010419) | CE13: 45010419 | CF13: =VLOOKUP(CE13,'WY Stops by Code'!$A:$B, 2, FALSE) -> Queenswood Drive Kirkstall Lane | CG13: Headingley | CH13: =(VLOOKUP(CE13,'WY Stops by Code'!$A:$F,5,FALSE)+1.72)*10000 -> 1305.7 | CI13: =(53.88-VLOOKUP(CE13,'WY Stops by Code'!$A:$F,6,FALSE))*17360 -> 1087.9512 | CJ13: Swarcliffe, Stanks Drive Sherburn Road, (45010527) | CK13: 45010527 | CL13: =VLOOKUP(CK13,'WY Stops by Code'!$A:$B, 2, FALSE) -> Stanks Drive Sherburn Road | CM13: Swarcliffe | CN13: =(VLOOKUP(CK13,'WY Stops by Code'!$A:$F,5,FALSE)+1.72)*10000 -> 2709.8 | CO13: =(53.88-VLOOKUP(CK13,'WY Stops by Code'!$A:$F,6,FALSE))*17360 -> 961.0496 | CP13: Wellington Hill, Ring Road Shadwell, (45014832) | CQ13: 45014832 | CR13: =VLOOKUP(CQ13,'WY Stops by Code'!$A:$B, 2, FALSE) -> Ring Road Shadwell | CS13: Wellington Hill | CT13: =(VLOOKUP(CQ13,'WY Stops by Code'!$A:$F,5,FALSE)+1.72)*10000 -> 2430.6 | CU13: =(53.88-VLOOKUP(CQ13,'WY Stops by Code'!$A:$F,6,FALSE))*17360 -> 709.8504 | CV13: Farsley, Bagley Lane Town St, (45012338) TP | CW13: 45012338 | CX13: =VLOOKUP(CW13,'WY Stops by Code'!$A:$B, 2, FALSE) -> Bagley Lane Town Street | CY13: Farsley | CZ13: =(VLOOKUP(CW13,'WY Stops by Code'!$A:$F,5,FALSE)+1.72)*10000 -> 500.2 | DA13: =(53.88-VLOOKUP(CW13,'WY Stops by Code'!$A:$F,6,FALSE))*17360 -> 1121.6296 | DB13: Horsforth, Low Lane Outwood Ln, (45011308) | DC13: 45011308 | DD13: =VLOOKUP(DC13,'WY Stops by Code'!$A:$B, 2, FALSE) -> Low Lane Outwood Lane | DE13: Horsforth | DF13: =(VLOOKUP(DC13,'WY Stops by Code'!$A:$F,5,FALSE)+1.72)*10000 -> 1014.4 | DG13: =(53.88-VLOOKUP(DC13,'WY Stops by Code'!$A:$F,6,FALSE))*17360 -> 780.8528 | DH13: Fearnville, Easterly Road Boggart Hill Dr, (45013931) | DI13: 45013931 | DJ13: =VLOOKUP(DI13,'WY Stops by Code'!$A:$B, 2, FALSE) -> Easterly Road Boggart Hill Drive | DK13: Fearnville | DL13: =(VLOOKUP(DI13,'WY Stops by Code'!$A:$F,5,FALSE)+1.72)*10000 -> 2372.9 | DM13: =(53.88-VLOOKUP(DI13,'WY Stops by Code'!$A:$F,6,FALSE))*17360 -> 914.004
B14: 19a | C14: codes19a | D14: labels19a | E14: areas19a | F14: xcoords19a | G14: ycoords19a | H14: orange | I14: 19 | J14: West Park, Otley Road Ring Road West Park, (45011161) TP | K14: 45011161 | L14: =VLOOKUP(K14,'WY Stops by Code'!A:B, 2, FALSE) -> Otley Road Ring Road West Park | M14: West Park | N14: =(VLOOKUP(K14,'WY Stops by Code'!$A:$F,5,FALSE)+1.72)*10000 -> 1265.9 | O14: =(53.88-VLOOKUP(K14,'WY Stops by Code'!$A:$F,6,FALSE))*17360 -> 747.6952 | P14: Holbeck, Parkfield St Dewsbury Road, (45013257) | Q14: 45013257 | R14: =VLOOKUP(Q14,'WY Stops by Code'!A:B, 2, FALSE) -> Parkfield Street Dewsbury Road | S14: Holbeck | T14: =(VLOOKUP(Q14,'WY Stops by Code'!$A:$F,5,FALSE)+1.72)*10000 -> 1765.9 | U14: =(53.88-VLOOKUP(Q14,'WY Stops by Code'!$A:$F,6,FALSE))*17360 -> 1665.5184 | V14: Tinshill, Tinshill Rd Wood Hill Road, (45011713) | W14: 45011713 | X14: =VLOOKUP(W14,'WY Stops by Code'!A:B, 2, FALSE) -> Tinshill Road Wood Hill Road | Y14: Tinshill | Z14: =(VLOOKUP(W14,'WY Stops by Code'!$A:$F,5,FALSE)+1.72)*10000 -> 917 | AA14: =(53.88-VLOOKUP(W14,'WY Stops by Code'!$A:$F,6,FALSE))*17360 -> 533.6464 | AB14: Headingley, Headingley Ln North Grange Road, (45011372) | AC14: 45011372 | AD14: =VLOOKUP(AC14,'WY Stops by Code'!A:B, 2, FALSE) -> Headingley Lane North Grange Road | AE14: Headingley | AF14: =(VLOOKUP(AC14,'WY Stops by Code'!$A:$F,5,FALSE)+1.72)*10000 -> 1509 | AG14: =(53.88-VLOOKUP(AC14,'WY Stops by Code'!$A:$F,6,FALSE))*17360 -> 1098.02 | AH14: Moortown, Nursery Lane Fir Tree Grove, (45010595) | AI14: 45010595 | AJ14: =VLOOKUP(AI14,'WY Stops by Code'!A:B, 2, FALSE) -> Nursery Lane Fir Tree Grove | AK14: Moortown | AL14: =(VLOOKUP(AI14,'WY Stops by Code'!$A:$F,5,FALSE)+1.72)*10000 -> 1793.8 | AM14: =(53.88-VLOOKUP(AI14,'WY Stops by Code'!$A:$F,6,FALSE))*17360 -> 492.5032 | AN14: Potternewton, Scott Hall Rd Scott Hall Grove, (45010282) | AO14: 45010282 | AP14: =VLOOKUP(AO14,'WY Stops by Code'!A:B, 2, FALSE) -> Scott Hall Road Scott Hall Grove | AQ14: Potternewton | AR14: =(VLOOKUP(AO14,'WY Stops by Code'!$A:$F,5,FALSE)+1.72)*10000 -> 1760.3 | AS14: =(53.88-VLOOKUP(AO14,'WY Stops by Code'!$A:$F,6,FALSE))*17360 -> 1009.8312 | AT14: Headingley, Headingley Ln North Grange Road, (45011372) | AU14: 45011372 | AV14: =VLOOKUP(AU14,'WY Stops by Code'!$A:$B, 2, FALSE) -> Headingley Lane North Grange Road | AW14: Headingley | AX14: =(VLOOKUP(AU14,'WY Stops by Code'!$A:$F,5,FALSE)+1.72)*10000 -> 1509 | AY14: =(53.88-VLOOKUP(AU14,'WY Stops by Code'!$A:$F,6,FALSE))*17360 -> 1098.02 | AZ14: Yeadon, Harper Lane, (45019740) TP | BA14: 45019740 | BB14: =VLOOKUP(BA14,'WY Stops by Code'!$A:$B, 2, FALSE) -> Harper Lane Yeadon | BC14: Yeadon | BD14: =(VLOOKUP(BA14,'WY Stops by Code'!$A:$F,5,FALSE)+1.72)*10000 -> 380.2 | BE14: =(53.88-VLOOKUP(BA14,'WY Stops by Code'!$A:$F,6,FALSE))*17360 -> 251.72 | BF14: Headingley, Headingley Ln North Grange Road, (45011372) | BG14: 45011372 | BH14: =VLOOKUP(BG14,'WY Stops by Code'!$A:$B, 2, FALSE) -> Headingley Lane North Grange Road | BI14: Headingley | BJ14: =(VLOOKUP(BG14,'WY Stops by Code'!$A:$F,5,FALSE)+1.72)*10000 -> 1509 | BK14: =(53.88-VLOOKUP(BG14,'WY Stops by Code'!$A:$F,6,FALSE))*17360 -> 1098.02 | BL14: Headingley, Headingley Ln Bainbrigge Road, (45011365) | BM14: 45011365 | BN14: =VLOOKUP(BM14,'WY Stops by Code'!$A:$B, 2, FALSE) -> Headingley Lane Bainbrigge Road | BO14: Headingley | BP14: =(VLOOKUP(BM14,'WY Stops by Code'!$A:$F,5,FALSE)+1.72)*10000 -> 1446.2 | BQ14: =(53.88-VLOOKUP(BM14,'WY Stops by Code'!$A:$F,6,FALSE))*17360 -> 1053.5784 | BR14: Garforth, Selby Rd Rockley Grange Gardens, (45011653) | BS14: 45011653 | BT14: =VLOOKUP(BS14,'WY Stops by Code'!$A:$B, 2, FALSE) -> Selby Road Rockley Grange Gardens | BU14: Garforth | BV14: =(VLOOKUP(BS14,'WY Stops by Code'!$A:$F,5,FALSE)+1.72)*10000 -> 3237.4 | BW14: =(53.88-VLOOKUP(BS14,'WY Stops by Code'!$A:$F,6,FALSE))*17360 -> 1625.2432 | BX14: West Park, Spen Lane Wynford Mount, (45010750) | BY14: 45010750 | BZ14: =VLOOKUP(BY14,'WY Stops by Code'!$A:$B, 2, FALSE) -> Spen Lane Wynford Mount | CA14: West Park | CB14: =(VLOOKUP(BY14,'WY Stops by Code'!$A:$F,5,FALSE)+1.72)*10000 -> 1187.3 | CC14: =(53.88-VLOOKUP(BY14,'WY Stops by Code'!$A:$F,6,FALSE))*17360 -> 709.8504 | CD14: Headingley, Kirkstall Lane Estcourt Ter, (45010958) | CE14: 45010958 | CF14: =VLOOKUP(CE14,'WY Stops by Code'!$A:$B, 2, FALSE) -> Kirkstall Lane Estcourt Terrace | CG14: Headingley | CH14: =(VLOOKUP(CE14,'WY Stops by Code'!$A:$F,5,FALSE)+1.72)*10000 -> 1337.6 | CI14: =(53.88-VLOOKUP(CE14,'WY Stops by Code'!$A:$F,6,FALSE))*17360 -> 1081.7016 | CJ14: Swarcliffe, Stanks Drive Grimes Dyke Primary School, (45010526) | CK14: 45010526 | CL14: =VLOOKUP(CK14,'WY Stops by Code'!$A:$B, 2, FALSE) -> Stanks Drive Grimes Dyke Primary School | CM14: Swarcliffe | CN14: =(VLOOKUP(CK14,'WY Stops by Code'!$A:$F,5,FALSE)+1.72)*10000 -> 2747.8 | CO14: =(53.88-VLOOKUP(CK14,'WY Stops by Code'!$A:$F,6,FALSE))*17360 -> 959.6608 | CP14: Shadwell, Ring Rd Elmete Lane, (45014833) | CQ14: 45014833 | CR14: =VLOOKUP(CQ14,'WY Stops by Code'!$A:$B, 2, FALSE) -> Ring Road Shadwell | CS14: Shadwell | CT14: =(VLOOKUP(CQ14,'WY Stops by Code'!$A:$F,5,FALSE)+1.72)*10000 -> 2368.5 | CU14: =(53.88-VLOOKUP(CQ14,'WY Stops by Code'!$A:$F,6,FALSE))*17360 -> 628.432 | CV14: Farsley, Bagley Lane Springbank Rd, (45012393) | CW14: 45012393 | CX14: =VLOOKUP(CW14,'WY Stops by Code'!$A:$B, 2, FALSE) -> Bagley Lane Springbank Road | CY14: Farsley | CZ14: =(VLOOKUP(CW14,'WY Stops by Code'!$A:$F,5,FALSE)+1.72)*10000 -> 546.7 | DA14: =(53.88-VLOOKUP(CW14,'WY Stops by Code'!$A:$F,6,FALSE))*17360 -> 1102.36 | DB14: Hawksworth, Lea Farm Road Butcher Hill, (45010414) | DC14: 45010414 | DD14: =VLOOKUP(DC14,'WY Stops by Code'!$A:$B, 2, FALSE) -> Lea Farm Road Butcher Hill | DE14: Hawksworth | DF14: =(VLOOKUP(DC14,'WY Stops by Code'!$A:$F,5,FALSE)+1.72)*10000 -> 1053.7 | DG14: =(53.88-VLOOKUP(DC14,'WY Stops by Code'!$A:$F,6,FALSE))*17360 -> 818.8712 | DH14: Fearnville, Dib Lane, (45013932) TP | DI14: 45013932 | DJ14: =VLOOKUP(DI14,'WY Stops by Code'!$A:$B, 2, FALSE) -> Fearnville Dib Lane | DK14: Fearnville | DL14: =(VLOOKUP(DI14,'WY Stops by Code'!$A:$F,5,FALSE)+1.72)*10000 -> 2331.4 | DM14: =(53.88-VLOOKUP(DI14,'WY Stops by Code'!$A:$F,6,FALSE))*17360 -> 976.3264
B15: 19b | C15: codes19b | D15: labels19b | E15: areas19b | F15: xcoords19b | G15: ycoords19b | H15: orange | I15: 19 | J15: West Park, Otley Rd Kepston Road, (45011142) | K15: 45011142 | L15: =VLOOKUP(K15,'WY Stops by Code'!A:B, 2, FALSE) -> Otley Road Kepston Road | M15: West Park | N15: =(VLOOKUP(K15,'WY Stops by Code'!$A:$F,5,FALSE)+1.72)*10000 -> 1277.6 | O15: =(53.88-VLOOKUP(K15,'WY Stops by Code'!$A:$F,6,FALSE))*17360 -> 815.3992 | P15: Crown Point, Meadow Rd Sweet Street, (45013258) | Q15: 45013258 | R15: =VLOOKUP(Q15,'WY Stops by Code'!A:B, 2, FALSE) -> Meadow Road Sweet Street | S15: Crown Point | T15: =(VLOOKUP(Q15,'WY Stops by Code'!$A:$F,5,FALSE)+1.72)*10000 -> 1738.2 | U15: =(53.88-VLOOKUP(Q15,'WY Stops by Code'!$A:$F,6,FALSE))*17360 -> 1577.3296 | V15: Tinshill, Haigh Wood Rd Tinshill Lane, (45011509) | W15: 45011509 | X15: =VLOOKUP(W15,'WY Stops by Code'!A:B, 2, FALSE) -> Haigh Wood Road Tinshill Lane | Y15: Tinshill | Z15: =(VLOOKUP(W15,'WY Stops by Code'!$A:$F,5,FALSE)+1.72)*10000 -> 907.9 | AA15: =(53.88-VLOOKUP(W15,'WY Stops by Code'!$A:$F,6,FALSE))*17360 -> 570.7968 | AB15: Headingley, Headingley Lane Richmond Ave, (45011370) | AC15: 45011370 | AD15: =VLOOKUP(AC15,'WY Stops by Code'!A:B, 2, FALSE) -> Headingley Lane Richmond Avenue | AE15: Headingley | AF15: =(VLOOKUP(AC15,'WY Stops by Code'!$A:$F,5,FALSE)+1.72)*10000 -> 1469.3 | AG15: =(53.88-VLOOKUP(AC15,'WY Stops by Code'!$A:$F,6,FALSE))*17360 -> 1083.9584 | AH15: Moortown, Lingfield Hill Nursery Lane, (45010594) | AI15: 45010594 | AJ15: =VLOOKUP(AI15,'WY Stops by Code'!A:B, 2, FALSE) -> Lingfield Hill Nursery Lane | AK15: Moortown | AL15: =(VLOOKUP(AI15,'WY Stops by Code'!$A:$F,5,FALSE)+1.72)*10000 -> 1744.1 | AM15: =(53.88-VLOOKUP(AI15,'WY Stops by Code'!$A:$F,6,FALSE))*17360 -> 490.5936 | AN15: Chapel Allerton, Potternewton Lane Potternewton View, (45011173) TP | AO15: 45011173 | AP15: =VLOOKUP(AO15,'WY Stops by Code'!A:B, 2, FALSE) -> Potternewton Lane Potternewton View | AQ15: Chapel Allerton | AR15: =(VLOOKUP(AO15,'WY Stops by Code'!$A:$F,5,FALSE)+1.72)*10000 -> 1722 | AS15: =(53.88-VLOOKUP(AO15,'WY Stops by Code'!$A:$F,6,FALSE))*17360 -> 956.8832 | AT15: Headingley, Headingley Lane Richmond Ave, (45011370) | AU15: 45011370 | AV15: =VLOOKUP(AU15,'WY Stops by Code'!$A:$B, 2, FALSE) -> Headingley Lane Richmond Avenue | AW15: Headingley | AX15: =(VLOOKUP(AU15,'WY Stops by Code'!$A:$F,5,FALSE)+1.72)*10000 -> 1469.3 | AY15: =(53.88-VLOOKUP(AU15,'WY Stops by Code'!$A:$F,6,FALSE))*17360 -> 1083.9584 | AZ15: Yeadon, High Street, (45019743) | BA15: 45019743 | BB15: =VLOOKUP(BA15,'WY Stops by Code'!$A:$B, 2, FALSE) -> High Street | BC15: Yeadon | BD15: =(VLOOKUP(BA15,'WY Stops by Code'!$A:$F,5,FALSE)+1.72)*10000 -> 436.2 | BE15: =(53.88-VLOOKUP(BA15,'WY Stops by Code'!$A:$F,6,FALSE))*17360 -> 262.136 | BF15: Headingley, Headingley Lane Richmond Ave, (45011370) | BG15: 45011370 | BH15: =VLOOKUP(BG15,'WY Stops by Code'!$A:$B, 2, FALSE) -> Headingley Lane Richmond Avenue | BI15: Headingley | BJ15: =(VLOOKUP(BG15,'WY Stops by Code'!$A:$F,5,FALSE)+1.72)*10000 -> 1469.3 | BK15: =(53.88-VLOOKUP(BG15,'WY Stops by Code'!$A:$F,6,FALSE))*17360 -> 1083.9584 | BL15: Headingley, Headingley Lane Oakfield, (45011367) | BM15: 45011367 | BN15: =VLOOKUP(BM15,'WY Stops by Code'!$A:$B, 2, FALSE) -> Headingley Lane Oakfield | BO15: Headingley | BP15: =(VLOOKUP(BM15,'WY Stops by Code'!$A:$F,5,FALSE)+1.72)*10000 -> 1478.5 | BQ15: =(53.88-VLOOKUP(BM15,'WY Stops by Code'!$A:$F,6,FALSE))*17360 -> 1084.132 | BR15: Garforth, Selby Road Nelson Croft, (45011655) | BS15: 45011655 | BT15: =VLOOKUP(BS15,'WY Stops by Code'!$A:$B, 2, FALSE) -> Selby Road Nelson Croft | BU15: Garforth | BV15: =(VLOOKUP(BS15,'WY Stops by Code'!$A:$F,5,FALSE)+1.72)*10000 -> 3200.6 | BW15: =(53.88-VLOOKUP(BS15,'WY Stops by Code'!$A:$F,6,FALSE))*17360 -> 1617.6048 | BX15: West Park, Spen Lane West Parade, (45011272) | BY15: 45011272 | BZ15: =VLOOKUP(BY15,'WY Stops by Code'!$A:$B, 2, FALSE) -> Spen Lane West Parade | CA15: West Park | CB15: =(VLOOKUP(BY15,'WY Stops by Code'!$A:$F,5,FALSE)+1.72)*10000 -> 1190.9 | CC15: =(53.88-VLOOKUP(BY15,'WY Stops by Code'!$A:$F,6,FALSE))*17360 -> 766.0968 | CD15: Headingley, Cardigan Road St Michaels Grove, (45011439) | CE15: 45011439 | CF15: =VLOOKUP(CE15,'WY Stops by Code'!$A:$B, 2, FALSE) -> Cardigan Road St Michaels Grove | CG15: Headingley | CH15: =(VLOOKUP(CE15,'WY Stops by Code'!$A:$F,5,FALSE)+1.72)*10000 -> 1397.1 | CI15: =(53.88-VLOOKUP(CE15,'WY Stops by Code'!$A:$F,6,FALSE))*17360 -> 1066.9456 | CJ15: Swarcliffe, Terminus, (45010529) TP | CK15: 45010529 | CL15: =VLOOKUP(CK15,'WY Stops by Code'!$A:$B, 2, FALSE) -> Swarcliffe | CM15: Swarcliffe | CN15: =(VLOOKUP(CK15,'WY Stops by Code'!$A:$F,5,FALSE)+1.72)*10000 -> 2782.6 | CO15: =(53.88-VLOOKUP(CK15,'WY Stops by Code'!$A:$F,6,FALSE))*17360 -> 995.0752 | CP15: Roundhay, Ring Road Shadwell, (45014835) | CQ15: 45014835 | CR15: =VLOOKUP(CQ15,'WY Stops by Code'!$A:$B, 2, FALSE) -> Ring Road Shadwell | CS15: Roundhay | CT15: =(VLOOKUP(CQ15,'WY Stops by Code'!$A:$F,5,FALSE)+1.72)*10000 -> 2294.5 | CU15: =(53.88-VLOOKUP(CQ15,'WY Stops by Code'!$A:$F,6,FALSE))*17360 -> 588.504 | CV15: Rodley, Coal Hill Lane Bagley Ln, (45012391) | CW15: 45012391 | CX15: =VLOOKUP(CW15,'WY Stops by Code'!$A:$B, 2, FALSE) -> Coal Hill Lane Bagley Lane | CY15: Rodley | CZ15: =(VLOOKUP(CW15,'WY Stops by Code'!$A:$F,5,FALSE)+1.72)*10000 -> 586.4 | DA15: =(53.88-VLOOKUP(CW15,'WY Stops by Code'!$A:$F,6,FALSE))*17360 -> 1120.588 | DB15: Hawksworth, Lea Farm Road Hawkswood Crescent, (45024988) | DC15: 45024988 | DD15: =VLOOKUP(DC15,'WY Stops by Code'!$A:$B, 2, FALSE) -> Lea Farm Road Hawkswood Crescent | DE15: Hawksworth | DF15: =(VLOOKUP(DC15,'WY Stops by Code'!$A:$F,5,FALSE)+1.72)*10000 -> 1051 | DG15: =(53.88-VLOOKUP(DC15,'WY Stops by Code'!$A:$F,6,FALSE))*17360 -> 848.904 | DH15: Oakwood, Easterly Road Hollin Park Mount, (45011022) | DI15: 45011022 | DJ15: =VLOOKUP(DI15,'WY Stops by Code'!$A:$B, 2, FALSE) -> Easterly Road Hollin Park Mount | DK15: Oakwood | DL15: =(VLOOKUP(DI15,'WY Stops by Code'!$A:$F,5,FALSE)+1.72)*10000 -> 2281.2 | DM15: =(53.88-VLOOKUP(DI15,'WY Stops by Code'!$A:$F,6,FALSE))*17360 -> 1002.8872
B16: 56a | C16: codes56a | D16: labels56a | E16: areas56a | F16: xcoords56a | G16: ycoords56a | H16: teal | I16: 56 | J16: West Park, Otley Rd Ancaster Road, (45011143) | K16: 45011143 | L16: =VLOOKUP(K16,'WY Stops by Code'!A:B, 2, FALSE) -> Otley Road Ancaster Road | M16: West Park | N16: =(VLOOKUP(K16,'WY Stops by Code'!$A:$F,5,FALSE)+1.72)*10000 -> 1304.1 | O16: =(53.88-VLOOKUP(K16,'WY Stops by Code'!$A:$F,6,FALSE))*17360 -> 832.412 | P16: Crown Point, Z4 Victoria Road, (45013210) | Q16: 45013210 | R16: =VLOOKUP(Q16,'WY Stops by Code'!A:B, 2, FALSE) -> Z4 Victoria Road | S16: Crown Point | T16: =(VLOOKUP(Q16,'WY Stops by Code'!$A:$F,5,FALSE)+1.72)*10000 -> 1726 | U16: =(53.88-VLOOKUP(Q16,'WY Stops by Code'!$A:$F,6,FALSE))*17360 -> 1540.3528 | V16: Tinshill, Silk Mill Drive Woodnook Drive, (45011511) TP | W16: 45011511 | X16: =VLOOKUP(W16,'WY Stops by Code'!A:B, 2, FALSE) -> Silk Mill Drive Woodnook Drive | Y16: Tinshill | Z16: =(VLOOKUP(W16,'WY Stops by Code'!$A:$F,5,FALSE)+1.72)*10000 -> 947.2 | AA16: =(53.88-VLOOKUP(W16,'WY Stops by Code'!$A:$F,6,FALSE))*17360 -> 605.6904 | AB16: Headingley, Headingley Lane Bainbrigge Rd, (45011368) | AC16: 45011368 | AD16: =VLOOKUP(AC16,'WY Stops by Code'!A:B, 2, FALSE) -> Headingley Lane Bainbrigge Road | AE16: Headingley | AF16: =(VLOOKUP(AC16,'WY Stops by Code'!$A:$F,5,FALSE)+1.72)*10000 -> 1443.9 | AG16: =(53.88-VLOOKUP(AC16,'WY Stops by Code'!$A:$F,6,FALSE))*17360 -> 1054.4464 | AH16: Moortown, Lingfield Hill Lingfield Drive, (45010593) | AI16: 45010593 | AJ16: =VLOOKUP(AI16,'WY Stops by Code'!A:B, 2, FALSE) -> Lingfield Hill Lingfield Drive | AK16: Moortown | AL16: =(VLOOKUP(AI16,'WY Stops by Code'!$A:$F,5,FALSE)+1.72)*10000 -> 1744.6 | AM16: =(53.88-VLOOKUP(AI16,'WY Stops by Code'!$A:$F,6,FALSE))*17360 -> 529.1328 | AN16: Potternewton, Potternewton Lane Miles Hill Rd, (45011171) | AO16: 45011171 | AP16: =VLOOKUP(AO16,'WY Stops by Code'!A:B, 2, FALSE) -> Potternewton Lane Miles Hill Road | AQ16: Potternewton | AR16: =(VLOOKUP(AO16,'WY Stops by Code'!$A:$F,5,FALSE)+1.72)*10000 -> 1685.3 | AS16: =(53.88-VLOOKUP(AO16,'WY Stops by Code'!$A:$F,6,FALSE))*17360 -> 956.3624 | AT16: Headingley, Headingley Lane Bainbrigge Rd, (45011368) | AU16: 45011368 | AV16: =VLOOKUP(AU16,'WY Stops by Code'!$A:$B, 2, FALSE) -> Headingley Lane Bainbrigge Road | AW16: Headingley | AX16: =(VLOOKUP(AU16,'WY Stops by Code'!$A:$F,5,FALSE)+1.72)*10000 -> 1443.9 | AY16: =(53.88-VLOOKUP(AU16,'WY Stops by Code'!$A:$F,6,FALSE))*17360 -> 1054.4464 | AZ16: Yeadon, Harrogate Rd Bayton Lane, (45019758) | BA16: 45019758 | BB16: =VLOOKUP(BA16,'WY Stops by Code'!$A:$B, 2, FALSE) -> Harrogate Road Bayton Lane | BC16: Yeadon | BD16: =(VLOOKUP(BA16,'WY Stops by Code'!$A:$F,5,FALSE)+1.72)*10000 -> 473 | BE16: =(53.88-VLOOKUP(BA16,'WY Stops by Code'!$A:$F,6,FALSE))*17360 -> 293.9048 | BF16: Headingley, Headingley Lane Bainbrigge Rd, (45011368) | BG16: 45011368 | BH16: =VLOOKUP(BG16,'WY Stops by Code'!$A:$B, 2, FALSE) -> Headingley Lane Bainbrigge Road | BI16: Headingley | BJ16: =(VLOOKUP(BG16,'WY Stops by Code'!$A:$F,5,FALSE)+1.72)*10000 -> 1443.9 | BK16: =(53.88-VLOOKUP(BG16,'WY Stops by Code'!$A:$F,6,FALSE))*17360 -> 1054.4464 | BL16: Headingley, Headingley Lane North Grange Rd, (45011369) | BM16: 45011369 | BN16: =VLOOKUP(BM16,'WY Stops by Code'!$A:$B, 2, FALSE) -> Headingley Lane North Grange Road | BO16: Headingley | BP16: =(VLOOKUP(BM16,'WY Stops by Code'!$A:$F,5,FALSE)+1.72)*10000 -> 1515.4 | BQ16: =(53.88-VLOOKUP(BM16,'WY Stops by Code'!$A:$F,6,FALSE))*17360 -> 1098.1936 | BR16: Garforth, Garforth Bridge, (45011656) | BS16: 45011656 | BT16: =VLOOKUP(BS16,'WY Stops by Code'!$A:$B, 2, FALSE) -> Garforth Bridge Garforth | BU16: Garforth | BV16: =(VLOOKUP(BS16,'WY Stops by Code'!$A:$F,5,FALSE)+1.72)*10000 -> 3174.2 | BW16: =(53.88-VLOOKUP(BS16,'WY Stops by Code'!$A:$F,6,FALSE))*17360 -> 1618.6464 | BX16: West Park, Spen Lane Butcher Hill, (45011267) | BY16: 45011267 | BZ16: =VLOOKUP(BY16,'WY Stops by Code'!$A:$B, 2, FALSE) -> Spen Lane Butcher Hill | CA16: West Park | CB16: =(VLOOKUP(BY16,'WY Stops by Code'!$A:$F,5,FALSE)+1.72)*10000 -> 1168.7 | CC16: =(53.88-VLOOKUP(BY16,'WY Stops by Code'!$A:$F,6,FALSE))*17360 -> 805.1568 | CD16: Headingley, Cardigan Road Spring Rd, (45011421) | CE16: 45011421 | CF16: =VLOOKUP(CE16,'WY Stops by Code'!$A:$B, 2, FALSE) -> Cardigan Road Spring Road | CG16: Headingley | CH16: =(VLOOKUP(CE16,'WY Stops by Code'!$A:$F,5,FALSE)+1.72)*10000 -> 1432.6 | CI16: =(53.88-VLOOKUP(CE16,'WY Stops by Code'!$A:$F,6,FALSE))*17360 -> 1101.1448 | CJ16: Swarcliffe, Swarcliffe Avenue Ash Tree Bank, (45012836) | CK16: 45012836 | CL16: =VLOOKUP(CK16,'WY Stops by Code'!$A:$B, 2, FALSE) -> Swarcliffe Avenue Ash Tree Bank | CM16: Swarcliffe | CN16: =(VLOOKUP(CK16,'WY Stops by Code'!$A:$F,5,FALSE)+1.72)*10000 -> 2759.5 | CO16: =(53.88-VLOOKUP(CK16,'WY Stops by Code'!$A:$F,6,FALSE))*17360 -> 1015.3864 | CP16: Roundhay, Ring Rd Roundhay Park Ln, (45012634) | CQ16: 45012634 | CR16: =VLOOKUP(CQ16,'WY Stops by Code'!$A:$B, 2, FALSE) -> Ring Road Shadwell Roundhay Park Lane | CS16: Roundhay | CT16: =(VLOOKUP(CQ16,'WY Stops by Code'!$A:$F,5,FALSE)+1.72)*10000 -> 2187.3 | CU16: =(53.88-VLOOKUP(CQ16,'WY Stops by Code'!$A:$F,6,FALSE))*17360 -> 547.5344 | CV16: Rodley, Coal Hill Lane Intake Ln, (45012390) | CW16: 45012390 | CX16: =VLOOKUP(CW16,'WY Stops by Code'!$A:$B, 2, FALSE) -> Coal Hill Lane Intake Lane | CY16: Rodley | CZ16: =(VLOOKUP(CW16,'WY Stops by Code'!$A:$F,5,FALSE)+1.72)*10000 -> 640.8 | DA16: =(53.88-VLOOKUP(CW16,'WY Stops by Code'!$A:$F,6,FALSE))*17360 -> 1116.0744 | DB16: Hawksworth, Hawkswood Avenue, (45010415) TP | DC16: 45010415 | DD16: =VLOOKUP(DC16,'WY Stops by Code'!$A:$B, 2, FALSE) -> Hawkswood Avenue | DE16: Hawksworth | DF16: =(VLOOKUP(DC16,'WY Stops by Code'!$A:$F,5,FALSE)+1.72)*10000 -> 1038.4 | DG16: =(53.88-VLOOKUP(DC16,'WY Stops by Code'!$A:$F,6,FALSE))*17360 -> 878.7632 | DH16: Oakwood, McDonalds, (45011023) | DI16: 45011023 | DJ16: =VLOOKUP(DI16,'WY Stops by Code'!$A:$B, 2, FALSE) -> McDonalds Oakwood | DK16: Oakwood | DL16: =(VLOOKUP(DI16,'WY Stops by Code'!$A:$F,5,FALSE)+1.72)*10000 -> 2239.5 | DM16: =(53.88-VLOOKUP(DI16,'WY Stops by Code'!$A:$F,6,FALSE))*17360 -> 1025.8024
B17: 56b | C17: codes56b | D17: labels56b | E17: areas56b | F17: xcoords56b | G17: ycoords56b | H17: teal | I17: 56 | J17: Headingley, Headingley Lane Glen Rd, (45011145) | K17: 45011145 | L17: =VLOOKUP(K17,'WY Stops by Code'!A:B, 2, FALSE) -> Headingley Lane Glen Road | M17: Headingley | N17: =(VLOOKUP(K17,'WY Stops by Code'!$A:$F,5,FALSE)+1.72)*10000 -> 1343.7 | O17: =(53.88-VLOOKUP(K17,'WY Stops by Code'!$A:$F,6,FALSE))*17360 -> 868.868 | P17: Leeds City Centre, Z1 Bishopgate Street, (45011026) | Q17: 45011026 | R17: =VLOOKUP(Q17,'WY Stops by Code'!A:B, 2, FALSE) -> Z1 Bishopgate Street | S17: Leeds City Centre | T17: =(VLOOKUP(Q17,'WY Stops by Code'!$A:$F,5,FALSE)+1.72)*10000 -> 1730.3 | U17: =(53.88-VLOOKUP(Q17,'WY Stops by Code'!$A:$F,6,FALSE))*17360 -> 1466.5728 | V17: Tinshill, Silk Mill Drive Silk Mill Road, (45011513) | W17: 45011513 | X17: =VLOOKUP(W17,'WY Stops by Code'!A:B, 2, FALSE) -> Silk Mill Drive Silk Mill Road | Y17: Tinshill | Z17: =(VLOOKUP(W17,'WY Stops by Code'!$A:$F,5,FALSE)+1.72)*10000 -> 983.3 | AA17: =(53.88-VLOOKUP(W17,'WY Stops by Code'!$A:$F,6,FALSE))*17360 -> 604.8224 | AB17: Headingley, Arndale Centre, (45011366) TP | AC17: 45011366 | AD17: =VLOOKUP(AC17,'WY Stops by Code'!A:B, 2, FALSE) -> Headingley Arndale Centre | AE17: Headingley | AF17: =(VLOOKUP(AC17,'WY Stops by Code'!$A:$F,5,FALSE)+1.72)*10000 -> 1411.6 | AG17: =(53.88-VLOOKUP(AC17,'WY Stops by Code'!$A:$F,6,FALSE))*17360 -> 1002.8872 | AH17: Moortown, King Lane Park & Ride, (45010939) TP | AI17: 45010939 | AJ17: =VLOOKUP(AI17,'WY Stops by Code'!A:B, 2, FALSE) -> King Lane Park And Ride | AK17: Moortown | AL17: =(VLOOKUP(AI17,'WY Stops by Code'!$A:$F,5,FALSE)+1.72)*10000 -> 1678.1 | AM17: =(53.88-VLOOKUP(AI17,'WY Stops by Code'!$A:$F,6,FALSE))*17360 -> 534.8616 | AN17: Meanwood, Potternewton Lane, (45010863) | AO17: 45010863 | AP17: =VLOOKUP(AO17,'WY Stops by Code'!A:B, 2, FALSE) -> Potternewton Lane | AQ17: Meanwood | AR17: =(VLOOKUP(AO17,'WY Stops by Code'!$A:$F,5,FALSE)+1.72)*10000 -> 1644.7 | AS17: =(53.88-VLOOKUP(AO17,'WY Stops by Code'!$A:$F,6,FALSE))*17360 -> 955.4944 | AT17: Headingley, Arndale Centre, (45011366) TP | AU17: 45011366 | AV17: =VLOOKUP(AU17,'WY Stops by Code'!$A:$B, 2, FALSE) -> Headingley Arndale Centre | AW17: Headingley | AX17: =(VLOOKUP(AU17,'WY Stops by Code'!$A:$F,5,FALSE)+1.72)*10000 -> 1411.6 | AY17: =(53.88-VLOOKUP(AU17,'WY Stops by Code'!$A:$F,6,FALSE))*17360 -> 1002.8872 | AZ17: Yeadon, Harrogate Rd Green Lane, (45019770) | BA17: 45019770 | BB17: =VLOOKUP(BA17,'WY Stops by Code'!$A:$B, 2, FALSE) -> Harrogate Road Green Lane | BC17: Yeadon | BD17: =(VLOOKUP(BA17,'WY Stops by Code'!$A:$F,5,FALSE)+1.72)*10000 -> 433.6 | BE17: =(53.88-VLOOKUP(BA17,'WY Stops by Code'!$A:$F,6,FALSE))*17360 -> 349.6304 | BF17: Headingley, Arndale Centre, (45011366) TP | BG17: 45011366 | BH17: =VLOOKUP(BG17,'WY Stops by Code'!$A:$B, 2, FALSE) -> Headingley Arndale Centre | BI17: Headingley | BJ17: =(VLOOKUP(BG17,'WY Stops by Code'!$A:$F,5,FALSE)+1.72)*10000 -> 1411.6 | BK17: =(53.88-VLOOKUP(BG17,'WY Stops by Code'!$A:$F,6,FALSE))*17360 -> 1002.8872 | BL17: Hyde Park Corner, Headingley Ln Cumberland Road, (45011373) | BM17: 45011373 | BN17: =VLOOKUP(BM17,'WY Stops by Code'!$A:$B, 2, FALSE) -> Headingley Lane Cumberland Road | BO17: Hyde Park Corner | BP17: =(VLOOKUP(BM17,'WY Stops by Code'!$A:$F,5,FALSE)+1.72)*10000 -> 1550.2 | BQ17: =(53.88-VLOOKUP(BM17,'WY Stops by Code'!$A:$F,6,FALSE))*17360 -> 1111.7344 | BR17: Garforth, Selby Road Waterloo Manor, (45011311) | BS17: 45011311 | BT17: =VLOOKUP(BS17,'WY Stops by Code'!$A:$B, 2, FALSE) -> Selby Road | BU17: Garforth | BV17: =(VLOOKUP(BS17,'WY Stops by Code'!$A:$F,5,FALSE)+1.72)*10000 -> 3097.3 | BW17: =(53.88-VLOOKUP(BS17,'WY Stops by Code'!$A:$F,6,FALSE))*17360 -> 1606.4944 | BX17: West Park, Queenswood Drive Spen Ln, (45010406) | BY17: 45010406 | BZ17: =VLOOKUP(BY17,'WY Stops by Code'!$A:$B, 2, FALSE) -> Queenswood Drive Spen Lane | CA17: West Park | CB17: =(VLOOKUP(BY17,'WY Stops by Code'!$A:$F,5,FALSE)+1.72)*10000 -> 1162 | CC17: =(53.88-VLOOKUP(BY17,'WY Stops by Code'!$A:$F,6,FALSE))*17360 -> 864.1808 | CD17: Hyde Park, Victoria Rd Norwood Terrace, (45011427) | CE17: 45011427 | CF17: =VLOOKUP(CE17,'WY Stops by Code'!$A:$B, 2, FALSE) -> Victoria Road Norwood Terrace | CG17: Hyde Park | CH17: =(VLOOKUP(CE17,'WY Stops by Code'!$A:$F,5,FALSE)+1.72)*10000 -> 1451.3 | CI17: =(53.88-VLOOKUP(CE17,'WY Stops by Code'!$A:$F,6,FALSE))*17360 -> 1139.3368 | CJ17: Swarcliffe, Swarcliffe Ave at Stanks Lane North, (45010528) | CK17: 45010528 | CL17: =VLOOKUP(CK17,'WY Stops by Code'!$A:$B, 2, FALSE) -> Swarcliffe Avenue Stanks Gardens | CM17: Swarcliffe | CN17: =(VLOOKUP(CK17,'WY Stops by Code'!$A:$F,5,FALSE)+1.72)*10000 -> 2738.1 | CO17: =(53.88-VLOOKUP(CK17,'WY Stops by Code'!$A:$F,6,FALSE))*17360 -> 1035.3504 | CP17: Moortown, Ring Road Birchwood Hill, (45012628) | CQ17: 45012628 | CR17: =VLOOKUP(CQ17,'WY Stops by Code'!$A:$B, 2, FALSE) -> Ring Road Moortown Birchwood Hill | CS17: Moortown | CT17: =(VLOOKUP(CQ17,'WY Stops by Code'!$A:$F,5,FALSE)+1.72)*10000 -> 2061.9 | CU17: =(53.88-VLOOKUP(CQ17,'WY Stops by Code'!$A:$F,6,FALSE))*17360 -> 528.0912 | CV17: Rodley, Coal Hill Lane Calverley Ln, (45012343) | CW17: 45012343 | CX17: =VLOOKUP(CW17,'WY Stops by Code'!$A:$B, 2, FALSE) -> Coal Hill Lane Calverley Lane | CY17: Rodley | CZ17: =(VLOOKUP(CW17,'WY Stops by Code'!$A:$F,5,FALSE)+1.72)*10000 -> 663.5 | DA17: =(53.88-VLOOKUP(CW17,'WY Stops by Code'!$A:$F,6,FALSE))*17360 -> 1102.5336 | DB17: Hawksworth, Vesper Road Broadway, (45011279) | DC17: 45011279 | DD17: =VLOOKUP(DC17,'WY Stops by Code'!$A:$B, 2, FALSE) -> Vesper Road Broadway | DE17: Hawksworth | DF17: =(VLOOKUP(DC17,'WY Stops by Code'!$A:$F,5,FALSE)+1.72)*10000 -> 1044.4 | DG17: =(53.88-VLOOKUP(DC17,'WY Stops by Code'!$A:$F,6,FALSE))*17360 -> 908.9696 | DH17: Oakwood, Easterley Road Hetton Rd, (45011024) | DI17: 45011024 | DJ17: =VLOOKUP(DI17,'WY Stops by Code'!$A:$B, 2, FALSE) -> Easterley Road Hetton Road | DK17: Oakwood | DL17: =(VLOOKUP(DI17,'WY Stops by Code'!$A:$F,5,FALSE)+1.72)*10000 -> 2183.1 | DM17: =(53.88-VLOOKUP(DI17,'WY Stops by Code'!$A:$F,6,FALSE))*17360 -> 1056.356
B18: 8a | C18: codes8a | D18: labels8a | E18: areas8a | F18: xcoords8a | G18: ycoords8a | H18: blue | I18: 8 | J18: Headingley, Otley Rd St Chads Road, (45011147) | K18: 45011147 | L18: =VLOOKUP(K18,'WY Stops by Code'!A:B, 2, FALSE) -> Otley Road St Chads Road | M18: Headingley | N18: =(VLOOKUP(K18,'WY Stops by Code'!$A:$F,5,FALSE)+1.72)*10000 -> 1369.4 | O18: =(53.88-VLOOKUP(K18,'WY Stops by Code'!$A:$F,6,FALSE))*17360 -> 903.7616 | P18: Leeds City Centre, B Infirmary Street, (45025317) TP | Q18: 45025317 | R18: =VLOOKUP(Q18,'WY Stops by Code'!A:B, 2, FALSE) -> B Infirmary Street | S18: Leeds City Centre | T18: =(VLOOKUP(Q18,'WY Stops by Code'!$A:$F,5,FALSE)+1.72)*10000 -> 1712.1 | U18: =(53.88-VLOOKUP(Q18,'WY Stops by Code'!$A:$F,6,FALSE))*17360 -> 1428.9016 | V18: Tinshill, Silk Mill Drive Silk Mill Ave, (45011526) | W18: 45011526 | X18: =VLOOKUP(W18,'WY Stops by Code'!A:B, 2, FALSE) -> Silk Mill Drive Silk Mill Avenue | Y18: Tinshill | Z18: =(VLOOKUP(W18,'WY Stops by Code'!$A:$F,5,FALSE)+1.72)*10000 -> 1006.5 | AA18: =(53.88-VLOOKUP(W18,'WY Stops by Code'!$A:$F,6,FALSE))*17360 -> 572.88 | AB18: Headingley, Otley Rd St Annes Road, (45011166) | AC18: 45011166 | AD18: =VLOOKUP(AC18,'WY Stops by Code'!A:B, 2, FALSE) -> Otley Road St Annes Road | AE18: Headingley | AF18: =(VLOOKUP(AC18,'WY Stops by Code'!$A:$F,5,FALSE)+1.72)*10000 -> 1392.9 | AG18: =(53.88-VLOOKUP(AC18,'WY Stops by Code'!$A:$F,6,FALSE))*17360 -> 965.5632 | AH18: Moortown, King Lane Moor Allerton Centre, (45010940) | AI18: 45010940 | AJ18: =VLOOKUP(AI18,'WY Stops by Code'!A:B, 2, FALSE) -> King Lane Moortown | AK18: Moortown | AL18: =(VLOOKUP(AI18,'WY Stops by Code'!$A:$F,5,FALSE)+1.72)*10000 -> 1708.1 | AM18: =(53.88-VLOOKUP(AI18,'WY Stops by Code'!$A:$F,6,FALSE))*17360 -> 588.8512 | AN18: Meanwood, Stainbeck Rd Stainbeck Avenue, (45010858) | AO18: 45010858 | AP18: =VLOOKUP(AO18,'WY Stops by Code'!A:B, 2, FALSE) -> Stainbeck Road Stainbeck Avenue | AQ18: Meanwood | AR18: =(VLOOKUP(AO18,'WY Stops by Code'!$A:$F,5,FALSE)+1.72)*10000 -> 1594.7 | AS18: =(53.88-VLOOKUP(AO18,'WY Stops by Code'!$A:$F,6,FALSE))*17360 -> 910.3584 | AT18: Headingley, Otley Rd St Annes Road, (45011166) | AU18: 45011166 | AV18: =VLOOKUP(AU18,'WY Stops by Code'!$A:$B, 2, FALSE) -> Otley Road St Annes Road | AW18: Headingley | AX18: =(VLOOKUP(AU18,'WY Stops by Code'!$A:$F,5,FALSE)+1.72)*10000 -> 1392.9 | AY18: =(53.88-VLOOKUP(AU18,'WY Stops by Code'!$A:$F,6,FALSE))*17360 -> 965.5632 | AZ18: Rawdon, Canada Road Harrogate Rd, (45023836) | BA18: 45023836 | BB18: =VLOOKUP(BA18,'WY Stops by Code'!$A:$B, 2, FALSE) -> Canada Road Harrogate Road | BC18: Rawdon | BD18: =(VLOOKUP(BA18,'WY Stops by Code'!$A:$F,5,FALSE)+1.72)*10000 -> 407.1 | BE18: =(53.88-VLOOKUP(BA18,'WY Stops by Code'!$A:$F,6,FALSE))*17360 -> 395.6344 | BF18: Headingley, Otley Rd St Annes Road, (45011166) | BG18: 45011166 | BH18: =VLOOKUP(BG18,'WY Stops by Code'!$A:$B, 2, FALSE) -> Otley Road St Annes Road | BI18: Headingley | BJ18: =(VLOOKUP(BG18,'WY Stops by Code'!$A:$F,5,FALSE)+1.72)*10000 -> 1392.9 | BK18: =(53.88-VLOOKUP(BG18,'WY Stops by Code'!$A:$F,6,FALSE))*17360 -> 965.5632 | BL18: Hyde Park Corner, (45011375) | BM18: 45011375 | BN18: =VLOOKUP(BM18,'WY Stops by Code'!$A:$B, 2, FALSE) -> Hyde Park Corner | BO18: Hyde Park Corner | BP18: =(VLOOKUP(BM18,'WY Stops by Code'!$A:$F,5,FALSE)+1.72)*10000 -> 1594.2 | BQ18: =(53.88-VLOOKUP(BM18,'WY Stops by Code'!$A:$F,6,FALSE))*17360 -> 1144.892 | BR18: Swillington Common, Selby Rd Swillington Lane, (45010245) | BS18: 45010245 | BT18: =VLOOKUP(BS18,'WY Stops by Code'!$A:$B, 2, FALSE) -> Swillington Common | BU18: Swillington Common | BV18: =(VLOOKUP(BS18,'WY Stops by Code'!$A:$F,5,FALSE)+1.72)*10000 -> 3012.7 | BW18: =(53.88-VLOOKUP(BS18,'WY Stops by Code'!$A:$F,6,FALSE))*17360 -> 1574.7256 | BX18: West Park, Queenswood Drive Premier Roofing Ltd, (45010405) | BY18: 45010405 | BZ18: =VLOOKUP(BY18,'WY Stops by Code'!$A:$B, 2, FALSE) -> Queenswood Drive Premier Roofing Ltd | CA18: West Park | CB18: =(VLOOKUP(BY18,'WY Stops by Code'!$A:$F,5,FALSE)+1.72)*10000 -> 1181.8 | CC18: =(53.88-VLOOKUP(BY18,'WY Stops by Code'!$A:$F,6,FALSE))*17360 -> 899.9424 | CD18: Hyde Park, Victoria Rd Buckingham Road, (45011431)TP | CE18: 45011431 | CF18: =VLOOKUP(CE18,'WY Stops by Code'!$A:$B, 2, FALSE) -> Victoria Road Buckingham Road | CG18: Hyde Park | CH18: =(VLOOKUP(CE18,'WY Stops by Code'!$A:$F,5,FALSE)+1.72)*10000 -> 1504.8 | CI18: =(53.88-VLOOKUP(CE18,'WY Stops by Code'!$A:$F,6,FALSE))*17360 -> 1133.4344 | CJ18: Swarcliffe, Stanks Lane North, (45010534) | CK18: 45010534 | CL18: =VLOOKUP(CK18,'WY Stops by Code'!$A:$B, 2, FALSE) -> Stanks Lane North | CM18: Swarcliffe | CN18: =(VLOOKUP(CK18,'WY Stops by Code'!$A:$F,5,FALSE)+1.72)*10000 -> 2696.2 | CO18: =(53.88-VLOOKUP(CK18,'WY Stops by Code'!$A:$F,6,FALSE))*17360 -> 1007.0536 | CP18: Moortown, Ring Road Birchwood Hill, (45013115) | CQ18: 45013115 | CR18: =VLOOKUP(CQ18,'WY Stops by Code'!$A:$B, 2, FALSE) -> Ring Road Moortown Birchwood Hill | CS18: Moortown | CT18: =(VLOOKUP(CQ18,'WY Stops by Code'!$A:$F,5,FALSE)+1.72)*10000 -> 2032.7 | CU18: =(53.88-VLOOKUP(CQ18,'WY Stops by Code'!$A:$F,6,FALSE))*17360 -> 528.4384 | CV18: Rodley, Coal Hill Lane Town St, (45012340) | CW18: 45012340 | CX18: =VLOOKUP(CW18,'WY Stops by Code'!$A:$B, 2, FALSE) -> Coal Hill Lane Town Street | CY18: Rodley | CZ18: =(VLOOKUP(CW18,'WY Stops by Code'!$A:$F,5,FALSE)+1.72)*10000 -> 681.6 | DA18: =(53.88-VLOOKUP(CW18,'WY Stops by Code'!$A:$F,6,FALSE))*17360 -> 1065.3832 | DB18: Hawksworth, Vesper Rd Lea Farm Road, (45010417) | DC18: 45010417 | DD18: =VLOOKUP(DC18,'WY Stops by Code'!$A:$B, 2, FALSE) -> Vesper Road Lea Farm Road | DE18: Hawksworth | DF18: =(VLOOKUP(DC18,'WY Stops by Code'!$A:$F,5,FALSE)+1.72)*10000 -> 1081.6 | DG18: =(53.88-VLOOKUP(DC18,'WY Stops by Code'!$A:$F,6,FALSE))*17360 -> 922.8576 | DH18: Oakwood, Easterley Road Amberton Rd, (45011025) | DI18: 45011025 | DJ18: =VLOOKUP(DI18,'WY Stops by Code'!$A:$B, 2, FALSE) -> Easterley Road Amberton Road | DK18: Oakwood | DL18: =(VLOOKUP(DI18,'WY Stops by Code'!$A:$F,5,FALSE)+1.72)*10000 -> 2146.9 | DM18: =(53.88-VLOOKUP(DI18,'WY Stops by Code'!$A:$F,6,FALSE))*17360 -> 1076.1464
B19: 8b | C19: codes8b | D19: labels8b | E19: areas8b | F19: xcoords8b | G19: ycoords8b | H19: blue | I19: 8 | J19: Headingley, Otley Rd St Chads Drive, (45011149) | K19: 45011149 | L19: =VLOOKUP(K19,'WY Stops by Code'!A:B, 2, FALSE) -> Otley Road St Chads Drive | M19: Headingley | N19: =(VLOOKUP(K19,'WY Stops by Code'!$A:$F,5,FALSE)+1.72)*10000 -> 1389.2 | O19: =(53.88-VLOOKUP(K19,'WY Stops by Code'!$A:$F,6,FALSE))*17360 -> 950.2864 | P19: Leeds City Centre, J3 Albion Street, (45010921) TP | Q19: 45010921 | R19: =VLOOKUP(Q19,'WY Stops by Code'!A:B, 2, FALSE) -> J3 Albion Street | S19: Leeds City Centre | T19: =(VLOOKUP(Q19,'WY Stops by Code'!$A:$F,5,FALSE)+1.72)*10000 -> 1750.4 | U19: =(53.88-VLOOKUP(Q19,'WY Stops by Code'!$A:$F,6,FALSE))*17360 -> 1379.4256 | V19: Tinshill, Silk Mill Drive Woodnook Drive, (45011529) | W19: 45011529 | X19: =VLOOKUP(W19,'WY Stops by Code'!A:B, 2, FALSE) -> Silk Mill Drive Woodnook Drive | Y19: Tinshill | Z19: =(VLOOKUP(W19,'WY Stops by Code'!$A:$F,5,FALSE)+1.72)*10000 -> 997.4 | AA19: =(53.88-VLOOKUP(W19,'WY Stops by Code'!$A:$F,6,FALSE))*17360 -> 540.764 | AB19: Headingley, Otley Rd St Chads Drive, (45011164) | AC19: 45011164 | AD19: =VLOOKUP(AC19,'WY Stops by Code'!A:B, 2, FALSE) -> Otley Road St Chads Drive | AE19: Headingley | AF19: =(VLOOKUP(AC19,'WY Stops by Code'!$A:$F,5,FALSE)+1.72)*10000 -> 1383.2 | AG19: =(53.88-VLOOKUP(AC19,'WY Stops by Code'!$A:$F,6,FALSE))*17360 -> 941.6064 | AH19: Moortown, King Ln Leafield Drive, (45010941) | AI19: 45010941 | AJ19: =VLOOKUP(AI19,'WY Stops by Code'!A:B, 2, FALSE) -> King Lane Moortown | AK19: Moortown | AL19: =(VLOOKUP(AI19,'WY Stops by Code'!$A:$F,5,FALSE)+1.72)*10000 -> 1724.8 | AM19: =(53.88-VLOOKUP(AI19,'WY Stops by Code'!$A:$F,6,FALSE))*17360 -> 607.9472 | AN19: Meanwood, Stainbeck Rd Stonegate Crescent, (45011124) | AO19: 45011124 | AP19: =VLOOKUP(AO19,'WY Stops by Code'!A:B, 2, FALSE) -> Stainbeck Road Stonegate Crescent | AQ19: Meanwood | AR19: =(VLOOKUP(AO19,'WY Stops by Code'!$A:$F,5,FALSE)+1.72)*10000 -> 1617.3 | AS19: =(53.88-VLOOKUP(AO19,'WY Stops by Code'!$A:$F,6,FALSE))*17360 -> 874.076 | AT19: Headingley, Otley Rd St Chads Drive, (45011164) | AU19: 45011164 | AV19: =VLOOKUP(AU19,'WY Stops by Code'!$A:$B, 2, FALSE) -> Otley Road St Chads Drive | AW19: Headingley | AX19: =(VLOOKUP(AU19,'WY Stops by Code'!$A:$F,5,FALSE)+1.72)*10000 -> 1383.2 | AY19: =(53.88-VLOOKUP(AU19,'WY Stops by Code'!$A:$F,6,FALSE))*17360 -> 941.6064 | AZ19: Rawdon, Canada Road Larkfield Crescent, (45019773) | BA19: 45019773 | BB19: =VLOOKUP(BA19,'WY Stops by Code'!$A:$B, 2, FALSE) -> Canada Road Larkfield Crescent | BC19: Rawdon | BD19: =(VLOOKUP(BA19,'WY Stops by Code'!$A:$F,5,FALSE)+1.72)*10000 -> 430.3 | BE19: =(53.88-VLOOKUP(BA19,'WY Stops by Code'!$A:$F,6,FALSE))*17360 -> 424.452 | BF19: Headingley, Otley Rd St Chads Drive, (45011164) | BG19: 45011164 | BH19: =VLOOKUP(BG19,'WY Stops by Code'!$A:$B, 2, FALSE) -> Otley Road St Chads Drive | BI19: Headingley | BJ19: =(VLOOKUP(BG19,'WY Stops by Code'!$A:$F,5,FALSE)+1.72)*10000 -> 1383.2 | BK19: =(53.88-VLOOKUP(BG19,'WY Stops by Code'!$A:$F,6,FALSE))*17360 -> 941.6064 | BL19: Woodhouse, Woodhouse Lane Clarendon Rd, (45011382) | BM19: 45011382 | BN19: =VLOOKUP(BM19,'WY Stops by Code'!$A:$B, 2, FALSE) -> Woodhouse Lane Clarendon Road | BO19: Woodhouse | BP19: =(VLOOKUP(BM19,'WY Stops by Code'!$A:$F,5,FALSE)+1.72)*10000 -> 1639 | BQ19: =(53.88-VLOOKUP(BM19,'WY Stops by Code'!$A:$F,6,FALSE))*17360 -> 1203.7424 | BR19: Colton, Selby Road Thorpe Park Business Park, (45028894) | BS19: 45028894 | BT19: =VLOOKUP(BS19,'WY Stops by Code'!$A:$B, 2, FALSE) -> Selby Road Thorpe Park Business Park | BU19: Colton | BV19: =(VLOOKUP(BS19,'WY Stops by Code'!$A:$F,5,FALSE)+1.72)*10000 -> 2904.2 | BW19: =(53.88-VLOOKUP(BS19,'WY Stops by Code'!$A:$F,6,FALSE))*17360 -> 1511.7088 | BX19: Beckett Park, Queenswood Dri Woodbridge Crescent, (45011274) | BY19: 45011274 | BZ19: =VLOOKUP(BY19,'WY Stops by Code'!$A:$B, 2, FALSE) -> Queenswood Drive Woodbridge Crescent | CA19: Beckett Park | CB19: =(VLOOKUP(BY19,'WY Stops by Code'!$A:$F,5,FALSE)+1.72)*10000 -> 1183.6 | CC19: =(53.88-VLOOKUP(BY19,'WY Stops by Code'!$A:$F,6,FALSE))*17360 -> 960.5288 | CD19: Hyde Park, Queens Rd Brudenell Road, (45010421) | CE19: 45010421 | CF19: =VLOOKUP(CE19,'WY Stops by Code'!$A:$B, 2, FALSE) -> Queens Road Brudenell Road | CG19: Hyde Park | CH19: =(VLOOKUP(CE19,'WY Stops by Code'!$A:$F,5,FALSE)+1.72)*10000 -> 1509.1 | CI19: =(53.88-VLOOKUP(CE19,'WY Stops by Code'!$A:$F,6,FALSE))*17360 -> 1178.744 | CJ19: Swarcliffe, Swarcliffe Dr Mill Green Place, (45010533) | CK19: 45010533 | CL19: =VLOOKUP(CK19,'WY Stops by Code'!$A:$B, 2, FALSE) -> Swarcliffe Drive Mill Green Place | CM19: Swarcliffe | CN19: =(VLOOKUP(CK19,'WY Stops by Code'!$A:$F,5,FALSE)+1.72)*10000 -> 2679.9 | CO19: =(53.88-VLOOKUP(CK19,'WY Stops by Code'!$A:$F,6,FALSE))*17360 -> 1037.9544 | CP19: Moortown, Ring Rd Shadwell Lane, (45013114) | CQ19: 45013114 | CR19: =VLOOKUP(CQ19,'WY Stops by Code'!$A:$B, 2, FALSE) -> Ring Road Moortown Shadwell Lane | CS19: Moortown | CT19: =(VLOOKUP(CQ19,'WY Stops by Code'!$A:$F,5,FALSE)+1.72)*10000 -> 1917.2 | CU19: =(53.88-VLOOKUP(CQ19,'WY Stops by Code'!$A:$F,6,FALSE))*17360 -> 541.1112 | CV19: Rodley, Town Street Airedale Wharf, (45012597) | CW19: 45012597 | CX19: =VLOOKUP(CW19,'WY Stops by Code'!$A:$B, 2, FALSE) -> Town Street Airedale Wharf | CY19: Rodley | CZ19: =(VLOOKUP(CW19,'WY Stops by Code'!$A:$F,5,FALSE)+1.72)*10000 -> 665 | DA19: =(53.88-VLOOKUP(CW19,'WY Stops by Code'!$A:$F,6,FALSE))*17360 -> 1045.94 | DB19: Hawksworth, Vesper Rd Lea Farm Drive, (45010418) | DC19: 45010418 | DD19: =VLOOKUP(DC19,'WY Stops by Code'!$A:$B, 2, FALSE) -> Vesper Road Lea Farm Drive | DE19: Hawksworth | DF19: =(VLOOKUP(DC19,'WY Stops by Code'!$A:$F,5,FALSE)+1.72)*10000 -> 1129 | DG19: =(53.88-VLOOKUP(DC19,'WY Stops by Code'!$A:$F,6,FALSE))*17360 -> 941.9536 | DH19: Harehills, Easterley Road, (45013933) | DI19: 45013933 | DJ19: =VLOOKUP(DI19,'WY Stops by Code'!$A:$B, 2, FALSE) -> Easterley Road | DK19: Harehills | DL19: =(VLOOKUP(DI19,'WY Stops by Code'!$A:$F,5,FALSE)+1.72)*10000 -> 2093.5 | DM19: =(53.88-VLOOKUP(DI19,'WY Stops by Code'!$A:$F,6,FALSE))*17360 -> 1090.3816
J20: Headingley, Arndale Centre, (45011363) TP | K20: 45011363 | L20: =VLOOKUP(K20,'WY Stops by Code'!A:B, 2, FALSE) -> Headingley Arndale Centre | M20: Headingley | N20: =(VLOOKUP(K20,'WY Stops by Code'!$A:$F,5,FALSE)+1.72)*10000 -> 1415.3 | O20: =(53.88-VLOOKUP(K20,'WY Stops by Code'!$A:$F,6,FALSE))*17360 -> 1003.7552 | P20: Leeds City Centre, L2 Woodhouse Lane, (45010915) | Q20: 45010915 | R20: =VLOOKUP(Q20,'WY Stops by Code'!A:B, 2, FALSE) -> L2 Woodhouse Lane | S20: Leeds City Centre | T20: =(VLOOKUP(Q20,'WY Stops by Code'!$A:$F,5,FALSE)+1.72)*10000 -> 1742.1 | U20: =(53.88-VLOOKUP(Q20,'WY Stops by Code'!$A:$F,6,FALSE))*17360 -> 1349.3928 | V20: Tinshill, Tinshill Lane Tinshill Avenue, (45011528) | W20: 45011528 | X20: =VLOOKUP(W20,'WY Stops by Code'!A:B, 2, FALSE) -> Tinshill Lane Tinshill Avenue | Y20: Tinshill | Z20: =(VLOOKUP(W20,'WY Stops by Code'!$A:$F,5,FALSE)+1.72)*10000 -> 1024.2 | AA20: =(53.88-VLOOKUP(W20,'WY Stops by Code'!$A:$F,6,FALSE))*17360 -> 502.2248 | AB20: Headingley, Otley Rd St Chads Road, (45011148) | AC20: 45011148 | AD20: =VLOOKUP(AC20,'WY Stops by Code'!A:B, 2, FALSE) -> Otley Road St Chads Road | AE20: Headingley | AF20: =(VLOOKUP(AC20,'WY Stops by Code'!$A:$F,5,FALSE)+1.72)*10000 -> 1364.7 | AG20: =(53.88-VLOOKUP(AC20,'WY Stops by Code'!$A:$F,6,FALSE))*17360 -> 901.3312 | AH20: Moortown, King Lane Stonegate Rd, (45010587) | AI20: 45010587 | AJ20: =VLOOKUP(AI20,'WY Stops by Code'!A:B, 2, FALSE) -> King Lane Stonegate Road | AK20: Moortown | AL20: =(VLOOKUP(AI20,'WY Stops by Code'!$A:$F,5,FALSE)+1.72)*10000 -> 1747.6 | AM20: =(53.88-VLOOKUP(AI20,'WY Stops by Code'!$A:$F,6,FALSE))*17360 -> 651.6944 | AN20: Meanwood, Stainbeck Rd Bowood Crescent, (45010860) | AO20: 45010860 | AP20: =VLOOKUP(AO20,'WY Stops by Code'!A:B, 2, FALSE) -> Stainbeck Road Bowood Crescent | AQ20: Meanwood | AR20: =(VLOOKUP(AO20,'WY Stops by Code'!$A:$F,5,FALSE)+1.72)*10000 -> 1645.2 | AS20: =(53.88-VLOOKUP(AO20,'WY Stops by Code'!$A:$F,6,FALSE))*17360 -> 850.9872 | AT20: Headingley, Otley Rd St Chads Road, (45011148) | AU20: 45011148 | AV20: =VLOOKUP(AU20,'WY Stops by Code'!$A:$B, 2, FALSE) -> Otley Road St Chads Road | AW20: Headingley | AX20: =(VLOOKUP(AU20,'WY Stops by Code'!$A:$F,5,FALSE)+1.72)*10000 -> 1364.7 | AY20: =(53.88-VLOOKUP(AU20,'WY Stops by Code'!$A:$F,6,FALSE))*17360 -> 901.3312 | AZ20: Rawdon, Larkfield Road Larkfield Mount, (45019775) | BA20: 45019775 | BB20: =VLOOKUP(BA20,'WY Stops by Code'!$A:$B, 2, FALSE) -> Larkfield Road Larkfield Mount | BC20: Rawdon | BD20: =(VLOOKUP(BA20,'WY Stops by Code'!$A:$F,5,FALSE)+1.72)*10000 -> 428.6 | BE20: =(53.88-VLOOKUP(BA20,'WY Stops by Code'!$A:$F,6,FALSE))*17360 -> 483.1288 | BF20: Headingley, Otley Rd St Chads Road, (45011148) | BG20: 45011148 | BH20: =VLOOKUP(BG20,'WY Stops by Code'!$A:$B, 2, FALSE) -> Otley Road St Chads Road | BI20: Headingley | BJ20: =(VLOOKUP(BG20,'WY Stops by Code'!$A:$F,5,FALSE)+1.72)*10000 -> 1364.7 | BK20: =(53.88-VLOOKUP(BG20,'WY Stops by Code'!$A:$F,6,FALSE))*17360 -> 901.3312 | BL20: Woodhouse, Woodhouse La St Marks Street, (45011384) | BM20: 45011384 | BN20: =VLOOKUP(BM20,'WY Stops by Code'!$A:$B, 2, FALSE) -> Woodhouse Lane St Marks Street | BO20: Woodhouse | BP20: =(VLOOKUP(BM20,'WY Stops by Code'!$A:$F,5,FALSE)+1.72)*10000 -> 1660.6 | BQ20: =(53.88-VLOOKUP(BM20,'WY Stops by Code'!$A:$F,6,FALSE))*17360 -> 1222.3176 | BR20: Colton, Stile Hill Way, (45011214) | BS20: 45011214 | BT20: =VLOOKUP(BS20,'WY Stops by Code'!$A:$B, 2, FALSE) -> Stile Hill Way Colton | BU20: Colton | BV20: =(VLOOKUP(BS20,'WY Stops by Code'!$A:$F,5,FALSE)+1.72)*10000 -> 2877 | BW20: =(53.88-VLOOKUP(BS20,'WY Stops by Code'!$A:$F,6,FALSE))*17360 -> 1532.1936 | BX20: Beckett Park, Queenswood Drive Woodbridge Road, (45010403) | BY20: 45010403 | BZ20: =VLOOKUP(BY20,'WY Stops by Code'!$A:$B, 2, FALSE) -> Queenswood Drive Queenswood Road | CA20: Beckett Park | CB20: =(VLOOKUP(BY20,'WY Stops by Code'!$A:$F,5,FALSE)+1.72)*10000 -> 1210.9 | CC20: =(53.88-VLOOKUP(BY20,'WY Stops by Code'!$A:$F,6,FALSE))*17360 -> 997.332 | CD20: Hyde Park, Royal Park Road Brundenell Mount, (45011433) | CE20: 45011433 | CF20: =VLOOKUP(CE20,'WY Stops by Code'!$A:$B, 2, FALSE) -> Royal Park Road Brundenell Mount | CG20: Hyde Park | CH20: =(VLOOKUP(CE20,'WY Stops by Code'!$A:$F,5,FALSE)+1.72)*10000 -> 1509.5 | CI20: =(53.88-VLOOKUP(CE20,'WY Stops by Code'!$A:$F,6,FALSE))*17360 -> 1206.6936 | CJ20: Swarcliffe, Swarcliffe Drive Swarcliffe Approach, (45010532) | CK20: 45010532 | CL20: =VLOOKUP(CK20,'WY Stops by Code'!$A:$B, 2, FALSE) -> Swarcliffe Drive Swarcliffe Approach | CM20: Swarcliffe | CN20: =(VLOOKUP(CK20,'WY Stops by Code'!$A:$F,5,FALSE)+1.72)*10000 -> 2680.6 | CO20: =(53.88-VLOOKUP(CK20,'WY Stops by Code'!$A:$F,6,FALSE))*17360 -> 1064.168 | CP20: Moortown, Ring Rd Harrogate Road, (45013162) | CQ20: 45013162 | CR20: =VLOOKUP(CQ20,'WY Stops by Code'!$A:$B, 2, FALSE) -> Ring Road Moortown Harrogate Road | CS20: Moortown | CT20: =(VLOOKUP(CQ20,'WY Stops by Code'!$A:$F,5,FALSE)+1.72)*10000 -> 1844.5 | CU20: =(53.88-VLOOKUP(CQ20,'WY Stops by Code'!$A:$F,6,FALSE))*17360 -> 552.916 | CV20: Rodley, Town St Cowley Road, (45012598) | CW20: 45012598 | CX20: =VLOOKUP(CW20,'WY Stops by Code'!$A:$B, 2, FALSE) -> Town Street Cowley Road | CY20: Rodley | CZ20: =(VLOOKUP(CW20,'WY Stops by Code'!$A:$F,5,FALSE)+1.72)*10000 -> 632.7 | DA20: =(53.88-VLOOKUP(CW20,'WY Stops by Code'!$A:$F,6,FALSE))*17360 -> 1015.0392 | DB20: Kirkstall, Morris Lane Morris Avenue, (45011454) | DC20: 45011454 | DD20: =VLOOKUP(DC20,'WY Stops by Code'!$A:$B, 2, FALSE) -> Morris Lane Morris Avenue | DE20: Kirkstall | DF20: =(VLOOKUP(DC20,'WY Stops by Code'!$A:$F,5,FALSE)+1.72)*10000 -> 1152.1 | DG20: =(53.88-VLOOKUP(DC20,'WY Stops by Code'!$A:$F,6,FALSE))*17360 -> 1002.0192 | DH20: Harehills, Harehills Road Nice View, (45010726) TP | DI20: 45010726 | DJ20: =VLOOKUP(DI20,'WY Stops by Code'!$A:$B, 2, FALSE) -> Harehills Road Nice View | DK20: Harehills | DL20: =(VLOOKUP(DI20,'WY Stops by Code'!$A:$F,5,FALSE)+1.72)*10000 -> 2029.6 | DM20: =(53.88-VLOOKUP(DI20,'WY Stops by Code'!$A:$F,6,FALSE))*17360 -> 1109.4776
J21: Headingley, Headingley Ln Bainbrigge Road, (45011365) | K21: 45011365 | L21: =VLOOKUP(K21,'WY Stops by Code'!A:B, 2, FALSE) -> Headingley Lane Bainbrigge Road | M21: Headingley | N21: =(VLOOKUP(K21,'WY Stops by Code'!$A:$F,5,FALSE)+1.72)*10000 -> 1446.2 | O21: =(53.88-VLOOKUP(K21,'WY Stops by Code'!$A:$F,6,FALSE))*17360 -> 1053.5784 | P21: Woodhouse, Woodhouse La Fenton Street, (45011391) | Q21: 45011391 | R21: =VLOOKUP(Q21,'WY Stops by Code'!A:B, 2, FALSE) -> Woodhouse Lane Fenton Street | S21: Woodhouse | T21: =(VLOOKUP(Q21,'WY Stops by Code'!$A:$F,5,FALSE)+1.72)*10000 -> 1707.4 | U21: =(53.88-VLOOKUP(Q21,'WY Stops by Code'!$A:$F,6,FALSE))*17360 -> 1292.1048 | V21: Tinshill, Tinshill Lane Tinshill Grove, (45011532) | W21: 45011532 | X21: =VLOOKUP(W21,'WY Stops by Code'!A:B, 2, FALSE) -> Tinshill Lane Tinshill Grove | Y21: Tinshill | Z21: =(VLOOKUP(W21,'WY Stops by Code'!$A:$F,5,FALSE)+1.72)*10000 -> 1065.5 | AA21: =(53.88-VLOOKUP(W21,'WY Stops by Code'!$A:$F,6,FALSE))*17360 -> 463.3384 | AB21: Headingley, Otley Rd Churchwood Avenue, (45011146) | AC21: 45011146 | AD21: =VLOOKUP(AC21,'WY Stops by Code'!A:B, 2, FALSE) -> Otley Road Churchwood Avenue | AE21: Headingley | AF21: =(VLOOKUP(AC21,'WY Stops by Code'!$A:$F,5,FALSE)+1.72)*10000 -> 1332.6 | AG21: =(53.88-VLOOKUP(AC21,'WY Stops by Code'!$A:$F,6,FALSE))*17360 -> 858.9728 | AH21: Meanwood, Carr Manor Road Carr Manor View, (45011115) | AI21: 45011115 | AJ21: =VLOOKUP(AI21,'WY Stops by Code'!A:B, 2, FALSE) -> Carr Manor Road Carr Manor View | AK21: Meanwood | AL21: =(VLOOKUP(AI21,'WY Stops by Code'!$A:$F,5,FALSE)+1.72)*10000 -> 1730.3 | AM21: =(53.88-VLOOKUP(AI21,'WY Stops by Code'!$A:$F,6,FALSE))*17360 -> 705.8576 | AN21: Meanwood, Carr Manor Place, (45011121) | AO21: 45011121 | AP21: =VLOOKUP(AO21,'WY Stops by Code'!A:B, 2, FALSE) -> Carr Manor Road Carr Manor Place | AQ21: Meanwood | AR21: =(VLOOKUP(AO21,'WY Stops by Code'!$A:$F,5,FALSE)+1.72)*10000 -> 1681 | AS21: =(53.88-VLOOKUP(AO21,'WY Stops by Code'!$A:$F,6,FALSE))*17360 -> 806.8928 | AT21: Headingley, Otley Rd Churchwood Avenue, (45011146) | AU21: 45011146 | AV21: =VLOOKUP(AU21,'WY Stops by Code'!$A:$B, 2, FALSE) -> Otley Road Churchwood Avenue | AW21: Headingley | AX21: =(VLOOKUP(AU21,'WY Stops by Code'!$A:$F,5,FALSE)+1.72)*10000 -> 1332.6 | AY21: =(53.88-VLOOKUP(AU21,'WY Stops by Code'!$A:$F,6,FALSE))*17360 -> 858.9728 | AZ21: Rawdon, Larkfield Road, (45019776) | BA21: 45019776 | BB21: =VLOOKUP(BA21,'WY Stops by Code'!$A:$B, 2, FALSE) -> Larkfield Road | BC21: Rawdon | BD21: =(VLOOKUP(BA21,'WY Stops by Code'!$A:$F,5,FALSE)+1.72)*10000 -> 450.5 | BE21: =(53.88-VLOOKUP(BA21,'WY Stops by Code'!$A:$F,6,FALSE))*17360 -> 509.3424 | BF21: Headingley, Otley Rd Churchwood Avenue, (45011146) | BG21: 45011146 | BH21: =VLOOKUP(BG21,'WY Stops by Code'!$A:$B, 2, FALSE) -> Otley Road Churchwood Avenue | BI21: Headingley | BJ21: =(VLOOKUP(BG21,'WY Stops by Code'!$A:$F,5,FALSE)+1.72)*10000 -> 1332.6 | BK21: =(53.88-VLOOKUP(BG21,'WY Stops by Code'!$A:$F,6,FALSE))*17360 -> 858.9728 | BL21: Woodhouse, Leeds University, (45011388) | BM21: 45011388 | BN21: =VLOOKUP(BM21,'WY Stops by Code'!$A:$B, 2, FALSE) -> Leeds University | BO21: Woodhouse | BP21: =(VLOOKUP(BM21,'WY Stops by Code'!$A:$F,5,FALSE)+1.72)*10000 -> 1685.7 | BQ21: =(53.88-VLOOKUP(BM21,'WY Stops by Code'!$A:$F,6,FALSE))*17360 -> 1264.3288 | BR21: Colton, Colton Road East, (45024719) | BS21: 45024719 | BT21: =VLOOKUP(BS21,'WY Stops by Code'!$A:$B, 2, FALSE) -> Colton Road East | BU21: Colton | BV21: =(VLOOKUP(BS21,'WY Stops by Code'!$A:$F,5,FALSE)+1.72)*10000 -> 2846.1 | BW21: =(53.88-VLOOKUP(BS21,'WY Stops by Code'!$A:$F,6,FALSE))*17360 -> 1545.908 | BX21: Beckett Park, Queenswood Drive Queenswood Road, (45010402) | BY21: 45010402 | BZ21: =VLOOKUP(BY21,'WY Stops by Code'!$A:$B, 2, FALSE) -> Queenswood Drive Queenswood Road | CA21: Beckett Park | CB21: =(VLOOKUP(BY21,'WY Stops by Code'!$A:$F,5,FALSE)+1.72)*10000 -> 1260 | CC21: =(53.88-VLOOKUP(BY21,'WY Stops by Code'!$A:$F,6,FALSE))*17360 -> 1040.0376 | CD21: Hyde Park, Moorland Rd Hyde Park Road, (45010427) | CE21: 45010427 | CF21: =VLOOKUP(CE21,'WY Stops by Code'!$A:$B, 2, FALSE) -> Moorland Road Hyde Park Road | CG21: Hyde Park | CH21: =(VLOOKUP(CE21,'WY Stops by Code'!$A:$F,5,FALSE)+1.72)*10000 -> 1549.9 | CI21: =(53.88-VLOOKUP(CE21,'WY Stops by Code'!$A:$F,6,FALSE))*17360 -> 1219.7136 | CJ21: Swarcliffe, Swarcliffe Drive Southwood Gate, (45010530) | CK21: 45010530 | CL21: =VLOOKUP(CK21,'WY Stops by Code'!$A:$B, 2, FALSE) -> Swarcliffe Drive Southwood Gate | CM21: Swarcliffe | CN21: =(VLOOKUP(CK21,'WY Stops by Code'!$A:$F,5,FALSE)+1.72)*10000 -> 2694.7 | CO21: =(53.88-VLOOKUP(CK21,'WY Stops by Code'!$A:$F,6,FALSE))*17360 -> 1090.208 | CP21: Moortown, Ring Rd Lingfield Road, (45013153) | CQ21: 45013153 | CR21: =VLOOKUP(CQ21,'WY Stops by Code'!$A:$B, 2, FALSE) -> Ring Road Moortown Lingfield Road | CS21: Moortown | CT21: =(VLOOKUP(CQ21,'WY Stops by Code'!$A:$F,5,FALSE)+1.72)*10000 -> 1760 | CU21: =(53.88-VLOOKUP(CQ21,'WY Stops by Code'!$A:$F,6,FALSE))*17360 -> 570.7968 | CV21: Rodley, Town Street, (45012600) | CW21: 45012600 | CX21: =VLOOKUP(CW21,'WY Stops by Code'!$A:$B, 2, FALSE) -> Town Street | CY21: Rodley | CZ21: =(VLOOKUP(CW21,'WY Stops by Code'!$A:$F,5,FALSE)+1.72)*10000 -> 586.9 | DA21: =(53.88-VLOOKUP(CW21,'WY Stops by Code'!$A:$F,6,FALSE))*17360 -> 989.3464 | DB21: Kirkstall, Morris Lane Norman Mount, (45010956) | DC21: 45010956 | DD21: =VLOOKUP(DC21,'WY Stops by Code'!$A:$B, 2, FALSE) -> Morris Lane Norman Mount | DE21: Kirkstall | DF21: =(VLOOKUP(DC21,'WY Stops by Code'!$A:$F,5,FALSE)+1.72)*10000 -> 1182.4 | DG21: =(53.88-VLOOKUP(DC21,'WY Stops by Code'!$A:$F,6,FALSE))*17360 -> 1050.6272 | DH21: Harehills, Harehills Road Harehills Place, (45010727) | DI21: 45010727 | DJ21: =VLOOKUP(DI21,'WY Stops by Code'!$A:$B, 2, FALSE) -> Harehills Road Harehills Place | DK21: Harehills | DL21: =(VLOOKUP(DI21,'WY Stops by Code'!$A:$F,5,FALSE)+1.72)*10000 -> 2028.3 | DM21: =(53.88-VLOOKUP(DI21,'WY Stops by Code'!$A:$F,6,FALSE))*17360 -> 1145.5864
J22: Headingley, Headingley Lane Oakfield, (45011367) | K22: 45011367 | L22: =VLOOKUP(K22,'WY Stops by Code'!A:B, 2, FALSE) -> Headingley Lane Oakfield | M22: Headingley | N22: =(VLOOKUP(K22,'WY Stops by Code'!$A:$F,5,FALSE)+1.72)*10000 -> 1478.5 | O22: =(53.88-VLOOKUP(K22,'WY Stops by Code'!$A:$F,6,FALSE))*17360 -> 1084.132 | P22: Woodhouse, Leeds University, (45011386) | Q22: 45011386 | R22: =VLOOKUP(Q22,'WY Stops by Code'!A:B, 2, FALSE) -> Leeds University | S22: Woodhouse | T22: =(VLOOKUP(Q22,'WY Stops by Code'!$A:$F,5,FALSE)+1.72)*10000 -> 1677 | U22: =(53.88-VLOOKUP(Q22,'WY Stops by Code'!$A:$F,6,FALSE))*17360 -> 1247.6632 | V22: Ireland Wood, Otley Old Rd Hospital Lane, (45010761) | W22: 45010761 | X22: =VLOOKUP(W22,'WY Stops by Code'!A:B, 2, FALSE) -> Otley Old Road Hospital Lane | Y22: Ireland Wood | Z22: =(VLOOKUP(W22,'WY Stops by Code'!$A:$F,5,FALSE)+1.72)*10000 -> 1126.3 | AA22: =(53.88-VLOOKUP(W22,'WY Stops by Code'!$A:$F,6,FALSE))*17360 -> 514.0296 | AB22: West Park, Otley Rd Ancaster Road, (45011144) | AC22: 45011144 | AD22: =VLOOKUP(AC22,'WY Stops by Code'!A:B, 2, FALSE) -> Otley Road Ancaster Road | AE22: West Park | AF22: =(VLOOKUP(AC22,'WY Stops by Code'!$A:$F,5,FALSE)+1.72)*10000 -> 1299 | AG22: =(53.88-VLOOKUP(AC22,'WY Stops by Code'!$A:$F,6,FALSE))*17360 -> 831.7176 | AH22: Meanwood, Carr Manor Road Carr Manor, (45011117) | AI22: 45011117 | AJ22: =VLOOKUP(AI22,'WY Stops by Code'!A:B, 2, FALSE) -> Carr Manor Road | AK22: Meanwood | AL22: =(VLOOKUP(AI22,'WY Stops by Code'!$A:$F,5,FALSE)+1.72)*10000 -> 1720.6 | AM22: =(53.88-VLOOKUP(AI22,'WY Stops by Code'!$A:$F,6,FALSE))*17360 -> 743.008 | AN22: Meanwood, Carr Manor Crescent, (45011120) | AO22: 45011120 | AP22: =VLOOKUP(AO22,'WY Stops by Code'!A:B, 2, FALSE) -> Carr Manor Road Carr Manor Crescent | AQ22: Meanwood | AR22: =(VLOOKUP(AO22,'WY Stops by Code'!$A:$F,5,FALSE)+1.72)*10000 -> 1705 | AS22: =(53.88-VLOOKUP(AO22,'WY Stops by Code'!$A:$F,6,FALSE))*17360 -> 768.0064 | AT22: West Park, Otley Rd Ancaster Road, (45011144) | AU22: 45011144 | AV22: =VLOOKUP(AU22,'WY Stops by Code'!$A:$B, 2, FALSE) -> Otley Road Ancaster Road | AW22: West Park | AX22: =(VLOOKUP(AU22,'WY Stops by Code'!$A:$F,5,FALSE)+1.72)*10000 -> 1299 | AY22: =(53.88-VLOOKUP(AU22,'WY Stops by Code'!$A:$F,6,FALSE))*17360 -> 831.7176 | AZ22: Rawdon, Town Street Carr Lane, (45019777) | BA22: =buscode(AZ22) -> 45019777 | BB22: =VLOOKUP(BA22,'WY Stops by Code'!$A:$B, 2, FALSE) -> Town Street Carr Lane | BC22: =area(AZ22) -> Rawdon | BD22: =(VLOOKUP(BA22,'WY Stops by Code'!$A:$F,5,FALSE)+1.72)*10000 -> 510.8 | BE22: =(53.88-VLOOKUP(BA22,'WY Stops by Code'!$A:$F,6,FALSE))*17360 -> 526.7024 | BF22: West Park, Otley Rd Ancaster Road, (45011144) | BG22: 45011144 | BH22: =VLOOKUP(BG22,'WY Stops by Code'!$A:$B, 2, FALSE) -> Otley Road Ancaster Road | BI22: West Park | BJ22: =(VLOOKUP(BG22,'WY Stops by Code'!$A:$F,5,FALSE)+1.72)*10000 -> 1299 | BK22: =(53.88-VLOOKUP(BG22,'WY Stops by Code'!$A:$F,6,FALSE))*17360 -> 831.7176 | BL22: Woodhouse, Blackman Ln Woodhouse Lane, (45011390) | BM22: 45011390 | BN22: =VLOOKUP(BM22,'WY Stops by Code'!$A:$B, 2, FALSE) -> Blackman Lane Woodhouse Lane | BO22: Woodhouse | BP22: =(VLOOKUP(BM22,'WY Stops by Code'!$A:$F,5,FALSE)+1.72)*10000 -> 1706.4 | BQ22: =(53.88-VLOOKUP(BM22,'WY Stops by Code'!$A:$F,6,FALSE))*17360 -> 1279.0848 | BR22: Colton, Colton Road East School Ln, (45024718) TP | BS22: 45024718 | BT22: =VLOOKUP(BS22,'WY Stops by Code'!$A:$B, 2, FALSE) -> Colton Road East School Lane | BU22: Colton | BV22: =(VLOOKUP(BS22,'WY Stops by Code'!$A:$F,5,FALSE)+1.72)*10000 -> 2817.8 | BW22: =(53.88-VLOOKUP(BS22,'WY Stops by Code'!$A:$F,6,FALSE))*17360 -> 1548.6856 | BX22: Headingley, Queenswood Drive Kirkstall Ln, (45010419) TP | BY22: 45010419 | BZ22: =VLOOKUP(BY22,'WY Stops by Code'!$A:$B, 2, FALSE) -> Queenswood Drive Kirkstall Lane | CA22: Headingley | CB22: =(VLOOKUP(BY22,'WY Stops by Code'!$A:$F,5,FALSE)+1.72)*10000 -> 1305.7 | CC22: =(53.88-VLOOKUP(BY22,'WY Stops by Code'!$A:$F,6,FALSE))*17360 -> 1087.9512 | CD22: Woodhouse, Clarendon Road Moorland Rd, (45011402) | CE22: 45011402 | CF22: =VLOOKUP(CE22,'WY Stops by Code'!$A:$B, 2, FALSE) -> Clarendon Road Moorland Road | CG22: Woodhouse | CH22: =(VLOOKUP(CE22,'WY Stops by Code'!$A:$F,5,FALSE)+1.72)*10000 -> 1607.6 | CI22: =(53.88-VLOOKUP(CE22,'WY Stops by Code'!$A:$F,6,FALSE))*17360 -> 1244.5384 | CJ22: Swarcliffe, Eastwood Lane Barwick Rd, (45010531) | CK22: 45010531 | CL22: =VLOOKUP(CK22,'WY Stops by Code'!$A:$B, 2, FALSE) -> Eastwood Lane Barwick Road | CM22: Swarcliffe | CN22: =(VLOOKUP(CK22,'WY Stops by Code'!$A:$F,5,FALSE)+1.72)*10000 -> 2739.6 | CO22: =(53.88-VLOOKUP(CK22,'WY Stops by Code'!$A:$F,6,FALSE))*17360 -> 1119.0256 | CP22: Moortown, King Lane, (45012619) TP | CQ22: 45012619 | CR22: =VLOOKUP(CQ22,'WY Stops by Code'!$A:$B, 2, FALSE) -> King Lane Moortown | CS22: Moortown | CT22: =(VLOOKUP(CQ22,'WY Stops by Code'!$A:$F,5,FALSE)+1.72)*10000 -> 1704.6 | CU22: =(53.88-VLOOKUP(CQ22,'WY Stops by Code'!$A:$F,6,FALSE))*17360 -> 611.072 | CV22: Rodley, Rodley Lane Chapel Street, (45012536) | CW22: 45012536 | CX22: =VLOOKUP(CW22,'WY Stops by Code'!$A:$B, 2, FALSE) -> Rodley Lane Chapel Street | CY22: Rodley | CZ22: =(VLOOKUP(CW22,'WY Stops by Code'!$A:$F,5,FALSE)+1.72)*10000 -> 559.9 | DA22: =(53.88-VLOOKUP(CW22,'WY Stops by Code'!$A:$F,6,FALSE))*17360 -> 986.2216 | DB22: Kirkstall, Morris Lane Kirkstall Ln, (45011458) TP | DC22: 45011458 | DD22: =VLOOKUP(DC22,'WY Stops by Code'!$A:$B, 2, FALSE) -> Morris Lane Kirkstall Lane | DE22: Kirkstall | DF22: =(VLOOKUP(DC22,'WY Stops by Code'!$A:$F,5,FALSE)+1.72)*10000 -> 1210.8 | DG22: =(53.88-VLOOKUP(DC22,'WY Stops by Code'!$A:$F,6,FALSE))*17360 -> 1094.8952 | DH22: Harehills, Harehills Road Conway View, (45010728) | DI22: 45010728 | DJ22: =VLOOKUP(DI22,'WY Stops by Code'!$A:$B, 2, FALSE) -> Harehills Road Conway View | DK22: Harehills | DL22: =(VLOOKUP(DI22,'WY Stops by Code'!$A:$F,5,FALSE)+1.72)*10000 -> 2028.5 | DM22: =(53.88-VLOOKUP(DI22,'WY Stops by Code'!$A:$F,6,FALSE))*17360 -> 1188.1184
J23: Headingley, Headingley Lane North Grange Rd, (45011369) | K23: 45011369 | L23: =VLOOKUP(K23,'WY Stops by Code'!A:B, 2, FALSE) -> Headingley Lane North Grange Road | M23: Headingley | N23: =(VLOOKUP(K23,'WY Stops by Code'!$A:$F,5,FALSE)+1.72)*10000 -> 1515.4 | O23: =(53.88-VLOOKUP(K23,'WY Stops by Code'!$A:$F,6,FALSE))*17360 -> 1098.1936 | P23: Woodhouse, Woodhouse La St Marks Street, (45011381) | Q23: 45011381 | R23: =VLOOKUP(Q23,'WY Stops by Code'!A:B, 2, FALSE) -> Woodhouse Lane St Marks Street | S23: Woodhouse | T23: =(VLOOKUP(Q23,'WY Stops by Code'!$A:$F,5,FALSE)+1.72)*10000 -> 1647.5 | U23: =(53.88-VLOOKUP(Q23,'WY Stops by Code'!$A:$F,6,FALSE))*17360 -> 1217.1096 | V23: Ireland Wood, Otley Old Rd Iveson Drive, (45011540) | W23: 45011540 | X23: =VLOOKUP(W23,'WY Stops by Code'!A:B, 2, FALSE) -> Otley Old Road Iveson Drive | Y23: Ireland Wood | Z23: =(VLOOKUP(W23,'WY Stops by Code'!$A:$F,5,FALSE)+1.72)*10000 -> 1159.1 | AA23: =(53.88-VLOOKUP(W23,'WY Stops by Code'!$A:$F,6,FALSE))*17360 -> 552.916 | AB23: West Park, Otley Road Welburn Grove, (45011141) | AC23: 45011141 | AD23: =VLOOKUP(AC23,'WY Stops by Code'!A:B, 2, FALSE) -> Otley Road Welburn Grove | AE23: West Park | AF23: =(VLOOKUP(AC23,'WY Stops by Code'!$A:$F,5,FALSE)+1.72)*10000 -> 1274.1 | AG23: =(53.88-VLOOKUP(AC23,'WY Stops by Code'!$A:$F,6,FALSE))*17360 -> 815.5728 | AH23: Meanwood, Carr Manor Parade, (45011119) | AI23: 45011119 | AJ23: =VLOOKUP(AI23,'WY Stops by Code'!A:B, 2, FALSE) -> Carr Manor Road Carr Manor Parade | AK23: Meanwood | AL23: =(VLOOKUP(AI23,'WY Stops by Code'!$A:$F,5,FALSE)+1.72)*10000 -> 1696.8 | AM23: =(53.88-VLOOKUP(AI23,'WY Stops by Code'!$A:$F,6,FALSE))*17360 -> 782.7624 | AN23: Meanwood, Carr Manor Road Carr Manor, (45011118) | AO23: 45011118 | AP23: =VLOOKUP(AO23,'WY Stops by Code'!A:B, 2, FALSE) -> Carr Manor Road | AQ23: Meanwood | AR23: =(VLOOKUP(AO23,'WY Stops by Code'!$A:$F,5,FALSE)+1.72)*10000 -> 1720.8 | AS23: =(53.88-VLOOKUP(AO23,'WY Stops by Code'!$A:$F,6,FALSE))*17360 -> 737.9736 | AT23: West Park, Otley Road Welburn Grove, (45011141) | AU23: 45011141 | AV23: =VLOOKUP(AU23,'WY Stops by Code'!$A:$B, 2, FALSE) -> Otley Road Welburn Grove | AW23: West Park | AX23: =(VLOOKUP(AU23,'WY Stops by Code'!$A:$F,5,FALSE)+1.72)*10000 -> 1274.1 | AY23: =(53.88-VLOOKUP(AU23,'WY Stops by Code'!$A:$F,6,FALSE))*17360 -> 815.5728 | AZ23: Rawdon, Layton Rd Layton Lane, (45013508) | BA23: 45013508 | BB23: =VLOOKUP(BA23,'WY Stops by Code'!$A:$B, 2, FALSE) -> Layton Road Layton Lane | BC23: Rawdon | BD23: =(VLOOKUP(BA23,'WY Stops by Code'!$A:$F,5,FALSE)+1.72)*10000 -> 563.4 | BE23: =(53.88-VLOOKUP(BA23,'WY Stops by Code'!$A:$F,6,FALSE))*17360 -> 553.9576 | BF23: West Park, Otley Road Welburn Grove, (45011141) | BG23: 45011141 | BH23: =VLOOKUP(BG23,'WY Stops by Code'!$A:$B, 2, FALSE) -> Otley Road Welburn Grove | BI23: West Park | BJ23: =(VLOOKUP(BG23,'WY Stops by Code'!$A:$F,5,FALSE)+1.72)*10000 -> 1274.1 | BK23: =(53.88-VLOOKUP(BG23,'WY Stops by Code'!$A:$F,6,FALSE))*17360 -> 815.5728 | BL23: Leeds City Centre, L5 Woodhouse Lane, (45010914) | BM23: 45010914 | BN23: =VLOOKUP(BM23,'WY Stops by Code'!$A:$B, 2, FALSE) -> L5 Woodhouse Lane | BO23: Leeds City Centre | BP23: =(VLOOKUP(BM23,'WY Stops by Code'!$A:$F,5,FALSE)+1.72)*10000 -> 1747.5 | BQ23: =(53.88-VLOOKUP(BM23,'WY Stops by Code'!$A:$F,6,FALSE))*17360 -> 1359.8088 | BR23: Colton, Colton Lane Laurel Hill Wy, (45010252) | BS23: 45010252 | BT23: =VLOOKUP(BS23,'WY Stops by Code'!$A:$B, 2, FALSE) -> Colton Lane Laurel Hill Way | BU23: Colton | BV23: =(VLOOKUP(BS23,'WY Stops by Code'!$A:$F,5,FALSE)+1.72)*10000 -> 2796 | BW23: =(53.88-VLOOKUP(BS23,'WY Stops by Code'!$A:$F,6,FALSE))*17360 -> 1543.8248 | BX23: Headingley, Kirkstall Lane Estcourt Ter, (45010958) | BY23: 45010958 | BZ23: =VLOOKUP(BY23,'WY Stops by Code'!$A:$B, 2, FALSE) -> Kirkstall Lane Estcourt Terrace | CA23: Headingley | CB23: =(VLOOKUP(BY23,'WY Stops by Code'!$A:$F,5,FALSE)+1.72)*10000 -> 1337.6 | CC23: =(53.88-VLOOKUP(BY23,'WY Stops by Code'!$A:$F,6,FALSE))*17360 -> 1081.7016 | CD23: Woodhouse, Clarendon Rd Woodhouse Lane, (45024196) | CE23: 45024196 | CF23: =VLOOKUP(CE23,'WY Stops by Code'!$A:$B, 2, FALSE) -> Clarendon Road Woodhouse Lane | CG23: Woodhouse | CH23: =(VLOOKUP(CE23,'WY Stops by Code'!$A:$F,5,FALSE)+1.72)*10000 -> 1627.4 | CI23: =(53.88-VLOOKUP(CE23,'WY Stops by Code'!$A:$F,6,FALSE))*17360 -> 1207.5616 | CJ23: Cross Gates, Church Lane Manston Avenue, (45012848) | CK23: 45012848 | CL23: =VLOOKUP(CK23,'WY Stops by Code'!$A:$B, 2, FALSE) -> Church Lane Manston Avenue | CM23: Cross Gates | CN23: =(VLOOKUP(CK23,'WY Stops by Code'!$A:$F,5,FALSE)+1.72)*10000 -> 2727.2 | CO23: =(53.88-VLOOKUP(CK23,'WY Stops by Code'!$A:$F,6,FALSE))*17360 -> 1171.2792 | CP23: Moortown, Ring Rd Tongue Lane, (45012618) | CQ23: 45012618 | CR23: =VLOOKUP(CQ23,'WY Stops by Code'!$A:$B, 2, FALSE) -> Ring Road Moortown Tongue Lane | CS23: Moortown | CT23: =(VLOOKUP(CQ23,'WY Stops by Code'!$A:$F,5,FALSE)+1.72)*10000 -> 1643.6 | CU23: =(53.88-VLOOKUP(CQ23,'WY Stops by Code'!$A:$F,6,FALSE))*17360 -> 644.4032 | CV23: Rodley, Horsforth New Rd Rodley Lane, (45013123) | CW23: 45013123 | CX23: =VLOOKUP(CW23,'WY Stops by Code'!$A:$B, 2, FALSE) -> Horsforth New Road Rodley Lane | CY23: Rodley | CZ23: =(VLOOKUP(CW23,'WY Stops by Code'!$A:$F,5,FALSE)+1.72)*10000 -> 536.5 | DA23: =(53.88-VLOOKUP(CW23,'WY Stops by Code'!$A:$F,6,FALSE))*17360 -> 952.3696 | DB23: Kirkstall, Kirkstall Hill Eden Road, (45011450) | DC23: 45011450 | DD23: =VLOOKUP(DC23,'WY Stops by Code'!$A:$B, 2, FALSE) -> Kirkstall Hill Eden Road | DE23: Kirkstall | DF23: =(VLOOKUP(DC23,'WY Stops by Code'!$A:$F,5,FALSE)+1.72)*10000 -> 1255.2 | DG23: =(53.88-VLOOKUP(DC23,'WY Stops by Code'!$A:$F,6,FALSE))*17360 -> 1127.0112 | DH23: Harehills, Harehills Road Ashton Grove, (45010729) | DI23: 45010729 | DJ23: =VLOOKUP(DI23,'WY Stops by Code'!$A:$B, 2, FALSE) -> Harehills Road Ashton Grove | DK23: Harehills | DL23: =(VLOOKUP(DI23,'WY Stops by Code'!$A:$F,5,FALSE)+1.72)*10000 -> 2031.3 | DM23: =(53.88-VLOOKUP(DI23,'WY Stops by Code'!$A:$F,6,FALSE))*17360 -> 1234.8168
J24: Hyde Park Corner, Headingley Ln Cumberland Road, (45011373) | K24: 45011373 | L24: =VLOOKUP(K24,'WY Stops by Code'!A:B, 2, FALSE) -> Headingley Lane Cumberland Road | M24: Hyde Park Corner | N24: =(VLOOKUP(K24,'WY Stops by Code'!$A:$F,5,FALSE)+1.72)*10000 -> 1550.2 | O24: =(53.88-VLOOKUP(K24,'WY Stops by Code'!$A:$F,6,FALSE))*17360 -> 1111.7344 | P24: Woodhouse, Woodhouse La Clarendon Road, (45011379) | Q24: 45011379 | R24: =VLOOKUP(Q24,'WY Stops by Code'!A:B, 2, FALSE) -> Woodhouse Lane Clarendon Road | S24: =area(P24) -> Woodhouse | T24: =(VLOOKUP(Q24,'WY Stops by Code'!$A:$F,5,FALSE)+1.72)*10000 -> 1625.5 | U24: =(53.88-VLOOKUP(Q24,'WY Stops by Code'!$A:$F,6,FALSE))*17360 -> 1190.7224 | V24: Ireland Wood, Otley Old Rd New Adel Lane, (45010746) | W24: 45010746 | X24: =VLOOKUP(W24,'WY Stops by Code'!A:B, 2, FALSE) -> Leeds Spen Lane | Y24: Ireland Wood | Z24: =(VLOOKUP(W24,'WY Stops by Code'!$A:$F,5,FALSE)+1.72)*10000 -> 1192.9 | AA24: =(53.88-VLOOKUP(W24,'WY Stops by Code'!$A:$F,6,FALSE))*17360 -> 594.4064 | AB24: West Park, Lawnswood School, (45011163) | AC24: 45011163 | AD24: =VLOOKUP(AC24,'WY Stops by Code'!A:B, 2, FALSE) -> Lawnswood School | AE24: West Park | AF24: =(VLOOKUP(AC24,'WY Stops by Code'!$A:$F,5,FALSE)+1.72)*10000 -> 1261.3 | AG24: =(53.88-VLOOKUP(AC24,'WY Stops by Code'!$A:$F,6,FALSE))*17360 -> 762.4512 | AH24: Meanwood, Carr Manor Walk, (45011122) | AI24: 45011122 | AJ24: =VLOOKUP(AI24,'WY Stops by Code'!A:B, 2, FALSE) -> Carr Manor Road Carr Manor Walk | AK24: Meanwood | AL24: =(VLOOKUP(AI24,'WY Stops by Code'!$A:$F,5,FALSE)+1.72)*10000 -> 1677.3 | AM24: =(53.88-VLOOKUP(AI24,'WY Stops by Code'!$A:$F,6,FALSE))*17360 -> 815.7464 | AN24: Meanwood, Carr Manor Road Garth Rd, (45011116) | AO24: 45011116 | AP24: =VLOOKUP(AO24,'WY Stops by Code'!A:B, 2, FALSE) -> Carr Manor Road Garth Road | AQ24: Meanwood | AR24: =(VLOOKUP(AO24,'WY Stops by Code'!$A:$F,5,FALSE)+1.72)*10000 -> 1736.4 | AS24: =(53.88-VLOOKUP(AO24,'WY Stops by Code'!$A:$F,6,FALSE))*17360 -> 694.5736 | AT24: West Park, Spen Road West Parade, (45011305) | AU24: 45011305 | AV24: =VLOOKUP(AU24,'WY Stops by Code'!$A:$B, 2, FALSE) -> Spen Road West Parade | AW24: West Park | AX24: =(VLOOKUP(AU24,'WY Stops by Code'!$A:$F,5,FALSE)+1.72)*10000 -> 1217.5 | AY24: =(53.88-VLOOKUP(AU24,'WY Stops by Code'!$A:$F,6,FALSE))*17360 -> 772.1728 | AZ24: Rawdon, Layton Rd Layton Avenue, (45013505) | BA24: 45013505 | BB24: =VLOOKUP(BA24,'WY Stops by Code'!$A:$B, 2, FALSE) -> Layton Road Layton Avenue | BC24: Rawdon | BD24: =(VLOOKUP(BA24,'WY Stops by Code'!$A:$F,5,FALSE)+1.72)*10000 -> 581.1 | BE24: =(53.88-VLOOKUP(BA24,'WY Stops by Code'!$A:$F,6,FALSE))*17360 -> 536.424 | BF24: West Park, Lawnswood School, (45011163) | BG24: 45011163 | BH24: =VLOOKUP(BG24,'WY Stops by Code'!$A:$B, 2, FALSE) -> Lawnswood School | BI24: West Park | BJ24: =(VLOOKUP(BG24,'WY Stops by Code'!$A:$F,5,FALSE)+1.72)*10000 -> 1261.3 | BK24: =(53.88-VLOOKUP(BG24,'WY Stops by Code'!$A:$F,6,FALSE))*17360 -> 762.4512 | BL24: Leeds City Centre, J4 Albion Street, (45010918) TP | BM24: 45010918 | BN24: =VLOOKUP(BM24,'WY Stops by Code'!$A:$B, 2, FALSE) -> J4 Albion Street | BO24: Leeds City Centre | BP24: =(VLOOKUP(BM24,'WY Stops by Code'!$A:$F,5,FALSE)+1.72)*10000 -> 1753 | BQ24: =(53.88-VLOOKUP(BM24,'WY Stops by Code'!$A:$F,6,FALSE))*17360 -> 1380.2936 | BR24: Colton, Colton Lane Laurel Hill Ave, (45010251) | BS24: 45010251 | BT24: =VLOOKUP(BS24,'WY Stops by Code'!$A:$B, 2, FALSE) -> Colton Lane Laurel Hill Avenue | BU24: Colton | BV24: =(VLOOKUP(BS24,'WY Stops by Code'!$A:$F,5,FALSE)+1.72)*10000 -> 2766.5 | BW24: =(53.88-VLOOKUP(BS24,'WY Stops by Code'!$A:$F,6,FALSE))*17360 -> 1530.6312 | BX24: Headingley, Cardigan Road St Michaels Grove, (45011439) | BY24: 45011439 | BZ24: =VLOOKUP(BY24,'WY Stops by Code'!$A:$B, 2, FALSE) -> Cardigan Road St Michaels Grove | CA24: Headingley | CB24: =(VLOOKUP(BY24,'WY Stops by Code'!$A:$F,5,FALSE)+1.72)*10000 -> 1397.1 | CC24: =(53.88-VLOOKUP(BY24,'WY Stops by Code'!$A:$F,6,FALSE))*17360 -> 1066.9456 | CD24: Woodhouse, Woodhouse La St Marks Street, (45011384) | CE24: 45011384 | CF24: =VLOOKUP(CE24,'WY Stops by Code'!$A:$B, 2, FALSE) -> Woodhouse Lane St Marks Street | CG24: Woodhouse | CH24: =(VLOOKUP(CE24,'WY Stops by Code'!$A:$F,5,FALSE)+1.72)*10000 -> 1660.6 | CI24: =(53.88-VLOOKUP(CE24,'WY Stops by Code'!$A:$F,6,FALSE))*17360 -> 1222.3176 | CJ24: Cross Gates, Church Lane Manston Gdns, (45012854) | CK24: 45012854 | CL24: =VLOOKUP(CK24,'WY Stops by Code'!$A:$B, 2, FALSE) -> Church Lane Manston Gardens | CM24: Cross Gates | CN24: =(VLOOKUP(CK24,'WY Stops by Code'!$A:$F,5,FALSE)+1.72)*10000 -> 2725.7 | CO24: =(53.88-VLOOKUP(CK24,'WY Stops by Code'!$A:$F,6,FALSE))*17360 -> 1214.5056 | CP24: Meanwood, Ring Rd Tongue Lane, (45012677) | CQ24: 45012677 | CR24: =VLOOKUP(CQ24,'WY Stops by Code'!$A:$B, 2, FALSE) -> Ring Road Meanwood Tongue Lane | CS24: Meanwood | CT24: =(VLOOKUP(CQ24,'WY Stops by Code'!$A:$F,5,FALSE)+1.72)*10000 -> 1558.1 | CU24: =(53.88-VLOOKUP(CQ24,'WY Stops by Code'!$A:$F,6,FALSE))*17360 -> 653.4304 | CV24: Rodley, Horsforth New Rd Calverley Lane, (45013122) | CW24: 45013122 | CX24: =VLOOKUP(CW24,'WY Stops by Code'!$A:$B, 2, FALSE) -> Horsforth New Road Calverley Lane | CY24: Rodley | CZ24: =(VLOOKUP(CW24,'WY Stops by Code'!$A:$F,5,FALSE)+1.72)*10000 -> 593.3 | DA24: =(53.88-VLOOKUP(CW24,'WY Stops by Code'!$A:$F,6,FALSE))*17360 -> 889.8736 | DB24: Burley, Kirkstall Hill Burley Hill Drive, (45010965) | DC24: 45010965 | DD24: =VLOOKUP(DC24,'WY Stops by Code'!$A:$B, 2, FALSE) -> Kirkstall Hill Burley Hill Drive | DE24: Burley | DF24: =(VLOOKUP(DC24,'WY Stops by Code'!$A:$F,5,FALSE)+1.72)*10000 -> 1291.4 | DG24: =(53.88-VLOOKUP(DC24,'WY Stops by Code'!$A:$F,6,FALSE))*17360 -> 1145.5864 | DH24: Burmantofts, St James Hospital, (45010297) TP | DI24: 45010297 | DJ24: =VLOOKUP(DI24,'WY Stops by Code'!$A:$B, 2, FALSE) -> St James Hospital | DK24: Burmantofts | DL24: =(VLOOKUP(DI24,'WY Stops by Code'!$A:$F,5,FALSE)+1.72)*10000 -> 1995 | DM24: =(53.88-VLOOKUP(DI24,'WY Stops by Code'!$A:$F,6,FALSE))*17360 -> 1288.8064
J25: Hyde Park Corner, (45011375) | K25: 45011375 | L25: =VLOOKUP(K25,'WY Stops by Code'!A:B, 2, FALSE) -> Hyde Park Corner | M25: Hyde Park Corner | N25: =(VLOOKUP(K25,'WY Stops by Code'!$A:$F,5,FALSE)+1.72)*10000 -> 1594.2 | O25: =(53.88-VLOOKUP(K25,'WY Stops by Code'!$A:$F,6,FALSE))*17360 -> 1144.892 | P25: Hyde Park Corner, (45011380) | Q25: 45011380 | R25: =VLOOKUP(Q25,'WY Stops by Code'!A:B, 2, FALSE) -> Hyde Park Corner | S25: Hyde Park Corner | T25: =(VLOOKUP(Q25,'WY Stops by Code'!$A:$F,5,FALSE)+1.72)*10000 -> 1588.3 | U25: =(53.88-VLOOKUP(Q25,'WY Stops by Code'!$A:$F,6,FALSE))*17360 -> 1142.9824 | V25: Lawnswood, Otley Old Rd Spennithorpe Drive, (45011569) | W25: 45011569 | X25: =VLOOKUP(W25,'WY Stops by Code'!A:B, 2, FALSE) -> Otley Old Road Spennithorpe Drive | Y25: Lawnswood | Z25: =(VLOOKUP(W25,'WY Stops by Code'!$A:$F,5,FALSE)+1.72)*10000 -> 1229.4 | AA25: =(53.88-VLOOKUP(W25,'WY Stops by Code'!$A:$F,6,FALSE))*17360 -> 642.32 | AB25: Weetwood, Otley Old Rd The Grange Road, (45011568) | AC25: 45011568 | AD25: =VLOOKUP(AC25,'WY Stops by Code'!A:B, 2, FALSE) -> Otley Old Road The Grange Road | AE25: Weetwood | AF25: =(VLOOKUP(AC25,'WY Stops by Code'!$A:$F,5,FALSE)+1.72)*10000 -> 1249.5 | AG25: =(53.88-VLOOKUP(AC25,'WY Stops by Code'!$A:$F,6,FALSE))*17360 -> 688.6712 | AH25: Meanwood, Stainbeck Road Beckhill Approach, (45010861) | AI25: 45010861 | AJ25: =VLOOKUP(AI25,'WY Stops by Code'!A:B, 2, FALSE) -> Stainbeck Road Beckhill Approach | AK25: Meanwood | AL25: =(VLOOKUP(AI25,'WY Stops by Code'!$A:$F,5,FALSE)+1.72)*10000 -> 1649.9 | AM25: =(53.88-VLOOKUP(AI25,'WY Stops by Code'!$A:$F,6,FALSE))*17360 -> 851.1608 | AN25: Moortown, Stonegate Road Leafield Grange, (45010588) | AO25: 45010588 | AP25: =VLOOKUP(AO25,'WY Stops by Code'!A:B, 2, FALSE) -> Stonegate Road Leafield Grange | AQ25: Moortown | AR25: =(VLOOKUP(AO25,'WY Stops by Code'!$A:$F,5,FALSE)+1.72)*10000 -> 1743 | AS25: =(53.88-VLOOKUP(AO25,'WY Stops by Code'!$A:$F,6,FALSE))*17360 -> 642.8408 | AT25: West Park, Spen Lane West Parade, (45011272) | AU25: 45011272 | AV25: =VLOOKUP(AU25,'WY Stops by Code'!$A:$B, 2, FALSE) -> Spen Lane West Parade | AW25: West Park | AX25: =(VLOOKUP(AU25,'WY Stops by Code'!$A:$F,5,FALSE)+1.72)*10000 -> 1190.9 | AY25: =(53.88-VLOOKUP(AU25,'WY Stops by Code'!$A:$F,6,FALSE))*17360 -> 766.0968 | AZ25: Horsforth, Layton Road Layton Rise, (45013557) | BA25: 45013557 | BB25: =VLOOKUP(BA25,'WY Stops by Code'!$A:$B, 2, FALSE) -> Layton Road Layton Rise | BC25: Horsforth | BD25: =(VLOOKUP(BA25,'WY Stops by Code'!$A:$F,5,FALSE)+1.72)*10000 -> 625.5 | BE25: =(53.88-VLOOKUP(BA25,'WY Stops by Code'!$A:$F,6,FALSE))*17360 -> 531.3896 | BF25: Weetwood, Otley Rd Otley Old Road, (45011739) | BG25: 45011739 | BH25: =VLOOKUP(BG25,'WY Stops by Code'!$A:$B, 2, FALSE) -> Otley Road Otley Old Road | BI25: Weetwood | BJ25: =(VLOOKUP(BG25,'WY Stops by Code'!$A:$F,5,FALSE)+1.72)*10000 -> 1252.3 | BK25: =(53.88-VLOOKUP(BG25,'WY Stops by Code'!$A:$F,6,FALSE))*17360 -> 678.2552 | BL25: Leeds City Centre, P4 Park Row, (45010704) TP AO | BM25: 45010704 | BN25: =VLOOKUP(BM25,'WY Stops by Code'!$A:$B, 2, FALSE) -> P4 Park Row | BO25: Leeds City Centre | BP25: =(VLOOKUP(BM25,'WY Stops by Code'!$A:$F,5,FALSE)+1.72)*10000 -> 1730 | BQ25: =(53.88-VLOOKUP(BM25,'WY Stops by Code'!$A:$F,6,FALSE))*17360 -> 1440.7064 | BR25: Colton, Colton Lane Darnley Ln, (45010250) | BS25: 45010250 | BT25: =VLOOKUP(BS25,'WY Stops by Code'!$A:$B, 2, FALSE) -> Colton Lane Darnley Lane | BU25: Colton | BV25: =(VLOOKUP(BS25,'WY Stops by Code'!$A:$F,5,FALSE)+1.72)*10000 -> 2758.2 | BW25: =(53.88-VLOOKUP(BS25,'WY Stops by Code'!$A:$F,6,FALSE))*17360 -> 1501.8136 | BX25: Headingley, Cardigan Road Spring Rd, (45011421) | BY25: 45011421 | BZ25: =VLOOKUP(BY25,'WY Stops by Code'!$A:$B, 2, FALSE) -> Cardigan Road Spring Road | CA25: Headingley | CB25: =(VLOOKUP(BY25,'WY Stops by Code'!$A:$F,5,FALSE)+1.72)*10000 -> 1432.6 | CC25: =(53.88-VLOOKUP(BY25,'WY Stops by Code'!$A:$F,6,FALSE))*17360 -> 1101.1448 | CD25: Woodhouse, Blenheim Walk leeds College of Art, (45011396) | CE25: 45011396 | CF25: =VLOOKUP(CE25,'WY Stops by Code'!$A:$B, 2, FALSE) -> Leeds University | CG25: Woodhouse | CH25: =(VLOOKUP(CE25,'WY Stops by Code'!$A:$F,5,FALSE)+1.72)*10000 -> 1685.5 | CI25: =(53.88-VLOOKUP(CE25,'WY Stops by Code'!$A:$F,6,FALSE))*17360 -> 1241.9344 | CJ25: Cross Gates, Austhorpe Road Marshall St, (45010514) | CK25: 45010514 | CL25: =VLOOKUP(CK25,'WY Stops by Code'!$A:$B, 2, FALSE) -> Austhorpe Road Back Marshall Street | CM25: Cross Gates | CN25: =(VLOOKUP(CK25,'WY Stops by Code'!$A:$F,5,FALSE)+1.72)*10000 -> 2709.3 | CO25: =(53.88-VLOOKUP(CK25,'WY Stops by Code'!$A:$F,6,FALSE))*17360 -> 1262.4192 | CP25: Weetwood, Ring Rd Parkside Road, (45012627) | CQ25: 45012627 | CR25: =VLOOKUP(CQ25,'WY Stops by Code'!$A:$B, 2, FALSE) -> Ring Road Adel Parkside Road | CS25: Weetwood | CT25: =(VLOOKUP(CQ25,'WY Stops by Code'!$A:$F,5,FALSE)+1.72)*10000 -> 1425.1 | CU25: =(53.88-VLOOKUP(CQ25,'WY Stops by Code'!$A:$F,6,FALSE))*17360 -> 658.9856 | CV25: Horsforth, New Road Side Horsforth, (45013121) | CW25: 45013121 | CX25: =VLOOKUP(CW25,'WY Stops by Code'!$A:$B, 2, FALSE) -> New Road Side Horsforth | CY25: Horsforth | CZ25: =(VLOOKUP(CW25,'WY Stops by Code'!$A:$F,5,FALSE)+1.72)*10000 -> 700.2 | DA25: =(53.88-VLOOKUP(CW25,'WY Stops by Code'!$A:$F,6,FALSE))*17360 -> 778.596 | DB25: Burley, Burley Road St Annes Gdns, (45010966) | DC25: 45010966 | DD25: =VLOOKUP(DC25,'WY Stops by Code'!$A:$B, 2, FALSE) -> Burley Road St Annes Gardens | DE25: Burley | DF25: =(VLOOKUP(DC25,'WY Stops by Code'!$A:$F,5,FALSE)+1.72)*10000 -> 1323.1 | DG25: =(53.88-VLOOKUP(DC25,'WY Stops by Code'!$A:$F,6,FALSE))*17360 -> 1174.7512 | DH25: Burmantofts, St James Hospital Bexley Wing, (45010296) | DI25: 45010296 | DJ25: =VLOOKUP(DI25,'WY Stops by Code'!$A:$B, 2, FALSE) -> St James Hospital Bexley Wing | DK25: Burmantofts | DL25: =(VLOOKUP(DI25,'WY Stops by Code'!$A:$F,5,FALSE)+1.72)*10000 -> 1978.8 | DM25: =(53.88-VLOOKUP(DI25,'WY Stops by Code'!$A:$F,6,FALSE))*17360 -> 1309.4648
J26: Woodhouse, Woodhouse Lane Clarendon Rd, (45011382) | K26: 45011382 | L26: =VLOOKUP(K26,'WY Stops by Code'!A:B, 2, FALSE) -> Woodhouse Lane Clarendon Road | M26: Woodhouse | N26: =(VLOOKUP(K26,'WY Stops by Code'!$A:$F,5,FALSE)+1.72)*10000 -> 1639 | O26: =(53.88-VLOOKUP(K26,'WY Stops by Code'!$A:$F,6,FALSE))*17360 -> 1203.7424 | P26: Hyde Park Corner, Headingley Lane Cumberland Rd, (45011376) | Q26: 45011376 | R26: =VLOOKUP(Q26,'WY Stops by Code'!A:B, 2, FALSE) -> Headingley Lane Cumberland Road | S26: Hyde Park Corner | T26: =(VLOOKUP(Q26,'WY Stops by Code'!$A:$F,5,FALSE)+1.72)*10000 -> 1548.7 | U26: =(53.88-VLOOKUP(Q26,'WY Stops by Code'!$A:$F,6,FALSE))*17360 -> 1112.9496 | V26: Weetwood, Otley Old Road Lawnswood, (45010501) | W26: 45010501 | X26: =VLOOKUP(W26,'WY Stops by Code'!A:B, 2, FALSE) -> Otley Old Road Lawnswood | Y26: Weetwood | Z26: =(VLOOKUP(W26,'WY Stops by Code'!$A:$F,5,FALSE)+1.72)*10000 -> 1257.1 | AA26: =(53.88-VLOOKUP(W26,'WY Stops by Code'!$A:$F,6,FALSE))*17360 -> 689.0184 | AB26: Lawnswood, Otley Old Rd Spennithorpe Drive, (45011570) | AC26: 45011570 | AD26: =VLOOKUP(AC26,'WY Stops by Code'!A:B, 2, FALSE) -> Otley Old Road Spennithorpe Drive | AE26: Lawnswood | AF26: =(VLOOKUP(AC26,'WY Stops by Code'!$A:$F,5,FALSE)+1.72)*10000 -> 1227.2 | AG26: =(53.88-VLOOKUP(AC26,'WY Stops by Code'!$A:$F,6,FALSE))*17360 -> 641.1048 | AH26: Meanwood, Stainbeck Rd Stonegate Crescent, (45011123) | AI26: 45011123 | AJ26: =VLOOKUP(AI26,'WY Stops by Code'!A:B, 2, FALSE) -> Stainbeck Road Stonegate Crescent | AK26: Meanwood | AL26: =(VLOOKUP(AI26,'WY Stops by Code'!$A:$F,5,FALSE)+1.72)*10000 -> 1612.5 | AM26: =(53.88-VLOOKUP(AI26,'WY Stops by Code'!$A:$F,6,FALSE))*17360 -> 883.7976 | AN26: Moortown, King Lane Leafield Dr, (45023909) | AO26: 45023909 | AP26: =VLOOKUP(AO26,'WY Stops by Code'!A:B, 2, FALSE) -> King Lane Leafield Drive | AQ26: Moortown | AR26: =(VLOOKUP(AO26,'WY Stops by Code'!$A:$F,5,FALSE)+1.72)*10000 -> 1726 | AS26: =(53.88-VLOOKUP(AO26,'WY Stops by Code'!$A:$F,6,FALSE))*17360 -> 612.9816 | AT26: West Park, Spen Lane Butcher Hill, (45011267) | AU26: 45011267 | AV26: =VLOOKUP(AU26,'WY Stops by Code'!$A:$B, 2, FALSE) -> Spen Lane Butcher Hill | AW26: West Park | AX26: =(VLOOKUP(AU26,'WY Stops by Code'!$A:$F,5,FALSE)+1.72)*10000 -> 1168.7 | AY26: =(53.88-VLOOKUP(AU26,'WY Stops by Code'!$A:$F,6,FALSE))*17360 -> 805.1568 | AZ26: Horsforth, Layton Rd Bayton Lane, (45013148) | BA26: 45013148 | BB26: =VLOOKUP(BA26,'WY Stops by Code'!$A:$B, 2, FALSE) -> Layton Road Bayton Lane | BC26: Horsforth | BD26: =(VLOOKUP(BA26,'WY Stops by Code'!$A:$F,5,FALSE)+1.72)*10000 -> 659.1 | BE26: =(53.88-VLOOKUP(BA26,'WY Stops by Code'!$A:$F,6,FALSE))*17360 -> 528.0912 | BF26: Lawnswood, Lawnswood Sports Club, (45011742) | BG26: 45011742 | BH26: =VLOOKUP(BG26,'WY Stops by Code'!$A:$B, 2, FALSE) -> Otley Road Lawnswood Sports Club | BI26: Lawnswood | BJ26: =(VLOOKUP(BG26,'WY Stops by Code'!$A:$F,5,FALSE)+1.72)*10000 -> 1262.7 | BK26: =(53.88-VLOOKUP(BG26,'WY Stops by Code'!$A:$F,6,FALSE))*17360 -> 624.4392 | BL26: Leeds City Centre, S9 Leeds Station Interchange, (45025480) TP AO | BM26: 45025480 | BN26: =VLOOKUP(BM26,'WY Stops by Code'!$A:$B, 2, FALSE) -> S9 Leeds Station Interchange | BO26: Leeds City Centre | BP26: =(VLOOKUP(BM26,'WY Stops by Code'!$A:$F,5,FALSE)+1.72)*10000 -> 1728 | BQ26: =(53.88-VLOOKUP(BM26,'WY Stops by Code'!$A:$F,6,FALSE))*17360 -> 1469.0032 | BR26: Colton, Colton Lane Chantry Garth, (45010249) | BS26: 45010249 | BT26: =VLOOKUP(BS26,'WY Stops by Code'!$A:$B, 2, FALSE) -> Colton Lane Chantry Garth | BU26: Colton | BV26: =(VLOOKUP(BS26,'WY Stops by Code'!$A:$F,5,FALSE)+1.72)*10000 -> 2769.6 | BW26: =(53.88-VLOOKUP(BS26,'WY Stops by Code'!$A:$F,6,FALSE))*17360 -> 1470.0448 | BX26: Hyde Park, Cardigan Road Victoria Rd, (45011437) | BY26: 45011437 | BZ26: =VLOOKUP(BY26,'WY Stops by Code'!$A:$B, 2, FALSE) -> Cardigan Road Victoria Road | CA26: Hyde Park | CB26: =(VLOOKUP(BY26,'WY Stops by Code'!$A:$F,5,FALSE)+1.72)*10000 -> 1436.4 | CC26: =(53.88-VLOOKUP(BY26,'WY Stops by Code'!$A:$F,6,FALSE))*17360 -> 1149.232 | CD26: Woodhouse, Blenheim Walk Woodhouse Lane, (45011393) | CE26: 45011393 | CF26: =VLOOKUP(CE26,'WY Stops by Code'!$A:$B, 2, FALSE) -> Blenheim Walk Woodhouse Lane | CG26: Woodhouse | CH26: =(VLOOKUP(CE26,'WY Stops by Code'!$A:$F,5,FALSE)+1.72)*10000 -> 1728.9 | CI26: =(53.88-VLOOKUP(CE26,'WY Stops by Code'!$A:$F,6,FALSE))*17360 -> 1300.9584 | CJ26: Cross Gates, Cross Gates Road The Orchards, (45010509) TP | CK26: 45010509 | CL26: =VLOOKUP(CK26,'WY Stops by Code'!$A:$B, 2, FALSE) -> Cross Gates Road The Orchards | CM26: Cross Gates | CN26: =(VLOOKUP(CK26,'WY Stops by Code'!$A:$F,5,FALSE)+1.72)*10000 -> 2657.4 | CO26: =(53.88-VLOOKUP(CK26,'WY Stops by Code'!$A:$F,6,FALSE))*17360 -> 1246.9688 | CP26: Weetwood, Ring Rd Weetwood Lane, (45013152) | CQ26: 45013152 | CR26: =VLOOKUP(CQ26,'WY Stops by Code'!$A:$B, 2, FALSE) -> Ring Road Weetwood Weetwood Lane | CS26: Weetwood | CT26: =(VLOOKUP(CQ26,'WY Stops by Code'!$A:$F,5,FALSE)+1.72)*10000 -> 1356.3 | CU26: =(53.88-VLOOKUP(CQ26,'WY Stops by Code'!$A:$F,6,FALSE))*17360 -> 648.396 | CV26: Horsforth, Broadway Parkside, (45013174) | CW26: 45013174 | CX26: =VLOOKUP(CW26,'WY Stops by Code'!$A:$B, 2, FALSE) -> Broadway Parkside | CY26: Horsforth | CZ26: =(VLOOKUP(CW26,'WY Stops by Code'!$A:$F,5,FALSE)+1.72)*10000 -> 733.1 | DA26: =(53.88-VLOOKUP(CW26,'WY Stops by Code'!$A:$F,6,FALSE))*17360 -> 786.7552 | DB26: Burley, Burley Road St Michaels Ln, (45010967) | DC26: 45010967 | DD26: =VLOOKUP(DC26,'WY Stops by Code'!$A:$B, 2, FALSE) -> Burley Road St Michaels Lane | DE26: Burley | DF26: =(VLOOKUP(DC26,'WY Stops by Code'!$A:$F,5,FALSE)+1.72)*10000 -> 1347.5 | DG26: =(53.88-VLOOKUP(DC26,'WY Stops by Code'!$A:$F,6,FALSE))*17360 -> 1204.9576 | DH26: Burmantofts, Beckett Street Accommodation Rd, (45010294) | DI26: 45010294 | DJ26: =VLOOKUP(DI26,'WY Stops by Code'!$A:$B, 2, FALSE) -> Beckett Street Accommodation Road | DK26: Burmantofts | DL26: =(VLOOKUP(DI26,'WY Stops by Code'!$A:$F,5,FALSE)+1.72)*10000 -> 1960.8 | DM26: =(53.88-VLOOKUP(DI26,'WY Stops by Code'!$A:$F,6,FALSE))*17360 -> 1342.6224
J27: Woodhouse, Woodhouse La St Marks Street, (45011384) | K27: 45011384 | L27: =VLOOKUP(K27,'WY Stops by Code'!A:B, 2, FALSE) -> Woodhouse Lane St Marks Street | M27: Woodhouse | N27: =(VLOOKUP(K27,'WY Stops by Code'!$A:$F,5,FALSE)+1.72)*10000 -> 1660.6 | O27: =(53.88-VLOOKUP(K27,'WY Stops by Code'!$A:$F,6,FALSE))*17360 -> 1222.3176 | P27: Headingley, Headingley Ln North Grange Road, (45011372) | Q27: 45011372 | R27: =VLOOKUP(Q27,'WY Stops by Code'!A:B, 2, FALSE) -> Headingley Lane North Grange Road | S27: Headingley | T27: =(VLOOKUP(Q27,'WY Stops by Code'!$A:$F,5,FALSE)+1.72)*10000 -> 1509 | U27: =(53.88-VLOOKUP(Q27,'WY Stops by Code'!$A:$F,6,FALSE))*17360 -> 1098.02 | V27: West Park, Otley Road Ring Road West Park, (45011161) TP | W27: 45011161 | X27: =VLOOKUP(W27,'WY Stops by Code'!A:B, 2, FALSE) -> Otley Road Ring Road West Park | Y27: West Park | Z27: =(VLOOKUP(W27,'WY Stops by Code'!$A:$F,5,FALSE)+1.72)*10000 -> 1265.9 | AA27: =(53.88-VLOOKUP(W27,'WY Stops by Code'!$A:$F,6,FALSE))*17360 -> 747.6952 | AB27: Ireland Wood, Otley Old Rd New Adel Road, (45011549) | AC27: 45011549 | AD27: =VLOOKUP(AC27,'WY Stops by Code'!A:B, 2, FALSE) -> Otley Old Road New Adel Road | AE27: Ireland Wood | AF27: =(VLOOKUP(AC27,'WY Stops by Code'!$A:$F,5,FALSE)+1.72)*10000 -> 1185.8 | AG27: =(53.88-VLOOKUP(AC27,'WY Stops by Code'!$A:$F,6,FALSE))*17360 -> 591.6288 | AH27: Meanwood, Potternewton Lane Stainbeck Rd, (45010864) | AI27: 45010864 | AJ27: =VLOOKUP(AI27,'WY Stops by Code'!A:B, 2, FALSE) -> Potternewton Lane Stainbeck Road | AK27: Meanwood | AL27: =(VLOOKUP(AI27,'WY Stops by Code'!$A:$F,5,FALSE)+1.72)*10000 -> 1600.7 | AM27: =(53.88-VLOOKUP(AI27,'WY Stops by Code'!$A:$F,6,FALSE))*17360 -> 923.2048 | AN27: Moortown, King Lane Moor Allerton Shopping Centre, (45010936) | AO27: 45010936 | AP27: =VLOOKUP(AO27,'WY Stops by Code'!A:B, 2, FALSE) -> King Lane Moor Allerton Shopping Centre | AQ27: Moortown | AR27: =(VLOOKUP(AO27,'WY Stops by Code'!$A:$F,5,FALSE)+1.72)*10000 -> 1695.1 | AS27: =(53.88-VLOOKUP(AO27,'WY Stops by Code'!$A:$F,6,FALSE))*17360 -> 571.3176 | AT27: West Park, Butcher Hill Old Oak Drive, (45011288) | AU27: 45011288 | AV27: =VLOOKUP(AU27,'WY Stops by Code'!$A:$B, 2, FALSE) -> Butcher Hill Old Oak Drive | AW27: West Park | AX27: =(VLOOKUP(AU27,'WY Stops by Code'!$A:$F,5,FALSE)+1.72)*10000 -> 1140.6 | AY27: =(53.88-VLOOKUP(AU27,'WY Stops by Code'!$A:$F,6,FALSE))*17360 -> 815.5728 | AZ27: Horsforth, Brownberrie Lane Southway, (45013150) | BA27: 45013150 | BB27: =VLOOKUP(BA27,'WY Stops by Code'!$A:$B, 2, FALSE) -> Brownberrie Lane Southway | BC27: Horsforth | BD27: =(VLOOKUP(BA27,'WY Stops by Code'!$A:$F,5,FALSE)+1.72)*10000 -> 687.8 | BE27: =(53.88-VLOOKUP(BA27,'WY Stops by Code'!$A:$F,6,FALSE))*17360 -> 528.7856 | BF27: Lawnswood, Bodington Hall, (45024118) TP AO | BG27: 45024118 | BH27: =VLOOKUP(BG27,'WY Stops by Code'!$A:$B, 2, FALSE) -> Bodington Hall Lawnswood | BI27: Lawnswood | BJ27: =(VLOOKUP(BG27,'WY Stops by Code'!$A:$F,5,FALSE)+1.72)*10000 -> 1319.5 | BK27: =(53.88-VLOOKUP(BG27,'WY Stops by Code'!$A:$F,6,FALSE))*17360 -> 618.016 | BL27: Leeds City Centre, S10 Leeds Station Interchange, (45025481) TP AO | BM27: 45025481 | BN27: =VLOOKUP(BM27,'WY Stops by Code'!$A:$B, 2, FALSE) -> S10 Leeds Station Interchange | BO27: Leeds City Centre | BP27: =(VLOOKUP(BM27,'WY Stops by Code'!$A:$F,5,FALSE)+1.72)*10000 -> 1729.3 | BQ27: =(53.88-VLOOKUP(BM27,'WY Stops by Code'!$A:$F,6,FALSE))*17360 -> 1473.1696 | BR27: Colton, Colton Lane High Bank Approach, (45011222) | BS27: 45011222 | BT27: =VLOOKUP(BS27,'WY Stops by Code'!$A:$B, 2, FALSE) -> Colton Lane High Bank Approach | BU27: Colton | BV27: =(VLOOKUP(BS27,'WY Stops by Code'!$A:$F,5,FALSE)+1.72)*10000 -> 2784 | BW27: =(53.88-VLOOKUP(BS27,'WY Stops by Code'!$A:$F,6,FALSE))*17360 -> 1445.22 | BX27: Hyde Park, Cardigan Road Mayville Ave, (45011447) | BY27: 45011447 | BZ27: =VLOOKUP(BY27,'WY Stops by Code'!$A:$B, 2, FALSE) -> Cardigan Road Mayville Avenue | CA27: Hyde Park | CB27: =(VLOOKUP(BY27,'WY Stops by Code'!$A:$F,5,FALSE)+1.72)*10000 -> 1445.8 | CC27: =(53.88-VLOOKUP(BY27,'WY Stops by Code'!$A:$F,6,FALSE))*17360 -> 1197.4928 | CD27: Leeds City Centre, L5 Woodhouse Lane, (45010914) | CE27: 45010914 | CF27: =VLOOKUP(CE27,'WY Stops by Code'!$A:$B, 2, FALSE) -> L5 Woodhouse Lane | CG27: Leeds City Centre | CH27: =(VLOOKUP(CE27,'WY Stops by Code'!$A:$F,5,FALSE)+1.72)*10000 -> 1747.5 | CI27: =(53.88-VLOOKUP(CE27,'WY Stops by Code'!$A:$F,6,FALSE))*17360 -> 1359.8088 | CJ27: Cross Gates, Cross Gates Road Poole Rd, (45010510) | CK27: 45010510 | CL27: =VLOOKUP(CK27,'WY Stops by Code'!$A:$B, 2, FALSE) -> Cross Gates Road Poole Road | CM27: Cross Gates | CN27: =(VLOOKUP(CK27,'WY Stops by Code'!$A:$F,5,FALSE)+1.72)*10000 -> 2618.3 | CO27: =(53.88-VLOOKUP(CK27,'WY Stops by Code'!$A:$F,6,FALSE))*17360 -> 1246.7952 | CP27: West Park, Ring Rd Otley Road, (45013151) TP | CQ27: 45013151 | CR27: =VLOOKUP(CQ27,'WY Stops by Code'!$A:$B, 2, FALSE) -> Ring Road West Park Otley Road | CS27: West Park | CT27: =(VLOOKUP(CQ27,'WY Stops by Code'!$A:$F,5,FALSE)+1.72)*10000 -> 1249.7 | CU27: =(53.88-VLOOKUP(CQ27,'WY Stops by Code'!$A:$F,6,FALSE))*17360 -> 738.3208 | CV27: Horsforth, Fink Hill Broadway, (45013135) | CW27: 45013135 | CX27: =VLOOKUP(CW27,'WY Stops by Code'!$A:$B, 2, FALSE) -> Fink Hill Broadway | CY27: Horsforth | CZ27: =(VLOOKUP(CW27,'WY Stops by Code'!$A:$F,5,FALSE)+1.72)*10000 -> 750 | DA27: =(53.88-VLOOKUP(CW27,'WY Stops by Code'!$A:$F,6,FALSE))*17360 -> 778.2488 | DB27: Burley, Burley Road Cardigan Ln, (45011436) | DC27: 45011436 | DD27: =VLOOKUP(DC27,'WY Stops by Code'!$A:$B, 2, FALSE) -> Burley Road Cardigan Lane | DE27: Burley | DF27: =(VLOOKUP(DC27,'WY Stops by Code'!$A:$F,5,FALSE)+1.72)*10000 -> 1397.5 | DG27: =(53.88-VLOOKUP(DC27,'WY Stops by Code'!$A:$F,6,FALSE))*17360 -> 1251.8296 | DH27: Burmantofts, Burmantofts Street Nippet Ln, (45013989) | DI27: 45013989 | DJ27: =VLOOKUP(DI27,'WY Stops by Code'!$A:$B, 2, FALSE) -> Burmantofts Street Nippet Lane | DK27: Burmantofts | DL27: =(VLOOKUP(DI27,'WY Stops by Code'!$A:$F,5,FALSE)+1.72)*10000 -> 1939.9 | DM27: =(53.88-VLOOKUP(DI27,'WY Stops by Code'!$A:$F,6,FALSE))*17360 -> 1383.4184
J28: Woodhouse, Leeds University, (45011388) | K28: 45011388 | L28: =VLOOKUP(K28,'WY Stops by Code'!A:B, 2, FALSE) -> Leeds University | M28: Woodhouse | N28: =(VLOOKUP(K28,'WY Stops by Code'!$A:$F,5,FALSE)+1.72)*10000 -> 1685.7 | O28: =(53.88-VLOOKUP(K28,'WY Stops by Code'!$A:$F,6,FALSE))*17360 -> 1264.3288 | P28: Headingley, Headingley Lane Richmond Ave, (45011370) | Q28: 45011370 | R28: =VLOOKUP(Q28,'WY Stops by Code'!A:B, 2, FALSE) -> Headingley Lane Richmond Avenue | S28: Headingley | T28: =(VLOOKUP(Q28,'WY Stops by Code'!$A:$F,5,FALSE)+1.72)*10000 -> 1469.3 | U28: =(53.88-VLOOKUP(Q28,'WY Stops by Code'!$A:$F,6,FALSE))*17360 -> 1083.9584 | V28: West Park, Otley Rd Kepston Road, (45011142) | W28: 45011142 | X28: =VLOOKUP(W28,'WY Stops by Code'!A:B, 2, FALSE) -> Otley Road Kepston Road | Y28: West Park | Z28: =(VLOOKUP(W28,'WY Stops by Code'!$A:$F,5,FALSE)+1.72)*10000 -> 1277.6 | AA28: =(53.88-VLOOKUP(W28,'WY Stops by Code'!$A:$F,6,FALSE))*17360 -> 815.3992 | AB28: Ireland Wood, Otley Old Rd Iveson Drive, (45011550) | AC28: 45011550 | AD28: =VLOOKUP(AC28,'WY Stops by Code'!A:B, 2, FALSE) -> Otley Old Road Iveson Drive | AE28: Ireland Wood | AF28: =(VLOOKUP(AC28,'WY Stops by Code'!$A:$F,5,FALSE)+1.72)*10000 -> 1162.1 | AG28: =(53.88-VLOOKUP(AC28,'WY Stops by Code'!$A:$F,6,FALSE))*17360 -> 566.6304 | AH28: Meanwood, Potternewton Lane, (45010862) | AI28: 45010862 | AJ28: =VLOOKUP(AI28,'WY Stops by Code'!A:B, 2, FALSE) -> Potternewton Lane | AK28: Meanwood | AL28: =(VLOOKUP(AI28,'WY Stops by Code'!$A:$F,5,FALSE)+1.72)*10000 -> 1649.3 | AM28: =(53.88-VLOOKUP(AI28,'WY Stops by Code'!$A:$F,6,FALSE))*17360 -> 954.4528 | AN28: Moortown, King Lane Lingfield Approach, (45010938)TP | AO28: 45010938 | AP28: =VLOOKUP(AO28,'WY Stops by Code'!A:B, 2, FALSE) -> King Lane Lingfield Approach | AQ28: Moortown | AR28: =(VLOOKUP(AO28,'WY Stops by Code'!$A:$F,5,FALSE)+1.72)*10000 -> 1677.1 | AS28: =(53.88-VLOOKUP(AO28,'WY Stops by Code'!$A:$F,6,FALSE))*17360 -> 533.1256 | AT28: Moor Grange, Butcher Hill Fillingfir Walk, (45011277) | AU28: 45011277 | AV28: =VLOOKUP(AU28,'WY Stops by Code'!$A:$B, 2, FALSE) -> Butcher Hill Fillingfir Walk | AW28: Moor Grange | AX28: =(VLOOKUP(AU28,'WY Stops by Code'!$A:$F,5,FALSE)+1.72)*10000 -> 1090.9 | AY28: =(53.88-VLOOKUP(AU28,'WY Stops by Code'!$A:$F,6,FALSE))*17360 -> 798.7336 | AZ28: Horsforth, Brownberrie Lane North Rd, (45013556) | BA28: 45013556 | BB28: =VLOOKUP(BA28,'WY Stops by Code'!$A:$B, 2, FALSE) -> Brownberrie Lane North Road | BC28: Horsforth | BD28: =(VLOOKUP(BA28,'WY Stops by Code'!$A:$F,5,FALSE)+1.72)*10000 -> 759.6 | BE28: =(53.88-VLOOKUP(BA28,'WY Stops by Code'!$A:$F,6,FALSE))*17360 -> 525.14 | BR28: Whitkirk, Selby Rd Garland Drive, (45010772) | BS28: 45010772 | BT28: =VLOOKUP(BS28,'WY Stops by Code'!$A:$B, 2, FALSE) -> Selby Road Garland Drive | BU28: Whitkirk | BV28: =(VLOOKUP(BS28,'WY Stops by Code'!$A:$F,5,FALSE)+1.72)*10000 -> 2767.2 | BW28: =(53.88-VLOOKUP(BS28,'WY Stops by Code'!$A:$F,6,FALSE))*17360 -> 1428.5544 | BX28: Hyde Park, Cardigan Road Back Harold Grove, (45011445) | BY28: 45011445 | BZ28: =VLOOKUP(BY28,'WY Stops by Code'!$A:$B, 2, FALSE) -> Cardigan Road Back Harold Grove | CA28: Hyde Park | CB28: =(VLOOKUP(BY28,'WY Stops by Code'!$A:$F,5,FALSE)+1.72)*10000 -> 1452.6 | CC28: =(53.88-VLOOKUP(BY28,'WY Stops by Code'!$A:$F,6,FALSE))*17360 -> 1231.692 | CD28: Leeds City Centre, J6 Albion Street, (45010920) TP | CE28: 45010920 | CF28: =VLOOKUP(CE28,'WY Stops by Code'!$A:$B, 2, FALSE) -> J6 Albion Street | CG28: Leeds City Centre | CH28: =(VLOOKUP(CE28,'WY Stops by Code'!$A:$F,5,FALSE)+1.72)*10000 -> 1753.1 | CI28: =(53.88-VLOOKUP(CE28,'WY Stops by Code'!$A:$F,6,FALSE))*17360 -> 1384.8072 | CJ28: Cross Gates, Cross Gates Road Maryfield Crescent, (45012089) | CK28: 45012089 | CL28: =VLOOKUP(CK28,'WY Stops by Code'!$A:$B, 2, FALSE) -> Cross Gates Road Maryfield Crescent | CM28: Cross Gates | CN28: =(VLOOKUP(CK28,'WY Stops by Code'!$A:$F,5,FALSE)+1.72)*10000 -> 2587.5 | CO28: =(53.88-VLOOKUP(CK28,'WY Stops by Code'!$A:$F,6,FALSE))*17360 -> 1246.6216 | CP28: West Park, Ring Rd Spen Gardens, (45013104) | CQ28: 45013104 | CR28: =VLOOKUP(CQ28,'WY Stops by Code'!$A:$B, 2, FALSE) -> Ring Road West Park Spen Gardens | CS28: West Park | CT28: =(VLOOKUP(CQ28,'WY Stops by Code'!$A:$F,5,FALSE)+1.72)*10000 -> 1210.7 | CU28: =(53.88-VLOOKUP(CQ28,'WY Stops by Code'!$A:$F,6,FALSE))*17360 -> 736.5848 | CV28: Horsforth, Church Road Hall Ln, (45013133) | CW28: 45013133 | CX28: =VLOOKUP(CW28,'WY Stops by Code'!$A:$B, 2, FALSE) -> Church Road Hall Lane | CY28: Horsforth | CZ28: =(VLOOKUP(CW28,'WY Stops by Code'!$A:$F,5,FALSE)+1.72)*10000 -> 770.2 | DA28: =(53.88-VLOOKUP(CW28,'WY Stops by Code'!$A:$F,6,FALSE))*17360 -> 743.3552 | DB28: Hyde Park, Burley Road Cardigan Rd, (45010968) TP | DC28: 45010968 | DD28: =VLOOKUP(DC28,'WY Stops by Code'!$A:$B, 2, FALSE) -> Burley Road Cardigan Road | DE28: Hyde Park | DF28: =(VLOOKUP(DC28,'WY Stops by Code'!$A:$F,5,FALSE)+1.72)*10000 -> 1461 | DG28: =(53.88-VLOOKUP(DC28,'WY Stops by Code'!$A:$F,6,FALSE))*17360 -> 1284.1192 | DH28: Quarry Hill, York Street Brick St, (45014787) | DI28: 45014787 | DJ28: =VLOOKUP(DI28,'WY Stops by Code'!$A:$B, 2, FALSE) -> York Street Brick Street | DK28: Quarry Hill | DL28: =(VLOOKUP(DI28,'WY Stops by Code'!$A:$F,5,FALSE)+1.72)*10000 -> 1874.9 | DM28: =(53.88-VLOOKUP(DI28,'WY Stops by Code'!$A:$F,6,FALSE))*17360 -> 1446.956
J29: Woodhouse, Blackman Ln Woodhouse Lane, (45011390) | K29: 45011390 | L29: =VLOOKUP(K29,'WY Stops by Code'!A:B, 2, FALSE) -> Blackman Lane Woodhouse Lane | M29: Woodhouse | N29: =(VLOOKUP(K29,'WY Stops by Code'!$A:$F,5,FALSE)+1.72)*10000 -> 1706.4 | O29: =(53.88-VLOOKUP(K29,'WY Stops by Code'!$A:$F,6,FALSE))*17360 -> 1279.0848 | P29: Headingley, Headingley Lane Bainbrigge Rd, (45011368) | Q29: 45011368 | R29: =VLOOKUP(Q29,'WY Stops by Code'!A:B, 2, FALSE) -> Headingley Lane Bainbrigge Road | S29: Headingley | T29: =(VLOOKUP(Q29,'WY Stops by Code'!$A:$F,5,FALSE)+1.72)*10000 -> 1443.9 | U29: =(53.88-VLOOKUP(Q29,'WY Stops by Code'!$A:$F,6,FALSE))*17360 -> 1054.4464 | V29: West Park, Otley Rd Ancaster Road, (45011143) | W29: 45011143 | X29: =VLOOKUP(W29,'WY Stops by Code'!A:B, 2, FALSE) -> Otley Road Ancaster Road | Y29: West Park | Z29: =(VLOOKUP(W29,'WY Stops by Code'!$A:$F,5,FALSE)+1.72)*10000 -> 1304.1 | AA29: =(53.88-VLOOKUP(W29,'WY Stops by Code'!$A:$F,6,FALSE))*17360 -> 832.412 | AB29: Ireland Wood, Otley Old Rd Hospital Lane, (45010753) | AC29: 45010753 | AD29: =VLOOKUP(AC29,'WY Stops by Code'!A:B, 2, FALSE) -> Otley Old Road Hospital Lane | AE29: Ireland Wood | AF29: =(VLOOKUP(AC29,'WY Stops by Code'!$A:$F,5,FALSE)+1.72)*10000 -> 1117.2 | AG29: =(53.88-VLOOKUP(AC29,'WY Stops by Code'!$A:$F,6,FALSE))*17360 -> 511.9464 | AH29: Potternewton, Potternewton Lane Miles Hill Avenue, (45011174) | AI29: 45011174 | AJ29: =VLOOKUP(AI29,'WY Stops by Code'!A:B, 2, FALSE) -> Potternewton Lane Miles Hill Avenue | AK29: Potternewton | AL29: =(VLOOKUP(AI29,'WY Stops by Code'!$A:$F,5,FALSE)+1.72)*10000 -> 1704.4 | AM29: =(53.88-VLOOKUP(AI29,'WY Stops by Code'!$A:$F,6,FALSE))*17360 -> 954.4528 | AN29: Moortown, Lingfield Hill Lingfield Drive, (45012609) | AO29: 45012609 | AP29: =VLOOKUP(AO29,'WY Stops by Code'!A:B, 2, FALSE) -> Lingfield Hill Lingfield Drive | AQ29: Moortown | AR29: =(VLOOKUP(AO29,'WY Stops by Code'!$A:$F,5,FALSE)+1.72)*10000 -> 1743.2 | AS29: =(53.88-VLOOKUP(AO29,'WY Stops by Code'!$A:$F,6,FALSE))*17360 -> 528.2648 | AT29: Hawksworth, Butcher Hill Lea Farm Road, (45011287) | AU29: 45011287 | AV29: =VLOOKUP(AU29,'WY Stops by Code'!$A:$B, 2, FALSE) -> Butcher Hill Lea Farm Road | AW29: Hawksworth | AX29: =(VLOOKUP(AU29,'WY Stops by Code'!$A:$F,5,FALSE)+1.72)*10000 -> 1054.2 | AY29: =(53.88-VLOOKUP(AU29,'WY Stops by Code'!$A:$F,6,FALSE))*17360 -> 808.976 | AZ29: Horsforth, Brownberrie Lane Scotland Ln, (45013555) | BA29: 45013555 | BB29: =VLOOKUP(BA29,'WY Stops by Code'!$A:$B, 2, FALSE) -> Brownberrie Lane Scotland Lane | BC29: Horsforth | BD29: =(VLOOKUP(BA29,'WY Stops by Code'!$A:$F,5,FALSE)+1.72)*10000 -> 800.7 | BE29: =(53.88-VLOOKUP(BA29,'WY Stops by Code'!$A:$F,6,FALSE))*17360 -> 536.9448 | BR29: Whitkirk, Whitkirk Church, (45010773) | BS29: 45010773 | BT29: =VLOOKUP(BS29,'WY Stops by Code'!$A:$B, 2, FALSE) -> Whitkirk Whitkirk Church | BU29: Whitkirk | BV29: =(VLOOKUP(BS29,'WY Stops by Code'!$A:$F,5,FALSE)+1.72)*10000 -> 2695.5 | BW29: =(53.88-VLOOKUP(BS29,'WY Stops by Code'!$A:$F,6,FALSE))*17360 -> 1432.7208 | BX29: Hyde Park, Burley Road Cardigan Rd, (45010968) TP | BY29: 45010968 | BZ29: =VLOOKUP(BY29,'WY Stops by Code'!$A:$B, 2, FALSE) -> Burley Road Cardigan Road | CA29: Hyde Park | CB29: =(VLOOKUP(BY29,'WY Stops by Code'!$A:$F,5,FALSE)+1.72)*10000 -> 1461 | CC29: =(53.88-VLOOKUP(BY29,'WY Stops by Code'!$A:$F,6,FALSE))*17360 -> 1284.1192 | CD29: Leeds City Centre, H2 The Headrow, (45010666) | CE29: 45010666 | CF29: =VLOOKUP(CE29,'WY Stops by Code'!$A:$B, 2, FALSE) -> H2 The Headrow | CG29: Leeds City Centre | CH29: =(VLOOKUP(CE29,'WY Stops by Code'!$A:$F,5,FALSE)+1.72)*10000 -> 1771.4 | CI29: =(53.88-VLOOKUP(CE29,'WY Stops by Code'!$A:$F,6,FALSE))*17360 -> 1401.2992 | CJ29: Killingbeck, York Rd Bridle Path Walk, (45010791) | CK29: 45010791 | CL29: =VLOOKUP(CK29,'WY Stops by Code'!$A:$B, 2, FALSE) -> York Road Bridle Path Walk | CM29: Killingbeck | CN29: =(VLOOKUP(CK29,'WY Stops by Code'!$A:$F,5,FALSE)+1.72)*10000 -> 2521.1 | CO29: =(53.88-VLOOKUP(CK29,'WY Stops by Code'!$A:$F,6,FALSE))*17360 -> 1257.5584 | CP29: Moor Grange, Ring Rd Redvers Close, (45013103) | CQ29: 45013103 | CR29: =VLOOKUP(CQ29,'WY Stops by Code'!$A:$B, 2, FALSE) -> Ring Road West Park Redvers Close | CS29: Moor Grange | CT29: =(VLOOKUP(CQ29,'WY Stops by Code'!$A:$F,5,FALSE)+1.72)*10000 -> 1140.6 | CU29: =(53.88-VLOOKUP(CQ29,'WY Stops by Code'!$A:$F,6,FALSE))*17360 -> 719.2248 | CV29: Horsforth, Church Road Church Crecsent, (45013193)TP | CW29: 45013193 | CX29: =VLOOKUP(CW29,'WY Stops by Code'!$A:$B, 2, FALSE) -> Church Road Church Crecsent | CY29: Horsforth | CZ29: =(VLOOKUP(CW29,'WY Stops by Code'!$A:$F,5,FALSE)+1.72)*10000 -> 781.5 | DA29: =(53.88-VLOOKUP(CW29,'WY Stops by Code'!$A:$F,6,FALSE))*17360 -> 713.1488 | DB29: Hyde Park, Burley Rd Westfield Terrace, (45010969) | DC29: 45010969 | DD29: =VLOOKUP(DC29,'WY Stops by Code'!$A:$B, 2, FALSE) -> Burley Road Westfield Terrace | DE29: Hyde Park | DF29: =(VLOOKUP(DC29,'WY Stops by Code'!$A:$F,5,FALSE)+1.72)*10000 -> 1505.5 | DG29: =(53.88-VLOOKUP(DC29,'WY Stops by Code'!$A:$F,6,FALSE))*17360 -> 1306.1664 | DH29: Leeds City Centre, G7 Eastgate, (45010651) TP | DI29: 45010651 | DJ29: =VLOOKUP(DI29,'WY Stops by Code'!$A:$B, 2, FALSE) -> G7 Eastgate | DK29: Leeds City Centre | DL29: =(VLOOKUP(DI29,'WY Stops by Code'!$A:$F,5,FALSE)+1.72)*10000 -> 1816.7 | DM29: =(53.88-VLOOKUP(DI29,'WY Stops by Code'!$A:$F,6,FALSE))*17360 -> 1411.368
J30: Leeds City Centre, L5 Woodhouse Lane, (45010914) | K30: 45010914 | L30: =VLOOKUP(K30,'WY Stops by Code'!A:B, 2, FALSE) -> L5 Woodhouse Lane | M30: Leeds City Centre | N30: =(VLOOKUP(K30,'WY Stops by Code'!$A:$F,5,FALSE)+1.72)*10000 -> 1747.5 | O30: =(53.88-VLOOKUP(K30,'WY Stops by Code'!$A:$F,6,FALSE))*17360 -> 1359.8088 | P30: Headingley, Arndale Centre, (45011366) TP | Q30: 45011366 | R30: =VLOOKUP(Q30,'WY Stops by Code'!A:B, 2, FALSE) -> Headingley Arndale Centre | S30: Headingley | T30: =(VLOOKUP(Q30,'WY Stops by Code'!$A:$F,5,FALSE)+1.72)*10000 -> 1411.6 | U30: =(53.88-VLOOKUP(Q30,'WY Stops by Code'!$A:$F,6,FALSE))*17360 -> 1002.8872 | V30: Headingley, Headingley Lane Glen Rd, (45011145) | W30: 45011145 | X30: =VLOOKUP(W30,'WY Stops by Code'!A:B, 2, FALSE) -> Headingley Lane Glen Road | Y30: Headingley | Z30: =(VLOOKUP(W30,'WY Stops by Code'!$A:$F,5,FALSE)+1.72)*10000 -> 1343.7 | AA30: =(53.88-VLOOKUP(W30,'WY Stops by Code'!$A:$F,6,FALSE))*17360 -> 868.868 | AB30: Tinshill, Tinshill Lane Tinshill Grove, (45011533) | AC30: 45011533 | AD30: =VLOOKUP(AC30,'WY Stops by Code'!A:B, 2, FALSE) -> Tinshill Lane Tinshill Grove | AE30: Tinshill | AF30: =(VLOOKUP(AC30,'WY Stops by Code'!$A:$F,5,FALSE)+1.72)*10000 -> 1061.8 | AG30: =(53.88-VLOOKUP(AC30,'WY Stops by Code'!$A:$F,6,FALSE))*17360 -> 467.1576 | AH30: Chapel Allerton, Scott Hall Rd Potternewton Lane, (45010286) TP | AI30: 45010286 | AJ30: =VLOOKUP(AI30,'WY Stops by Code'!A:B, 2, FALSE) -> Scott Hall Road Potternewton Lane | AK30: Chapel Allerton | AL30: =(VLOOKUP(AI30,'WY Stops by Code'!$A:$F,5,FALSE)+1.72)*10000 -> 1741.7 | AM30: =(53.88-VLOOKUP(AI30,'WY Stops by Code'!$A:$F,6,FALSE))*17360 -> 967.6464 | AN30: Moortown, Lingfield Hill Nursery Lane, (45023835) | AO30: 45023835 | AP30: =VLOOKUP(AO30,'WY Stops by Code'!A:B, 2, FALSE) -> Lingfield Hill Nursery Lane | AQ30: Moortown | AR30: =(VLOOKUP(AO30,'WY Stops by Code'!$A:$F,5,FALSE)+1.72)*10000 -> 1742.9 | AS30: =(53.88-VLOOKUP(AO30,'WY Stops by Code'!$A:$F,6,FALSE))*17360 -> 490.7672 | AT30: Horsforth, Low Lane Outwood Ln, (45011310) | AU30: 45011310 | AV30: =VLOOKUP(AU30,'WY Stops by Code'!$A:$B, 2, FALSE) -> Low Lane Outwood Lane | AW30: Horsforth | AX30: =(VLOOKUP(AU30,'WY Stops by Code'!$A:$F,5,FALSE)+1.72)*10000 -> 1011.2 | AY30: =(53.88-VLOOKUP(AU30,'WY Stops by Code'!$A:$F,6,FALSE))*17360 -> 777.728 | AZ30: Horsforth, Brownberrie Lane Brownberrie Dr, (45013554) | BA30: 45013554 | BB30: =VLOOKUP(BA30,'WY Stops by Code'!$A:$B, 2, FALSE) -> Brownberrie Lane Brownberrie Drive | BC30: Horsforth | BD30: =(VLOOKUP(BA30,'WY Stops by Code'!$A:$F,5,FALSE)+1.72)*10000 -> 827.7 | BE30: =(53.88-VLOOKUP(BA30,'WY Stops by Code'!$A:$F,6,FALSE))*17360 -> 557.6032 | BR30: Whitkirk, Temple Gate, (45050013) | BS30: 45050013 | BT30: =VLOOKUP(BS30,'WY Stops by Code'!$A:$B, 2, FALSE) -> Temple Gate | BU30: Whitkirk | BV30: =(VLOOKUP(BS30,'WY Stops by Code'!$A:$F,5,FALSE)+1.72)*10000 -> 2639.4 | BW30: =(53.88-VLOOKUP(BS30,'WY Stops by Code'!$A:$F,6,FALSE))*17360 -> 1439.8384 | BX30: Hyde Park, Burley Rd Westfield Terrace, (45010969) | BY30: 45010969 | BZ30: =VLOOKUP(BY30,'WY Stops by Code'!$A:$B, 2, FALSE) -> Burley Road Westfield Terrace | CA30: Hyde Park | CB30: =(VLOOKUP(BY30,'WY Stops by Code'!$A:$F,5,FALSE)+1.72)*10000 -> 1505.5 | CC30: =(53.88-VLOOKUP(BY30,'WY Stops by Code'!$A:$F,6,FALSE))*17360 -> 1306.1664 | CD30: Leeds City Centre, G2 Eastgate, (45010669) TP | CE30: 45010669 | CF30: =VLOOKUP(CE30,'WY Stops by Code'!$A:$B, 2, FALSE) -> G2 Eastgate | CG30: Leeds City Centre | CH30: =(VLOOKUP(CE30,'WY Stops by Code'!$A:$F,5,FALSE)+1.72)*10000 -> 1814.9 | CI30: =(53.88-VLOOKUP(CE30,'WY Stops by Code'!$A:$F,6,FALSE))*17360 -> 1408.5904 | CJ30: Killingbeck, York Road Seacroft Hospital, (45010792) | CK30: 45010792 | CL30: =VLOOKUP(CK30,'WY Stops by Code'!$A:$B, 2, FALSE) -> York Road Lyme Chase | CM30: Killingbeck | CN30: =(VLOOKUP(CK30,'WY Stops by Code'!$A:$F,5,FALSE)+1.72)*10000 -> 2482.1 | CO30: =(53.88-VLOOKUP(CK30,'WY Stops by Code'!$A:$F,6,FALSE))*17360 -> 1271.4464 | CP30: Moor Grange, Ring Rd Fillingfir Drive, (45013102) | CQ30: 45013102 | CR30: =VLOOKUP(CQ30,'WY Stops by Code'!$A:$B, 2, FALSE) -> Ring Road | CS30: Moor Grange | CT30: =(VLOOKUP(CQ30,'WY Stops by Code'!$A:$F,5,FALSE)+1.72)*10000 -> 1077.1 | CU30: =(53.88-VLOOKUP(CQ30,'WY Stops by Code'!$A:$F,6,FALSE))*17360 -> 735.7168 | CV30: Horsforth, Church Avenue St Margarets Ave, (45013140) | CW30: 45013140 | CX30: =VLOOKUP(CW30,'WY Stops by Code'!$A:$B, 2, FALSE) -> Church Avenue St Margarets Avenue | CY30: Horsforth | CZ30: =(VLOOKUP(CW30,'WY Stops by Code'!$A:$F,5,FALSE)+1.72)*10000 -> 827.3 | DA30: =(53.88-VLOOKUP(CW30,'WY Stops by Code'!$A:$F,6,FALSE))*17360 -> 665.9296 | DB30: Hyde Park, Burley Road Hollis Place, (45011440) | DC30: 45011440 | DD30: =VLOOKUP(DC30,'WY Stops by Code'!$A:$B, 2, FALSE) -> Burley Road Hollis Place | DE30: Hyde Park | DF30: =(VLOOKUP(DC30,'WY Stops by Code'!$A:$F,5,FALSE)+1.72)*10000 -> 1526.6 | DG30: =(53.88-VLOOKUP(DC30,'WY Stops by Code'!$A:$F,6,FALSE))*17360 -> 1327.5192 | DH30: Leeds City Centre, H7 The Headrow, (45010657) | DI30: 45010657 | DJ30: =VLOOKUP(DI30,'WY Stops by Code'!$A:$B, 2, FALSE) -> H7 The Headrow | DK30: Leeds City Centre | DL30: =(VLOOKUP(DI30,'WY Stops by Code'!$A:$F,5,FALSE)+1.72)*10000 -> 1774.8 | DM30: =(53.88-VLOOKUP(DI30,'WY Stops by Code'!$A:$F,6,FALSE))*17360 -> 1404.2504
